Workbook

Sheet Início
C4: Modelo Para Cálculo do Custo Oportunidade do Desmatamento Evitado (MCODE V1.0)
C6: Autores: Thales Rosa, Leonardo Fleck e Marcos Amend
C7: Colaboraram: Alfonso Malky e John Reid
C8: Conservação Estratégica
C9: Versão 1.0 Agosto 2011.
C11: MCODE é uma ferramenta gratuita e de livre gerenciamento (open-source), desenvolvida para apoiar análises de viabilidade de projetos de REDD. Possibilitando aos usuários comparar geração de renda dentro das opções das áreas analisadas, reduções de emissão e desmatamento evitado.
C14: Nossos agradecimentos à Fundação Gordon and Betty Moore
C16: Agradecemos sugestões sobre o MCODE: thales@conservacaoestrategica.org.br

Sheet Sobre o MCODE
C2: Sobre o MCODE v1.0 de 31 de agosto de 2011
C3: Esta é uma versão preliminar do MCODE, um modelo generalista com a função de analisar e calcular os custos de oportunidade. As principais funcionalidades do modelo são: - Possibilidade de modelagem de uma área com até 7 usos; - Modelagem de investimentos e desinvestimentos; - Projeção de gastos diretos para cada uso definido; - Cálculo automático dos gastos indiretos proporcional a rentabilidade anual por uso; - Modelagem de capital de giro com base nos gastos operacional; - Projeção de fluxo de caixa detalhado de 1 a 20 anos; - Cálculo de indicadores de viabilidade VPL e TIR; - Projeção anual de emissão de carbono com base em trajetória para até 7 usos da terra;
C14: O MCODE está divido em três partes:
C15: 1° Parte | F15: 2° Parte | I15: 3° Parte
C16: Dados da propriedade | F16: Investimentos | I16: Fluxo de caixa
C17: Premissas Iniciais | F17: Receitas | I17: REDD
C18: Trajetória do uso da terra | F18: Gastos Diretos | I18: Relatório
F19: Gastos Indiretos
F20: Tributação
C22: Convenções utilizadas:
C23: Taxa de Conversão de C para CO2
C24: 1 t/C = 3,67 t/CO2
C25: Fonte: IPCC - PAINEL INTERGOVERNAMENTAL DE MUDANÇAS CLIMÁTICAS. EGGELSTON S., BUENDIA L., MIWA K., TODD N., TANABE K. (EDITORES). 2006. IPCC Guidelines for National Greenhouse Gas Inventories. Instituto de Estratégias Ambientais Globais (IGES) para o IPCC. Japão.

Sheet Painel de controle

Sheet Dados Entrada (hidden)
C2: Painel de controle
BS4: Desmatamento
BS5: Anu
BE6: Nome da propriedade ou Nome da região: | BF6: Cidade(s): | BG6: Estado: | BH6: Região: | BI6: Nome do proprietario: | BJ6: Coordenadas GPS: | BK6: Distância da estrada mais proxima (Km): | BL6: Área total: | BM6: Area de Floresta Disponivel para utilização: | BN6: Atividade(s) econômica(s) desenvolvidas hoje: | BO6: Topografia | BP6: Taxa de desconto: | BQ6: Horizonte da analise: | BR6: Area total desmatada (atual):
C9: DADOS DA PROPRIEDADE
C11: Nome da propriedade ou Nome da região: | AI11: Listas
AI12: N
C13: Cidade(s): | AI13: S
AI14: Pecuária
C15: Estado: | AI15: Agricultura
AI16: Manejo Florestal
C17: Região: | AI17: Desmatamento
AI18: Não madeireiros
C19: Nome do proprietario: | AI19: Sim
AI20: Não
C21: Coordenadas GPS: | S21: S | AC21: O | AI21: 0
AI22: 1
C23: Distância da estrada mais proxima (Km): | AI23: 2
AI24: 3
C25: Área total: | K25: 1000 | O25: Area de Floresta Disponivel para utilização: | W25: 1000 | AA25: ha | AI25: 4
AI26: 5
C27: Atividade(s) econômica(s) desenvolvidas hoje: | AI27: 6
AI28: 7
C29: Topografia: | AI29: 8
AI30: 9
AI31: 10
AI32: 11
AI33: 12
AI34: 13
AI35: 14
C36: PREMISSAS INICIAIS | AI36: 15
AI37: 16
C38: Taxa de desconto: | K38: 0.1 | AI38: 17
AI39: 18
C40: Horizonte da analise: | K40: 20 | N40: Anos | AI40: 19
AI41: 20
C45: TRAJETORIA DO USO DA TERRA
C47: Area de Floresta Disponivel para utilização: | K47: =W25 -> 1000 | P47: ha
C49: Area total desmatada (atual): | K49: 0 | P49: =P47 -> ha
D52: Desmatamento | H52: Pecuária | L52: Agricultura | T52: Manejo Florestal | X52: Desmatamento | AB52: Não madeireiros | AF52: Floresta Secundaria | AJ52: Area Restante
D53: Anual | F53: Acum. | L53: 1 | N53: 2 | P53: 3 | R53: Usos
C54: 1 | D54: =$K$47-AJ54 -> 90 | F54: =D54 -> 90 | H54: 60 | J54: =H54/$K$47 -> 0.06 | L54: 10 | N54: 10 | P54: 10 | R54: =(L54+N54+P54)/$K$47 -> 0.03 | V54: =U54/$K$47 -> 0 | X54: 0 | Z54: =X54/$K$47 -> 0 | AD54: =AC54/$K$47 -> 0 | AH54: =AF54/$K$47 -> 0 | AJ54: =$K$47-(H54+L54+T54+X54+AB54+N54+P54) -> 910 | AL54: =AJ54/$K$47 -> 0.91
C55: 2 | D55: =AJ54-AJ55 -> 10 | F55: =D55+F54 -> 100 | H55: 70 | J55: 0.07 | L55: 10 | N55: 10 | P55: 10 | R55: =L55/$K$47 -> 0.01 | V55: =U55/$K$47 -> 0 | X55: 0 | Z55: =X55/$K$47 -> 0 | AD55: =AC55/$K$47 -> 0 | AH55: =AF55/$K$47 -> 0 | AJ55: =$K$47-(H55+L55+T55+X55+AB55+N55+P55) -> 900 | AL55: =AJ55/$K$47 -> 0.9
C56: 3 | D56: 0 | F56: =D56+F55 -> 100 | H56: 70 | J56: 0.07 | L56: 10 | N56: 10 | P56: 10 | R56: 0.01 | V56: 0 | X56: 0 | Z56: 0 | AD56: 0 | AH56: 0 | AJ56: 900 | AL56: 0.9 | AQ56: Duvida em como colocar a area de floresta secundaria sem somar duas vezes
C57: 4 | D57: 0 | F57: 100 | H57: 70 | J57: 0.07 | L57: 10 | N57: 10 | P57: 10 | R57: 0.01 | V57: 0 | X57: 0 | Z57: 0 | AD57: 0 | AH57: 0 | AJ57: 900 | AL57: 0.9
C58: 5 | D58: 0 | F58: 100 | H58: 70 | J58: 0.07 | L58: 10 | N58: 10 | P58: 10 | R58: 0.01 | V58: 0 | X58: 0 | Z58: 0 | AD58: 0 | AH58: 0 | AJ58: 900 | AL58: 0.9
C59: 6 | D59: 0 | F59: 100 | H59: 70 | J59: 0.07 | L59: 10 | N59: 10 | P59: 10 | R59: 0.01 | V59: 0 | X59: 0 | Z59: 0 | AD59: 0 | AH59: 0 | AJ59: 900 | AL59: 0.9
C60: 7 | D60: 0 | F60: 100 | H60: 70 | J60: 0.07 | L60: 10 | N60: 10 | P60: 10 | R60: 0.01 | V60: 0 | X60: 0 | Z60: 0 | AD60: 0 | AH60: 0 | AJ60: 900 | AL60: 0.9
C61: 8 | D61: =AJ60-AJ61 -> 0 | F61: 100 | H61: 70 | J61: 0.07 | L61: 10 | N61: 10 | P61: 10 | R61: 0.01 | V61: 0 | X61: 0 | Z61: 0 | AD61: 0 | AH61: 0 | AJ61: 900 | AL61: 0.9
C62: 9 | D62: 0 | F62: 100 | H62: 70 | J62: 0.07 | L62: 10 | N62: 10 | P62: 10 | R62: 0.01 | V62: 0 | X62: 0 | Z62: 0 | AD62: 0 | AH62: 0 | AJ62: 900 | AL62: 0.9
C63: 10 | D63: 0 | F63: 100 | H63: 70 | J63: 0.07 | L63: 10 | N63: 10 | P63: 10 | R63: 0.01 | V63: 0 | X63: 0 | Z63: 0 | AD63: 0 | AH63: 0 | AJ63: 900 | AL63: 0.9
C64: 11 | D64: 0 | F64: 100 | H64: 70 | J64: 0.07 | L64: 10 | N64: 10 | P64: 10 | R64: 0.01 | V64: 0 | X64: 0 | Z64: 0 | AD64: 0 | AH64: 0 | AJ64: 900 | AL64: 0.9
C65: 12 | D65: 0 | F65: 100 | H65: 70 | J65: 0.07 | L65: 10 | N65: 10 | P65: 10 | R65: 0.01 | V65: 0 | X65: 0 | Z65: 0 | AD65: 0 | AH65: 0 | AJ65: 900 | AL65: 0.9
C66: 13 | D66: 0 | F66: 100 | H66: 70 | J66: 0.07 | L66: 10 | N66: 10 | P66: 10 | R66: 0.01 | V66: 0 | X66: 0 | Z66: 0 | AD66: 0 | AH66: 0 | AJ66: 900 | AL66: 0.9
C67: 14 | D67: 0 | F67: 100 | H67: 70 | J67: 0.07 | L67: 10 | N67: 10 | P67: 10 | R67: 0.01 | V67: 0 | X67: 0 | Z67: 0 | AD67: 0 | AH67: 0 | AJ67: 900 | AL67: 0.9
C68: 15 | D68: 0 | F68: 100 | H68: 70 | J68: 0.07 | L68: 10 | N68: 10 | P68: 10 | R68: 0.01 | V68: 0 | X68: 0 | Z68: 0 | AD68: 0 | AH68: 0 | AJ68: 900 | AL68: 0.9
C69: 16 | D69: 0 | F69: 100 | H69: 70 | J69: 0.07 | L69: 10 | N69: 10 | P69: 10 | R69: 0.01 | V69: 0 | X69: 0 | Z69: 0 | AD69: 0 | AH69: 0 | AJ69: 900 | AL69: 0.9
C70: 17 | D70: =AJ69-AJ70 -> -45 | F70: =D70+F69 -> 55 | H70: 40 | J70: 0.04 | L70: 5 | N70: 5 | P70: 5 | R70: 0.005 | V70: 0 | X70: 0 | Z70: 0 | AD70: 0 | AH70: 0 | AJ70: 945 | AL70: 0.945
C71: 18 | D71: 0 | F71: 55 | H71: 40 | J71: 0.04 | L71: 5 | N71: 5 | P71: 5 | R71: 0.005 | V71: 0 | X71: 0 | Z71: 0 | AD71: 0 | AH71: 0 | AJ71: 945 | AL71: 0.945
C72: 19 | D72: 0 | F72: 55 | H72: 40 | J72: 0.04 | L72: 5 | N72: 5 | P72: 5 | R72: 0.005 | V72: 0 | X72: 0 | Z72: 0 | AD72: 0 | AH72: 0 | AJ72: 945 | AL72: 0.945
C73: 20 | D73: 0 | F73: 55 | H73: 40 | J73: 0.04 | L73: 5 | N73: 5 | P73: 5 | R73: 0.005 | V73: 0 | X73: 0 | Z73: 0 | AD73: 0 | AH73: 0 | AJ73: 945 | AL73: 0.945
C77: PROGRAMA DE INVESTIMENTOS
C79: Item: | N79: Periodo de Aquisição | Q79: Vida Útil Legal (anos) | T79: Tempo de Uso (anos) | W79: Ano de liquidação | Z79: Custo de Aquisição (R$) | AD79: Reinvestimento | AH79: Valor Residual (R$) | AN79: São considerados investimentos:
C81: 0 | W81: =T81+N81 -> 0 | AN81: Considera-se investimento a aplicação de recursos financeiros, durante o ano-calendário, que visem ao desenvolvimento da atividade rural, à expansão da produção e da melhoria da produtividade, realizados com: I - benfeitorias resultantes de construção, instalações, melhoramentos, reparos, bem assim de limpeza de diques, comportas e canais; II - culturas permanentes, essências florestais e pastagens artificiais; III - aquisição de tratores, implementos e equipamentos, máquinas, motores, veículos de cargas e utilitários rurais, utensílios e bens de duração superior a 1 (um) ano, bem assim de botes de pesca ou caíques, frigoríficos para conservação da pesca, cordas, anzóis, bóias, guinchos e reformas de embarcações; IV - animais de trabalho, de produção e engorda; V - serviços técnicos especializados, devidamente contratados, visando elevar a eficiência do uso dos recursos da propriedade ou exploração rural; VI - insumos que contribuam destacadamente para elevação da produtividade, tais como reprodutores, aquisições de matrizes, alevinos e girinos, sementes e mudas selecionadas, corretivos de solo, fertilizantes, vacinas e defensivos vegetais e animais; VII - atividades que visem especificamente à elevação sócio-econômica do trabalhador rural, tais como casas de trabalhadores, prédios e galpões para atividades recreativas, educacionais e de saúde; VIII - estradas que facilitem o acesso ou a circulação na propriedade; IX - instalação de aparelhagem de comunicação, bússola, sonda, radares e de energia elétrica; X - bolsas para a formação de técnicos em atividades rurais, inclusive gerentes de estabelecimentos e contabilistas. Observe-se que não constitui investimento o custo de aquisição da terra nua.
C82: 1 | W82: =T82+N82 -> 0
C83: 2 | W83: 0
C84: 3 | W84: 0
C85: 4 | W85: 0
C86: 5 | W86: 0
C87: 6 | W87: 0
C88: 7 | W88: 0
C89: 8 | W89: 0
C90: 9 | W90: 0
C91: 10 | W91: 0
C92: 11 | W92: 0
C93: 12 | W93: 0
C94: 13 | W94: 0
C95: 14 | W95: 0
C96: 15 | W96: 0
C97: 16 | W97: 0
C98: 17 | W98: 0
C99: 18 | W99: 0
C100: 19 | W100: 0
C101: 20 | W101: 0
C102: 21 | W102: 0
C103: 22 | W103: 0
C104: 23 | W104: 0
C105: 24 | W105: 0
C106: 25 | W106: 0
C107: 26 | W107: 0
C108: 27 | W108: 0
C109: 28 | W109: 0
C110: 29 | W110: 0
C111: 30 | W111: 0
C112: 31 | W112: 0
C113: 32 | W113: 0
C114: 33 | W114: 0
C115: 34 | W115: 0
C116: 35 | W116: 0
C117: 36 | W117: 0
C118: 37 | W118: 0
C119: 38 | W119: 0
C120: 39 | W120: 0
C121: 40 | W121: 0
C122: 41 | W122: 0
C123: 42 | W123: 0
C124: 43 | W124: 0
C125: 44 | W125: 0
C126: 45 | W126: 0
C127: 46 | W127: 0
C128: 47 | W128: 0
C129: 48 | W129: 0
C130: 49 | W130: 0
C131: 50 | W131: 0
C135: Despesas
C137: Despesas | L137: Pecuaria | P137: Agricultura | T137: Manejo Floretal | X137: Desmatamento | AB137: Não madereiros | AF137: Floresta secundaria
AL138: No caso da mão-de-obra familiar que trabalha na atividade e não recebe um salário, deve-se computar um valor correspondente ao de um trabalhador que desenvolveria a mesma função
C140: Despesas Administrativas
C141: 1
C142: 2
C143: 3 | AL143: As despesas Operacionais dedutíveis são aquelas necessárias à percepção dos rendimentos da atividade rural e à manutenção da fonte produtora, relacionadas com a natureza das atividades rurais exercidas, tais como os gastos realizados com combustíveis, lubrificantes, salários, aluguéis, arrendamentos, ferramentas e utensílios, corretivos e fertilizantes, defensivos agrícola e animal, rações, vacinas e medicamentos, impostos (exceto Imposto de Renda), taxas, contribuições para o INSS, etc.
C144: 4
C145: 5
C146: 6
C147: 7
C148: 8
C149: 9
C150: 10
C151: 11 | AL151: http://www.agricont.com.br/federal/atividade%20rural.htm
C152: 12
C153: 13
C154: 14
C155: 15
C157: Despesas Operacionais
C158: 1
C159: 2
C160: 3
C161: 4
C162: 5
C163: 6
C164: 7
C165: 8
C166: 9
C167: 10
C168: 11
C169: 12
C170: 13
C171: 14
C172: 15
C176: RECEITAS | AK176: Conversor produtividade/area
C178: Atividades economicas | H178: Pecuária | M178: Agricultura | R178: Manejo Florestal | W178: Não madeireiros | AB178: Desmatamento | AK178: Atividade | AP178: Produção | AT178: Unidade | AW178: Area (ha) | AZ178: Produtividade
AK179: Pecuária | AP179: 1000 | AT179: Cabeças | AW179: 100 | AZ179: =AP179/AW179 -> 10
C180: Produtividade (use o conversor) | AK180: Agricultura | AT180: Sacas
AK181: Manejo Florestal | AT181: ?
C182: Preço: | AK182: Não madeireiros | AT182: ?
AK183: Desmatamento | AT183: ?
C184: Receitas Secundarias:
C186: Descreva a receita secundaria
C188: Total Receitas: | H188: =(H182*H180)+H184 -> 0 | M188: =(M182*M180)+M184 -> 0 | R188: =(R182*R180)+R184 -> 0 | W188: =(W182*W180)+W184 -> 0 | AB188: =(AB182*AB180)+AB184 -> 0
C193: REDD
C195: Desmatamento por tipo de vegetação
C196: Ano | D196: Vegetação 1 | I196: Vegetação 2 | N196: Vegetação 3 | S196: Vegetação 4 | X196: Vegetação 5 | AC196: Desmatamento total Anual
D197: Area (ha) | G197: % | I197: Area (ha) | L197: % | N197: Area (ha) | Q197: % | S197: Area (ha) | V197: % | X197: Area (ha) | AA197: %
C198: 1 | D198: 70 | G198: =D198/F54 -> 0.7777777778 | I198: 20 | L198: =I198/$F54 -> 0.2222222222 | Q198: =N198/$F54 -> 0 | V198: =S198/$F54 -> 0 | AA198: =X198/$F54 -> 0 | AC198: =D54 -> 90
C199: 2 | G199: 0 | L199: =I199/F55 -> 0 | Q199: 0 | V199: 0 | AA199: 0 | AC199: =D55 -> 10
C200: 3 | G200: 0 | L200: 0 | Q200: 0 | V200: 0 | AA200: 0 | AC200: 0
C201: 4 | G201: 0 | L201: 0 | Q201: 0 | V201: 0 | AA201: 0 | AC201: 0
C202: 5 | G202: 0 | L202: 0 | Q202: 0 | V202: 0 | AA202: 0 | AC202: 0
C203: 6 | G203: 0 | L203: 0 | Q203: 0 | V203: 0 | AA203: 0 | AC203: 0
C204: 7 | G204: 0 | L204: 0 | Q204: 0 | V204: 0 | AA204: 0 | AC204: 0
C205: 8 | G205: 0 | L205: 0 | Q205: 0 | V205: 0 | AA205: 0 | AC205: 0
C206: 9 | G206: 0 | L206: 0 | Q206: 0 | V206: 0 | AA206: 0 | AC206: 0
C207: 10 | G207: 0 | L207: 0 | Q207: 0 | V207: 0 | AA207: 0 | AC207: 0
C208: 11 | G208: 0 | L208: 0 | Q208: 0 | V208: 0 | AA208: 0 | AC208: 0
C209: 12 | G209: 0 | L209: 0 | Q209: 0 | V209: 0 | AA209: 0 | AC209: 0
C210: 13 | G210: 0 | L210: 0 | Q210: 0 | V210: 0 | AA210: 0 | AC210: 0
C211: 14 | G211: 0 | L211: 0 | Q211: 0 | V211: 0 | AA211: 0 | AC211: 0
C212: 15 | G212: 0 | L212: 0 | Q212: 0 | V212: 0 | AA212: 0 | AC212: 0
C213: 16 | G213: 0 | L213: 0 | Q213: 0 | V213: 0 | AA213: 0 | AC213: 0
C214: 17 | G214: 0 | L214: 0 | Q214: 0 | V214: 0 | AA214: 0 | AC214: -45
C215: 18 | G215: 0 | L215: 0 | Q215: 0 | V215: 0 | AA215: 0 | AC215: 0
C216: 19 | G216: 0 | L216: 0 | Q216: 0 | V216: 0 | AA216: 0 | AC216: 0
C217: 20 | G217: 0 | L217: 0 | Q217: 0 | V217: 0 | AA217: 0 | AC217: =D73 -> 0
C219: Estoque de Carbono total
C220: Area de floresta disponivel | G220: Inserir quantidade de C/ha de acordo com tipo de floresta:
G221: 172.95 | L221: 184.3 | Q221: 184.71
C222: =W25 -> 1000 | G222: =C222*$G$221 -> 172950 | L222: =C222*$L$221 -> 184300 | Q222: =C222*$Q$221 -> 184710
C225: Estoque de Carbono da Area Não Utilizada Projetado
D226: Area não utlizada | G226: Inserir quantidade de C/ha de acordo com tipo de floresta: | V226: Inserir nas celulas em branco os valore de C/ha de acordo com o tipo de floresta existente na area analisada, como podem existir varios tipos de vegetação na mesma area, existem campos para diferentes tipos de utilização
G227: 172.95 | L227: 184.3 | Q227: 184.71
C228: 1 | D228: =AJ54 -> 910 | G228: =D228*$G$227 -> 157384.5 | L228: =D228*$L$227 -> 167713 | Q228: =D228*$Q$227 -> 168086.1
C229: 2 | D229: =AJ55 -> 900 | G229: 155655 | L229: =D229*$L$227 -> 165870 | Q229: =D229*$Q$227 -> 166239
C230: 3 | D230: 900 | G230: 155655 | L230: 165870 | Q230: 166239
C231: 4 | D231: 900 | G231: 155655 | L231: 165870 | Q231: 166239
C232: 5 | D232: 900 | G232: 155655 | L232: 165870 | Q232: 166239
C233: 6 | D233: 900 | G233: 155655 | L233: 165870 | Q233: 166239
C234: 7 | D234: 900 | G234: 155655 | L234: 165870 | Q234: 166239
C235: 8 | D235: 900 | G235: 155655 | L235: 165870 | Q235: 166239
C236: 9 | D236: 900 | G236: 155655 | L236: 165870 | Q236: 166239
C237: 10 | D237: 900 | G237: 155655 | L237: 165870 | Q237: 166239
... 10 more rows

Sheet Dados propriedade
B2: Dados Inicias da Propriedade Pesquisada
B3: Nesta planilha deve-se inserir os dados da propriedade/área que será analisada. É importante ressaltar que nesta planilha os dados da área de floresta primária e da área utilizada em atividades econômicas atualmente devem receber maior atenção, a partir desses dados serão realizadas as análises propostas na ferramenta. É necessário inserir o tipo de atividade econômica desenvolvida e sua respectiva área utilizada em hectares. As atividades aqui descritas deverão ser as mesmas desenvolvidas no decorrer do horizonte de análise deste projeto.
B9: Nome da propriedade ou Nome da região:
B11: Cidade(s):
B13: Estado:
B15: Região:
B17: Nome do proprietário:
B19: Coordenadas GPS: | N19: S | S19: O
B21: Distância ate a estrada principal (km)1:
B23: Área total da propiedade (hectares)
B25: Relevo predominante: | Y25: Plano
Y26: Ondulado
Y27: Acidentado
B28: Área utilizada em atividade(s) econômica(s) desenvolvidas atualmente: | Y28: Montanhoso
B30: Atividade | M30: Área (ha)
B31: Pecuária (ha) | J31: Leite
J32: Carne
B33: Agricultura (ha)
B38: Manejo Florestal2 (ha) .............................
B39: Desmatamento3 (ha) ...............................
B40: Não madeireiros4 (ha) .............................
B41: Uso Multipo5 (ha) ....................................
B42: Floresta Secundária6 (ha) .........................
B43: Total Área Desmatada (ha): | M43: =SUM(M31:S42) -> 0
B44: Área de Floresta Primária (ha):
B46: Observações
B47: 1 | C47: Estrada principal de acesso até a cidade mais próxima;
B48: 2 | C48: A floresta é dividida em várias partes para exploração madereira;
B49: 3 | C49: Área já desmatada mas sem nenhum uso econômico;
B50: 4 | C50: Área onde existe exploração dos recursos da floresta não madereiros;
B51: 5 | C51: Área de uso combinado entre extração de madeira e não madereiros;
B52: 6 | C52: Área desmatada anteriormente que está em recuperação.
B56: Algodão | J56: Amapá | K56: Centro-oeste
B57: Arroz | J57: Amazonas | K57: Nordeste
B58: Café | J58: Bahia | K58: Norte
B59: Cana-de-açúcar | J59: Ceará | K59: Sudeste
B60: Feijão | J60: Distrito Federal | K60: Sul
B61: Floricultura e paisagismo | J61: Goiás
B62: Frutas e culturas perenes | J62: Espírito Santo
B63: Banana | J63: Maranhão
B64: Cacau | J64: Mato Grosso
B65: Laranja | J65: Mato Grosso do Sul
B66: Horticultura | J66: Minas Gerais
B67: Tomate | J67: Pará
B68: Cebola | J68: Paraiba
B69: Mandioca | J69: Paraná
B70: Milho | J70: Pernambuco
B71: Soja | J71: Piauí
B72: Tabaco | J72: Rio de Janeiro
J73: Rio Grande do Norte
J74: Rio Grande do Sul
J75: Rondônia
J76: Rorâima
J77: São Paulo
J78: Santa Catarina
J79: Sergipe
J80: Tocantins

Sheet Premissas iniciais
C2: Premissas Iniciais
C3: Nesta planilha devem ser inseridos os indicadores financeiros e o tempo de duração (em anos) do projeto para a área/propriedade analisada.
C8: Área da propriedade (hectares): | K8: ='Dados propriedade'!J23 -> 0 | AR8: 1
AR9: 2
C10: Área desmatada atualmente (hectares): | K10: =J16+J17+J18+J19+J20+J21+J22+J23+J24+J25+J26 -> 0 | AR10: 3
AR11: 4
C12: Área de Floresta Primária (hectares): | K12: 300 | AR12: 5
AR13: 6
AR14: 7
C15: Área utilizada em atividade(s) econômica(s) desenvolvidas atualmente: | AR15: 8
C16: Pecuária (hectares) | H16: ='Dados propriedade'!J31 -> Leite | J16: ='Dados propriedade'!M31 -> 0 | AR16: 10
H17: ='Dados propriedade'!J32 -> Carne | J17: ='Dados propriedade'!M32 -> 0 | AM17: =K8-K10-K12+1 -> -299 | AR17: 11
C18: Agricultura (hectares) | H18: ='Dados propriedade'!J33 -> 0 | J18: ='Dados propriedade'!M33 -> 0 | AR18: 12
H19: ='Dados propriedade'!J33 -> 0 | J19: ='Dados propriedade'!M34 -> 0 | AR19: 13
H20: ='Dados propriedade'!J34 -> 0 | J20: ='Dados propriedade'!M35 -> 0 | AR20: 14
H21: ='Dados propriedade'!J35 -> 0 | J21: ='Dados propriedade'!M36 -> 0 | AR21: 15
H22: ='Dados propriedade'!J36 -> 0 | J22: ='Dados propriedade'!M37 -> 0 | AR22: 16
C23: Manejo Florestal¹ (hectares) | J23: ='Dados propriedade'!M38 -> 0 | AR23: 17
C24: Desmatamento² (hectares) | J24: ='Dados propriedade'!M39 -> 0 | AR24: 18
C25: Não madeireiros³ (hectares) | J25: ='Dados propriedade'!M40 -> 0 | AR25: 19
C26: Floresta Secundária4 (hectares) | J26: ='Dados propriedade'!M42 -> 0 | AR26: 20
C28: Taxa de desconto real1 (%): | N28: Taxa de Vazão4 (%):
C30: Horizonte da análise2 (anos): | N30: Taxa de Buffer (seguro) (%)5:
C32: NCG - Necessidade de Capital de Giro3 (%)
C35: Observações
C36: 1 | D36: Taxa de Desconto Real - Retorno Esperado sobre a operação;
C37: 2 | D37: Horizonte de Análise - Quantidade de anos em que o projeto será realizado;
C38: 3 | D38: NCG - Capital de Giro é estimado como % sobre os gastos operacionais do ano seguinte.
C39: 4 | D39: Taxa de Vazão - Previsão de possíveis perdas de vegetação.
C40: 5 | D40: Taxa de Buffer (seguro) - É uma taxa de seguro contra imprevistos.

Sheet Trajetória do uso da terra
C2: Trajetória do Uso da Terra
C3: Esta planilha deve ser preenchida com os dados da área de floresta primária que será derrubada para ampliação da área das atividade econômicas descritas anteriormente. Os dados devem ser inseridos anualmente de acordo com o período de duração do projeto. Existe um campo específico para informação sobre a utilização de área previamente desmatada/abandonada.
C8: PANORAMA ATUAL DA PROPRIEDADE
C10: Área de Floresta Primária (hectares): | K10: ='Premissas iniciais'!K12 -> 300 | P10: ha
C12: Área desmatada atualmente (hectares): | K12: ='Premissas iniciais'!K10 -> 0 | P12: =P10 -> ha
C14: Área utilizada em atividade(s) econômica(s) desenvolvidas (hectares): | K14: Pecuária | O14: Agricultura | Y14: Manejo Florestal | AC14: Desmatamento | AG14: Não madeireiros | AL14: Floresta Secundária | AP14: ha
K15: Leite | M15: Carne | O15: ='Premissas iniciais'!H18 -> 0 | Q15: ='Premissas iniciais'!H19 -> 0 | S15: ='Premissas iniciais'!H20 -> 0 | U15: ='Premissas iniciais'!H21 -> 0 | W15: ='Premissas iniciais'!H22 -> 0
K16: ='Premissas iniciais'!J16 -> 0 | M16: ='Premissas iniciais'!J17 -> 0 | O16: ='Premissas iniciais'!J18 -> 0 | Q16: ='Premissas iniciais'!J19 -> 0 | S16: ='Premissas iniciais'!J20 -> 0 | U16: ='Premissas iniciais'!J21 -> 0 | W16: ='Premissas iniciais'!J22 -> 0 | Y16: ='Premissas iniciais'!J23 -> 0 | AC16: ='Premissas iniciais'!J24 -> 0 | AG16: ='Premissas iniciais'!J25 -> 0 | AL16: ='Premissas iniciais'!J26 -> 0
C20: Ano | D20: Pecuária (ha)¹ | L20: Agricultura (ha)¹ | AA20: Crescimento AUE² (ha) | AE20: APDA³ (ha) | AL20: Crescimento de AUE sobre APDA4 (ha) | AP20: DAA5 (ha) | AT20: DA6 (ha) | AY20: ARFP7 (ha)
D21: leite | F21: carne | H21: % | J21: % | L21: ='Premissas iniciais'!H18 -> 0 | N21: ='Premissas iniciais'!H19 -> 0 | P21: ='Premissas iniciais'!H20 -> 0 | R21: ='Premissas iniciais'!H21 -> 0 | T21: ='Premissas iniciais'!H22 -> 0 | V21: % | X21: % | AA21: Anual | AC21: Total | AE21: Área (ha) | AG21: % | AI21: % | AR21: % | AV21: % | BA21: % | BT21: Soma | BU21: Dif | BV21: Dif | BW21: Maior | BY21: Soma | BZ21: Maior
C22: 1 | J22: - | X22: - | AA22: =IF(BT22<0,0,BT22) -> 0 | AC22: =AA22 -> 0 | AE22: =((IF(BV22>=0,0,BV22))*(-1))-AL22 -> 0 | AI22: - | AP22: =BT22 -> 0 | AR22: - | AT22: =SUM($AP$22) -> 0 | AV22: - | AY22: =$K$10-AT22 -> 300 | BA22: =AY22/$K$10 -> 1 | BT22: =(D22+F22+P22+R22+T22+N22+L22) -> 0 | BU22: =$K$10-BT22 -> 300 | BV22: =IF(BT22>0,BT22,0) -> 0 | BW22: =LARGE(BT22,1) -> 0 | BX22: =$K$10-AY22 -> 0 | BY22: =D22+F22+L22+N22+P22+R22+T22 -> 0 | BZ22: =LARGE(BY22,1) -> 0
C23: 2 | J23: =IF(ISERROR(((D23+F23)/(D22+F22))-1),0,(((D23+F23)/(D22+F22))-1)) -> 0 | X23: =IF(ISERROR((((SUM(L23:U23))/(SUM(L22:U22)))-1)),0,(SUM(L23:U23))/(SUM(L22:U22)))-1 -> -1 | AA23: =IF((BT23-BT22)<0,0,(BT23-BT22)) -> 0 | AC23: =IF(AA23+AC22<AC22,AC22,AA23+AC22) -> 0 | AE23: =(((IF(BV23>=0,0,BV23))*(-1))+AE22)-AL23 -> 0 | AI23: =IF(ISERROR((AE23/AE22)-1),0,((AE23/AE22)-1)) -> 0 | AP23: =AC23-AC22 -> 0 | AR23: =IF(ISERROR((AP23/AP22)-1),0,((AP23/AP22)-1)) -> 0 | AT23: =SUM($AP$22:AQ23) -> 0 | AV23: =IF(ISERROR((AT23/AT22)-1),0,((AT23/AT22)-1)) -> 0 | AY23: =$K$10-AT23 -> 300 | BA23: 1 | BT23: 0 | BU23: =IF(($K$10-BT23)<BU22,($K$10-BT23),BU22) -> 300 | BV23: =BT23-BT22 -> 0 | BW23: =LARGE(BT22:BT23,1) -> 0 | BX23: =$K$10-AY23 -> 0 | BY23: 0 | BZ23: =LARGE($BY$22:BY23,1) -> 0
C24: 3 | J24: =IF(ISERROR(((D24+F24)/(D23+F23))-1),0,(((D24+F24)/(D23+F23))-1)) -> 0 | X24: =IF(ISERROR((((SUM(L24:U24))/(SUM(L23:U23)))-1)),0,(SUM(L24:U24))/(SUM(L23:U23)))-1 -> -1 | AA24: =IF((BT24-BT23)<0,0,(BT24-BT23)) -> 0 | AC24: 0 | AE24: =(((IF(BV24>=0,0,BV24))*(-1))+AE23)-AL24 -> 0 | AI24: =IF(ISERROR((AE24/AE23)-1),0,((AE24/AE23)-1)) -> 0 | AP24: =AC24-AC23 -> 0 | AR24: =IF(ISERROR((AP24/AP23)-1),0,((AP24/AP23)-1)) -> 0 | AT24: =SUM($AP$22:AQ24) -> 0 | AV24: =IF(ISERROR((AT24/AT23)-1),0,((AT24/AT23)-1)) -> 0 | AY24: 300 | BA24: 1 | BT24: 0 | BU24: 300 | BV24: 0 | BW24: =LARGE($BT$22:BT24,1) -> 0 | BX24: 0 | BY24: 0 | BZ24: =LARGE($BY$22:BY24,1) -> 0
C25: 4 | J25: 0 | X25: =IF(ISERROR((((SUM(L25:U25))/(SUM(L24:U24)))-1)),0,(SUM(L25:U25))/(SUM(L24:U24)))-1 -> -1 | AA25: =IF((BT25-BT24)<0,0,(BT25-BT24)) -> 0 | AC25: 0 | AE25: 0 | AI25: =IF(ISERROR((AE25/AE24)-1),0,((AE25/AE24)-1)) -> 0 | AP25: =AC25-AC24 -> 0 | AR25: 0 | AT25: =SUM($AP$22:AQ25) -> 0 | AV25: =IF(ISERROR((AT25/AT24)-1),0,((AT25/AT24)-1)) -> 0 | AY25: 300 | BA25: 1 | BT25: 0 | BU25: 300 | BV25: =BT25-BT24 -> 0 | BW25: =LARGE($BT$22:BT25,1) -> 0 | BX25: 0 | BY25: 0 | BZ25: =LARGE($BY$22:BY25,1) -> 0
C26: 5 | J26: 0 | X26: -1 | AA26: 0 | AC26: 0 | AE26: 0 | AI26: =IF(ISERROR((AE26/AE25)-1),0,((AE26/AE25)-1)) -> 0 | AP26: 0 | AR26: 0 | AT26: =SUM($AP$22:AQ26) -> 0 | AV26: =IF(ISERROR((AT26/AT25)-1),0,((AT26/AT25)-1)) -> 0 | AY26: 300 | BA26: 1 | BT26: 0 | BU26: 300 | BV26: 0 | BW26: =LARGE($BT$22:BT26,1) -> 0 | BX26: 0 | BY26: 0 | BZ26: =LARGE($BY$22:BY26,1) -> 0
C27: 6 | J27: 0 | X27: -1 | AA27: 0 | AC27: 0 | AE27: 0 | AI27: 0 | AP27: 0 | AR27: 0 | AT27: =SUM($AP$22:AQ27) -> 0 | AV27: 0 | AY27: 300 | BA27: 1 | BT27: 0 | BU27: 300 | BV27: 0 | BW27: =LARGE($BT$22:BT27,1) -> 0 | BX27: 0 | BY27: 0 | BZ27: =LARGE($BY$22:BY27,1) -> 0
C28: 7 | J28: 0 | X28: -1 | AA28: 0 | AC28: 0 | AE28: 0 | AI28: 0 | AP28: 0 | AR28: 0 | AT28: =SUM($AP$22:AQ28) -> 0 | AV28: 0 | AY28: 300 | BA28: 1 | BT28: 0 | BU28: 300 | BV28: 0 | BW28: =LARGE($BT$22:BT28,1) -> 0 | BX28: 0 | BY28: 0 | BZ28: =LARGE($BY$22:BY28,1) -> 0
C29: 8 | J29: 0 | X29: -1 | AA29: 0 | AC29: 0 | AE29: 0 | AI29: 0 | AP29: 0 | AR29: 0 | AT29: =SUM($AP$22:AQ29) -> 0 | AV29: 0 | AY29: 300 | BA29: 1 | BT29: 0 | BU29: 300 | BV29: 0 | BW29: =LARGE($BT$22:BT29,1) -> 0 | BX29: 0 | BY29: 0 | BZ29: =LARGE($BY$22:BY29,1) -> 0
C30: 9 | J30: =IF(ISERROR(((D30+F30)/(D29+F29))-1),0,(((D30+F30)/(D29+F29))-1)) -> 0 | X30: -1 | AA30: 0 | AC30: 0 | AE30: 0 | AI30: 0 | AP30: 0 | AR30: 0 | AT30: =SUM($AP$22:AQ30) -> 0 | AV30: =IF(ISERROR((AT30/AT29)-1),0,((AT30/AT29)-1)) -> 0 | AY30: 300 | BA30: 1 | BT30: 0 | BU30: 300 | BV30: 0 | BW30: =LARGE($BT$22:BT30,1) -> 0 | BX30: 0 | BY30: 0 | BZ30: =LARGE($BY$22:BY30,1) -> 0
C31: 10 | J31: 0 | X31: -1 | AA31: 0 | AC31: 0 | AE31: =(((IF(BV31>=0,0,BV31))*(-1))+AE30)-AL31 -> 0 | AI31: 0 | AP31: 0 | AR31: 0 | AT31: =SUM($AP$22:AQ31) -> 0 | AV31: 0 | AY31: 300 | BA31: 1 | BT31: 0 | BU31: 300 | BV31: 0 | BW31: =LARGE($BT$22:BT31,1) -> 0 | BX31: 0 | BY31: 0 | BZ31: =LARGE($BY$22:BY31,1) -> 0
C32: 11 | J32: 0 | X32: -1 | AA32: =IF((BT32-BT31)<0,0,(BT32-BT31)) -> 0 | AC32: 0 | AE32: =(((IF(BV32>=0,0,BV32))*(-1))+AE31)-AL32 -> 0 | AI32: 0 | AP32: 0 | AR32: 0 | AT32: =SUM($AP$22:AQ32) -> 0 | AV32: 0 | AY32: 300 | BA32: 1 | BT32: 0 | BU32: 300 | BV32: 0 | BW32: =LARGE($BT$22:BT32,1) -> 0 | BX32: 0 | BY32: 0 | BZ32: =LARGE($BY$22:BY32,1) -> 0
C33: 12 | J33: 0 | X33: -1 | AA33: =IF((BT33-BT32)<0,0,(BT33-BT32)) -> 0 | AC33: 0 | AE33: =(((IF(BV33>=0,0,BV33))*(-1))+AE32)-AL33 -> 0 | AI33: =IF(ISERROR((AE33/AE32)-1),0,((AE33/AE32)-1)) -> 0 | AP33: 0 | AR33: 0 | AT33: =SUM($AP$22:AQ33) -> 0 | AV33: 0 | AY33: 300 | BA33: 1 | BT33: 0 | BU33: 300 | BV33: =BT33-BT32 -> 0 | BW33: =LARGE($BT$22:BT33,1) -> 0 | BX33: 0 | BY33: 0 | BZ33: =LARGE($BY$22:BY33,1) -> 0
C34: 13 | J34: 0 | X34: -1 | AA34: 0 | AC34: 0 | AE34: 0 | AI34: 0 | AP34: 0 | AR34: 0 | AT34: =SUM($AP$22:AQ34) -> 0 | AV34: 0 | AY34: 300 | BA34: 1 | BT34: 0 | BU34: 300 | BV34: 0 | BW34: =LARGE($BT$22:BT34,1) -> 0 | BX34: 0 | BY34: 0 | BZ34: =LARGE($BY$22:BY34,1) -> 0
C35: 14 | J35: 0 | X35: -1 | AA35: 0 | AC35: 0 | AE35: 0 | AI35: 0 | AP35: =AC35-AC34 -> 0 | AR35: 0 | AT35: =SUM($AP$22:AQ35) -> 0 | AV35: 0 | AY35: 300 | BA35: 1 | BT35: 0 | BU35: 300 | BV35: 0 | BW35: =LARGE($BT$22:BT35,1) -> 0 | BX35: 0 | BY35: 0 | BZ35: =LARGE($BY$22:BY35,1) -> 0
C36: 15 | J36: 0 | X36: -1 | AA36: 0 | AC36: 0 | AE36: 0 | AI36: 0 | AP36: 0 | AR36: 0 | AT36: =SUM($AP$22:AQ36) -> 0 | AV36: 0 | AY36: 300 | BA36: 1 | BT36: 0 | BU36: 300 | BV36: 0 | BW36: =LARGE($BT$22:BT36,1) -> 0 | BX36: 0 | BY36: 0 | BZ36: =LARGE($BY$22:BY36,1) -> 0
C37: 16 | J37: 0 | X37: -1 | AA37: 0 | AC37: 0 | AE37: 0 | AI37: 0 | AP37: 0 | AR37: 0 | AT37: =SUM($AP$22:AQ37) -> 0 | AV37: 0 | AY37: 300 | BA37: 1 | BT37: 0 | BU37: 300 | BV37: 0 | BW37: =LARGE($BT$22:BT37,1) -> 0 | BX37: 0 | BY37: 0 | BZ37: =LARGE($BY$22:BY37,1) -> 0
C38: 17 | J38: 0 | X38: -1 | AA38: 0 | AC38: 0 | AE38: 0 | AI38: 0 | AP38: 0 | AR38: 0 | AT38: =SUM($AP$22:AQ38) -> 0 | AV38: 0 | AY38: 300 | BA38: 1 | BT38: 0 | BU38: 300 | BV38: 0 | BW38: =LARGE($BT$22:BT38,1) -> 0 | BX38: 0 | BY38: 0 | BZ38: =LARGE($BY$22:BY38,1) -> 0
C39: 18 | J39: 0 | X39: -1 | AA39: 0 | AC39: 0 | AE39: 0 | AI39: 0 | AP39: 0 | AR39: 0 | AT39: =SUM($AP$22:AQ39) -> 0 | AV39: 0 | AY39: 300 | BA39: 1 | BT39: 0 | BU39: 300 | BV39: 0 | BW39: =LARGE($BT$22:BT39,1) -> 0 | BX39: 0 | BY39: 0 | BZ39: =LARGE($BY$22:BY39,1) -> 0
C40: 19 | J40: 0 | X40: =IF(ISERROR((((SUM(L40:U40))/(SUM(L39:U39)))-1)),0,(SUM(L40:U40))/(SUM(L39:U39)))-1 -> -1 | AA40: 0 | AC40: 0 | AE40: 0 | AI40: 0 | AP40: 0 | AR40: 0 | AT40: =SUM($AP$22:AQ40) -> 0 | AV40: 0 | AY40: 300 | BA40: 1 | BT40: 0 | BU40: 300 | BV40: 0 | BW40: =LARGE($BT$22:BT40,1) -> 0 | BX40: 0 | BY40: 0 | BZ40: =LARGE($BY$22:BY40,1) -> 0
C41: 20 | J41: 0 | X41: =IF(ISERROR((((SUM(L41:U41))/(SUM(L40:U40)))-1)),0,(SUM(L41:U41))/(SUM(L40:U40)))-1 -> -1 | AA41: 0 | AC41: 0 | AE41: 0 | AI41: 0 | AP41: 0 | AR41: =IF(ISERROR((AP41/AP40)-1),0,((AP41/AP40)-1)) -> 0 | AT41: =SUM($AP$22:AQ41) -> 0 | AV41: 0 | AY41: 300 | BA41: 1 | BT41: 0 | BU41: 300 | BV41: 0 | BW41: =LARGE($BT$22:BT41,1) -> 0 | BX41: 0 | BY41: 0 | BZ41: =LARGE($BY$22:BY41,1) -> 0
C43: Legenda | BV43: =MAX(BZ22:BZ41) -> 0
C44: % | E44: Variação da área em relação ao ano anterior
C46: Observações
C47: 1 | D47: A área lançada em atividades de pecuária e agricultura se refere a uso econômico da área de floresta primária;
C49: 2 | D49: Área utilizada em atividade econômica (AUE);
C50: 3 | D50: Área previamente desmatada/abandonada (APDA);
C51: 4 | D51: Neste campo a área nunca poderá ser maior que a área de APDA;
C52: 5 | D52: Desmatamento adicional Anual (DAA);
C53: 6 | D53: Desmatamento acumulado (DA);
C54: 7 | D54: Área restante de floresta primária.

Sheet Investimentos
B2: Programa de Investimentos | GL2: ATALHOS
B3: Nesta planilha deve-se inserir os investimentos necessários para ampliar as atividades econômicas descritas nas premissas iniciais. Deve-se levar em conta a variação anual da área informada na planilha anterior (trajetória do uso da terra). Existe um quadro para inserir os investimentos comuns a mais de uma atividade e um quadro específico para investimentos específicos a cada atividade econômica. O quadro de atalhos (do lado direito) facilita a navegação até o quadro de cada atividade. | GM3: =B8 -> Investmentos Comuns | GO3: =B236 -> 0
GM4: =B65 -> Leite | GO4: =B293 -> 0
GM5: =B122 -> Carne | GO5: =B350 -> 0
GM6: =B179 -> 0 | GO6: =B407 -> 0
B8: Investmentos Comuns | V8: Investimentos | X8: Fisico | AU8: Reinvestimento | AW8: Fisico | BS8: Total | BU8: Fisico | CQ8: Valor investimento e reinvestimento | CT8: R$ | DP8: Depreciação | DS8: R$ | EO8: Venda Ativos | EQ8: R$ | FM8: Valor de liquidacao | FP8: R$
B9: Item | C9: Quantidade Inicial | D9: Unidade | E9: Custo Real Unitário CIF1 (R$/Unidade) | F9: Velocidade de Depreciação | G9: Período Inicial do Investimento | H9: Tempo de Uso2 (Anos) | I9: Modelar Reinvestimentos3 ? | J9: Incluir Valor de Liquidação? | K9: Valor Residual4 (%) | L9: Taxa de Depreciação Contábil (%) | M9: Vida Útil Ajustada (Anos) | N9: Vida Útil Legal (Anos) | O9: Taxa de Depreciação Real (%) | P9: Cresc. Real Médio Anual no Custo (%) | Q9: Observações | X9: 0 | Y9: 1 | Z9: 2 | AA9: 3 | AB9: 4 | AC9: 5 | AD9: 6 | AE9: 7 | AF9: 8 | AG9: 9 | AH9: 10 | AI9: 11 | AJ9: 12 | AK9: 13 | AL9: 14 | AM9: 15 | AN9: 16 | AO9: 17 | AP9: 18 | AQ9: 19 | AR9: 20 | AS9: 1 | AW9: 0 | AX9: 1 | AY9: 2 | AZ9: 3 | BA9: 4 | BB9: 5 | BC9: 6 | BD9: 7 | BE9: 8 | BF9: 9 | BG9: 10 | BH9: 11 | BI9: 12 | BJ9: 13 | BK9: 14 | BL9: 15 | BM9: 16 | BN9: 17 | BO9: 18 | BP9: 19 | BQ9: 20 | BU9: 0 | BV9: 1 | BW9: 2 | BX9: 3 | BY9: 4 | BZ9: 5 | CA9: 6 | CB9: 7 | CC9: 8 | CD9: 9 | CE9: 10 | CF9: 11 | CG9: 12 | CH9: 13 | CI9: 14 | CJ9: 15 | CK9: 16 | CL9: 17 | CM9: 18 | CN9: 19 | CO9: 20 | CQ9: Item | CR9: Custo Real Unitário CIF (R$/Unidade) | CS9: Crescimento Real Médio Anual (%) | CT9: 0 | CU9: 1 | CV9: 2 | CW9: 3 | CX9: 4 | CY9: 5 | CZ9: 6 | DA9: 7 | DB9: 8 | DC9: 9 | DD9: 10 | DE9: 11 | DF9: 12 | DG9: 13 | DH9: 14 | DI9: 15 | DJ9: 16 | DK9: 17 | DL9: 18 | DM9: 19 | DN9: 20 | DP9: Item | DQ9: Depreciação contabil anual (%) | DR9: Vida Útil (anos) | DS9: 0 | DT9: 1 | DU9: 2 | DV9: 3 | DW9: 4 | DX9: 5 | DY9: 6 | DZ9: 7 | EA9: 8 | EB9: 9 | EC9: 10 | ED9: 11 | EE9: 12 | EF9: 13 | EG9: 14 | EH9: 15 | EI9: 16 | EJ9: 17 | EK9: 18 | EL9: 19 | EM9: 20 | EQ9: 0 | ER9: 1 | ES9: 2 | ET9: 3 | EU9: 4 | EV9: 5 | EW9: 6 | EX9: 7 | EY9: 8 | EZ9: 9 | FA9: 10 | FB9: 11 | FC9: 12 | FD9: 13 | FE9: 14 | FF9: 15 | FG9: 16 | FH9: 17 | FI9: 18 | FJ9: 19 | FK9: 20 | FM9: Item | FN9: Depreciação real anual (%) | FO9: Tempo de uso (anos) | FP9: 0 | FQ9: 1 | FR9: 2 | FS9: 3 | FT9: 4 | FU9: 5 | FV9: 6 | FW9: 7 | FX9: 8 | FY9: 9 | FZ9: 10 | GA9: 11 | GB9: 12 | GC9: 13 | GD9: 14 | GE9: 15 | GF9: 16 | GG9: 17 | GH9: 18 | GI9: 19 | GJ9: 20
L10: =IF(B10="","",IF(F10="Três turnos",2*(1/N10),IF(F10="Dois turnos",1.5*(1/N10),1/N10))) ->  | M10: =IF(B10="","",ROUNDUP(1/L10,0)) ->  | N10: 5 | O10: =IF(B10="","",(100%-K10)/H10) ->  | P10: 0 | V10: =IF($B10="","",$B10) ->  | X10: =IF(V10="","",IF($X$66<G10,0,C10)) ->  | Y10: =IF(V10="","",IF($Y$66<$G10,0,IF(SUM($X10:X10)>=$C10,0,$C10))) ->  | Z10: =IF(V10="","",IF($Z$66<$G10,0,IF(SUM($X10:Y10)>=$C10,0,$C10))) ->  | AA10: =IF(V10="","",IF($AA$66<$G10,0,IF(SUM($X10:Z10)>=$C10,0,$C10))) ->  | AB10: =IF(V10="","",IF($AB$66<$G10,0,IF(SUM($X10:AA10)>=$C10,0,$C10))) ->  | AC10: =IF(V10="","",IF($AC$66<$G10,0,IF(SUM($X10:AB10)>=$C10,0,$C10))) ->  | AD10: =IF(V10="","",IF($AD$66<$G10,0,IF(SUM($X10:AC10)>=$C10,0,$C10))) ->  | AE10: =IF(V10="","",IF($AE$66<$G10,0,IF(SUM($X10:AD10)>=$C10,0,$C10))) ->  | AF10: =IF(V10="","",IF($AF$66<$G10,0,IF(SUM($X10:AE10)>=$C10,0,$C10))) ->  | AG10: =IF(V10="","",IF($AG$66<$G10,0,IF(SUM($X10:AF10)>=$C10,0,$C10))) ->  | AH10: =IF(V10="","",IF($AH$66<$G10,0,IF(SUM($X10:AG10)>=$C10,0,$C10))) ->  | AI10: =IF(V10="","",IF($AI$66<$G10,0,IF(SUM($X10:AH10)>=$C10,0,$C10))) ->  | AJ10: =IF(V10="","",IF($AJ$66<$G10,0,IF(SUM($X10:AI10)>=$C10,0,$C10))) ->  | AK10: =IF(V10="","",IF($AK$66<$G10,0,IF(SUM($X10:AJ10)>=$C10,0,$C10))) ->  | AL10: =IF(V10="","",IF($AL$66<$G10,0,IF(SUM($X10:AK10)>=$C10,0,$C10))) ->  | AM10: =IF(V10="","",IF($AM$66<$G10,0,IF(SUM($X10:AL10)>=$C10,0,$C10))) ->  | AN10: =IF(V10="","",IF($AN$66<$G10,0,IF(SUM($X10:AM10)>=$C10,0,$C10))) ->  | AO10: =IF(V10="","",IF($AO$66<$G10,0,IF(SUM($X10:AN10)>=$C10,0,$C10))) ->  | AP10: =IF(V10="","",IF($AP$66<$G10,0,IF(SUM($X10:AO10)>=$C10,0,$C10))) ->  | AQ10: =IF(V10="","",IF($AQ$66<$G10,0,IF(SUM($X10:AP10)>=$C10,0,$C10))) ->  | AR10: =IF(V10="","",IF($AR$66<$G10,0,IF(SUM($X10:AQ10)>=$C10,0,$C10))) ->  | AS10: 2 | AU10: =IF($B10="","",$B10) ->  | AW10: =IF(AU10="","",0) ->  | AX10: =IF(OR($AU10="",$H10=""),"",IF($I10="Sim",IF(AX$9-$H10>=0,HLOOKUP(AX$9-$H10,$AW$9:$BQ$59,$AS10,FALSE)+HLOOKUP(AX$9-$H10,$X$9:$AR$59,$AS10,FALSE),0),0)) ->  | BH10: =IF(OR($AU10="",$H10=""),"",IF($I10="Sim",IF(BH$9-$H10>=0,HLOOKUP(BH$9-$H10,$AW$9:$BQ$59,$AS10,FALSE)+HLOOKUP(BH$9-$H10,$X$9:$AR$59,$AS10,FALSE),0),0)) ->  | BS10: =IF($B10="","",$B10) ->  | BU10: =IF($BS10="","",SUM(X10,AW10)) ->  | BV10: =IF($BS10="","",SUM(Y10,AX10)) ->  | BW10: =IF($BS10="","",SUM(Z10,AY10)) ->  | BX10: =IF($BS10="","",SUM(AA10,AZ10)) ->  | BY10: =IF($BS10="","",SUM(AB10,BA10)) ->  | BZ10: =IF($BS10="","",SUM(AC10,BB10)) ->  | CA10: =IF($BS10="","",SUM(AD10,BC10)) ->  | CB10: =IF($BS10="","",SUM(AE10,BD10)) ->  | CC10: =IF($BS10="","",SUM(AF10,BE10)) ->  | CD10: =IF($BS10="","",SUM(AG10,BF10)) ->  | CE10: =IF($BS10="","",SUM(AH10,BG10)) ->  | CF10: =IF($BS10="","",SUM(AI10,BH10)) ->  | CG10: =IF($BS10="","",SUM(AJ10,BI10)) ->  | CH10: =IF($BS10="","",SUM(AK10,BJ10)) ->  | CI10: =IF($BS10="","",SUM(AL10,BK10)) ->  | CJ10: =IF($BS10="","",SUM(AM10,BL10)) ->  | CK10: =IF($BS10="","",SUM(AN10,BM10)) ->  | CL10: =IF($BS10="","",SUM(AO10,BN10)) ->  | CM10: =IF($BS10="","",SUM(AP10,BO10)) ->  | CN10: =IF($BS10="","",SUM(AQ10,BP10)) ->  | CO10: =IF($BS10="","",SUM(AR10,BQ10)) ->  | CQ10: =""&$B10 ->  | CR10: =IF(CQ10="","",E10) ->  | CT10: =IF($CQ10="","",$CR10*BU10) ->  | CU10: =IF($CQ10="","",$CR10*BV10) ->  | CV10: =IF($CQ10="","",$CR10*BW10) ->  | CW10: =IF($CQ10="","",$CR10*BX10) ->  | CX10: =IF($CQ10="","",$CR10*BY10) ->  | CY10: =IF($CQ10="","",$CR10*BZ10) ->  | CZ10: =IF($CQ10="","",$CR10*CA10) ->  | DA10: =IF($CQ10="","",$CR10*CB10) ->  | DB10: =IF($CQ10="","",$CR10*CC10) ->  | DC10: =IF($CQ10="","",$CR10*CD10) ->  | DD10: =IF($CQ10="","",$CR10*CE10) ->  | DE10: =IF($CQ10="","",$CR10*CF10) ->  | DF10: =IF($CQ10="","",$CR10*CG10) ->  | DG10: =IF($CQ10="","",$CR10*CH10) ->  | DH10: =IF($CQ10="","",$CR10*CI10) ->  | DI10: =IF($CQ10="","",$CR10*CJ10) ->  | DJ10: =IF($CQ10="","",$CR10*CK10) ->  | DK10: =IF($CQ10="","",$CR10*CL10) ->  | DL10: =IF($CQ10="","",$CR10*CM10) ->  | DM10: =IF($CQ10="","",$CR10*CN10) ->  | DN10: =IF($CQ10="","",$CR10*CO10) ->  | DP10: =""&$B10 ->  | DQ10: =L10 ->  | DR10: =M10 ->  | DS10: =IF(DP10="","",0) ->  | DT10: =IF($DP10="","",IF(($DS$66+$DR10)>DS$66,$CT10*$DQ10,0)) ->  | DU10: =IF($DP10="","",IF($DP10="","",IF(($DS$66+$DR10)>DT$66,$CT10*$DQ10,0)+IF(($DT$66+$DR10)>DT$66,$CU10*$DQ10,0))) ->  | DV10: =IF($DP10="","",IF($DP10="","",IF(($DS$66+$DR10)>DU$66,$CT10*$DQ10,0)+IF(($DT$66+$DR10)>DU$66,$CU10*$DQ10,0)+IF(($DU$66+$DR10)>DU$66,$CV10*$DQ10,0))) ->  | DW10: =IF($DP10="","",IF($DP10="","",IF(($DS$66+$DR10)>DV$66,$CT10*$DQ10,0)+IF(($DT$66+$DR10)>DV$66,$CU10*$DQ10,0)+IF(($DU$66+$DR10)>DV$66,$CV10*$DQ10,0)+IF(($DV$66+$DR10)>DV$66,$CW10*$DQ10,0))) ->  | DX10: =IF($DP10="","",IF($DP10="","",IF(($DS$66+$DR10)>DW$66,$CT10*$DQ10,0)+IF(($DT$66+$DR10)>DW$66,$CU10*$DQ10,0)+IF(($DU$66+$DR10)>DW$66,$CV10*$DQ10,0)+IF(($DV$66+$DR10)>DW$66,$CW10*$DQ10,0)+IF(($DW$66+$DR10)>DW$66,$CX10*$DQ10,0))) ->  | DY10: =IF($DP10="","",IF(($DS$66+$DR10)>DX$66,$CT10*$DQ10,0)+IF(($DT$66+$DR10)>DX$66,$CU10*$DQ10,0)+IF(($DU$66+$DR10)>DX$66,$CV10*$DQ10,0)+IF(($DV$66+$DR10)>DX$66,$CW10*$DQ10,0)+IF(($DW$66+$DR10)>DX$66,$CX10*$DQ10,0)+IF(($DX$66+$DR10)>DX$66,$CY10*$DQ10,0)) ->  | DZ10: =IF($DP10="","",IF($DP10="","",IF(($DS$66+$DR10)>DY$66,$CT10*$DQ10,0)+IF(($DT$66+$DR10)>DY$66,$CU10*$DQ10,0)+IF(($DU$66+$DR10)>DY$66,$CV10*$DQ10,0)+IF(($DV$66+$DR10)>DY$66,$CW10*$DQ10,0)+IF(($DW$66+$DR10)>DY$66,$CX10*$DQ10,0)+IF(($DX$66+$DR10)>DY$66,$CY10*$DQ10,0)+IF(($DY$66+$DR10)>DY$66,$CZ10*$DQ10,0))) ->  | EA10: =IF($DP10="","",IF($DP10="","",IF(($DS$66+$DR10)>DZ$66,$CT10*$DQ10,0)+IF(($DT$66+$DR10)>DZ$66,$CU10*$DQ10,0)+IF(($DU$66+$DR10)>DZ$66,$CV10*$DQ10,0)+IF(($DV$66+$DR10)>DZ$66,$CW10*$DQ10,0)+IF(($DW$66+$DR10)>DZ$66,$CX10*$DQ10,0)+IF(($DX$66+$DR10)>DZ$66,$CY10*$DQ10,0)+IF(($DY$66+$DR10)>DZ$66,$CZ10*$DQ10,0)+IF(($DZ$66+$DR10)>DZ$66,$DA10*$DQ10,0))) ->  | EB10: =IF($DP10="","",IF($DP10="","",IF(($DS$66+$DR10)>EA$66,$CT10*$DQ10,0)+IF(($DT$66+$DR10)>EA$66,$CU10*$DQ10,0)+IF(($DU$66+$DR10)>EA$66,$CV10*$DQ10,0)+IF(($DV$66+$DR10)>EA$66,$CW10*$DQ10,0)+IF(($DW$66+$DR10)>EA$66,$CX10*$DQ10,0)+IF(($DX$66+$DR10)>EA$66,$CY10*$DQ10,0)+IF(($DY$66+$DR10)>EA$66,$CZ10*$DQ10,0)+IF(($DZ$66+$DR10)>EA$66,$DA10*$DQ10,0)+IF(($EA$66+$DR10)>EA$66,$DB10*$DQ10,0))) ->  | EC10: =IF($DP10="","",IF($DP10="","",IF(($DS$66+$DR10)>EB$66,$CT10*$DQ10,0)+IF(($DT$66+$DR10)>EB$66,$CU10*$DQ10,0)+IF(($DU$66+$DR10)>EB$66,$CV10*$DQ10,0)+IF(($DV$66+$DR10)>EB$66,$CW10*$DQ10,0)+IF(($DW$66+$DR10)>EB$66,$CX10*$DQ10,0)+IF(($DX$66+$DR10)>EB$66,$CY10*$DQ10,0)+IF(($DY$66+$DR10)>EB$66,$CZ10*$DQ10,0)+IF(($DZ$66+$DR10)>EB$66,$DA10*$DQ10,0)+IF(($EA$66+$DR10)>EB$66,$DB10*$DQ10,0)+IF(($EB$66+$DR10)>EB$66,$DC10*$DQ10,0))) ->  | ED10: =IF($DP10="","",IF($DP10="","",IF(($DS$66+$DR10)>EC$66,$CT10*$DQ10,0)+IF(($DT$66+$DR10)>EC$66,$CU10*$DQ10,0)+IF(($DU$66+$DR10)>EC$66,$CV10*$DQ10,0)+IF(($DV$66+$DR10)>EC$66,$CW10*$DQ10,0)+IF(($DW$66+$DR10)>EC$66,$CX10*$DQ10,0)+IF(($DX$66+$DR10)>EC$66,$CY10*$DQ10,0)+IF(($DY$66+$DR10)>EC$66,$CZ10*$DQ10,0)+IF(($DZ$66+$DR10)>EC$66,$DA10*$DQ10,0)+IF(($EA$66+$DR10)>EC$66,$DB10*$DQ10,0)+IF(($EB$66+$DR10)>EC$66,$DC10*$DQ10,0)+IF(($EC$66+$DR10)>EC$66,$DD10*$DQ10,0))) ->  | EE10: =IF($DP10="","",IF($DP10="","",IF(($DS$66+$DR10)>ED$66,$CT10*$DQ10,0)+IF(($DT$66+$DR10)>ED$66,$CU10*$DQ10,0)+IF(($DU$66+$DR10)>ED$66,$CV10*$DQ10,0)+IF(($DV$66+$DR10)>ED$66,$CW10*$DQ10,0)+IF(($DW$66+$DR10)>ED$66,$CX10*$DQ10,0)+IF(($DX$66+$DR10)>ED$66,$CY10*$DQ10,0)+IF(($DY$66+$DR10)>ED$66,$CZ10*$DQ10,0)+IF(($DZ$66+$DR10)>ED$66,$DA10*$DQ10,0)+IF(($EA$66+$DR10)>ED$66,$DB10*$DQ10,0)+IF(($EB$66+$DR10)>ED$66,$DC10*$DQ10,0)+IF(($EC$66+$DR10)>ED$66,$DD10*$DQ10,0)+IF(($ED$66+$DR10)>ED$66,$DE10*$DQ10,0))) ->  | EF10: =IF($DP10="","",IF($DP10="","",IF(($DS$66+$DR10)>EE$66,$CT10*$DQ10,0)+IF(($DT$66+$DR10)>EE$66,$CU10*$DQ10,0)+IF(($DU$66+$DR10)>EE$66,$CV10*$DQ10,0)+IF(($DV$66+$DR10)>EE$66,$CW10*$DQ10,0)+IF(($DW$66+$DR10)>EE$66,$CX10*$DQ10,0)+IF(($DX$66+$DR10)>EE$66,$CY10*$DQ10,0)+IF(($DY$66+$DR10)>EE$66,$CZ10*$DQ10,0)+IF(($DZ$66+$DR10)>EE$66,$DA10*$DQ10,0)+IF(($EA$66+$DR10)>EE$66,$DB10*$DQ10,0)+IF(($EB$66+$DR10)>EE$66,$DC10*$DQ10,0)+IF(($EC$66+$DR10)>EE$66,$DD10*$DQ10,0)+IF(($ED$66+$DR10)>EE$66,$DE10*$DQ10,0)+IF(($EE$66+$DR10)>EE$66,$DF10*$DQ10,0))) ->  | EG10: =IF($DP10="","",IF($DP10="","",IF(($DS$66+$DR10)>EF$66,$CT10*$DQ10,0)+IF(($DT$66+$DR10)>EF$66,$CU10*$DQ10,0)+IF(($DU$66+$DR10)>EF$66,$CV10*$DQ10,0)+IF(($DV$66+$DR10)>EF$66,$CW10*$DQ10,0)+IF(($DW$66+$DR10)>EF$66,$CX10*$DQ10,0)+IF(($DX$66+$DR10)>EF$66,$CY10*$DQ10,0)+IF(($DY$66+$DR10)>EF$66,$CZ10*$DQ10,0)+IF(($DZ$66+$DR10)>EF$66,$DA10*$DQ10,0)+IF(($EA$66+$DR10)>EF$66,$DB10*$DQ10,0)+IF(($EB$66+$DR10)>EF$66,$DC10*$DQ10,0)+IF(($EC$66+$DR10)>EF$66,$DD10*$DQ10,0)+IF(($ED$66+$DR10)>EF$66,$DE10*$DQ10,0)+IF(($EE$66+$DR10)>EF$66,$DF10*$DQ10,0)+IF(($EF$66+$DR10)>EF$66,$DG10*$DQ10,0))) ->  | EH10: =IF($DP10="","",IF($DP10="","",IF(($DS$66+$DR10)>EG$66,$CT10*$DQ10,0)+IF(($DT$66+$DR10)>EG$66,$CU10*$DQ10,0)+IF(($DU$66+$DR10)>EG$66,$CV10*$DQ10,0)+IF(($DV$66+$DR10)>EG$66,$CW10*$DQ10,0)+IF(($DW$66+$DR10)>EG$66,$CX10*$DQ10,0)+IF(($DX$66+$DR10)>EG$66,$CY10*$DQ10,0)+IF(($DY$66+$DR10)>EG$66,$CZ10*$DQ10,0)+IF(($DZ$66+$DR10)>EG$66,$DA10*$DQ10,0)+IF(($EA$66+$DR10)>EG$66,$DB10*$DQ10,0)+IF(($EB$66+$DR10)>EG$66,$DC10*$DQ10,0)+IF(($EC$66+$DR10)>EG$66,$DD10*$DQ10,0)+IF(($ED$66+$DR10)>EG$66,$DE10*$DQ10,0)+IF(($EE$66+$DR10)>EG$66,$DF10*$DQ10,0)+IF(($EF$66+$DR10)>EG$66,$DG10*$DQ10,0)+IF(($EG$66+$DR10)>EG$66,$DH10*$DQ10,0))) ->  | EI10: =IF($DP10="","",IF($DP10="","",IF(($DS$66+$DR10)>EH$66,$CT10*$DQ10,0)+IF(($DT$66+$DR10)>EH$66,$CU10*$DQ10,0)+IF(($DU$66+$DR10)>EH$66,$CV10*$DQ10,0)+IF(($DV$66+$DR10)>EH$66,$CW10*$DQ10,0)+IF(($DW$66+$DR10)>EH$66,$CX10*$DQ10,0)+IF(($DX$66+$DR10)>EH$66,$CY10*$DQ10,0)+IF(($DY$66+$DR10)>EH$66,$CZ10*$DQ10,0)+IF(($DZ$66+$DR10)>EH$66,$DA10*$DQ10,0)+IF(($EA$66+$DR10)>EH$66,$DB10*$DQ10,0)+IF(($EB$66+$DR10)>EH$66,$DC10*$DQ10,0)+IF(($EC$66+$DR10)>EH$66,$DD10*$DQ10,0)+IF(($ED$66+$DR10)>EH$66,$DE10*$DQ10,0)+IF(($EE$66+$DR10)>EH$66,$DF10*$DQ10,0)+IF(($EF$66+$DR10)>EH$66,$DG10*$DQ10,0)+IF(($EG$66+$DR10)>EH$66,$DH10*$DQ10,0)+IF(($EH$66+$DR10)>EH$66,$DI10*$DQ10,0))) ->  | EJ10: =IF($DP10="","",IF($DP10="","",IF(($DS$66+$DR10)>EI$66,$CT10*$DQ10,0)+IF(($DT$66+$DR10)>EI$66,$CU10*$DQ10,0)+IF(($DU$66+$DR10)>EI$66,$CV10*$DQ10,0)+IF(($DV$66+$DR10)>EI$66,$CW10*$DQ10,0)+IF(($DW$66+$DR10)>EI$66,$CX10*$DQ10,0)+IF(($DX$66+$DR10)>EI$66,$CY10*$DQ10,0)+IF(($DY$66+$DR10)>EI$66,$CZ10*$DQ10,0)+IF(($DZ$66+$DR10)>EI$66,$DA10*$DQ10,0)+IF(($EA$66+$DR10)>EI$66,$DB10*$DQ10,0)+IF(($EB$66+$DR10)>EI$66,$DC10*$DQ10,0)+IF(($EC$66+$DR10)>EI$66,$DD10*$DQ10,0)+IF(($ED$66+$DR10)>EI$66,$DE10*$DQ10,0)+IF(($EE$66+$DR10)>EI$66,$DF10*$DQ10,0)+IF(($EF$66+$DR10)>EI$66,$DG10*$DQ10,0)+IF(($EG$66+$DR10)>EI$66,$DH10*$DQ10,0)+IF(($EH$66+$DR10)>EI$66,$DI10*$DQ10,0)+IF(($EI$66+$DR10)>EI$66,$DJ10*$DQ10,0))) ->  | EK10: =IF($DP10="","",IF($DP10="","",IF(($DS$66+$DR10)>EJ$66,$CT10*$DQ10,0)+IF(($DT$66+$DR10)>EJ$66,$CU10*$DQ10,0)+IF(($DU$66+$DR10)>EJ$66,$CV10*$DQ10,0)+IF(($DV$66+$DR10)>EJ$66,$CW10*$DQ10,0)+IF(($DW$66+$DR10)>EJ$66,$CX10*$DQ10,0)+IF(($DX$66+$DR10)>EJ$66,$CY10*$DQ10,0)+IF(($DY$66+$DR10)>EJ$66,$CZ10*$DQ10,0)+IF(($DZ$66+$DR10)>EJ$66,$DA10*$DQ10,0)+IF(($EA$66+$DR10)>EJ$66,$DB10*$DQ10,0)+IF(($EB$66+$DR10)>EJ$66,$DC10*$DQ10,0)+IF(($EC$66+$DR10)>EJ$66,$DD10*$DQ10,0)+IF(($ED$66+$DR10)>EJ$66,$DE10*$DQ10,0)+IF(($EE$66+$DR10)>EJ$66,$DF10*$DQ10,0)+IF(($EF$66+$DR10)>EJ$66,$DG10*$DQ10,0)+IF(($EG$66+$DR10)>EJ$66,$DH10*$DQ10,0)+IF(($EH$66+$DR10)>EJ$66,$DI10*$DQ10,0)+IF(($EI$66+$DR10)>EJ$66,$DJ10*$DQ10,0)+IF(($EJ$66+$DR10)>EJ$66,$DK10*$DQ10,0))) ->  | EL10: =IF($DP10="","",IF($DP10="","",IF(($DS$66+$DR10)>EK$66,$CT10*$DQ10,0)+IF(($DT$66+$DR10)>EK$66,$CU10*$DQ10,0)+IF(($DU$66+$DR10)>EK$66,$CV10*$DQ10,0)+IF(($DV$66+$DR10)>EK$66,$CW10*$DQ10,0)+IF(($DW$66+$DR10)>EK$66,$CX10*$DQ10,0)+IF(($DX$66+$DR10)>EK$66,$CY10*$DQ10,0)+IF(($DY$66+$DR10)>EK$66,$CZ10*$DQ10,0)+IF(($DZ$66+$DR10)>EK$66,$DA10*$DQ10,0)+IF(($EA$66+$DR10)>EK$66,$DB10*$DQ10,0)+IF(($EB$66+$DR10)>EK$66,$DC10*$DQ10,0)+IF(($EC$66+$DR10)>EK$66,$DD10*$DQ10,0)+IF(($ED$66+$DR10)>EK$66,$DE10*$DQ10,0)+IF(($EE$66+$DR10)>EK$66,$DF10*$DQ10,0)+IF(($EF$66+$DR10)>EK$66,$DG10*$DQ10,0)+IF(($EG$66+$DR10)>EK$66,$DH10*$DQ10,0)+IF(($EH$66+$DR10)>EK$66,$DI10*$DQ10,0)+IF(($EI$66+$DR10)>EK$66,$DJ10*$DQ10,0)+IF(($EJ$66+$DR10)>EK$66,$DK10*$DQ10,0)+IF(($EK$66+$DR10)>EK$66,$DL10*$DQ10,0))) ->  | EM10: =IF($DP10="","",IF($DP10="","",IF(($DS$66+$DR10)>EL$66,$CT10*$DQ10,0)+IF(($DT$66+$DR10)>EL$66,$CU10*$DQ10,0)+IF(($DU$66+$DR10)>EL$66,$CV10*$DQ10,0)+IF(($DV$66+$DR10)>EL$66,$CW10*$DQ10,0)+IF(($DW$66+$DR10)>EL$66,$CX10*$DQ10,0)+IF(($DX$66+$DR10)>EL$66,$CY10*$DQ10,0)+IF(($DY$66+$DR10)>EL$66,$CZ10*$DQ10,0)+IF(($DZ$66+$DR10)>EL$66,$DA10*$DQ10,0)+IF(($EA$66+$DR10)>EL$66,$DB10*$DQ10,0)+IF(($EB$66+$DR10)>EL$66,$DC10*$DQ10,0)+IF(($EC$66+$DR10)>EL$66,$DD10*$DQ10,0)+IF(($ED$66+$DR10)>EL$66,$DE10*$DQ10,0)+IF(($EE$66+$DR10)>EL$66,$DF10*$DQ10,0)+IF(($EF$66+$DR10)>EL$66,$DG10*$DQ10,0)+IF(($EG$66+$DR10)>EL$66,$DH10*$DQ10,0)+IF(($EH$66+$DR10)>EL$66,$DI10*$DQ10,0)+IF(($EI$66+$DR10)>EL$66,$DJ10*$DQ10,0)+IF(($EJ$66+$DR10)>EL$66,$DK10*$DQ10,0)+IF(($EK$66+$DR10)>EL$66,$DL10*$DQ10,0)+IF(($EM$66+$DR10)>EL$66,$DM10*$DQ10,0))) ->  | EO10: =IF($B10="","",$B10) ->  | EQ10: =IF(EO10="","",0) ->  | ER10: =IF($EO10="","",AX10*$E10*$K10) ->  | ES10: =IF($EO10="","",AY10*$E10*$K10) ->  | ET10: =IF($EO10="","",AZ10*$E10*$K10) ->  | EU10: =IF($EO10="","",BA10*$E10*$K10) ->  | EV10: =IF($EO10="","",BB10*$E10*$K10) ->  | EW10: =IF($EO10="","",BC10*$E10*$K10) ->  | EX10: =IF($EO10="","",BD10*$E10*$K10) ->  | EY10: =IF($EO10="","",BE10*$E10*$K10) ->  | EZ10: =IF($EO10="","",BF10*$E10*$K10) ->  | FA10: =IF($EO10="","",BG10*$E10*$K10) ->  | FB10: =IF($EO10="","",BH10*$E10*$K10) ->  | FC10: =IF($EO10="","",BI10*$E10*$K10) ->  | FD10: =IF($EO10="","",BJ10*$E10*$K10) ->  | FE10: =IF($EO10="","",BK10*$E10*$K10) ->  | FF10: =IF($EO10="","",BL10*$E10*$K10) ->  | FG10: =IF($EO10="","",BM10*$E10*$K10) ->  | FH10: =IF($EO10="","",BN10*$E10*$K10) ->  | FI10: =IF($EO10="","",BO10*$E10*$K10) ->  | FJ10: =IF($EO10="","",BP10*$E10*$K10) ->  | FK10: =IF($EO10="","",BQ10*$E10*$K10) ->  | FM10: =""&$B10 ->  | FN10: =IF($FM10="","",IF($J10="Sim",$O10,0)) ->  | FO10: =IF(H10="","",H10) ->  | FP10: =IF(FM10="","",0) ->  | FQ10: =IF($FM10="","",IF(($FP$66+$FO10)>FP$66,$CT10*$FN10,0)) ->  | FR10: =IF($FM10="","",IF(($FP$66+$FO10)>FQ$66,$CT10*$FN10,0)+IF(($FQ$66+$FO10)>FQ$66,$CU10*$FN10,0)) ->  | FS10: =IF($FM10="","",IF(($FP$66+$FO10)>FR$66,$CT10*$FN10,0)+IF(($FQ$66+$FO10)>FR$66,$CU10*$FN10,0)+IF(($FR$66+$FO10)>FR$66,$CV10*$FN10,0)) ->  | FT10: =IF($FM10="","",IF(($FP$66+$FO10)>FS$66,$CT10*$FN10,0)+IF(($FQ$66+$FO10)>FS$66,$CU10*$FN10,0)+IF(($FR$66+$FO10)>FS$66,$CV10*$FN10,0)+IF(($FS$66+$FO10)>FS$66,$CW10*$FN10,0)) ->  | FU10: =IF($FM10="","",IF(($FP$66+$FO10)>FT$66,$CT10*$FN10,0)+IF(($FQ$66+$FO10)>FT$66,$CU10*$FN10,0)+IF(($FR$66+$FO10)>FT$66,$CV10*$FN10,0)+IF(($FS$66+$FO10)>FT$66,$CW10*$FN10,0)+IF(($FT$66+$FO10)>FT$66,$CX10*$FN10,0)) ->  | FV10: =IF($FM10="","",IF(($FP$66+$FO10)>FU$66,$CT10*$FN10,0)+IF(($FQ$66+$FO10)>FU$66,$CU10*$FN10,0)+IF(($FR$66+$FO10)>FU$66,$CV10*$FN10,0)+IF(($FS$66+$FO10)>FU$66,$CW10*$FN10,0)+IF(($FT$66+$FO10)>FU$66,$CX10*$FN10,0)+IF(($FU$66+$FO10)>FU$66,$CY10*$FN10,0)) ->  | FW10: =IF($FM10="","",IF(($FP$66+$FO10)>FV$66,$CT10*$FN10,0)+IF(($FQ$66+$FO10)>FV$66,$CU10*$FN10,0)+IF(($FR$66+$FO10)>FV$66,$CV10*$FN10,0)+IF(($FS$66+$FO10)>FV$66,$CW10*$FN10,0)+IF(($FT$66+$FO10)>FV$66,$CX10*$FN10,0)+IF(($FU$66+$FO10)>FV$66,$CY10*$FN10,0)+IF(($FV$66+$FO10)>FV$66,$CZ10*$FN10,0)) ->  | FX10: =IF($FM10="","",IF(($FP$66+$FO10)>FW$66,$CT10*$FN10,0)+IF(($FQ$66+$FO10)>FW$66,$CU10*$FN10,0)+IF(($FR$66+$FO10)>FW$66,$CV10*$FN10,0)+IF(($FS$66+$FO10)>FW$66,$CW10*$FN10,0)+IF(($FT$66+$FO10)>FW$66,$CX10*$FN10,0)+IF(($FU$66+$FO10)>FW$66,$CY10*$FN10,0)+IF(($FV$66+$FO10)>FW$66,$CZ10*$FN10,0)+IF(($FW$66+$FO10)>FW$66,$DA10*$FN10,0)) ->  | FY10: =IF($FM10="","",IF(($FP$66+$FO10)>FX$66,$CT10*$FN10,0)+IF(($FQ$66+$FO10)>FX$66,$CU10*$FN10,0)+IF(($FR$66+$FO10)>FX$66,$CV10*$FN10,0)+IF(($FS$66+$FO10)>FX$66,$CW10*$FN10,0)+IF(($FT$66+$FO10)>FX$66,$CX10*$FN10,0)+IF(($FU$66+$FO10)>FX$66,$CY10*$FN10,0)+IF(($FV$66+$FO10)>FX$66,$CZ10*$FN10,0)+IF(($FW$66+$FO10)>FX$66,$DA10*$FN10,0)+IF(($FX$66+$FO10)>FX$66,$DB10*$FN10,0)) ->  | FZ10: =IF($FM10="","",IF(($FP$66+$FO10)>FY$66,$CT10*$FN10,0)+IF(($FQ$66+$FO10)>FY$66,$CU10*$FN10,0)+IF(($FR$66+$FO10)>FY$66,$CV10*$FN10,0)+IF(($FS$66+$FO10)>FY$66,$CW10*$FN10,0)+IF(($FT$66+$FO10)>FY$66,$CX10*$FN10,0)+IF(($FU$66+$FO10)>FY$66,$CY10*$FN10,0)+IF(($FV$66+$FO10)>FY$66,$CZ10*$FN10,0)+IF(($FW$66+$FO10)>FY$66,$DA10*$FN10,0)+IF(($FX$66+$FO10)>FY$66,$DB10*$FN10,0)+IF(($FY$66+$FO10)>FY$66,$DC10*$FN10,0)) ->  | GA10: =IF($FM10="","",IF(($FP$66+$FO10)>FZ$66,$CT10*$FN10,0)+IF(($FQ$66+$FO10)>FZ$66,$CU10*$FN10,0)+IF(($FR$66+$FO10)>FZ$66,$CV10*$FN10,0)+IF(($FS$66+$FO10)>FZ$66,$CW10*$FN10,0)+IF(($FT$66+$FO10)>FZ$66,$CX10*$FN10,0)+IF(($FU$66+$FO10)>FZ$66,$CY10*$FN10,0)+IF(($FV$66+$FO10)>FZ$66,$CZ10*$FN10,0)+IF(($FW$66+$FO10)>FZ$66,$DA10*$FN10,0)+IF(($FX$66+$FO10)>FZ$66,$DB10*$FN10,0)+IF(($FY$66+$FO10)>FZ$66,$DC10*$FN10,0)+IF(($FZ$66+$FO10)>FZ$66,$DD10*$FN10,0)) ->  | GB10: =IF($FM10="","",IF(($FP$66+$FO10)>GA$66,$CT10*$FN10,0)+IF(($FQ$66+$FO10)>GA$66,$CU10*$FN10,0)+IF(($FR$66+$FO10)>GA$66,$CV10*$FN10,0)+IF(($FS$66+$FO10)>GA$66,$CW10*$FN10,0)+IF(($FT$66+$FO10)>GA$66,$CX10*$FN10,0)+IF(($FU$66+$FO10)>GA$66,$CY10*$FN10,0)+IF(($FV$66+$FO10)>GA$66,$CZ10*$FN10,0)+IF(($FW$66+$FO10)>GA$66,$DA10*$FN10,0)+IF(($FX$66+$FO10)>GA$66,$DB10*$FN10,0)+IF(($FY$66+$FO10)>GA$66,$DC10*$FN10,0)+IF(($FZ$66+$FO10)>GA$66,$DD10*$FN10,0)+IF(($GA$66+$FO10)>GA$66,$DE10*$FN10,0)) ->  | GC10: =IF($FM10="","",IF(($FP$66+$FO10)>GB$66,$CT10*$FN10,0)+IF(($FQ$66+$FO10)>GB$66,$CU10*$FN10,0)+IF(($FR$66+$FO10)>GB$66,$CV10*$FN10,0)+IF(($FS$66+$FO10)>GB$66,$CW10*$FN10,0)+IF(($FT$66+$FO10)>GB$66,$CX10*$FN10,0)+IF(($FU$66+$FO10)>GB$66,$CY10*$FN10,0)+IF(($FV$66+$FO10)>GB$66,$CZ10*$FN10,0)+IF(($FW$66+$FO10)>GB$66,$DA10*$FN10,0)+IF(($FX$66+$FO10)>GB$66,$DB10*$FN10,0)+IF(($FY$66+$FO10)>GB$66,$DC10*$FN10,0)+IF(($FZ$66+$FO10)>GB$66,$DD10*$FN10,0)+IF(($GA$66+$FO10)>GB$66,$DE10*$FN10,0)+IF(($GB$66+$FO10)>GB$66,$DF10*$FN10,0)) ->  | GD10: =IF($FM10="","",IF(($FP$66+$FO10)>GC$66,$CT10*$FN10,0)+IF(($FQ$66+$FO10)>GC$66,$CU10*$FN10,0)+IF(($FR$66+$FO10)>GC$66,$CV10*$FN10,0)+IF(($FS$66+$FO10)>GC$66,$CW10*$FN10,0)+IF(($FT$66+$FO10)>GC$66,$CX10*$FN10,0)+IF(($FU$66+$FO10)>GC$66,$CY10*$FN10,0)+IF(($FV$66+$FO10)>GC$66,$CZ10*$FN10,0)+IF(($FW$66+$FO10)>GC$66,$DA10*$FN10,0)+IF(($FX$66+$FO10)>GC$66,$DB10*$FN10,0)+IF(($FY$66+$FO10)>GC$66,$DC10*$FN10,0)+IF(($FZ$66+$FO10)>GC$66,$DD10*$FN10,0)+IF(($GA$66+$FO10)>GC$66,$DE10*$FN10,0)+IF(($GB$66+$FO10)>GC$66,$DF10*$FN10,0)+IF(($GC$66+$FO10)>GC$66,$DG10*$FN10,0)) ->  | GE10: =IF($FM10="","",IF(($FP$66+$FO10)>GD$66,$CT10*$FN10,0)+IF(($FQ$66+$FO10)>GD$66,$CU10*$FN10,0)+IF(($FR$66+$FO10)>GD$66,$CV10*$FN10,0)+IF(($FS$66+$FO10)>GD$66,$CW10*$FN10,0)+IF(($FT$66+$FO10)>GD$66,$CX10*$FN10,0)+IF(($FU$66+$FO10)>GD$66,$CY10*$FN10,0)+IF(($FV$66+$FO10)>GD$66,$CZ10*$FN10,0)+IF(($FW$66+$FO10)>GD$66,$DA10*$FN10,0)+IF(($FX$66+$FO10)>GD$66,$DB10*$FN10,0)+IF(($FY$66+$FO10)>GD$66,$DC10*$FN10,0)+IF(($FZ$66+$FO10)>GD$66,$DD10*$FN10,0)+IF(($GA$66+$FO10)>GD$66,$DE10*$FN10,0)+IF(($GB$66+$FO10)>GD$66,$DF10*$FN10,0)+IF(($GC$66+$FO10)>GD$66,$DG10*$FN10,0)+IF(($GD$66+$FO10)>GD$66,$DH10*$FN10,0)) ->  | GF10: =IF($FM10="","",IF(($FP$66+$FO10)>GE$66,$CT10*$FN10,0)+IF(($FQ$66+$FO10)>GE$66,$CU10*$FN10,0)+IF(($FR$66+$FO10)>GE$66,$CV10*$FN10,0)+IF(($FS$66+$FO10)>GE$66,$CW10*$FN10,0)+IF(($FT$66+$FO10)>GE$66,$CX10*$FN10,0)+IF(($FU$66+$FO10)>GE$66,$CY10*$FN10,0)+IF(($FV$66+$FO10)>GE$66,$CZ10*$FN10,0)+IF(($FW$66+$FO10)>GE$66,$DA10*$FN10,0)+IF(($FX$66+$FO10)>GE$66,$DB10*$FN10,0)+IF(($FY$66+$FO10)>GE$66,$DC10*$FN10,0)+IF(($FZ$66+$FO10)>GE$66,$DD10*$FN10,0)+IF(($GA$66+$FO10)>GE$66,$DE10*$FN10,0)+IF(($GB$66+$FO10)>GE$66,$DF10*$FN10,0)+IF(($GC$66+$FO10)>GE$66,$DG10*$FN10,0)+IF(($GD$66+$FO10)>GE$66,$DH10*$FN10,0)+IF(($GE$66+$FO10)>GE$66,$DI10*$FN10,0)) ->  | GG10: =IF($FM10="","",IF(($FP$66+$FO10)>GF$66,$CT10*$FN10,0)+IF(($FQ$66+$FO10)>GF$66,$CU10*$FN10,0)+IF(($FR$66+$FO10)>GF$66,$CV10*$FN10,0)+IF(($FS$66+$FO10)>GF$66,$CW10*$FN10,0)+IF(($FT$66+$FO10)>GF$66,$CX10*$FN10,0)+IF(($FU$66+$FO10)>GF$66,$CY10*$FN10,0)+IF(($FV$66+$FO10)>GF$66,$CZ10*$FN10,0)+IF(($FW$66+$FO10)>GF$66,$DA10*$FN10,0)+IF(($FX$66+$FO10)>GF$66,$DB10*$FN10,0)+IF(($FY$66+$FO10)>GF$66,$DC10*$FN10,0)+IF(($FZ$66+$FO10)>GF$66,$DD10*$FN10,0)+IF(($GA$66+$FO10)>GF$66,$DE10*$FN10,0)+IF(($GB$66+$FO10)>GF$66,$DF10*$FN10,0)+IF(($GC$66+$FO10)>GF$66,$DG10*$FN10,0)+IF(($GD$66+$FO10)>GF$66,$DH10*$FN10,0)+IF(($GE$66+$FO10)>GF$66,$DI10*$FN10,0)+IF(($GF$66+$FO10)>GF$66,$DJ10*$FN10,0)) ->  | GH10: =IF($FM10="","",IF(($FP$66+$FO10)>GG$66,$CT10*$FN10,0)+IF(($FQ$66+$FO10)>GG$66,$CU10*$FN10,0)+IF(($FR$66+$FO10)>GG$66,$CV10*$FN10,0)+IF(($FS$66+$FO10)>GG$66,$CW10*$FN10,0)+IF(($FT$66+$FO10)>GG$66,$CX10*$FN10,0)+IF(($FU$66+$FO10)>GG$66,$CY10*$FN10,0)+IF(($FV$66+$FO10)>GG$66,$CZ10*$FN10,0)+IF(($FW$66+$FO10)>GG$66,$DA10*$FN10,0)+IF(($FX$66+$FO10)>GG$66,$DB10*$FN10,0)+IF(($FY$66+$FO10)>GG$66,$DC10*$FN10,0)+IF(($FZ$66+$FO10)>GG$66,$DD10*$FN10,0)+IF(($GA$66+$FO10)>GG$66,$DE10*$FN10,0)+IF(($GB$66+$FO10)>GG$66,$DF10*$FN10,0)+IF(($GC$66+$FO10)>GG$66,$DG10*$FN10,0)+IF(($GD$66+$FO10)>GG$66,$DH10*$FN10,0)+IF(($GE$66+$FO10)>GG$66,$DI10*$FN10,0)+IF(($GF$66+$FO10)>GG$66,$DJ10*$FN10,0)+IF(($GG$66+$FO10)>GG$66,$DK10*$FN10,0)) ->  | GI10: =IF($FM10="","",IF(($FP$66+$FO10)>GH$66,$CT10*$FN10,0)+IF(($FQ$66+$FO10)>GH$66,$CU10*$FN10,0)+IF(($FR$66+$FO10)>GH$66,$CV10*$FN10,0)+IF(($FS$66+$FO10)>GH$66,$CW10*$FN10,0)+IF(($FT$66+$FO10)>GH$66,$CX10*$FN10,0)+IF(($FU$66+$FO10)>GH$66,$CY10*$FN10,0)+IF(($FV$66+$FO10)>GH$66,$CZ10*$FN10,0)+IF(($FW$66+$FO10)>GH$66,$DA10*$FN10,0)+IF(($FX$66+$FO10)>GH$66,$DB10*$FN10,0)+IF(($FY$66+$FO10)>GH$66,$DC10*$FN10,0)+IF(($FZ$66+$FO10)>GH$66,$DD10*$FN10,0)+IF(($GA$66+$FO10)>GH$66,$DE10*$FN10,0)+IF(($GB$66+$FO10)>GH$66,$DF10*$FN10,0)+IF(($GC$66+$FO10)>GH$66,$DG10*$FN10,0)+IF(($GD$66+$FO10)>GH$66,$DH10*$FN10,0)+IF(($GE$66+$FO10)>GH$66,$DI10*$FN10,0)+IF(($GF$66+$FO10)>GH$66,$DJ10*$FN10,0)+IF(($GG$66+$FO10)>GH$66,$DK10*$FN10,0)+IF(($GH$66+$FO10)>GH$66,$DL10*$FN10,0)) ->  | GJ10: =IF($FM10="","",IF(($FP$66+$FO10)>GI$66,$CT10*$FN10,0)+IF(($FQ$66+$FO10)>GI$66,$CU10*$FN10,0)+IF(($FR$66+$FO10)>GI$66,$CV10*$FN10,0)+IF(($FS$66+$FO10)>GI$66,$CW10*$FN10,0)+IF(($FT$66+$FO10)>GI$66,$CX10*$FN10,0)+IF(($FU$66+$FO10)>GI$66,$CY10*$FN10,0)+IF(($FV$66+$FO10)>GI$66,$CZ10*$FN10,0)+IF(($FW$66+$FO10)>GI$66,$DA10*$FN10,0)+IF(($FX$66+$FO10)>GI$66,$DB10*$FN10,0)+IF(($FY$66+$FO10)>GI$66,$DC10*$FN10,0)+IF(($FZ$66+$FO10)>GI$66,$DD10*$FN10,0)+IF(($GA$66+$FO10)>GI$66,$DE10*$FN10,0)+IF(($GB$66+$FO10)>GI$66,$DF10*$FN10,0)+IF(($GC$66+$FO10)>GI$66,$DG10*$FN10,0)+IF(($GD$66+$FO10)>GI$66,$DH10*$FN10,0)+IF(($GE$66+$FO10)>GI$66,$DI10*$FN10,0)+IF(($GF$66+$FO10)>GI$66,$DJ10*$FN10,0)+IF(($GG$66+$FO10)>GI$66,$DK10*$FN10,0)+IF(($GH$66+$FO10)>GI$66,$DL10*$FN10,0)+IF(($GI$66+$FO10)>GI$66,$DM10*$FN10,0)) -> 
P11: 0 | Y11: =IF(V11="","",IF($Y$66<$G11,0,IF(SUM($X11:X11)>=$C11,0,$C11))) ->  | Z11: =IF(V11="","",IF($Z$66<$G11,0,IF(SUM($X11:Y11)>=$C11,0,$C11))) ->  | AA11: =IF(V11="","",IF($AA$66<$G11,0,IF(SUM($X11:Z11)>=$C11,0,$C11))) ->  | AB11: =IF(V11="","",IF($AB$66<$G11,0,IF(SUM($X11:AA11)>=$C11,0,$C11))) ->  | AC11: =IF(V11="","",IF($AC$66<$G11,0,IF(SUM($X11:AB11)>=$C11,0,$C11))) ->  | AD11: =IF(V11="","",IF($AD$66<$G11,0,IF(SUM($X11:AC11)>=$C11,0,$C11))) ->  | AE11: =IF(V11="","",IF($AE$66<$G11,0,IF(SUM($X11:AD11)>=$C11,0,$C11))) ->  | AF11: =IF(V11="","",IF($AF$66<$G11,0,IF(SUM($X11:AE11)>=$C11,0,$C11))) ->  | AG11: =IF(V11="","",IF($AG$66<$G11,0,IF(SUM($X11:AF11)>=$C11,0,$C11))) ->  | AH11: =IF(V11="","",IF($AH$66<$G11,0,IF(SUM($X11:AG11)>=$C11,0,$C11))) ->  | AI11: =IF(V11="","",IF($AI$66<$G11,0,IF(SUM($X11:AH11)>=$C11,0,$C11))) ->  | AJ11: =IF(V11="","",IF($AJ$66<$G11,0,IF(SUM($X11:AI11)>=$C11,0,$C11))) ->  | AK11: =IF(V11="","",IF($AK$66<$G11,0,IF(SUM($X11:AJ11)>=$C11,0,$C11))) ->  | AL11: =IF(V11="","",IF($AL$66<$G11,0,IF(SUM($X11:AK11)>=$C11,0,$C11))) ->  | AM11: =IF(V11="","",IF($AM$66<$G11,0,IF(SUM($X11:AL11)>=$C11,0,$C11))) ->  | AN11: =IF(V11="","",IF($AN$66<$G11,0,IF(SUM($X11:AM11)>=$C11,0,$C11))) ->  | AO11: =IF(V11="","",IF($AO$66<$G11,0,IF(SUM($X11:AN11)>=$C11,0,$C11))) ->  | AP11: =IF(V11="","",IF($AP$66<$G11,0,IF(SUM($X11:AO11)>=$C11,0,$C11))) ->  | AQ11: =IF(V11="","",IF($AQ$66<$G11,0,IF(SUM($X11:AP11)>=$C11,0,$C11))) ->  | AR11: =IF(V11="","",IF($AR$66<$G11,0,IF(SUM($X11:AQ11)>=$C11,0,$C11))) ->  | AS11: 3 | AW11: =IF(AU11="","",0) ->  | DQ11: =L11 ->  | DR11: =M11 ->  | DS11: =IF(DP11="","",0) ->  | EQ11: =IF(EO11="","",0) ->  | FP11: =IF(FM11="","",0) -> 
G12: 0 | I12: Sim | J12: Sim | P12: 0 | Y12: =IF(V12="","",IF($Y$66<$G12,0,IF(SUM($X12:X12)>=$C12,0,$C12))) ->  | Z12: =IF(V12="","",IF($Z$66<$G12,0,IF(SUM($X12:Y12)>=$C12,0,$C12))) ->  | AA12: =IF(V12="","",IF($AA$66<$G12,0,IF(SUM($X12:Z12)>=$C12,0,$C12))) ->  | AB12: =IF(V12="","",IF($AB$66<$G12,0,IF(SUM($X12:AA12)>=$C12,0,$C12))) ->  | AC12: =IF(V12="","",IF($AC$66<$G12,0,IF(SUM($X12:AB12)>=$C12,0,$C12))) ->  | AD12: =IF(V12="","",IF($AD$66<$G12,0,IF(SUM($X12:AC12)>=$C12,0,$C12))) ->  | AE12: =IF(V12="","",IF($AE$66<$G12,0,IF(SUM($X12:AD12)>=$C12,0,$C12))) ->  | AF12: =IF(V12="","",IF($AF$66<$G12,0,IF(SUM($X12:AE12)>=$C12,0,$C12))) ->  | AG12: =IF(V12="","",IF($AG$66<$G12,0,IF(SUM($X12:AF12)>=$C12,0,$C12))) ->  | AH12: =IF(V12="","",IF($AH$66<$G12,0,IF(SUM($X12:AG12)>=$C12,0,$C12))) ->  | AI12: =IF(V12="","",IF($AI$66<$G12,0,IF(SUM($X12:AH12)>=$C12,0,$C12))) ->  | AJ12: =IF(V12="","",IF($AJ$66<$G12,0,IF(SUM($X12:AI12)>=$C12,0,$C12))) ->  | AK12: =IF(V12="","",IF($AK$66<$G12,0,IF(SUM($X12:AJ12)>=$C12,0,$C12))) ->  | AL12: =IF(V12="","",IF($AL$66<$G12,0,IF(SUM($X12:AK12)>=$C12,0,$C12))) ->  | AM12: =IF(V12="","",IF($AM$66<$G12,0,IF(SUM($X12:AL12)>=$C12,0,$C12))) ->  | AN12: =IF(V12="","",IF($AN$66<$G12,0,IF(SUM($X12:AM12)>=$C12,0,$C12))) ->  | AO12: =IF(V12="","",IF($AO$66<$G12,0,IF(SUM($X12:AN12)>=$C12,0,$C12))) ->  | AP12: =IF(V12="","",IF($AP$66<$G12,0,IF(SUM($X12:AO12)>=$C12,0,$C12))) ->  | AQ12: =IF(V12="","",IF($AQ$66<$G12,0,IF(SUM($X12:AP12)>=$C12,0,$C12))) ->  | AR12: =IF(V12="","",IF($AR$66<$G12,0,IF(SUM($X12:AQ12)>=$C12,0,$C12))) ->  | AS12: 4
G13: 0 | I13: Sim | J13: Sim | P13: 0 | Y13: =IF(V13="","",IF($Y$66<$G13,0,IF(SUM($X13:X13)>=$C13,0,$C13))) ->  | Z13: =IF(V13="","",IF($Z$66<$G13,0,IF(SUM($X13:Y13)>=$C13,0,$C13))) ->  | AA13: =IF(V13="","",IF($AA$66<$G13,0,IF(SUM($X13:Z13)>=$C13,0,$C13))) ->  | AB13: =IF(V13="","",IF($AB$66<$G13,0,IF(SUM($X13:AA13)>=$C13,0,$C13))) ->  | AC13: =IF(V13="","",IF($AC$66<$G13,0,IF(SUM($X13:AB13)>=$C13,0,$C13))) ->  | AD13: =IF(V13="","",IF($AD$66<$G13,0,IF(SUM($X13:AC13)>=$C13,0,$C13))) ->  | AE13: =IF(V13="","",IF($AE$66<$G13,0,IF(SUM($X13:AD13)>=$C13,0,$C13))) ->  | AF13: =IF(V13="","",IF($AF$66<$G13,0,IF(SUM($X13:AE13)>=$C13,0,$C13))) ->  | AG13: =IF(V13="","",IF($AG$66<$G13,0,IF(SUM($X13:AF13)>=$C13,0,$C13))) ->  | AH13: =IF(V13="","",IF($AH$66<$G13,0,IF(SUM($X13:AG13)>=$C13,0,$C13))) ->  | AI13: =IF(V13="","",IF($AI$66<$G13,0,IF(SUM($X13:AH13)>=$C13,0,$C13))) ->  | AJ13: =IF(V13="","",IF($AJ$66<$G13,0,IF(SUM($X13:AI13)>=$C13,0,$C13))) ->  | AK13: =IF(V13="","",IF($AK$66<$G13,0,IF(SUM($X13:AJ13)>=$C13,0,$C13))) ->  | AL13: =IF(V13="","",IF($AL$66<$G13,0,IF(SUM($X13:AK13)>=$C13,0,$C13))) ->  | AM13: =IF(V13="","",IF($AM$66<$G13,0,IF(SUM($X13:AL13)>=$C13,0,$C13))) ->  | AN13: =IF(V13="","",IF($AN$66<$G13,0,IF(SUM($X13:AM13)>=$C13,0,$C13))) ->  | AO13: =IF(V13="","",IF($AO$66<$G13,0,IF(SUM($X13:AN13)>=$C13,0,$C13))) ->  | AP13: =IF(V13="","",IF($AP$66<$G13,0,IF(SUM($X13:AO13)>=$C13,0,$C13))) ->  | AQ13: =IF(V13="","",IF($AQ$66<$G13,0,IF(SUM($X13:AP13)>=$C13,0,$C13))) ->  | AR13: =IF(V13="","",IF($AR$66<$G13,0,IF(SUM($X13:AQ13)>=$C13,0,$C13))) ->  | AS13: 5
G14: 0 | I14: Sim | J14: Sim | N14: 5 | P14: 0 | Y14: =IF(V14="","",IF($Y$66<$G14,0,IF(SUM($X14:X14)>=$C14,0,$C14))) ->  | Z14: =IF(V14="","",IF($Z$66<$G14,0,IF(SUM($X14:Y14)>=$C14,0,$C14))) ->  | AA14: =IF(V14="","",IF($AA$66<$G14,0,IF(SUM($X14:Z14)>=$C14,0,$C14))) ->  | AB14: =IF(V14="","",IF($AB$66<$G14,0,IF(SUM($X14:AA14)>=$C14,0,$C14))) ->  | AC14: =IF(V14="","",IF($AC$66<$G14,0,IF(SUM($X14:AB14)>=$C14,0,$C14))) ->  | AD14: =IF(V14="","",IF($AD$66<$G14,0,IF(SUM($X14:AC14)>=$C14,0,$C14))) ->  | AE14: =IF(V14="","",IF($AE$66<$G14,0,IF(SUM($X14:AD14)>=$C14,0,$C14))) ->  | AF14: =IF(V14="","",IF($AF$66<$G14,0,IF(SUM($X14:AE14)>=$C14,0,$C14))) ->  | AG14: =IF(V14="","",IF($AG$66<$G14,0,IF(SUM($X14:AF14)>=$C14,0,$C14))) ->  | AH14: =IF(V14="","",IF($AH$66<$G14,0,IF(SUM($X14:AG14)>=$C14,0,$C14))) ->  | AI14: =IF(V14="","",IF($AI$66<$G14,0,IF(SUM($X14:AH14)>=$C14,0,$C14))) ->  | AJ14: =IF(V14="","",IF($AJ$66<$G14,0,IF(SUM($X14:AI14)>=$C14,0,$C14))) ->  | AK14: =IF(V14="","",IF($AK$66<$G14,0,IF(SUM($X14:AJ14)>=$C14,0,$C14))) ->  | AL14: =IF(V14="","",IF($AL$66<$G14,0,IF(SUM($X14:AK14)>=$C14,0,$C14))) ->  | AM14: =IF(V14="","",IF($AM$66<$G14,0,IF(SUM($X14:AL14)>=$C14,0,$C14))) ->  | AN14: =IF(V14="","",IF($AN$66<$G14,0,IF(SUM($X14:AM14)>=$C14,0,$C14))) ->  | AO14: =IF(V14="","",IF($AO$66<$G14,0,IF(SUM($X14:AN14)>=$C14,0,$C14))) ->  | AP14: =IF(V14="","",IF($AP$66<$G14,0,IF(SUM($X14:AO14)>=$C14,0,$C14))) ->  | AQ14: =IF(V14="","",IF($AQ$66<$G14,0,IF(SUM($X14:AP14)>=$C14,0,$C14))) ->  | AR14: =IF(V14="","",IF($AR$66<$G14,0,IF(SUM($X14:AQ14)>=$C14,0,$C14))) ->  | AS14: 6
F15: Normal | G15: 0 | I15: Sim | J15: Sim | P15: 0 | Y15: =IF(V15="","",IF($Y$66<$G15,0,IF(SUM($X15:X15)>=$C15,0,$C15))) ->  | Z15: =IF(V15="","",IF($Z$66<$G15,0,IF(SUM($X15:Y15)>=$C15,0,$C15))) ->  | AA15: =IF(V15="","",IF($AA$66<$G15,0,IF(SUM($X15:Z15)>=$C15,0,$C15))) ->  | AB15: =IF(V15="","",IF($AB$66<$G15,0,IF(SUM($X15:AA15)>=$C15,0,$C15))) ->  | AC15: =IF(V15="","",IF($AC$66<$G15,0,IF(SUM($X15:AB15)>=$C15,0,$C15))) ->  | AD15: =IF(V15="","",IF($AD$66<$G15,0,IF(SUM($X15:AC15)>=$C15,0,$C15))) ->  | AE15: =IF(V15="","",IF($AE$66<$G15,0,IF(SUM($X15:AD15)>=$C15,0,$C15))) ->  | AF15: =IF(V15="","",IF($AF$66<$G15,0,IF(SUM($X15:AE15)>=$C15,0,$C15))) ->  | AG15: =IF(V15="","",IF($AG$66<$G15,0,IF(SUM($X15:AF15)>=$C15,0,$C15))) ->  | AH15: =IF(V15="","",IF($AH$66<$G15,0,IF(SUM($X15:AG15)>=$C15,0,$C15))) ->  | AI15: =IF(V15="","",IF($AI$66<$G15,0,IF(SUM($X15:AH15)>=$C15,0,$C15))) ->  | AJ15: =IF(V15="","",IF($AJ$66<$G15,0,IF(SUM($X15:AI15)>=$C15,0,$C15))) ->  | AK15: =IF(V15="","",IF($AK$66<$G15,0,IF(SUM($X15:AJ15)>=$C15,0,$C15))) ->  | AL15: =IF(V15="","",IF($AL$66<$G15,0,IF(SUM($X15:AK15)>=$C15,0,$C15))) ->  | AM15: =IF(V15="","",IF($AM$66<$G15,0,IF(SUM($X15:AL15)>=$C15,0,$C15))) ->  | AN15: =IF(V15="","",IF($AN$66<$G15,0,IF(SUM($X15:AM15)>=$C15,0,$C15))) ->  | AO15: =IF(V15="","",IF($AO$66<$G15,0,IF(SUM($X15:AN15)>=$C15,0,$C15))) ->  | AP15: =IF(V15="","",IF($AP$66<$G15,0,IF(SUM($X15:AO15)>=$C15,0,$C15))) ->  | AQ15: =IF(V15="","",IF($AQ$66<$G15,0,IF(SUM($X15:AP15)>=$C15,0,$C15))) ->  | AR15: =IF(V15="","",IF($AR$66<$G15,0,IF(SUM($X15:AQ15)>=$C15,0,$C15))) ->  | AS15: 7
F16: Normal | G16: 0 | I16: Sim | J16: Sim | P16: 0 | Y16: =IF(V16="","",IF($Y$66<$G16,0,IF(SUM($X16:X16)>=$C16,0,$C16))) ->  | Z16: =IF(V16="","",IF($Z$66<$G16,0,IF(SUM($X16:Y16)>=$C16,0,$C16))) ->  | AA16: =IF(V16="","",IF($AA$66<$G16,0,IF(SUM($X16:Z16)>=$C16,0,$C16))) ->  | AB16: =IF(V16="","",IF($AB$66<$G16,0,IF(SUM($X16:AA16)>=$C16,0,$C16))) ->  | AC16: =IF(V16="","",IF($AC$66<$G16,0,IF(SUM($X16:AB16)>=$C16,0,$C16))) ->  | AD16: =IF(V16="","",IF($AD$66<$G16,0,IF(SUM($X16:AC16)>=$C16,0,$C16))) ->  | AE16: =IF(V16="","",IF($AE$66<$G16,0,IF(SUM($X16:AD16)>=$C16,0,$C16))) ->  | AF16: =IF(V16="","",IF($AF$66<$G16,0,IF(SUM($X16:AE16)>=$C16,0,$C16))) ->  | AG16: =IF(V16="","",IF($AG$66<$G16,0,IF(SUM($X16:AF16)>=$C16,0,$C16))) ->  | AH16: =IF(V16="","",IF($AH$66<$G16,0,IF(SUM($X16:AG16)>=$C16,0,$C16))) ->  | AI16: =IF(V16="","",IF($AI$66<$G16,0,IF(SUM($X16:AH16)>=$C16,0,$C16))) ->  | AJ16: =IF(V16="","",IF($AJ$66<$G16,0,IF(SUM($X16:AI16)>=$C16,0,$C16))) ->  | AK16: =IF(V16="","",IF($AK$66<$G16,0,IF(SUM($X16:AJ16)>=$C16,0,$C16))) ->  | AL16: =IF(V16="","",IF($AL$66<$G16,0,IF(SUM($X16:AK16)>=$C16,0,$C16))) ->  | AM16: =IF(V16="","",IF($AM$66<$G16,0,IF(SUM($X16:AL16)>=$C16,0,$C16))) ->  | AN16: =IF(V16="","",IF($AN$66<$G16,0,IF(SUM($X16:AM16)>=$C16,0,$C16))) ->  | AO16: =IF(V16="","",IF($AO$66<$G16,0,IF(SUM($X16:AN16)>=$C16,0,$C16))) ->  | AP16: =IF(V16="","",IF($AP$66<$G16,0,IF(SUM($X16:AO16)>=$C16,0,$C16))) ->  | AQ16: =IF(V16="","",IF($AQ$66<$G16,0,IF(SUM($X16:AP16)>=$C16,0,$C16))) ->  | AR16: =IF(V16="","",IF($AR$66<$G16,0,IF(SUM($X16:AQ16)>=$C16,0,$C16))) ->  | AS16: 8
F17: Normal | G17: 0 | I17: Sim | J17: Sim | P17: 0 | Y17: =IF(V17="","",IF($Y$66<$G17,0,IF(SUM($X17:X17)>=$C17,0,$C17))) ->  | Z17: =IF(V17="","",IF($Z$66<$G17,0,IF(SUM($X17:Y17)>=$C17,0,$C17))) ->  | AA17: =IF(V17="","",IF($AA$66<$G17,0,IF(SUM($X17:Z17)>=$C17,0,$C17))) ->  | AB17: =IF(V17="","",IF($AB$66<$G17,0,IF(SUM($X17:AA17)>=$C17,0,$C17))) ->  | AC17: =IF(V17="","",IF($AC$66<$G17,0,IF(SUM($X17:AB17)>=$C17,0,$C17))) ->  | AD17: =IF(V17="","",IF($AD$66<$G17,0,IF(SUM($X17:AC17)>=$C17,0,$C17))) ->  | AE17: =IF(V17="","",IF($AE$66<$G17,0,IF(SUM($X17:AD17)>=$C17,0,$C17))) ->  | AF17: =IF(V17="","",IF($AF$66<$G17,0,IF(SUM($X17:AE17)>=$C17,0,$C17))) ->  | AG17: =IF(V17="","",IF($AG$66<$G17,0,IF(SUM($X17:AF17)>=$C17,0,$C17))) ->  | AH17: =IF(V17="","",IF($AH$66<$G17,0,IF(SUM($X17:AG17)>=$C17,0,$C17))) ->  | AI17: =IF(V17="","",IF($AI$66<$G17,0,IF(SUM($X17:AH17)>=$C17,0,$C17))) ->  | AJ17: =IF(V17="","",IF($AJ$66<$G17,0,IF(SUM($X17:AI17)>=$C17,0,$C17))) ->  | AK17: =IF(V17="","",IF($AK$66<$G17,0,IF(SUM($X17:AJ17)>=$C17,0,$C17))) ->  | AL17: =IF(V17="","",IF($AL$66<$G17,0,IF(SUM($X17:AK17)>=$C17,0,$C17))) ->  | AM17: =IF(V17="","",IF($AM$66<$G17,0,IF(SUM($X17:AL17)>=$C17,0,$C17))) ->  | AN17: =IF(V17="","",IF($AN$66<$G17,0,IF(SUM($X17:AM17)>=$C17,0,$C17))) ->  | AO17: =IF(V17="","",IF($AO$66<$G17,0,IF(SUM($X17:AN17)>=$C17,0,$C17))) ->  | AP17: =IF(V17="","",IF($AP$66<$G17,0,IF(SUM($X17:AO17)>=$C17,0,$C17))) ->  | AQ17: =IF(V17="","",IF($AQ$66<$G17,0,IF(SUM($X17:AP17)>=$C17,0,$C17))) ->  | AR17: =IF(V17="","",IF($AR$66<$G17,0,IF(SUM($X17:AQ17)>=$C17,0,$C17))) ->  | AS17: 9
F18: Normal | G18: 0 | I18: Sim | J18: Sim | P18: 0 | Y18: =IF(V18="","",IF($Y$66<$G18,0,IF(SUM($X18:X18)>=$C18,0,$C18))) ->  | Z18: =IF(V18="","",IF($Z$66<$G18,0,IF(SUM($X18:Y18)>=$C18,0,$C18))) ->  | AA18: =IF(V18="","",IF($AA$66<$G18,0,IF(SUM($X18:Z18)>=$C18,0,$C18))) ->  | AB18: =IF(V18="","",IF($AB$66<$G18,0,IF(SUM($X18:AA18)>=$C18,0,$C18))) ->  | AC18: =IF(V18="","",IF($AC$66<$G18,0,IF(SUM($X18:AB18)>=$C18,0,$C18))) ->  | AD18: =IF(V18="","",IF($AD$66<$G18,0,IF(SUM($X18:AC18)>=$C18,0,$C18))) ->  | AE18: =IF(V18="","",IF($AE$66<$G18,0,IF(SUM($X18:AD18)>=$C18,0,$C18))) ->  | AF18: =IF(V18="","",IF($AF$66<$G18,0,IF(SUM($X18:AE18)>=$C18,0,$C18))) ->  | AG18: =IF(V18="","",IF($AG$66<$G18,0,IF(SUM($X18:AF18)>=$C18,0,$C18))) ->  | AH18: =IF(V18="","",IF($AH$66<$G18,0,IF(SUM($X18:AG18)>=$C18,0,$C18))) ->  | AI18: =IF(V18="","",IF($AI$66<$G18,0,IF(SUM($X18:AH18)>=$C18,0,$C18))) ->  | AJ18: =IF(V18="","",IF($AJ$66<$G18,0,IF(SUM($X18:AI18)>=$C18,0,$C18))) ->  | AK18: =IF(V18="","",IF($AK$66<$G18,0,IF(SUM($X18:AJ18)>=$C18,0,$C18))) ->  | AL18: =IF(V18="","",IF($AL$66<$G18,0,IF(SUM($X18:AK18)>=$C18,0,$C18))) ->  | AM18: =IF(V18="","",IF($AM$66<$G18,0,IF(SUM($X18:AL18)>=$C18,0,$C18))) ->  | AN18: =IF(V18="","",IF($AN$66<$G18,0,IF(SUM($X18:AM18)>=$C18,0,$C18))) ->  | AO18: =IF(V18="","",IF($AO$66<$G18,0,IF(SUM($X18:AN18)>=$C18,0,$C18))) ->  | AP18: =IF(V18="","",IF($AP$66<$G18,0,IF(SUM($X18:AO18)>=$C18,0,$C18))) ->  | AQ18: =IF(V18="","",IF($AQ$66<$G18,0,IF(SUM($X18:AP18)>=$C18,0,$C18))) ->  | AR18: =IF(V18="","",IF($AR$66<$G18,0,IF(SUM($X18:AQ18)>=$C18,0,$C18))) ->  | AS18: 10
F19: Normal | G19: 0 | I19: Sim | J19: Sim | P19: 0 | Y19: =IF(V19="","",IF($Y$66<$G19,0,IF(SUM($X19:X19)>=$C19,0,$C19))) ->  | Z19: =IF(V19="","",IF($Z$66<$G19,0,IF(SUM($X19:Y19)>=$C19,0,$C19))) ->  | AA19: =IF(V19="","",IF($AA$66<$G19,0,IF(SUM($X19:Z19)>=$C19,0,$C19))) ->  | AB19: =IF(V19="","",IF($AB$66<$G19,0,IF(SUM($X19:AA19)>=$C19,0,$C19))) ->  | AC19: =IF(V19="","",IF($AC$66<$G19,0,IF(SUM($X19:AB19)>=$C19,0,$C19))) ->  | AD19: =IF(V19="","",IF($AD$66<$G19,0,IF(SUM($X19:AC19)>=$C19,0,$C19))) ->  | AE19: =IF(V19="","",IF($AE$66<$G19,0,IF(SUM($X19:AD19)>=$C19,0,$C19))) ->  | AF19: =IF(V19="","",IF($AF$66<$G19,0,IF(SUM($X19:AE19)>=$C19,0,$C19))) ->  | AG19: =IF(V19="","",IF($AG$66<$G19,0,IF(SUM($X19:AF19)>=$C19,0,$C19))) ->  | AH19: =IF(V19="","",IF($AH$66<$G19,0,IF(SUM($X19:AG19)>=$C19,0,$C19))) ->  | AI19: =IF(V19="","",IF($AI$66<$G19,0,IF(SUM($X19:AH19)>=$C19,0,$C19))) ->  | AJ19: =IF(V19="","",IF($AJ$66<$G19,0,IF(SUM($X19:AI19)>=$C19,0,$C19))) ->  | AK19: =IF(V19="","",IF($AK$66<$G19,0,IF(SUM($X19:AJ19)>=$C19,0,$C19))) ->  | AL19: =IF(V19="","",IF($AL$66<$G19,0,IF(SUM($X19:AK19)>=$C19,0,$C19))) ->  | AM19: =IF(V19="","",IF($AM$66<$G19,0,IF(SUM($X19:AL19)>=$C19,0,$C19))) ->  | AN19: =IF(V19="","",IF($AN$66<$G19,0,IF(SUM($X19:AM19)>=$C19,0,$C19))) ->  | AO19: =IF(V19="","",IF($AO$66<$G19,0,IF(SUM($X19:AN19)>=$C19,0,$C19))) ->  | AP19: =IF(V19="","",IF($AP$66<$G19,0,IF(SUM($X19:AO19)>=$C19,0,$C19))) ->  | AQ19: =IF(V19="","",IF($AQ$66<$G19,0,IF(SUM($X19:AP19)>=$C19,0,$C19))) ->  | AR19: =IF(V19="","",IF($AR$66<$G19,0,IF(SUM($X19:AQ19)>=$C19,0,$C19))) ->  | AS19: 11
F20: Normal | G20: 0 | I20: Sim | J20: Sim | P20: 0 | Y20: =IF(V20="","",IF($Y$66<$G20,0,IF(SUM($X20:X20)>=$C20,0,$C20))) ->  | Z20: =IF(V20="","",IF($Z$66<$G20,0,IF(SUM($X20:Y20)>=$C20,0,$C20))) ->  | AA20: =IF(V20="","",IF($AA$66<$G20,0,IF(SUM($X20:Z20)>=$C20,0,$C20))) ->  | AB20: =IF(V20="","",IF($AB$66<$G20,0,IF(SUM($X20:AA20)>=$C20,0,$C20))) ->  | AC20: =IF(V20="","",IF($AC$66<$G20,0,IF(SUM($X20:AB20)>=$C20,0,$C20))) ->  | AD20: =IF(V20="","",IF($AD$66<$G20,0,IF(SUM($X20:AC20)>=$C20,0,$C20))) ->  | AE20: =IF(V20="","",IF($AE$66<$G20,0,IF(SUM($X20:AD20)>=$C20,0,$C20))) ->  | AF20: =IF(V20="","",IF($AF$66<$G20,0,IF(SUM($X20:AE20)>=$C20,0,$C20))) ->  | AG20: =IF(V20="","",IF($AG$66<$G20,0,IF(SUM($X20:AF20)>=$C20,0,$C20))) ->  | AH20: =IF(V20="","",IF($AH$66<$G20,0,IF(SUM($X20:AG20)>=$C20,0,$C20))) ->  | AI20: =IF(V20="","",IF($AI$66<$G20,0,IF(SUM($X20:AH20)>=$C20,0,$C20))) ->  | AJ20: =IF(V20="","",IF($AJ$66<$G20,0,IF(SUM($X20:AI20)>=$C20,0,$C20))) ->  | AK20: =IF(V20="","",IF($AK$66<$G20,0,IF(SUM($X20:AJ20)>=$C20,0,$C20))) ->  | AL20: =IF(V20="","",IF($AL$66<$G20,0,IF(SUM($X20:AK20)>=$C20,0,$C20))) ->  | AM20: =IF(V20="","",IF($AM$66<$G20,0,IF(SUM($X20:AL20)>=$C20,0,$C20))) ->  | AN20: =IF(V20="","",IF($AN$66<$G20,0,IF(SUM($X20:AM20)>=$C20,0,$C20))) ->  | AO20: =IF(V20="","",IF($AO$66<$G20,0,IF(SUM($X20:AN20)>=$C20,0,$C20))) ->  | AP20: =IF(V20="","",IF($AP$66<$G20,0,IF(SUM($X20:AO20)>=$C20,0,$C20))) ->  | AQ20: =IF(V20="","",IF($AQ$66<$G20,0,IF(SUM($X20:AP20)>=$C20,0,$C20))) ->  | AR20: =IF(V20="","",IF($AR$66<$G20,0,IF(SUM($X20:AQ20)>=$C20,0,$C20))) ->  | AS20: 12 | AX20: =IF(OR($AU20="",$H20=""),"",IF($I20="Sim",IF(AX$9-$H20>=0,HLOOKUP(AX$9-$H20,$AW$9:$BQ$59,$AS20,FALSE)+HLOOKUP(AX$9-$H20,$X$9:$AR$59,$AS20,FALSE),0),0)) ->  | BH20: =IF(OR($AU20="",$H20=""),"",IF($I20="Sim",IF(BH$9-$H20>=0,HLOOKUP(BH$9-$H20,$AW$9:$BQ$59,$AS20,FALSE)+HLOOKUP(BH$9-$H20,$X$9:$AR$59,$AS20,FALSE),0),0)) -> 
F21: Normal | G21: 0 | I21: Sim | J21: Sim | P21: 0 | Y21: =IF(V21="","",IF($Y$66<$G21,0,IF(SUM($X21:X21)>=$C21,0,$C21))) ->  | Z21: =IF(V21="","",IF($Z$66<$G21,0,IF(SUM($X21:Y21)>=$C21,0,$C21))) ->  | AA21: =IF(V21="","",IF($AA$66<$G21,0,IF(SUM($X21:Z21)>=$C21,0,$C21))) ->  | AB21: =IF(V21="","",IF($AB$66<$G21,0,IF(SUM($X21:AA21)>=$C21,0,$C21))) ->  | AC21: =IF(V21="","",IF($AC$66<$G21,0,IF(SUM($X21:AB21)>=$C21,0,$C21))) ->  | AD21: =IF(V21="","",IF($AD$66<$G21,0,IF(SUM($X21:AC21)>=$C21,0,$C21))) ->  | AE21: =IF(V21="","",IF($AE$66<$G21,0,IF(SUM($X21:AD21)>=$C21,0,$C21))) ->  | AF21: =IF(V21="","",IF($AF$66<$G21,0,IF(SUM($X21:AE21)>=$C21,0,$C21))) ->  | AG21: =IF(V21="","",IF($AG$66<$G21,0,IF(SUM($X21:AF21)>=$C21,0,$C21))) ->  | AH21: =IF(V21="","",IF($AH$66<$G21,0,IF(SUM($X21:AG21)>=$C21,0,$C21))) ->  | AI21: =IF(V21="","",IF($AI$66<$G21,0,IF(SUM($X21:AH21)>=$C21,0,$C21))) ->  | AJ21: =IF(V21="","",IF($AJ$66<$G21,0,IF(SUM($X21:AI21)>=$C21,0,$C21))) ->  | AK21: =IF(V21="","",IF($AK$66<$G21,0,IF(SUM($X21:AJ21)>=$C21,0,$C21))) ->  | AL21: =IF(V21="","",IF($AL$66<$G21,0,IF(SUM($X21:AK21)>=$C21,0,$C21))) ->  | AM21: =IF(V21="","",IF($AM$66<$G21,0,IF(SUM($X21:AL21)>=$C21,0,$C21))) ->  | AN21: =IF(V21="","",IF($AN$66<$G21,0,IF(SUM($X21:AM21)>=$C21,0,$C21))) ->  | AO21: =IF(V21="","",IF($AO$66<$G21,0,IF(SUM($X21:AN21)>=$C21,0,$C21))) ->  | AP21: =IF(V21="","",IF($AP$66<$G21,0,IF(SUM($X21:AO21)>=$C21,0,$C21))) ->  | AQ21: =IF(V21="","",IF($AQ$66<$G21,0,IF(SUM($X21:AP21)>=$C21,0,$C21))) ->  | AR21: =IF(V21="","",IF($AR$66<$G21,0,IF(SUM($X21:AQ21)>=$C21,0,$C21))) ->  | AS21: 13
F22: Normal | G22: 0 | I22: Sim | J22: Sim | P22: 0 | Y22: =IF(V22="","",IF($Y$66<$G22,0,IF(SUM($X22:X22)>=$C22,0,$C22))) ->  | Z22: =IF(V22="","",IF($Z$66<$G22,0,IF(SUM($X22:Y22)>=$C22,0,$C22))) ->  | AA22: =IF(V22="","",IF($AA$66<$G22,0,IF(SUM($X22:Z22)>=$C22,0,$C22))) ->  | AB22: =IF(V22="","",IF($AB$66<$G22,0,IF(SUM($X22:AA22)>=$C22,0,$C22))) ->  | AC22: =IF(V22="","",IF($AC$66<$G22,0,IF(SUM($X22:AB22)>=$C22,0,$C22))) ->  | AD22: =IF(V22="","",IF($AD$66<$G22,0,IF(SUM($X22:AC22)>=$C22,0,$C22))) ->  | AE22: =IF(V22="","",IF($AE$66<$G22,0,IF(SUM($X22:AD22)>=$C22,0,$C22))) ->  | AF22: =IF(V22="","",IF($AF$66<$G22,0,IF(SUM($X22:AE22)>=$C22,0,$C22))) ->  | AG22: =IF(V22="","",IF($AG$66<$G22,0,IF(SUM($X22:AF22)>=$C22,0,$C22))) ->  | AH22: =IF(V22="","",IF($AH$66<$G22,0,IF(SUM($X22:AG22)>=$C22,0,$C22))) ->  | AI22: =IF(V22="","",IF($AI$66<$G22,0,IF(SUM($X22:AH22)>=$C22,0,$C22))) ->  | AJ22: =IF(V22="","",IF($AJ$66<$G22,0,IF(SUM($X22:AI22)>=$C22,0,$C22))) ->  | AK22: =IF(V22="","",IF($AK$66<$G22,0,IF(SUM($X22:AJ22)>=$C22,0,$C22))) ->  | AL22: =IF(V22="","",IF($AL$66<$G22,0,IF(SUM($X22:AK22)>=$C22,0,$C22))) ->  | AM22: =IF(V22="","",IF($AM$66<$G22,0,IF(SUM($X22:AL22)>=$C22,0,$C22))) ->  | AN22: =IF(V22="","",IF($AN$66<$G22,0,IF(SUM($X22:AM22)>=$C22,0,$C22))) ->  | AO22: =IF(V22="","",IF($AO$66<$G22,0,IF(SUM($X22:AN22)>=$C22,0,$C22))) ->  | AP22: =IF(V22="","",IF($AP$66<$G22,0,IF(SUM($X22:AO22)>=$C22,0,$C22))) ->  | AQ22: =IF(V22="","",IF($AQ$66<$G22,0,IF(SUM($X22:AP22)>=$C22,0,$C22))) ->  | AR22: =IF(V22="","",IF($AR$66<$G22,0,IF(SUM($X22:AQ22)>=$C22,0,$C22))) ->  | AS22: 14
F23: Normal | G23: 0 | I23: Sim | J23: Sim | P23: 0 | Y23: =IF(V23="","",IF($Y$66<$G23,0,IF(SUM($X23:X23)>=$C23,0,$C23))) ->  | Z23: =IF(V23="","",IF($Z$66<$G23,0,IF(SUM($X23:Y23)>=$C23,0,$C23))) ->  | AA23: =IF(V23="","",IF($AA$66<$G23,0,IF(SUM($X23:Z23)>=$C23,0,$C23))) ->  | AB23: =IF(V23="","",IF($AB$66<$G23,0,IF(SUM($X23:AA23)>=$C23,0,$C23))) ->  | AC23: =IF(V23="","",IF($AC$66<$G23,0,IF(SUM($X23:AB23)>=$C23,0,$C23))) ->  | AD23: =IF(V23="","",IF($AD$66<$G23,0,IF(SUM($X23:AC23)>=$C23,0,$C23))) ->  | AE23: =IF(V23="","",IF($AE$66<$G23,0,IF(SUM($X23:AD23)>=$C23,0,$C23))) ->  | AF23: =IF(V23="","",IF($AF$66<$G23,0,IF(SUM($X23:AE23)>=$C23,0,$C23))) ->  | AG23: =IF(V23="","",IF($AG$66<$G23,0,IF(SUM($X23:AF23)>=$C23,0,$C23))) ->  | AH23: =IF(V23="","",IF($AH$66<$G23,0,IF(SUM($X23:AG23)>=$C23,0,$C23))) ->  | AI23: =IF(V23="","",IF($AI$66<$G23,0,IF(SUM($X23:AH23)>=$C23,0,$C23))) ->  | AJ23: =IF(V23="","",IF($AJ$66<$G23,0,IF(SUM($X23:AI23)>=$C23,0,$C23))) ->  | AK23: =IF(V23="","",IF($AK$66<$G23,0,IF(SUM($X23:AJ23)>=$C23,0,$C23))) ->  | AL23: =IF(V23="","",IF($AL$66<$G23,0,IF(SUM($X23:AK23)>=$C23,0,$C23))) ->  | AM23: =IF(V23="","",IF($AM$66<$G23,0,IF(SUM($X23:AL23)>=$C23,0,$C23))) ->  | AN23: =IF(V23="","",IF($AN$66<$G23,0,IF(SUM($X23:AM23)>=$C23,0,$C23))) ->  | AO23: =IF(V23="","",IF($AO$66<$G23,0,IF(SUM($X23:AN23)>=$C23,0,$C23))) ->  | AP23: =IF(V23="","",IF($AP$66<$G23,0,IF(SUM($X23:AO23)>=$C23,0,$C23))) ->  | AQ23: =IF(V23="","",IF($AQ$66<$G23,0,IF(SUM($X23:AP23)>=$C23,0,$C23))) ->  | AR23: =IF(V23="","",IF($AR$66<$G23,0,IF(SUM($X23:AQ23)>=$C23,0,$C23))) ->  | AS23: 15
F24: Normal | G24: 0 | I24: Sim | J24: Sim | P24: 0 | Y24: =IF(V24="","",IF($Y$66<$G24,0,IF(SUM($X24:X24)>=$C24,0,$C24))) ->  | Z24: =IF(V24="","",IF($Z$66<$G24,0,IF(SUM($X24:Y24)>=$C24,0,$C24))) ->  | AA24: =IF(V24="","",IF($AA$66<$G24,0,IF(SUM($X24:Z24)>=$C24,0,$C24))) ->  | AB24: =IF(V24="","",IF($AB$66<$G24,0,IF(SUM($X24:AA24)>=$C24,0,$C24))) ->  | AC24: =IF(V24="","",IF($AC$66<$G24,0,IF(SUM($X24:AB24)>=$C24,0,$C24))) ->  | AD24: =IF(V24="","",IF($AD$66<$G24,0,IF(SUM($X24:AC24)>=$C24,0,$C24))) ->  | AE24: =IF(V24="","",IF($AE$66<$G24,0,IF(SUM($X24:AD24)>=$C24,0,$C24))) ->  | AF24: =IF(V24="","",IF($AF$66<$G24,0,IF(SUM($X24:AE24)>=$C24,0,$C24))) ->  | AG24: =IF(V24="","",IF($AG$66<$G24,0,IF(SUM($X24:AF24)>=$C24,0,$C24))) ->  | AH24: =IF(V24="","",IF($AH$66<$G24,0,IF(SUM($X24:AG24)>=$C24,0,$C24))) ->  | AI24: =IF(V24="","",IF($AI$66<$G24,0,IF(SUM($X24:AH24)>=$C24,0,$C24))) ->  | AJ24: =IF(V24="","",IF($AJ$66<$G24,0,IF(SUM($X24:AI24)>=$C24,0,$C24))) ->  | AK24: =IF(V24="","",IF($AK$66<$G24,0,IF(SUM($X24:AJ24)>=$C24,0,$C24))) ->  | AL24: =IF(V24="","",IF($AL$66<$G24,0,IF(SUM($X24:AK24)>=$C24,0,$C24))) ->  | AM24: =IF(V24="","",IF($AM$66<$G24,0,IF(SUM($X24:AL24)>=$C24,0,$C24))) ->  | AN24: =IF(V24="","",IF($AN$66<$G24,0,IF(SUM($X24:AM24)>=$C24,0,$C24))) ->  | AO24: =IF(V24="","",IF($AO$66<$G24,0,IF(SUM($X24:AN24)>=$C24,0,$C24))) ->  | AP24: =IF(V24="","",IF($AP$66<$G24,0,IF(SUM($X24:AO24)>=$C24,0,$C24))) ->  | AQ24: =IF(V24="","",IF($AQ$66<$G24,0,IF(SUM($X24:AP24)>=$C24,0,$C24))) ->  | AR24: =IF(V24="","",IF($AR$66<$G24,0,IF(SUM($X24:AQ24)>=$C24,0,$C24))) ->  | AS24: 16
F25: Normal | G25: 0 | I25: Sim | J25: Sim | P25: 0 | Y25: =IF(V25="","",IF($Y$66<$G25,0,IF(SUM($X25:X25)>=$C25,0,$C25))) ->  | Z25: =IF(V25="","",IF($Z$66<$G25,0,IF(SUM($X25:Y25)>=$C25,0,$C25))) ->  | AA25: =IF(V25="","",IF($AA$66<$G25,0,IF(SUM($X25:Z25)>=$C25,0,$C25))) ->  | AB25: =IF(V25="","",IF($AB$66<$G25,0,IF(SUM($X25:AA25)>=$C25,0,$C25))) ->  | AC25: =IF(V25="","",IF($AC$66<$G25,0,IF(SUM($X25:AB25)>=$C25,0,$C25))) ->  | AD25: =IF(V25="","",IF($AD$66<$G25,0,IF(SUM($X25:AC25)>=$C25,0,$C25))) ->  | AE25: =IF(V25="","",IF($AE$66<$G25,0,IF(SUM($X25:AD25)>=$C25,0,$C25))) ->  | AF25: =IF(V25="","",IF($AF$66<$G25,0,IF(SUM($X25:AE25)>=$C25,0,$C25))) ->  | AG25: =IF(V25="","",IF($AG$66<$G25,0,IF(SUM($X25:AF25)>=$C25,0,$C25))) ->  | AH25: =IF(V25="","",IF($AH$66<$G25,0,IF(SUM($X25:AG25)>=$C25,0,$C25))) ->  | AI25: =IF(V25="","",IF($AI$66<$G25,0,IF(SUM($X25:AH25)>=$C25,0,$C25))) ->  | AJ25: =IF(V25="","",IF($AJ$66<$G25,0,IF(SUM($X25:AI25)>=$C25,0,$C25))) ->  | AK25: =IF(V25="","",IF($AK$66<$G25,0,IF(SUM($X25:AJ25)>=$C25,0,$C25))) ->  | AL25: =IF(V25="","",IF($AL$66<$G25,0,IF(SUM($X25:AK25)>=$C25,0,$C25))) ->  | AM25: =IF(V25="","",IF($AM$66<$G25,0,IF(SUM($X25:AL25)>=$C25,0,$C25))) ->  | AN25: =IF(V25="","",IF($AN$66<$G25,0,IF(SUM($X25:AM25)>=$C25,0,$C25))) ->  | AO25: =IF(V25="","",IF($AO$66<$G25,0,IF(SUM($X25:AN25)>=$C25,0,$C25))) ->  | AP25: =IF(V25="","",IF($AP$66<$G25,0,IF(SUM($X25:AO25)>=$C25,0,$C25))) ->  | AQ25: =IF(V25="","",IF($AQ$66<$G25,0,IF(SUM($X25:AP25)>=$C25,0,$C25))) ->  | AR25: =IF(V25="","",IF($AR$66<$G25,0,IF(SUM($X25:AQ25)>=$C25,0,$C25))) ->  | AS25: 17
F26: Normal | G26: 0 | I26: Sim | J26: Sim | P26: 0 | Y26: =IF(V26="","",IF($Y$66<$G26,0,IF(SUM($X26:X26)>=$C26,0,$C26))) ->  | Z26: =IF(V26="","",IF($Z$66<$G26,0,IF(SUM($X26:Y26)>=$C26,0,$C26))) ->  | AA26: =IF(V26="","",IF($AA$66<$G26,0,IF(SUM($X26:Z26)>=$C26,0,$C26))) ->  | AB26: =IF(V26="","",IF($AB$66<$G26,0,IF(SUM($X26:AA26)>=$C26,0,$C26))) ->  | AC26: =IF(V26="","",IF($AC$66<$G26,0,IF(SUM($X26:AB26)>=$C26,0,$C26))) ->  | AD26: =IF(V26="","",IF($AD$66<$G26,0,IF(SUM($X26:AC26)>=$C26,0,$C26))) ->  | AE26: =IF(V26="","",IF($AE$66<$G26,0,IF(SUM($X26:AD26)>=$C26,0,$C26))) ->  | AF26: =IF(V26="","",IF($AF$66<$G26,0,IF(SUM($X26:AE26)>=$C26,0,$C26))) ->  | AG26: =IF(V26="","",IF($AG$66<$G26,0,IF(SUM($X26:AF26)>=$C26,0,$C26))) ->  | AH26: =IF(V26="","",IF($AH$66<$G26,0,IF(SUM($X26:AG26)>=$C26,0,$C26))) ->  | AI26: =IF(V26="","",IF($AI$66<$G26,0,IF(SUM($X26:AH26)>=$C26,0,$C26))) ->  | AJ26: =IF(V26="","",IF($AJ$66<$G26,0,IF(SUM($X26:AI26)>=$C26,0,$C26))) ->  | AK26: =IF(V26="","",IF($AK$66<$G26,0,IF(SUM($X26:AJ26)>=$C26,0,$C26))) ->  | AL26: =IF(V26="","",IF($AL$66<$G26,0,IF(SUM($X26:AK26)>=$C26,0,$C26))) ->  | AM26: =IF(V26="","",IF($AM$66<$G26,0,IF(SUM($X26:AL26)>=$C26,0,$C26))) ->  | AN26: =IF(V26="","",IF($AN$66<$G26,0,IF(SUM($X26:AM26)>=$C26,0,$C26))) ->  | AO26: =IF(V26="","",IF($AO$66<$G26,0,IF(SUM($X26:AN26)>=$C26,0,$C26))) ->  | AP26: =IF(V26="","",IF($AP$66<$G26,0,IF(SUM($X26:AO26)>=$C26,0,$C26))) ->  | AQ26: =IF(V26="","",IF($AQ$66<$G26,0,IF(SUM($X26:AP26)>=$C26,0,$C26))) ->  | AR26: =IF(V26="","",IF($AR$66<$G26,0,IF(SUM($X26:AQ26)>=$C26,0,$C26))) ->  | AS26: 18
F27: Normal | G27: 0 | I27: Sim | J27: Sim | P27: 0 | Y27: =IF(V27="","",IF($Y$66<$G27,0,IF(SUM($X27:X27)>=$C27,0,$C27))) ->  | Z27: =IF(V27="","",IF($Z$66<$G27,0,IF(SUM($X27:Y27)>=$C27,0,$C27))) ->  | AA27: =IF(V27="","",IF($AA$66<$G27,0,IF(SUM($X27:Z27)>=$C27,0,$C27))) ->  | AB27: =IF(V27="","",IF($AB$66<$G27,0,IF(SUM($X27:AA27)>=$C27,0,$C27))) ->  | AC27: =IF(V27="","",IF($AC$66<$G27,0,IF(SUM($X27:AB27)>=$C27,0,$C27))) ->  | AD27: =IF(V27="","",IF($AD$66<$G27,0,IF(SUM($X27:AC27)>=$C27,0,$C27))) ->  | AE27: =IF(V27="","",IF($AE$66<$G27,0,IF(SUM($X27:AD27)>=$C27,0,$C27))) ->  | AF27: =IF(V27="","",IF($AF$66<$G27,0,IF(SUM($X27:AE27)>=$C27,0,$C27))) ->  | AG27: =IF(V27="","",IF($AG$66<$G27,0,IF(SUM($X27:AF27)>=$C27,0,$C27))) ->  | AH27: =IF(V27="","",IF($AH$66<$G27,0,IF(SUM($X27:AG27)>=$C27,0,$C27))) ->  | AI27: =IF(V27="","",IF($AI$66<$G27,0,IF(SUM($X27:AH27)>=$C27,0,$C27))) ->  | AJ27: =IF(V27="","",IF($AJ$66<$G27,0,IF(SUM($X27:AI27)>=$C27,0,$C27))) ->  | AK27: =IF(V27="","",IF($AK$66<$G27,0,IF(SUM($X27:AJ27)>=$C27,0,$C27))) ->  | AL27: =IF(V27="","",IF($AL$66<$G27,0,IF(SUM($X27:AK27)>=$C27,0,$C27))) ->  | AM27: =IF(V27="","",IF($AM$66<$G27,0,IF(SUM($X27:AL27)>=$C27,0,$C27))) ->  | AN27: =IF(V27="","",IF($AN$66<$G27,0,IF(SUM($X27:AM27)>=$C27,0,$C27))) ->  | AO27: =IF(V27="","",IF($AO$66<$G27,0,IF(SUM($X27:AN27)>=$C27,0,$C27))) ->  | AP27: =IF(V27="","",IF($AP$66<$G27,0,IF(SUM($X27:AO27)>=$C27,0,$C27))) ->  | AQ27: =IF(V27="","",IF($AQ$66<$G27,0,IF(SUM($X27:AP27)>=$C27,0,$C27))) ->  | AR27: =IF(V27="","",IF($AR$66<$G27,0,IF(SUM($X27:AQ27)>=$C27,0,$C27))) ->  | AS27: 19
F28: Normal | G28: 0 | I28: Sim | J28: Sim | P28: 0 | Y28: =IF(V28="","",IF($Y$66<$G28,0,IF(SUM($X28:X28)>=$C28,0,$C28))) ->  | Z28: =IF(V28="","",IF($Z$66<$G28,0,IF(SUM($X28:Y28)>=$C28,0,$C28))) ->  | AA28: =IF(V28="","",IF($AA$66<$G28,0,IF(SUM($X28:Z28)>=$C28,0,$C28))) ->  | AB28: =IF(V28="","",IF($AB$66<$G28,0,IF(SUM($X28:AA28)>=$C28,0,$C28))) ->  | AC28: =IF(V28="","",IF($AC$66<$G28,0,IF(SUM($X28:AB28)>=$C28,0,$C28))) ->  | AD28: =IF(V28="","",IF($AD$66<$G28,0,IF(SUM($X28:AC28)>=$C28,0,$C28))) ->  | AE28: =IF(V28="","",IF($AE$66<$G28,0,IF(SUM($X28:AD28)>=$C28,0,$C28))) ->  | AF28: =IF(V28="","",IF($AF$66<$G28,0,IF(SUM($X28:AE28)>=$C28,0,$C28))) ->  | AG28: =IF(V28="","",IF($AG$66<$G28,0,IF(SUM($X28:AF28)>=$C28,0,$C28))) ->  | AH28: =IF(V28="","",IF($AH$66<$G28,0,IF(SUM($X28:AG28)>=$C28,0,$C28))) ->  | AI28: =IF(V28="","",IF($AI$66<$G28,0,IF(SUM($X28:AH28)>=$C28,0,$C28))) ->  | AJ28: =IF(V28="","",IF($AJ$66<$G28,0,IF(SUM($X28:AI28)>=$C28,0,$C28))) ->  | AK28: =IF(V28="","",IF($AK$66<$G28,0,IF(SUM($X28:AJ28)>=$C28,0,$C28))) ->  | AL28: =IF(V28="","",IF($AL$66<$G28,0,IF(SUM($X28:AK28)>=$C28,0,$C28))) ->  | AM28: =IF(V28="","",IF($AM$66<$G28,0,IF(SUM($X28:AL28)>=$C28,0,$C28))) ->  | AN28: =IF(V28="","",IF($AN$66<$G28,0,IF(SUM($X28:AM28)>=$C28,0,$C28))) ->  | AO28: =IF(V28="","",IF($AO$66<$G28,0,IF(SUM($X28:AN28)>=$C28,0,$C28))) ->  | AP28: =IF(V28="","",IF($AP$66<$G28,0,IF(SUM($X28:AO28)>=$C28,0,$C28))) ->  | AQ28: =IF(V28="","",IF($AQ$66<$G28,0,IF(SUM($X28:AP28)>=$C28,0,$C28))) ->  | AR28: =IF(V28="","",IF($AR$66<$G28,0,IF(SUM($X28:AQ28)>=$C28,0,$C28))) ->  | AS28: 20
F29: Normal | G29: 0 | I29: Sim | J29: Sim | P29: 0 | Y29: =IF(V29="","",IF($Y$66<$G29,0,IF(SUM($X29:X29)>=$C29,0,$C29))) ->  | Z29: =IF(V29="","",IF($Z$66<$G29,0,IF(SUM($X29:Y29)>=$C29,0,$C29))) ->  | AA29: =IF(V29="","",IF($AA$66<$G29,0,IF(SUM($X29:Z29)>=$C29,0,$C29))) ->  | AB29: =IF(V29="","",IF($AB$66<$G29,0,IF(SUM($X29:AA29)>=$C29,0,$C29))) ->  | AC29: =IF(V29="","",IF($AC$66<$G29,0,IF(SUM($X29:AB29)>=$C29,0,$C29))) ->  | AD29: =IF(V29="","",IF($AD$66<$G29,0,IF(SUM($X29:AC29)>=$C29,0,$C29))) ->  | AE29: =IF(V29="","",IF($AE$66<$G29,0,IF(SUM($X29:AD29)>=$C29,0,$C29))) ->  | AF29: =IF(V29="","",IF($AF$66<$G29,0,IF(SUM($X29:AE29)>=$C29,0,$C29))) ->  | AG29: =IF(V29="","",IF($AG$66<$G29,0,IF(SUM($X29:AF29)>=$C29,0,$C29))) ->  | AH29: =IF(V29="","",IF($AH$66<$G29,0,IF(SUM($X29:AG29)>=$C29,0,$C29))) ->  | AI29: =IF(V29="","",IF($AI$66<$G29,0,IF(SUM($X29:AH29)>=$C29,0,$C29))) ->  | AJ29: =IF(V29="","",IF($AJ$66<$G29,0,IF(SUM($X29:AI29)>=$C29,0,$C29))) ->  | AK29: =IF(V29="","",IF($AK$66<$G29,0,IF(SUM($X29:AJ29)>=$C29,0,$C29))) ->  | AL29: =IF(V29="","",IF($AL$66<$G29,0,IF(SUM($X29:AK29)>=$C29,0,$C29))) ->  | AM29: =IF(V29="","",IF($AM$66<$G29,0,IF(SUM($X29:AL29)>=$C29,0,$C29))) ->  | AN29: =IF(V29="","",IF($AN$66<$G29,0,IF(SUM($X29:AM29)>=$C29,0,$C29))) ->  | AO29: =IF(V29="","",IF($AO$66<$G29,0,IF(SUM($X29:AN29)>=$C29,0,$C29))) ->  | AP29: =IF(V29="","",IF($AP$66<$G29,0,IF(SUM($X29:AO29)>=$C29,0,$C29))) ->  | AQ29: =IF(V29="","",IF($AQ$66<$G29,0,IF(SUM($X29:AP29)>=$C29,0,$C29))) ->  | AR29: =IF(V29="","",IF($AR$66<$G29,0,IF(SUM($X29:AQ29)>=$C29,0,$C29))) ->  | AS29: 21
F30: Normal | G30: 0 | I30: Sim | J30: Sim | P30: 0 | Y30: =IF(V30="","",IF($Y$66<$G30,0,IF(SUM($X30:X30)>=$C30,0,$C30))) ->  | Z30: =IF(V30="","",IF($Z$66<$G30,0,IF(SUM($X30:Y30)>=$C30,0,$C30))) ->  | AA30: =IF(V30="","",IF($AA$66<$G30,0,IF(SUM($X30:Z30)>=$C30,0,$C30))) ->  | AB30: =IF(V30="","",IF($AB$66<$G30,0,IF(SUM($X30:AA30)>=$C30,0,$C30))) ->  | AC30: =IF(V30="","",IF($AC$66<$G30,0,IF(SUM($X30:AB30)>=$C30,0,$C30))) ->  | AD30: =IF(V30="","",IF($AD$66<$G30,0,IF(SUM($X30:AC30)>=$C30,0,$C30))) ->  | AE30: =IF(V30="","",IF($AE$66<$G30,0,IF(SUM($X30:AD30)>=$C30,0,$C30))) ->  | AF30: =IF(V30="","",IF($AF$66<$G30,0,IF(SUM($X30:AE30)>=$C30,0,$C30))) ->  | AG30: =IF(V30="","",IF($AG$66<$G30,0,IF(SUM($X30:AF30)>=$C30,0,$C30))) ->  | AH30: =IF(V30="","",IF($AH$66<$G30,0,IF(SUM($X30:AG30)>=$C30,0,$C30))) ->  | AI30: =IF(V30="","",IF($AI$66<$G30,0,IF(SUM($X30:AH30)>=$C30,0,$C30))) ->  | AJ30: =IF(V30="","",IF($AJ$66<$G30,0,IF(SUM($X30:AI30)>=$C30,0,$C30))) ->  | AK30: =IF(V30="","",IF($AK$66<$G30,0,IF(SUM($X30:AJ30)>=$C30,0,$C30))) ->  | AL30: =IF(V30="","",IF($AL$66<$G30,0,IF(SUM($X30:AK30)>=$C30,0,$C30))) ->  | AM30: =IF(V30="","",IF($AM$66<$G30,0,IF(SUM($X30:AL30)>=$C30,0,$C30))) ->  | AN30: =IF(V30="","",IF($AN$66<$G30,0,IF(SUM($X30:AM30)>=$C30,0,$C30))) ->  | AO30: =IF(V30="","",IF($AO$66<$G30,0,IF(SUM($X30:AN30)>=$C30,0,$C30))) ->  | AP30: =IF(V30="","",IF($AP$66<$G30,0,IF(SUM($X30:AO30)>=$C30,0,$C30))) ->  | AQ30: =IF(V30="","",IF($AQ$66<$G30,0,IF(SUM($X30:AP30)>=$C30,0,$C30))) ->  | AR30: =IF(V30="","",IF($AR$66<$G30,0,IF(SUM($X30:AQ30)>=$C30,0,$C30))) ->  | AS30: 22 | AX30: =IF(OR($AU30="",$H30=""),"",IF($I30="Sim",IF(AX$9-$H30>=0,HLOOKUP(AX$9-$H30,$AW$9:$BQ$59,$AS30,FALSE)+HLOOKUP(AX$9-$H30,$X$9:$AR$59,$AS30,FALSE),0),0)) ->  | BH30: =IF(OR($AU30="",$H30=""),"",IF($I30="Sim",IF(BH$9-$H30>=0,HLOOKUP(BH$9-$H30,$AW$9:$BQ$59,$AS30,FALSE)+HLOOKUP(BH$9-$H30,$X$9:$AR$59,$AS30,FALSE),0),0)) -> 
F31: Normal | G31: 0 | I31: Sim | J31: Sim | P31: 0 | Y31: =IF(V31="","",IF($Y$66<$G31,0,IF(SUM($X31:X31)>=$C31,0,$C31))) ->  | Z31: =IF(V31="","",IF($Z$66<$G31,0,IF(SUM($X31:Y31)>=$C31,0,$C31))) ->  | AA31: =IF(V31="","",IF($AA$66<$G31,0,IF(SUM($X31:Z31)>=$C31,0,$C31))) ->  | AB31: =IF(V31="","",IF($AB$66<$G31,0,IF(SUM($X31:AA31)>=$C31,0,$C31))) ->  | AC31: =IF(V31="","",IF($AC$66<$G31,0,IF(SUM($X31:AB31)>=$C31,0,$C31))) ->  | AD31: =IF(V31="","",IF($AD$66<$G31,0,IF(SUM($X31:AC31)>=$C31,0,$C31))) ->  | AE31: =IF(V31="","",IF($AE$66<$G31,0,IF(SUM($X31:AD31)>=$C31,0,$C31))) ->  | AF31: =IF(V31="","",IF($AF$66<$G31,0,IF(SUM($X31:AE31)>=$C31,0,$C31))) ->  | AG31: =IF(V31="","",IF($AG$66<$G31,0,IF(SUM($X31:AF31)>=$C31,0,$C31))) ->  | AH31: =IF(V31="","",IF($AH$66<$G31,0,IF(SUM($X31:AG31)>=$C31,0,$C31))) ->  | AI31: =IF(V31="","",IF($AI$66<$G31,0,IF(SUM($X31:AH31)>=$C31,0,$C31))) ->  | AJ31: =IF(V31="","",IF($AJ$66<$G31,0,IF(SUM($X31:AI31)>=$C31,0,$C31))) ->  | AK31: =IF(V31="","",IF($AK$66<$G31,0,IF(SUM($X31:AJ31)>=$C31,0,$C31))) ->  | AL31: =IF(V31="","",IF($AL$66<$G31,0,IF(SUM($X31:AK31)>=$C31,0,$C31))) ->  | AM31: =IF(V31="","",IF($AM$66<$G31,0,IF(SUM($X31:AL31)>=$C31,0,$C31))) ->  | AN31: =IF(V31="","",IF($AN$66<$G31,0,IF(SUM($X31:AM31)>=$C31,0,$C31))) ->  | AO31: =IF(V31="","",IF($AO$66<$G31,0,IF(SUM($X31:AN31)>=$C31,0,$C31))) ->  | AP31: =IF(V31="","",IF($AP$66<$G31,0,IF(SUM($X31:AO31)>=$C31,0,$C31))) ->  | AQ31: =IF(V31="","",IF($AQ$66<$G31,0,IF(SUM($X31:AP31)>=$C31,0,$C31))) ->  | AR31: =IF(V31="","",IF($AR$66<$G31,0,IF(SUM($X31:AQ31)>=$C31,0,$C31))) ->  | AS31: 23
F32: Normal | G32: 0 | I32: Sim | J32: Sim | P32: 0 | Y32: =IF(V32="","",IF($Y$66<$G32,0,IF(SUM($X32:X32)>=$C32,0,$C32))) ->  | Z32: =IF(V32="","",IF($Z$66<$G32,0,IF(SUM($X32:Y32)>=$C32,0,$C32))) ->  | AA32: =IF(V32="","",IF($AA$66<$G32,0,IF(SUM($X32:Z32)>=$C32,0,$C32))) ->  | AB32: =IF(V32="","",IF($AB$66<$G32,0,IF(SUM($X32:AA32)>=$C32,0,$C32))) ->  | AC32: =IF(V32="","",IF($AC$66<$G32,0,IF(SUM($X32:AB32)>=$C32,0,$C32))) ->  | AD32: =IF(V32="","",IF($AD$66<$G32,0,IF(SUM($X32:AC32)>=$C32,0,$C32))) ->  | AE32: =IF(V32="","",IF($AE$66<$G32,0,IF(SUM($X32:AD32)>=$C32,0,$C32))) ->  | AF32: =IF(V32="","",IF($AF$66<$G32,0,IF(SUM($X32:AE32)>=$C32,0,$C32))) ->  | AG32: =IF(V32="","",IF($AG$66<$G32,0,IF(SUM($X32:AF32)>=$C32,0,$C32))) ->  | AH32: =IF(V32="","",IF($AH$66<$G32,0,IF(SUM($X32:AG32)>=$C32,0,$C32))) ->  | AI32: =IF(V32="","",IF($AI$66<$G32,0,IF(SUM($X32:AH32)>=$C32,0,$C32))) ->  | AJ32: =IF(V32="","",IF($AJ$66<$G32,0,IF(SUM($X32:AI32)>=$C32,0,$C32))) ->  | AK32: =IF(V32="","",IF($AK$66<$G32,0,IF(SUM($X32:AJ32)>=$C32,0,$C32))) ->  | AL32: =IF(V32="","",IF($AL$66<$G32,0,IF(SUM($X32:AK32)>=$C32,0,$C32))) ->  | AM32: =IF(V32="","",IF($AM$66<$G32,0,IF(SUM($X32:AL32)>=$C32,0,$C32))) ->  | AN32: =IF(V32="","",IF($AN$66<$G32,0,IF(SUM($X32:AM32)>=$C32,0,$C32))) ->  | AO32: =IF(V32="","",IF($AO$66<$G32,0,IF(SUM($X32:AN32)>=$C32,0,$C32))) ->  | AP32: =IF(V32="","",IF($AP$66<$G32,0,IF(SUM($X32:AO32)>=$C32,0,$C32))) ->  | AQ32: =IF(V32="","",IF($AQ$66<$G32,0,IF(SUM($X32:AP32)>=$C32,0,$C32))) ->  | AR32: =IF(V32="","",IF($AR$66<$G32,0,IF(SUM($X32:AQ32)>=$C32,0,$C32))) ->  | AS32: 24
F33: Normal | G33: 0 | I33: Sim | J33: Sim | P33: 0 | Y33: =IF(V33="","",IF($Y$66<$G33,0,IF(SUM($X33:X33)>=$C33,0,$C33))) ->  | Z33: =IF(V33="","",IF($Z$66<$G33,0,IF(SUM($X33:Y33)>=$C33,0,$C33))) ->  | AA33: =IF(V33="","",IF($AA$66<$G33,0,IF(SUM($X33:Z33)>=$C33,0,$C33))) ->  | AB33: =IF(V33="","",IF($AB$66<$G33,0,IF(SUM($X33:AA33)>=$C33,0,$C33))) ->  | AC33: =IF(V33="","",IF($AC$66<$G33,0,IF(SUM($X33:AB33)>=$C33,0,$C33))) ->  | AD33: =IF(V33="","",IF($AD$66<$G33,0,IF(SUM($X33:AC33)>=$C33,0,$C33))) ->  | AE33: =IF(V33="","",IF($AE$66<$G33,0,IF(SUM($X33:AD33)>=$C33,0,$C33))) ->  | AF33: =IF(V33="","",IF($AF$66<$G33,0,IF(SUM($X33:AE33)>=$C33,0,$C33))) ->  | AG33: =IF(V33="","",IF($AG$66<$G33,0,IF(SUM($X33:AF33)>=$C33,0,$C33))) ->  | AH33: =IF(V33="","",IF($AH$66<$G33,0,IF(SUM($X33:AG33)>=$C33,0,$C33))) ->  | AI33: =IF(V33="","",IF($AI$66<$G33,0,IF(SUM($X33:AH33)>=$C33,0,$C33))) ->  | AJ33: =IF(V33="","",IF($AJ$66<$G33,0,IF(SUM($X33:AI33)>=$C33,0,$C33))) ->  | AK33: =IF(V33="","",IF($AK$66<$G33,0,IF(SUM($X33:AJ33)>=$C33,0,$C33))) ->  | AL33: =IF(V33="","",IF($AL$66<$G33,0,IF(SUM($X33:AK33)>=$C33,0,$C33))) ->  | AM33: =IF(V33="","",IF($AM$66<$G33,0,IF(SUM($X33:AL33)>=$C33,0,$C33))) ->  | AN33: =IF(V33="","",IF($AN$66<$G33,0,IF(SUM($X33:AM33)>=$C33,0,$C33))) ->  | AO33: =IF(V33="","",IF($AO$66<$G33,0,IF(SUM($X33:AN33)>=$C33,0,$C33))) ->  | AP33: =IF(V33="","",IF($AP$66<$G33,0,IF(SUM($X33:AO33)>=$C33,0,$C33))) ->  | AQ33: =IF(V33="","",IF($AQ$66<$G33,0,IF(SUM($X33:AP33)>=$C33,0,$C33))) ->  | AR33: =IF(V33="","",IF($AR$66<$G33,0,IF(SUM($X33:AQ33)>=$C33,0,$C33))) ->  | AS33: 25
F34: Normal | G34: 0 | I34: Sim | J34: Sim | P34: 0 | Y34: =IF(V34="","",IF($Y$66<$G34,0,IF(SUM($X34:X34)>=$C34,0,$C34))) ->  | Z34: =IF(V34="","",IF($Z$66<$G34,0,IF(SUM($X34:Y34)>=$C34,0,$C34))) ->  | AA34: =IF(V34="","",IF($AA$66<$G34,0,IF(SUM($X34:Z34)>=$C34,0,$C34))) ->  | AB34: =IF(V34="","",IF($AB$66<$G34,0,IF(SUM($X34:AA34)>=$C34,0,$C34))) ->  | AC34: =IF(V34="","",IF($AC$66<$G34,0,IF(SUM($X34:AB34)>=$C34,0,$C34))) ->  | AD34: =IF(V34="","",IF($AD$66<$G34,0,IF(SUM($X34:AC34)>=$C34,0,$C34))) ->  | AE34: =IF(V34="","",IF($AE$66<$G34,0,IF(SUM($X34:AD34)>=$C34,0,$C34))) ->  | AF34: =IF(V34="","",IF($AF$66<$G34,0,IF(SUM($X34:AE34)>=$C34,0,$C34))) ->  | AG34: =IF(V34="","",IF($AG$66<$G34,0,IF(SUM($X34:AF34)>=$C34,0,$C34))) ->  | AH34: =IF(V34="","",IF($AH$66<$G34,0,IF(SUM($X34:AG34)>=$C34,0,$C34))) ->  | AI34: =IF(V34="","",IF($AI$66<$G34,0,IF(SUM($X34:AH34)>=$C34,0,$C34))) ->  | AJ34: =IF(V34="","",IF($AJ$66<$G34,0,IF(SUM($X34:AI34)>=$C34,0,$C34))) ->  | AK34: =IF(V34="","",IF($AK$66<$G34,0,IF(SUM($X34:AJ34)>=$C34,0,$C34))) ->  | AL34: =IF(V34="","",IF($AL$66<$G34,0,IF(SUM($X34:AK34)>=$C34,0,$C34))) ->  | AM34: =IF(V34="","",IF($AM$66<$G34,0,IF(SUM($X34:AL34)>=$C34,0,$C34))) ->  | AN34: =IF(V34="","",IF($AN$66<$G34,0,IF(SUM($X34:AM34)>=$C34,0,$C34))) ->  | AO34: =IF(V34="","",IF($AO$66<$G34,0,IF(SUM($X34:AN34)>=$C34,0,$C34))) ->  | AP34: =IF(V34="","",IF($AP$66<$G34,0,IF(SUM($X34:AO34)>=$C34,0,$C34))) ->  | AQ34: =IF(V34="","",IF($AQ$66<$G34,0,IF(SUM($X34:AP34)>=$C34,0,$C34))) ->  | AR34: =IF(V34="","",IF($AR$66<$G34,0,IF(SUM($X34:AQ34)>=$C34,0,$C34))) ->  | AS34: 26
F35: Normal | G35: 0 | I35: Sim | J35: Sim | P35: 0 | Y35: =IF(V35="","",IF($Y$66<$G35,0,IF(SUM($X35:X35)>=$C35,0,$C35))) ->  | Z35: =IF(V35="","",IF($Z$66<$G35,0,IF(SUM($X35:Y35)>=$C35,0,$C35))) ->  | AA35: =IF(V35="","",IF($AA$66<$G35,0,IF(SUM($X35:Z35)>=$C35,0,$C35))) ->  | AB35: =IF(V35="","",IF($AB$66<$G35,0,IF(SUM($X35:AA35)>=$C35,0,$C35))) ->  | AC35: =IF(V35="","",IF($AC$66<$G35,0,IF(SUM($X35:AB35)>=$C35,0,$C35))) ->  | AD35: =IF(V35="","",IF($AD$66<$G35,0,IF(SUM($X35:AC35)>=$C35,0,$C35))) ->  | AE35: =IF(V35="","",IF($AE$66<$G35,0,IF(SUM($X35:AD35)>=$C35,0,$C35))) ->  | AF35: =IF(V35="","",IF($AF$66<$G35,0,IF(SUM($X35:AE35)>=$C35,0,$C35))) ->  | AG35: =IF(V35="","",IF($AG$66<$G35,0,IF(SUM($X35:AF35)>=$C35,0,$C35))) ->  | AH35: =IF(V35="","",IF($AH$66<$G35,0,IF(SUM($X35:AG35)>=$C35,0,$C35))) ->  | AI35: =IF(V35="","",IF($AI$66<$G35,0,IF(SUM($X35:AH35)>=$C35,0,$C35))) ->  | AJ35: =IF(V35="","",IF($AJ$66<$G35,0,IF(SUM($X35:AI35)>=$C35,0,$C35))) ->  | AK35: =IF(V35="","",IF($AK$66<$G35,0,IF(SUM($X35:AJ35)>=$C35,0,$C35))) ->  | AL35: =IF(V35="","",IF($AL$66<$G35,0,IF(SUM($X35:AK35)>=$C35,0,$C35))) ->  | AM35: =IF(V35="","",IF($AM$66<$G35,0,IF(SUM($X35:AL35)>=$C35,0,$C35))) ->  | AN35: =IF(V35="","",IF($AN$66<$G35,0,IF(SUM($X35:AM35)>=$C35,0,$C35))) ->  | AO35: =IF(V35="","",IF($AO$66<$G35,0,IF(SUM($X35:AN35)>=$C35,0,$C35))) ->  | AP35: =IF(V35="","",IF($AP$66<$G35,0,IF(SUM($X35:AO35)>=$C35,0,$C35))) ->  | AQ35: =IF(V35="","",IF($AQ$66<$G35,0,IF(SUM($X35:AP35)>=$C35,0,$C35))) ->  | AR35: =IF(V35="","",IF($AR$66<$G35,0,IF(SUM($X35:AQ35)>=$C35,0,$C35))) ->  | AS35: 27
F36: Normal | G36: 0 | I36: Sim | J36: Sim | P36: 0 | Y36: =IF(V36="","",IF($Y$66<$G36,0,IF(SUM($X36:X36)>=$C36,0,$C36))) ->  | Z36: =IF(V36="","",IF($Z$66<$G36,0,IF(SUM($X36:Y36)>=$C36,0,$C36))) ->  | AA36: =IF(V36="","",IF($AA$66<$G36,0,IF(SUM($X36:Z36)>=$C36,0,$C36))) ->  | AB36: =IF(V36="","",IF($AB$66<$G36,0,IF(SUM($X36:AA36)>=$C36,0,$C36))) ->  | AC36: =IF(V36="","",IF($AC$66<$G36,0,IF(SUM($X36:AB36)>=$C36,0,$C36))) ->  | AD36: =IF(V36="","",IF($AD$66<$G36,0,IF(SUM($X36:AC36)>=$C36,0,$C36))) ->  | AE36: =IF(V36="","",IF($AE$66<$G36,0,IF(SUM($X36:AD36)>=$C36,0,$C36))) ->  | AF36: =IF(V36="","",IF($AF$66<$G36,0,IF(SUM($X36:AE36)>=$C36,0,$C36))) ->  | AG36: =IF(V36="","",IF($AG$66<$G36,0,IF(SUM($X36:AF36)>=$C36,0,$C36))) ->  | AH36: =IF(V36="","",IF($AH$66<$G36,0,IF(SUM($X36:AG36)>=$C36,0,$C36))) ->  | AI36: =IF(V36="","",IF($AI$66<$G36,0,IF(SUM($X36:AH36)>=$C36,0,$C36))) ->  | AJ36: =IF(V36="","",IF($AJ$66<$G36,0,IF(SUM($X36:AI36)>=$C36,0,$C36))) ->  | AK36: =IF(V36="","",IF($AK$66<$G36,0,IF(SUM($X36:AJ36)>=$C36,0,$C36))) ->  | AL36: =IF(V36="","",IF($AL$66<$G36,0,IF(SUM($X36:AK36)>=$C36,0,$C36))) ->  | AM36: =IF(V36="","",IF($AM$66<$G36,0,IF(SUM($X36:AL36)>=$C36,0,$C36))) ->  | AN36: =IF(V36="","",IF($AN$66<$G36,0,IF(SUM($X36:AM36)>=$C36,0,$C36))) ->  | AO36: =IF(V36="","",IF($AO$66<$G36,0,IF(SUM($X36:AN36)>=$C36,0,$C36))) ->  | AP36: =IF(V36="","",IF($AP$66<$G36,0,IF(SUM($X36:AO36)>=$C36,0,$C36))) ->  | AQ36: =IF(V36="","",IF($AQ$66<$G36,0,IF(SUM($X36:AP36)>=$C36,0,$C36))) ->  | AR36: =IF(V36="","",IF($AR$66<$G36,0,IF(SUM($X36:AQ36)>=$C36,0,$C36))) ->  | AS36: 28
F37: Normal | G37: 0 | I37: Sim | J37: Sim | P37: 0 | Y37: =IF(V37="","",IF($Y$66<$G37,0,IF(SUM($X37:X37)>=$C37,0,$C37))) ->  | Z37: =IF(V37="","",IF($Z$66<$G37,0,IF(SUM($X37:Y37)>=$C37,0,$C37))) ->  | AA37: =IF(V37="","",IF($AA$66<$G37,0,IF(SUM($X37:Z37)>=$C37,0,$C37))) ->  | AB37: =IF(V37="","",IF($AB$66<$G37,0,IF(SUM($X37:AA37)>=$C37,0,$C37))) ->  | AC37: =IF(V37="","",IF($AC$66<$G37,0,IF(SUM($X37:AB37)>=$C37,0,$C37))) ->  | AD37: =IF(V37="","",IF($AD$66<$G37,0,IF(SUM($X37:AC37)>=$C37,0,$C37))) ->  | AE37: =IF(V37="","",IF($AE$66<$G37,0,IF(SUM($X37:AD37)>=$C37,0,$C37))) ->  | AF37: =IF(V37="","",IF($AF$66<$G37,0,IF(SUM($X37:AE37)>=$C37,0,$C37))) ->  | AG37: =IF(V37="","",IF($AG$66<$G37,0,IF(SUM($X37:AF37)>=$C37,0,$C37))) ->  | AH37: =IF(V37="","",IF($AH$66<$G37,0,IF(SUM($X37:AG37)>=$C37,0,$C37))) ->  | AI37: =IF(V37="","",IF($AI$66<$G37,0,IF(SUM($X37:AH37)>=$C37,0,$C37))) ->  | AJ37: =IF(V37="","",IF($AJ$66<$G37,0,IF(SUM($X37:AI37)>=$C37,0,$C37))) ->  | AK37: =IF(V37="","",IF($AK$66<$G37,0,IF(SUM($X37:AJ37)>=$C37,0,$C37))) ->  | AL37: =IF(V37="","",IF($AL$66<$G37,0,IF(SUM($X37:AK37)>=$C37,0,$C37))) ->  | AM37: =IF(V37="","",IF($AM$66<$G37,0,IF(SUM($X37:AL37)>=$C37,0,$C37))) ->  | AN37: =IF(V37="","",IF($AN$66<$G37,0,IF(SUM($X37:AM37)>=$C37,0,$C37))) ->  | AO37: =IF(V37="","",IF($AO$66<$G37,0,IF(SUM($X37:AN37)>=$C37,0,$C37))) ->  | AP37: =IF(V37="","",IF($AP$66<$G37,0,IF(SUM($X37:AO37)>=$C37,0,$C37))) ->  | AQ37: =IF(V37="","",IF($AQ$66<$G37,0,IF(SUM($X37:AP37)>=$C37,0,$C37))) ->  | AR37: =IF(V37="","",IF($AR$66<$G37,0,IF(SUM($X37:AQ37)>=$C37,0,$C37))) ->  | AS37: 29
F38: Normal | G38: 0 | I38: Sim | J38: Sim | P38: 0 | Y38: =IF(V38="","",IF($Y$66<$G38,0,IF(SUM($X38:X38)>=$C38,0,$C38))) ->  | Z38: =IF(V38="","",IF($Z$66<$G38,0,IF(SUM($X38:Y38)>=$C38,0,$C38))) ->  | AA38: =IF(V38="","",IF($AA$66<$G38,0,IF(SUM($X38:Z38)>=$C38,0,$C38))) ->  | AB38: =IF(V38="","",IF($AB$66<$G38,0,IF(SUM($X38:AA38)>=$C38,0,$C38))) ->  | AC38: =IF(V38="","",IF($AC$66<$G38,0,IF(SUM($X38:AB38)>=$C38,0,$C38))) ->  | AD38: =IF(V38="","",IF($AD$66<$G38,0,IF(SUM($X38:AC38)>=$C38,0,$C38))) ->  | AE38: =IF(V38="","",IF($AE$66<$G38,0,IF(SUM($X38:AD38)>=$C38,0,$C38))) ->  | AF38: =IF(V38="","",IF($AF$66<$G38,0,IF(SUM($X38:AE38)>=$C38,0,$C38))) ->  | AG38: =IF(V38="","",IF($AG$66<$G38,0,IF(SUM($X38:AF38)>=$C38,0,$C38))) ->  | AH38: =IF(V38="","",IF($AH$66<$G38,0,IF(SUM($X38:AG38)>=$C38,0,$C38))) ->  | AI38: =IF(V38="","",IF($AI$66<$G38,0,IF(SUM($X38:AH38)>=$C38,0,$C38))) ->  | AJ38: =IF(V38="","",IF($AJ$66<$G38,0,IF(SUM($X38:AI38)>=$C38,0,$C38))) ->  | AK38: =IF(V38="","",IF($AK$66<$G38,0,IF(SUM($X38:AJ38)>=$C38,0,$C38))) ->  | AL38: =IF(V38="","",IF($AL$66<$G38,0,IF(SUM($X38:AK38)>=$C38,0,$C38))) ->  | AM38: =IF(V38="","",IF($AM$66<$G38,0,IF(SUM($X38:AL38)>=$C38,0,$C38))) ->  | AN38: =IF(V38="","",IF($AN$66<$G38,0,IF(SUM($X38:AM38)>=$C38,0,$C38))) ->  | AO38: =IF(V38="","",IF($AO$66<$G38,0,IF(SUM($X38:AN38)>=$C38,0,$C38))) ->  | AP38: =IF(V38="","",IF($AP$66<$G38,0,IF(SUM($X38:AO38)>=$C38,0,$C38))) ->  | AQ38: =IF(V38="","",IF($AQ$66<$G38,0,IF(SUM($X38:AP38)>=$C38,0,$C38))) ->  | AR38: =IF(V38="","",IF($AR$66<$G38,0,IF(SUM($X38:AQ38)>=$C38,0,$C38))) ->  | AS38: 30
F39: Normal | G39: 0 | I39: Sim | J39: Sim | P39: 0 | Y39: =IF(V39="","",IF($Y$66<$G39,0,IF(SUM($X39:X39)>=$C39,0,$C39))) ->  | Z39: =IF(V39="","",IF($Z$66<$G39,0,IF(SUM($X39:Y39)>=$C39,0,$C39))) ->  | AA39: =IF(V39="","",IF($AA$66<$G39,0,IF(SUM($X39:Z39)>=$C39,0,$C39))) ->  | AB39: =IF(V39="","",IF($AB$66<$G39,0,IF(SUM($X39:AA39)>=$C39,0,$C39))) ->  | AC39: =IF(V39="","",IF($AC$66<$G39,0,IF(SUM($X39:AB39)>=$C39,0,$C39))) ->  | AD39: =IF(V39="","",IF($AD$66<$G39,0,IF(SUM($X39:AC39)>=$C39,0,$C39))) ->  | AE39: =IF(V39="","",IF($AE$66<$G39,0,IF(SUM($X39:AD39)>=$C39,0,$C39))) ->  | AF39: =IF(V39="","",IF($AF$66<$G39,0,IF(SUM($X39:AE39)>=$C39,0,$C39))) ->  | AG39: =IF(V39="","",IF($AG$66<$G39,0,IF(SUM($X39:AF39)>=$C39,0,$C39))) ->  | AH39: =IF(V39="","",IF($AH$66<$G39,0,IF(SUM($X39:AG39)>=$C39,0,$C39))) ->  | AI39: =IF(V39="","",IF($AI$66<$G39,0,IF(SUM($X39:AH39)>=$C39,0,$C39))) ->  | AJ39: =IF(V39="","",IF($AJ$66<$G39,0,IF(SUM($X39:AI39)>=$C39,0,$C39))) ->  | AK39: =IF(V39="","",IF($AK$66<$G39,0,IF(SUM($X39:AJ39)>=$C39,0,$C39))) ->  | AL39: =IF(V39="","",IF($AL$66<$G39,0,IF(SUM($X39:AK39)>=$C39,0,$C39))) ->  | AM39: =IF(V39="","",IF($AM$66<$G39,0,IF(SUM($X39:AL39)>=$C39,0,$C39))) ->  | AN39: =IF(V39="","",IF($AN$66<$G39,0,IF(SUM($X39:AM39)>=$C39,0,$C39))) ->  | AO39: =IF(V39="","",IF($AO$66<$G39,0,IF(SUM($X39:AN39)>=$C39,0,$C39))) ->  | AP39: =IF(V39="","",IF($AP$66<$G39,0,IF(SUM($X39:AO39)>=$C39,0,$C39))) ->  | AQ39: =IF(V39="","",IF($AQ$66<$G39,0,IF(SUM($X39:AP39)>=$C39,0,$C39))) ->  | AR39: =IF(V39="","",IF($AR$66<$G39,0,IF(SUM($X39:AQ39)>=$C39,0,$C39))) ->  | AS39: 31
F40: Normal | G40: 0 | I40: Sim | J40: Sim | P40: 0 | Y40: =IF(V40="","",IF($Y$66<$G40,0,IF(SUM($X40:X40)>=$C40,0,$C40))) ->  | Z40: =IF(V40="","",IF($Z$66<$G40,0,IF(SUM($X40:Y40)>=$C40,0,$C40))) ->  | AA40: =IF(V40="","",IF($AA$66<$G40,0,IF(SUM($X40:Z40)>=$C40,0,$C40))) ->  | AB40: =IF(V40="","",IF($AB$66<$G40,0,IF(SUM($X40:AA40)>=$C40,0,$C40))) ->  | AC40: =IF(V40="","",IF($AC$66<$G40,0,IF(SUM($X40:AB40)>=$C40,0,$C40))) ->  | AD40: =IF(V40="","",IF($AD$66<$G40,0,IF(SUM($X40:AC40)>=$C40,0,$C40))) ->  | AE40: =IF(V40="","",IF($AE$66<$G40,0,IF(SUM($X40:AD40)>=$C40,0,$C40))) ->  | AF40: =IF(V40="","",IF($AF$66<$G40,0,IF(SUM($X40:AE40)>=$C40,0,$C40))) ->  | AG40: =IF(V40="","",IF($AG$66<$G40,0,IF(SUM($X40:AF40)>=$C40,0,$C40))) ->  | AH40: =IF(V40="","",IF($AH$66<$G40,0,IF(SUM($X40:AG40)>=$C40,0,$C40))) ->  | AI40: =IF(V40="","",IF($AI$66<$G40,0,IF(SUM($X40:AH40)>=$C40,0,$C40))) ->  | AJ40: =IF(V40="","",IF($AJ$66<$G40,0,IF(SUM($X40:AI40)>=$C40,0,$C40))) ->  | AK40: =IF(V40="","",IF($AK$66<$G40,0,IF(SUM($X40:AJ40)>=$C40,0,$C40))) ->  | AL40: =IF(V40="","",IF($AL$66<$G40,0,IF(SUM($X40:AK40)>=$C40,0,$C40))) ->  | AM40: =IF(V40="","",IF($AM$66<$G40,0,IF(SUM($X40:AL40)>=$C40,0,$C40))) ->  | AN40: =IF(V40="","",IF($AN$66<$G40,0,IF(SUM($X40:AM40)>=$C40,0,$C40))) ->  | AO40: =IF(V40="","",IF($AO$66<$G40,0,IF(SUM($X40:AN40)>=$C40,0,$C40))) ->  | AP40: =IF(V40="","",IF($AP$66<$G40,0,IF(SUM($X40:AO40)>=$C40,0,$C40))) ->  | AQ40: =IF(V40="","",IF($AQ$66<$G40,0,IF(SUM($X40:AP40)>=$C40,0,$C40))) ->  | AR40: =IF(V40="","",IF($AR$66<$G40,0,IF(SUM($X40:AQ40)>=$C40,0,$C40))) ->  | AS40: 32 | AX40: =IF(OR($AU40="",$H40=""),"",IF($I40="Sim",IF(AX$9-$H40>=0,HLOOKUP(AX$9-$H40,$AW$9:$BQ$59,$AS40,FALSE)+HLOOKUP(AX$9-$H40,$X$9:$AR$59,$AS40,FALSE),0),0)) ->  | BH40: =IF(OR($AU40="",$H40=""),"",IF($I40="Sim",IF(BH$9-$H40>=0,HLOOKUP(BH$9-$H40,$AW$9:$BQ$59,$AS40,FALSE)+HLOOKUP(BH$9-$H40,$X$9:$AR$59,$AS40,FALSE),0),0)) -> 
F41: Normal | G41: 0 | I41: Sim | J41: Sim | P41: 0 | Y41: =IF(V41="","",IF($Y$66<$G41,0,IF(SUM($X41:X41)>=$C41,0,$C41))) ->  | Z41: =IF(V41="","",IF($Z$66<$G41,0,IF(SUM($X41:Y41)>=$C41,0,$C41))) ->  | AA41: =IF(V41="","",IF($AA$66<$G41,0,IF(SUM($X41:Z41)>=$C41,0,$C41))) ->  | AB41: =IF(V41="","",IF($AB$66<$G41,0,IF(SUM($X41:AA41)>=$C41,0,$C41))) ->  | AC41: =IF(V41="","",IF($AC$66<$G41,0,IF(SUM($X41:AB41)>=$C41,0,$C41))) ->  | AD41: =IF(V41="","",IF($AD$66<$G41,0,IF(SUM($X41:AC41)>=$C41,0,$C41))) ->  | AE41: =IF(V41="","",IF($AE$66<$G41,0,IF(SUM($X41:AD41)>=$C41,0,$C41))) ->  | AF41: =IF(V41="","",IF($AF$66<$G41,0,IF(SUM($X41:AE41)>=$C41,0,$C41))) ->  | AG41: =IF(V41="","",IF($AG$66<$G41,0,IF(SUM($X41:AF41)>=$C41,0,$C41))) ->  | AH41: =IF(V41="","",IF($AH$66<$G41,0,IF(SUM($X41:AG41)>=$C41,0,$C41))) ->  | AI41: =IF(V41="","",IF($AI$66<$G41,0,IF(SUM($X41:AH41)>=$C41,0,$C41))) ->  | AJ41: =IF(V41="","",IF($AJ$66<$G41,0,IF(SUM($X41:AI41)>=$C41,0,$C41))) ->  | AK41: =IF(V41="","",IF($AK$66<$G41,0,IF(SUM($X41:AJ41)>=$C41,0,$C41))) ->  | AL41: =IF(V41="","",IF($AL$66<$G41,0,IF(SUM($X41:AK41)>=$C41,0,$C41))) ->  | AM41: =IF(V41="","",IF($AM$66<$G41,0,IF(SUM($X41:AL41)>=$C41,0,$C41))) ->  | AN41: =IF(V41="","",IF($AN$66<$G41,0,IF(SUM($X41:AM41)>=$C41,0,$C41))) ->  | AO41: =IF(V41="","",IF($AO$66<$G41,0,IF(SUM($X41:AN41)>=$C41,0,$C41))) ->  | AP41: =IF(V41="","",IF($AP$66<$G41,0,IF(SUM($X41:AO41)>=$C41,0,$C41))) ->  | AQ41: =IF(V41="","",IF($AQ$66<$G41,0,IF(SUM($X41:AP41)>=$C41,0,$C41))) ->  | AR41: =IF(V41="","",IF($AR$66<$G41,0,IF(SUM($X41:AQ41)>=$C41,0,$C41))) ->  | AS41: 33
F42: Normal | G42: 0 | I42: Sim | J42: Sim | L42: =IF(B42="","",IF(F42="Três turnos",2*(1/N42),IF(F42="Dois turnos",1.5*(1/N42),1/N42))) ->  | M42: =IF(B42="","",ROUNDUP(1/L42,0)) ->  | O42: =IF(B42="","",(100%-K42)/H42) ->  | P42: 0 | V42: =IF($B42="","",$B42) ->  | X42: =IF(V42="","",IF($X$66<G42,0,C42)) ->  | Y42: =IF(V42="","",IF($Y$66<$G42,0,IF(SUM($X42:X42)>=$C42,0,$C42))) ->  | Z42: =IF(V42="","",IF($Z$66<$G42,0,IF(SUM($X42:Y42)>=$C42,0,$C42))) ->  | AA42: =IF(V42="","",IF($AA$66<$G42,0,IF(SUM($X42:Z42)>=$C42,0,$C42))) ->  | AB42: =IF(V42="","",IF($AB$66<$G42,0,IF(SUM($X42:AA42)>=$C42,0,$C42))) ->  | AC42: =IF(V42="","",IF($AC$66<$G42,0,IF(SUM($X42:AB42)>=$C42,0,$C42))) ->  | AD42: =IF(V42="","",IF($AD$66<$G42,0,IF(SUM($X42:AC42)>=$C42,0,$C42))) ->  | AE42: =IF(V42="","",IF($AE$66<$G42,0,IF(SUM($X42:AD42)>=$C42,0,$C42))) ->  | AF42: =IF(V42="","",IF($AF$66<$G42,0,IF(SUM($X42:AE42)>=$C42,0,$C42))) ->  | AG42: =IF(V42="","",IF($AG$66<$G42,0,IF(SUM($X42:AF42)>=$C42,0,$C42))) ->  | AH42: =IF(V42="","",IF($AH$66<$G42,0,IF(SUM($X42:AG42)>=$C42,0,$C42))) ->  | AI42: =IF(V42="","",IF($AI$66<$G42,0,IF(SUM($X42:AH42)>=$C42,0,$C42))) ->  | AJ42: =IF(V42="","",IF($AJ$66<$G42,0,IF(SUM($X42:AI42)>=$C42,0,$C42))) ->  | AK42: =IF(V42="","",IF($AK$66<$G42,0,IF(SUM($X42:AJ42)>=$C42,0,$C42))) ->  | AL42: =IF(V42="","",IF($AL$66<$G42,0,IF(SUM($X42:AK42)>=$C42,0,$C42))) ->  | AM42: =IF(V42="","",IF($AM$66<$G42,0,IF(SUM($X42:AL42)>=$C42,0,$C42))) ->  | AN42: =IF(V42="","",IF($AN$66<$G42,0,IF(SUM($X42:AM42)>=$C42,0,$C42))) ->  | AO42: =IF(V42="","",IF($AO$66<$G42,0,IF(SUM($X42:AN42)>=$C42,0,$C42))) ->  | AP42: =IF(V42="","",IF($AP$66<$G42,0,IF(SUM($X42:AO42)>=$C42,0,$C42))) ->  | AQ42: =IF(V42="","",IF($AQ$66<$G42,0,IF(SUM($X42:AP42)>=$C42,0,$C42))) ->  | AR42: =IF(V42="","",IF($AR$66<$G42,0,IF(SUM($X42:AQ42)>=$C42,0,$C42))) ->  | AS42: 34 | AU42: =IF($B42="","",$B42) ->  | BS42: =IF($B42="","",$B42) ->  | BU42: =IF($BS42="","",SUM(X42,AW42)) ->  | BV42: =IF($BS42="","",SUM(Y42,AX42)) ->  | BW42: =IF($BS42="","",SUM(Z42,AY42)) ->  | BX42: =IF($BS42="","",SUM(AA42,AZ42)) ->  | BY42: =IF($BS42="","",SUM(AB42,BA42)) ->  | BZ42: =IF($BS42="","",SUM(AC42,BB42)) ->  | CA42: =IF($BS42="","",SUM(AD42,BC42)) ->  | CB42: =IF($BS42="","",SUM(AE42,BD42)) ->  | CC42: =IF($BS42="","",SUM(AF42,BE42)) ->  | CD42: =IF($BS42="","",SUM(AG42,BF42)) ->  | CE42: =IF($BS42="","",SUM(AH42,BG42)) ->  | CF42: =IF($BS42="","",SUM(AI42,BH42)) ->  | CG42: =IF($BS42="","",SUM(AJ42,BI42)) ->  | CH42: =IF($BS42="","",SUM(AK42,BJ42)) ->  | CI42: =IF($BS42="","",SUM(AL42,BK42)) ->  | CJ42: =IF($BS42="","",SUM(AM42,BL42)) ->  | CK42: =IF($BS42="","",SUM(AN42,BM42)) ->  | CL42: =IF($BS42="","",SUM(AO42,BN42)) ->  | CM42: =IF($BS42="","",SUM(AP42,BO42)) ->  | CN42: =IF($BS42="","",SUM(AQ42,BP42)) ->  | CO42: =IF($BS42="","",SUM(AR42,BQ42)) ->  | CQ42: =""&$B42 ->  | CR42: =IF(CQ42="","",E42) ->  | CT42: =IF($CQ42="","",$CR42*BU42) ->  | CU42: =IF($CQ42="","",$CR42*BV42) ->  | CV42: =IF($CQ42="","",$CR42*BW42) ->  | CW42: =IF($CQ42="","",$CR42*BX42) ->  | CX42: =IF($CQ42="","",$CR42*BY42) ->  | CY42: =IF($CQ42="","",$CR42*BZ42) ->  | CZ42: =IF($CQ42="","",$CR42*CA42) ->  | DA42: =IF($CQ42="","",$CR42*CB42) ->  | DB42: =IF($CQ42="","",$CR42*CC42) ->  | DC42: =IF($CQ42="","",$CR42*CD42) ->  | DD42: =IF($CQ42="","",$CR42*CE42) ->  | DE42: =IF($CQ42="","",$CR42*CF42) ->  | DF42: =IF($CQ42="","",$CR42*CG42) ->  | DG42: =IF($CQ42="","",$CR42*CH42) ->  | DH42: =IF($CQ42="","",$CR42*CI42) ->  | DI42: =IF($CQ42="","",$CR42*CJ42) ->  | DJ42: =IF($CQ42="","",$CR42*CK42) ->  | DK42: =IF($CQ42="","",$CR42*CL42) ->  | DL42: =IF($CQ42="","",$CR42*CM42) ->  | DM42: =IF($CQ42="","",$CR42*CN42) ->  | DN42: =IF($CQ42="","",$CR42*CO42) ->  | DP42: =""&$B42 ->  | DT42: =IF($DP42="","",IF(($DS$66+$DR42)>DS$66,$CT42*$DQ42,0)) ->  | DU42: =IF($DP42="","",IF($DP42="","",IF(($DS$66+$DR42)>DT$66,$CT42*$DQ42,0)+IF(($DT$66+$DR42)>DT$66,$CU42*$DQ42,0))) ->  | DV42: =IF($DP42="","",IF($DP42="","",IF(($DS$66+$DR42)>DU$66,$CT42*$DQ42,0)+IF(($DT$66+$DR42)>DU$66,$CU42*$DQ42,0)+IF(($DU$66+$DR42)>DU$66,$CV42*$DQ42,0))) ->  | DW42: =IF($DP42="","",IF($DP42="","",IF(($DS$66+$DR42)>DV$66,$CT42*$DQ42,0)+IF(($DT$66+$DR42)>DV$66,$CU42*$DQ42,0)+IF(($DU$66+$DR42)>DV$66,$CV42*$DQ42,0)+IF(($DV$66+$DR42)>DV$66,$CW42*$DQ42,0))) ->  | DX42: =IF($DP42="","",IF($DP42="","",IF(($DS$66+$DR42)>DW$66,$CT42*$DQ42,0)+IF(($DT$66+$DR42)>DW$66,$CU42*$DQ42,0)+IF(($DU$66+$DR42)>DW$66,$CV42*$DQ42,0)+IF(($DV$66+$DR42)>DW$66,$CW42*$DQ42,0)+IF(($DW$66+$DR42)>DW$66,$CX42*$DQ42,0))) ->  | DY42: =IF($DP42="","",IF(($DS$66+$DR42)>DX$66,$CT42*$DQ42,0)+IF(($DT$66+$DR42)>DX$66,$CU42*$DQ42,0)+IF(($DU$66+$DR42)>DX$66,$CV42*$DQ42,0)+IF(($DV$66+$DR42)>DX$66,$CW42*$DQ42,0)+IF(($DW$66+$DR42)>DX$66,$CX42*$DQ42,0)+IF(($DX$66+$DR42)>DX$66,$CY42*$DQ42,0)) ->  | DZ42: =IF($DP42="","",IF($DP42="","",IF(($DS$66+$DR42)>DY$66,$CT42*$DQ42,0)+IF(($DT$66+$DR42)>DY$66,$CU42*$DQ42,0)+IF(($DU$66+$DR42)>DY$66,$CV42*$DQ42,0)+IF(($DV$66+$DR42)>DY$66,$CW42*$DQ42,0)+IF(($DW$66+$DR42)>DY$66,$CX42*$DQ42,0)+IF(($DX$66+$DR42)>DY$66,$CY42*$DQ42,0)+IF(($DY$66+$DR42)>DY$66,$CZ42*$DQ42,0))) ->  | EA42: =IF($DP42="","",IF($DP42="","",IF(($DS$66+$DR42)>DZ$66,$CT42*$DQ42,0)+IF(($DT$66+$DR42)>DZ$66,$CU42*$DQ42,0)+IF(($DU$66+$DR42)>DZ$66,$CV42*$DQ42,0)+IF(($DV$66+$DR42)>DZ$66,$CW42*$DQ42,0)+IF(($DW$66+$DR42)>DZ$66,$CX42*$DQ42,0)+IF(($DX$66+$DR42)>DZ$66,$CY42*$DQ42,0)+IF(($DY$66+$DR42)>DZ$66,$CZ42*$DQ42,0)+IF(($DZ$66+$DR42)>DZ$66,$DA42*$DQ42,0))) ->  | EB42: =IF($DP42="","",IF($DP42="","",IF(($DS$66+$DR42)>EA$66,$CT42*$DQ42,0)+IF(($DT$66+$DR42)>EA$66,$CU42*$DQ42,0)+IF(($DU$66+$DR42)>EA$66,$CV42*$DQ42,0)+IF(($DV$66+$DR42)>EA$66,$CW42*$DQ42,0)+IF(($DW$66+$DR42)>EA$66,$CX42*$DQ42,0)+IF(($DX$66+$DR42)>EA$66,$CY42*$DQ42,0)+IF(($DY$66+$DR42)>EA$66,$CZ42*$DQ42,0)+IF(($DZ$66+$DR42)>EA$66,$DA42*$DQ42,0)+IF(($EA$66+$DR42)>EA$66,$DB42*$DQ42,0))) ->  | EC42: =IF($DP42="","",IF($DP42="","",IF(($DS$66+$DR42)>EB$66,$CT42*$DQ42,0)+IF(($DT$66+$DR42)>EB$66,$CU42*$DQ42,0)+IF(($DU$66+$DR42)>EB$66,$CV42*$DQ42,0)+IF(($DV$66+$DR42)>EB$66,$CW42*$DQ42,0)+IF(($DW$66+$DR42)>EB$66,$CX42*$DQ42,0)+IF(($DX$66+$DR42)>EB$66,$CY42*$DQ42,0)+IF(($DY$66+$DR42)>EB$66,$CZ42*$DQ42,0)+IF(($DZ$66+$DR42)>EB$66,$DA42*$DQ42,0)+IF(($EA$66+$DR42)>EB$66,$DB42*$DQ42,0)+IF(($EB$66+$DR42)>EB$66,$DC42*$DQ42,0))) ->  | ED42: =IF($DP42="","",IF($DP42="","",IF(($DS$66+$DR42)>EC$66,$CT42*$DQ42,0)+IF(($DT$66+$DR42)>EC$66,$CU42*$DQ42,0)+IF(($DU$66+$DR42)>EC$66,$CV42*$DQ42,0)+IF(($DV$66+$DR42)>EC$66,$CW42*$DQ42,0)+IF(($DW$66+$DR42)>EC$66,$CX42*$DQ42,0)+IF(($DX$66+$DR42)>EC$66,$CY42*$DQ42,0)+IF(($DY$66+$DR42)>EC$66,$CZ42*$DQ42,0)+IF(($DZ$66+$DR42)>EC$66,$DA42*$DQ42,0)+IF(($EA$66+$DR42)>EC$66,$DB42*$DQ42,0)+IF(($EB$66+$DR42)>EC$66,$DC42*$DQ42,0)+IF(($EC$66+$DR42)>EC$66,$DD42*$DQ42,0))) ->  | EE42: =IF($DP42="","",IF($DP42="","",IF(($DS$66+$DR42)>ED$66,$CT42*$DQ42,0)+IF(($DT$66+$DR42)>ED$66,$CU42*$DQ42,0)+IF(($DU$66+$DR42)>ED$66,$CV42*$DQ42,0)+IF(($DV$66+$DR42)>ED$66,$CW42*$DQ42,0)+IF(($DW$66+$DR42)>ED$66,$CX42*$DQ42,0)+IF(($DX$66+$DR42)>ED$66,$CY42*$DQ42,0)+IF(($DY$66+$DR42)>ED$66,$CZ42*$DQ42,0)+IF(($DZ$66+$DR42)>ED$66,$DA42*$DQ42,0)+IF(($EA$66+$DR42)>ED$66,$DB42*$DQ42,0)+IF(($EB$66+$DR42)>ED$66,$DC42*$DQ42,0)+IF(($EC$66+$DR42)>ED$66,$DD42*$DQ42,0)+IF(($ED$66+$DR42)>ED$66,$DE42*$DQ42,0))) ->  | EF42: =IF($DP42="","",IF($DP42="","",IF(($DS$66+$DR42)>EE$66,$CT42*$DQ42,0)+IF(($DT$66+$DR42)>EE$66,$CU42*$DQ42,0)+IF(($DU$66+$DR42)>EE$66,$CV42*$DQ42,0)+IF(($DV$66+$DR42)>EE$66,$CW42*$DQ42,0)+IF(($DW$66+$DR42)>EE$66,$CX42*$DQ42,0)+IF(($DX$66+$DR42)>EE$66,$CY42*$DQ42,0)+IF(($DY$66+$DR42)>EE$66,$CZ42*$DQ42,0)+IF(($DZ$66+$DR42)>EE$66,$DA42*$DQ42,0)+IF(($EA$66+$DR42)>EE$66,$DB42*$DQ42,0)+IF(($EB$66+$DR42)>EE$66,$DC42*$DQ42,0)+IF(($EC$66+$DR42)>EE$66,$DD42*$DQ42,0)+IF(($ED$66+$DR42)>EE$66,$DE42*$DQ42,0)+IF(($EE$66+$DR42)>EE$66,$DF42*$DQ42,0))) ->  | EG42: =IF($DP42="","",IF($DP42="","",IF(($DS$66+$DR42)>EF$66,$CT42*$DQ42,0)+IF(($DT$66+$DR42)>EF$66,$CU42*$DQ42,0)+IF(($DU$66+$DR42)>EF$66,$CV42*$DQ42,0)+IF(($DV$66+$DR42)>EF$66,$CW42*$DQ42,0)+IF(($DW$66+$DR42)>EF$66,$CX42*$DQ42,0)+IF(($DX$66+$DR42)>EF$66,$CY42*$DQ42,0)+IF(($DY$66+$DR42)>EF$66,$CZ42*$DQ42,0)+IF(($DZ$66+$DR42)>EF$66,$DA42*$DQ42,0)+IF(($EA$66+$DR42)>EF$66,$DB42*$DQ42,0)+IF(($EB$66+$DR42)>EF$66,$DC42*$DQ42,0)+IF(($EC$66+$DR42)>EF$66,$DD42*$DQ42,0)+IF(($ED$66+$DR42)>EF$66,$DE42*$DQ42,0)+IF(($EE$66+$DR42)>EF$66,$DF42*$DQ42,0)+IF(($EF$66+$DR42)>EF$66,$DG42*$DQ42,0))) ->  | EH42: =IF($DP42="","",IF($DP42="","",IF(($DS$66+$DR42)>EG$66,$CT42*$DQ42,0)+IF(($DT$66+$DR42)>EG$66,$CU42*$DQ42,0)+IF(($DU$66+$DR42)>EG$66,$CV42*$DQ42,0)+IF(($DV$66+$DR42)>EG$66,$CW42*$DQ42,0)+IF(($DW$66+$DR42)>EG$66,$CX42*$DQ42,0)+IF(($DX$66+$DR42)>EG$66,$CY42*$DQ42,0)+IF(($DY$66+$DR42)>EG$66,$CZ42*$DQ42,0)+IF(($DZ$66+$DR42)>EG$66,$DA42*$DQ42,0)+IF(($EA$66+$DR42)>EG$66,$DB42*$DQ42,0)+IF(($EB$66+$DR42)>EG$66,$DC42*$DQ42,0)+IF(($EC$66+$DR42)>EG$66,$DD42*$DQ42,0)+IF(($ED$66+$DR42)>EG$66,$DE42*$DQ42,0)+IF(($EE$66+$DR42)>EG$66,$DF42*$DQ42,0)+IF(($EF$66+$DR42)>EG$66,$DG42*$DQ42,0)+IF(($EG$66+$DR42)>EG$66,$DH42*$DQ42,0))) ->  | EI42: =IF($DP42="","",IF($DP42="","",IF(($DS$66+$DR42)>EH$66,$CT42*$DQ42,0)+IF(($DT$66+$DR42)>EH$66,$CU42*$DQ42,0)+IF(($DU$66+$DR42)>EH$66,$CV42*$DQ42,0)+IF(($DV$66+$DR42)>EH$66,$CW42*$DQ42,0)+IF(($DW$66+$DR42)>EH$66,$CX42*$DQ42,0)+IF(($DX$66+$DR42)>EH$66,$CY42*$DQ42,0)+IF(($DY$66+$DR42)>EH$66,$CZ42*$DQ42,0)+IF(($DZ$66+$DR42)>EH$66,$DA42*$DQ42,0)+IF(($EA$66+$DR42)>EH$66,$DB42*$DQ42,0)+IF(($EB$66+$DR42)>EH$66,$DC42*$DQ42,0)+IF(($EC$66+$DR42)>EH$66,$DD42*$DQ42,0)+IF(($ED$66+$DR42)>EH$66,$DE42*$DQ42,0)+IF(($EE$66+$DR42)>EH$66,$DF42*$DQ42,0)+IF(($EF$66+$DR42)>EH$66,$DG42*$DQ42,0)+IF(($EG$66+$DR42)>EH$66,$DH42*$DQ42,0)+IF(($EH$66+$DR42)>EH$66,$DI42*$DQ42,0))) ->  | EJ42: =IF($DP42="","",IF($DP42="","",IF(($DS$66+$DR42)>EI$66,$CT42*$DQ42,0)+IF(($DT$66+$DR42)>EI$66,$CU42*$DQ42,0)+IF(($DU$66+$DR42)>EI$66,$CV42*$DQ42,0)+IF(($DV$66+$DR42)>EI$66,$CW42*$DQ42,0)+IF(($DW$66+$DR42)>EI$66,$CX42*$DQ42,0)+IF(($DX$66+$DR42)>EI$66,$CY42*$DQ42,0)+IF(($DY$66+$DR42)>EI$66,$CZ42*$DQ42,0)+IF(($DZ$66+$DR42)>EI$66,$DA42*$DQ42,0)+IF(($EA$66+$DR42)>EI$66,$DB42*$DQ42,0)+IF(($EB$66+$DR42)>EI$66,$DC42*$DQ42,0)+IF(($EC$66+$DR42)>EI$66,$DD42*$DQ42,0)+IF(($ED$66+$DR42)>EI$66,$DE42*$DQ42,0)+IF(($EE$66+$DR42)>EI$66,$DF42*$DQ42,0)+IF(($EF$66+$DR42)>EI$66,$DG42*$DQ42,0)+IF(($EG$66+$DR42)>EI$66,$DH42*$DQ42,0)+IF(($EH$66+$DR42)>EI$66,$DI42*$DQ42,0)+IF(($EI$66+$DR42)>EI$66,$DJ42*$DQ42,0))) ->  | EK42: =IF($DP42="","",IF($DP42="","",IF(($DS$66+$DR42)>EJ$66,$CT42*$DQ42,0)+IF(($DT$66+$DR42)>EJ$66,$CU42*$DQ42,0)+IF(($DU$66+$DR42)>EJ$66,$CV42*$DQ42,0)+IF(($DV$66+$DR42)>EJ$66,$CW42*$DQ42,0)+IF(($DW$66+$DR42)>EJ$66,$CX42*$DQ42,0)+IF(($DX$66+$DR42)>EJ$66,$CY42*$DQ42,0)+IF(($DY$66+$DR42)>EJ$66,$CZ42*$DQ42,0)+IF(($DZ$66+$DR42)>EJ$66,$DA42*$DQ42,0)+IF(($EA$66+$DR42)>EJ$66,$DB42*$DQ42,0)+IF(($EB$66+$DR42)>EJ$66,$DC42*$DQ42,0)+IF(($EC$66+$DR42)>EJ$66,$DD42*$DQ42,0)+IF(($ED$66+$DR42)>EJ$66,$DE42*$DQ42,0)+IF(($EE$66+$DR42)>EJ$66,$DF42*$DQ42,0)+IF(($EF$66+$DR42)>EJ$66,$DG42*$DQ42,0)+IF(($EG$66+$DR42)>EJ$66,$DH42*$DQ42,0)+IF(($EH$66+$DR42)>EJ$66,$DI42*$DQ42,0)+IF(($EI$66+$DR42)>EJ$66,$DJ42*$DQ42,0)+IF(($EJ$66+$DR42)>EJ$66,$DK42*$DQ42,0))) ->  | EL42: =IF($DP42="","",IF($DP42="","",IF(($DS$66+$DR42)>EK$66,$CT42*$DQ42,0)+IF(($DT$66+$DR42)>EK$66,$CU42*$DQ42,0)+IF(($DU$66+$DR42)>EK$66,$CV42*$DQ42,0)+IF(($DV$66+$DR42)>EK$66,$CW42*$DQ42,0)+IF(($DW$66+$DR42)>EK$66,$CX42*$DQ42,0)+IF(($DX$66+$DR42)>EK$66,$CY42*$DQ42,0)+IF(($DY$66+$DR42)>EK$66,$CZ42*$DQ42,0)+IF(($DZ$66+$DR42)>EK$66,$DA42*$DQ42,0)+IF(($EA$66+$DR42)>EK$66,$DB42*$DQ42,0)+IF(($EB$66+$DR42)>EK$66,$DC42*$DQ42,0)+IF(($EC$66+$DR42)>EK$66,$DD42*$DQ42,0)+IF(($ED$66+$DR42)>EK$66,$DE42*$DQ42,0)+IF(($EE$66+$DR42)>EK$66,$DF42*$DQ42,0)+IF(($EF$66+$DR42)>EK$66,$DG42*$DQ42,0)+IF(($EG$66+$DR42)>EK$66,$DH42*$DQ42,0)+IF(($EH$66+$DR42)>EK$66,$DI42*$DQ42,0)+IF(($EI$66+$DR42)>EK$66,$DJ42*$DQ42,0)+IF(($EJ$66+$DR42)>EK$66,$DK42*$DQ42,0)+IF(($EK$66+$DR42)>EK$66,$DL42*$DQ42,0))) ->  | EM42: =IF($DP42="","",IF($DP42="","",IF(($DS$66+$DR42)>EL$66,$CT42*$DQ42,0)+IF(($DT$66+$DR42)>EL$66,$CU42*$DQ42,0)+IF(($DU$66+$DR42)>EL$66,$CV42*$DQ42,0)+IF(($DV$66+$DR42)>EL$66,$CW42*$DQ42,0)+IF(($DW$66+$DR42)>EL$66,$CX42*$DQ42,0)+IF(($DX$66+$DR42)>EL$66,$CY42*$DQ42,0)+IF(($DY$66+$DR42)>EL$66,$CZ42*$DQ42,0)+IF(($DZ$66+$DR42)>EL$66,$DA42*$DQ42,0)+IF(($EA$66+$DR42)>EL$66,$DB42*$DQ42,0)+IF(($EB$66+$DR42)>EL$66,$DC42*$DQ42,0)+IF(($EC$66+$DR42)>EL$66,$DD42*$DQ42,0)+IF(($ED$66+$DR42)>EL$66,$DE42*$DQ42,0)+IF(($EE$66+$DR42)>EL$66,$DF42*$DQ42,0)+IF(($EF$66+$DR42)>EL$66,$DG42*$DQ42,0)+IF(($EG$66+$DR42)>EL$66,$DH42*$DQ42,0)+IF(($EH$66+$DR42)>EL$66,$DI42*$DQ42,0)+IF(($EI$66+$DR42)>EL$66,$DJ42*$DQ42,0)+IF(($EJ$66+$DR42)>EL$66,$DK42*$DQ42,0)+IF(($EK$66+$DR42)>EL$66,$DL42*$DQ42,0)+IF(($EM$66+$DR42)>EL$66,$DM42*$DQ42,0))) ->  | EO42: =IF($B42="","",$B42) ->  | ER42: =IF($EO42="","",AX42*$E42*$K42) ->  | ES42: =IF($EO42="","",AY42*$E42*$K42) ->  | ET42: =IF($EO42="","",AZ42*$E42*$K42) ->  | EU42: =IF($EO42="","",BA42*$E42*$K42) ->  | EV42: =IF($EO42="","",BB42*$E42*$K42) ->  | EW42: =IF($EO42="","",BC42*$E42*$K42) ->  | EX42: =IF($EO42="","",BD42*$E42*$K42) ->  | EY42: =IF($EO42="","",BE42*$E42*$K42) ->  | EZ42: =IF($EO42="","",BF42*$E42*$K42) ->  | FA42: =IF($EO42="","",BG42*$E42*$K42) ->  | FB42: =IF($EO42="","",BH42*$E42*$K42) ->  | FC42: =IF($EO42="","",BI42*$E42*$K42) ->  | FD42: =IF($EO42="","",BJ42*$E42*$K42) ->  | FE42: =IF($EO42="","",BK42*$E42*$K42) ->  | FF42: =IF($EO42="","",BL42*$E42*$K42) ->  | FG42: =IF($EO42="","",BM42*$E42*$K42) ->  | FH42: =IF($EO42="","",BN42*$E42*$K42) ->  | FI42: =IF($EO42="","",BO42*$E42*$K42) ->  | FJ42: =IF($EO42="","",BP42*$E42*$K42) ->  | FK42: =IF($EO42="","",BQ42*$E42*$K42) ->  | FM42: =""&$B42 ->  | FN42: =IF($FM42="","",IF($J42="Sim",$O42,0)) ->  | FO42: =IF(H42="","",H42) ->  | FQ42: =IF($FM42="","",IF(($FP$66+$FO42)>FP$66,$CT42*$FN42,0)) ->  | FR42: =IF($FM42="","",IF(($FP$66+$FO42)>FQ$66,$CT42*$FN42,0)+IF(($FQ$66+$FO42)>FQ$66,$CU42*$FN42,0)) ->  | FS42: =IF($FM42="","",IF(($FP$66+$FO42)>FR$66,$CT42*$FN42,0)+IF(($FQ$66+$FO42)>FR$66,$CU42*$FN42,0)+IF(($FR$66+$FO42)>FR$66,$CV42*$FN42,0)) ->  | FT42: =IF($FM42="","",IF(($FP$66+$FO42)>FS$66,$CT42*$FN42,0)+IF(($FQ$66+$FO42)>FS$66,$CU42*$FN42,0)+IF(($FR$66+$FO42)>FS$66,$CV42*$FN42,0)+IF(($FS$66+$FO42)>FS$66,$CW42*$FN42,0)) ->  | FU42: =IF($FM42="","",IF(($FP$66+$FO42)>FT$66,$CT42*$FN42,0)+IF(($FQ$66+$FO42)>FT$66,$CU42*$FN42,0)+IF(($FR$66+$FO42)>FT$66,$CV42*$FN42,0)+IF(($FS$66+$FO42)>FT$66,$CW42*$FN42,0)+IF(($FT$66+$FO42)>FT$66,$CX42*$FN42,0)) ->  | FV42: =IF($FM42="","",IF(($FP$66+$FO42)>FU$66,$CT42*$FN42,0)+IF(($FQ$66+$FO42)>FU$66,$CU42*$FN42,0)+IF(($FR$66+$FO42)>FU$66,$CV42*$FN42,0)+IF(($FS$66+$FO42)>FU$66,$CW42*$FN42,0)+IF(($FT$66+$FO42)>FU$66,$CX42*$FN42,0)+IF(($FU$66+$FO42)>FU$66,$CY42*$FN42,0)) ->  | FW42: =IF($FM42="","",IF(($FP$66+$FO42)>FV$66,$CT42*$FN42,0)+IF(($FQ$66+$FO42)>FV$66,$CU42*$FN42,0)+IF(($FR$66+$FO42)>FV$66,$CV42*$FN42,0)+IF(($FS$66+$FO42)>FV$66,$CW42*$FN42,0)+IF(($FT$66+$FO42)>FV$66,$CX42*$FN42,0)+IF(($FU$66+$FO42)>FV$66,$CY42*$FN42,0)+IF(($FV$66+$FO42)>FV$66,$CZ42*$FN42,0)) ->  | FX42: =IF($FM42="","",IF(($FP$66+$FO42)>FW$66,$CT42*$FN42,0)+IF(($FQ$66+$FO42)>FW$66,$CU42*$FN42,0)+IF(($FR$66+$FO42)>FW$66,$CV42*$FN42,0)+IF(($FS$66+$FO42)>FW$66,$CW42*$FN42,0)+IF(($FT$66+$FO42)>FW$66,$CX42*$FN42,0)+IF(($FU$66+$FO42)>FW$66,$CY42*$FN42,0)+IF(($FV$66+$FO42)>FW$66,$CZ42*$FN42,0)+IF(($FW$66+$FO42)>FW$66,$DA42*$FN42,0)) ->  | FY42: =IF($FM42="","",IF(($FP$66+$FO42)>FX$66,$CT42*$FN42,0)+IF(($FQ$66+$FO42)>FX$66,$CU42*$FN42,0)+IF(($FR$66+$FO42)>FX$66,$CV42*$FN42,0)+IF(($FS$66+$FO42)>FX$66,$CW42*$FN42,0)+IF(($FT$66+$FO42)>FX$66,$CX42*$FN42,0)+IF(($FU$66+$FO42)>FX$66,$CY42*$FN42,0)+IF(($FV$66+$FO42)>FX$66,$CZ42*$FN42,0)+IF(($FW$66+$FO42)>FX$66,$DA42*$FN42,0)+IF(($FX$66+$FO42)>FX$66,$DB42*$FN42,0)) ->  | FZ42: =IF($FM42="","",IF(($FP$66+$FO42)>FY$66,$CT42*$FN42,0)+IF(($FQ$66+$FO42)>FY$66,$CU42*$FN42,0)+IF(($FR$66+$FO42)>FY$66,$CV42*$FN42,0)+IF(($FS$66+$FO42)>FY$66,$CW42*$FN42,0)+IF(($FT$66+$FO42)>FY$66,$CX42*$FN42,0)+IF(($FU$66+$FO42)>FY$66,$CY42*$FN42,0)+IF(($FV$66+$FO42)>FY$66,$CZ42*$FN42,0)+IF(($FW$66+$FO42)>FY$66,$DA42*$FN42,0)+IF(($FX$66+$FO42)>FY$66,$DB42*$FN42,0)+IF(($FY$66+$FO42)>FY$66,$DC42*$FN42,0)) ->  | GA42: =IF($FM42="","",IF(($FP$66+$FO42)>FZ$66,$CT42*$FN42,0)+IF(($FQ$66+$FO42)>FZ$66,$CU42*$FN42,0)+IF(($FR$66+$FO42)>FZ$66,$CV42*$FN42,0)+IF(($FS$66+$FO42)>FZ$66,$CW42*$FN42,0)+IF(($FT$66+$FO42)>FZ$66,$CX42*$FN42,0)+IF(($FU$66+$FO42)>FZ$66,$CY42*$FN42,0)+IF(($FV$66+$FO42)>FZ$66,$CZ42*$FN42,0)+IF(($FW$66+$FO42)>FZ$66,$DA42*$FN42,0)+IF(($FX$66+$FO42)>FZ$66,$DB42*$FN42,0)+IF(($FY$66+$FO42)>FZ$66,$DC42*$FN42,0)+IF(($FZ$66+$FO42)>FZ$66,$DD42*$FN42,0)) ->  | GB42: =IF($FM42="","",IF(($FP$66+$FO42)>GA$66,$CT42*$FN42,0)+IF(($FQ$66+$FO42)>GA$66,$CU42*$FN42,0)+IF(($FR$66+$FO42)>GA$66,$CV42*$FN42,0)+IF(($FS$66+$FO42)>GA$66,$CW42*$FN42,0)+IF(($FT$66+$FO42)>GA$66,$CX42*$FN42,0)+IF(($FU$66+$FO42)>GA$66,$CY42*$FN42,0)+IF(($FV$66+$FO42)>GA$66,$CZ42*$FN42,0)+IF(($FW$66+$FO42)>GA$66,$DA42*$FN42,0)+IF(($FX$66+$FO42)>GA$66,$DB42*$FN42,0)+IF(($FY$66+$FO42)>GA$66,$DC42*$FN42,0)+IF(($FZ$66+$FO42)>GA$66,$DD42*$FN42,0)+IF(($GA$66+$FO42)>GA$66,$DE42*$FN42,0)) ->  | GC42: =IF($FM42="","",IF(($FP$66+$FO42)>GB$66,$CT42*$FN42,0)+IF(($FQ$66+$FO42)>GB$66,$CU42*$FN42,0)+IF(($FR$66+$FO42)>GB$66,$CV42*$FN42,0)+IF(($FS$66+$FO42)>GB$66,$CW42*$FN42,0)+IF(($FT$66+$FO42)>GB$66,$CX42*$FN42,0)+IF(($FU$66+$FO42)>GB$66,$CY42*$FN42,0)+IF(($FV$66+$FO42)>GB$66,$CZ42*$FN42,0)+IF(($FW$66+$FO42)>GB$66,$DA42*$FN42,0)+IF(($FX$66+$FO42)>GB$66,$DB42*$FN42,0)+IF(($FY$66+$FO42)>GB$66,$DC42*$FN42,0)+IF(($FZ$66+$FO42)>GB$66,$DD42*$FN42,0)+IF(($GA$66+$FO42)>GB$66,$DE42*$FN42,0)+IF(($GB$66+$FO42)>GB$66,$DF42*$FN42,0)) ->  | GD42: =IF($FM42="","",IF(($FP$66+$FO42)>GC$66,$CT42*$FN42,0)+IF(($FQ$66+$FO42)>GC$66,$CU42*$FN42,0)+IF(($FR$66+$FO42)>GC$66,$CV42*$FN42,0)+IF(($FS$66+$FO42)>GC$66,$CW42*$FN42,0)+IF(($FT$66+$FO42)>GC$66,$CX42*$FN42,0)+IF(($FU$66+$FO42)>GC$66,$CY42*$FN42,0)+IF(($FV$66+$FO42)>GC$66,$CZ42*$FN42,0)+IF(($FW$66+$FO42)>GC$66,$DA42*$FN42,0)+IF(($FX$66+$FO42)>GC$66,$DB42*$FN42,0)+IF(($FY$66+$FO42)>GC$66,$DC42*$FN42,0)+IF(($FZ$66+$FO42)>GC$66,$DD42*$FN42,0)+IF(($GA$66+$FO42)>GC$66,$DE42*$FN42,0)+IF(($GB$66+$FO42)>GC$66,$DF42*$FN42,0)+IF(($GC$66+$FO42)>GC$66,$DG42*$FN42,0)) ->  | GE42: =IF($FM42="","",IF(($FP$66+$FO42)>GD$66,$CT42*$FN42,0)+IF(($FQ$66+$FO42)>GD$66,$CU42*$FN42,0)+IF(($FR$66+$FO42)>GD$66,$CV42*$FN42,0)+IF(($FS$66+$FO42)>GD$66,$CW42*$FN42,0)+IF(($FT$66+$FO42)>GD$66,$CX42*$FN42,0)+IF(($FU$66+$FO42)>GD$66,$CY42*$FN42,0)+IF(($FV$66+$FO42)>GD$66,$CZ42*$FN42,0)+IF(($FW$66+$FO42)>GD$66,$DA42*$FN42,0)+IF(($FX$66+$FO42)>GD$66,$DB42*$FN42,0)+IF(($FY$66+$FO42)>GD$66,$DC42*$FN42,0)+IF(($FZ$66+$FO42)>GD$66,$DD42*$FN42,0)+IF(($GA$66+$FO42)>GD$66,$DE42*$FN42,0)+IF(($GB$66+$FO42)>GD$66,$DF42*$FN42,0)+IF(($GC$66+$FO42)>GD$66,$DG42*$FN42,0)+IF(($GD$66+$FO42)>GD$66,$DH42*$FN42,0)) ->  | GF42: =IF($FM42="","",IF(($FP$66+$FO42)>GE$66,$CT42*$FN42,0)+IF(($FQ$66+$FO42)>GE$66,$CU42*$FN42,0)+IF(($FR$66+$FO42)>GE$66,$CV42*$FN42,0)+IF(($FS$66+$FO42)>GE$66,$CW42*$FN42,0)+IF(($FT$66+$FO42)>GE$66,$CX42*$FN42,0)+IF(($FU$66+$FO42)>GE$66,$CY42*$FN42,0)+IF(($FV$66+$FO42)>GE$66,$CZ42*$FN42,0)+IF(($FW$66+$FO42)>GE$66,$DA42*$FN42,0)+IF(($FX$66+$FO42)>GE$66,$DB42*$FN42,0)+IF(($FY$66+$FO42)>GE$66,$DC42*$FN42,0)+IF(($FZ$66+$FO42)>GE$66,$DD42*$FN42,0)+IF(($GA$66+$FO42)>GE$66,$DE42*$FN42,0)+IF(($GB$66+$FO42)>GE$66,$DF42*$FN42,0)+IF(($GC$66+$FO42)>GE$66,$DG42*$FN42,0)+IF(($GD$66+$FO42)>GE$66,$DH42*$FN42,0)+IF(($GE$66+$FO42)>GE$66,$DI42*$FN42,0)) ->  | GG42: =IF($FM42="","",IF(($FP$66+$FO42)>GF$66,$CT42*$FN42,0)+IF(($FQ$66+$FO42)>GF$66,$CU42*$FN42,0)+IF(($FR$66+$FO42)>GF$66,$CV42*$FN42,0)+IF(($FS$66+$FO42)>GF$66,$CW42*$FN42,0)+IF(($FT$66+$FO42)>GF$66,$CX42*$FN42,0)+IF(($FU$66+$FO42)>GF$66,$CY42*$FN42,0)+IF(($FV$66+$FO42)>GF$66,$CZ42*$FN42,0)+IF(($FW$66+$FO42)>GF$66,$DA42*$FN42,0)+IF(($FX$66+$FO42)>GF$66,$DB42*$FN42,0)+IF(($FY$66+$FO42)>GF$66,$DC42*$FN42,0)+IF(($FZ$66+$FO42)>GF$66,$DD42*$FN42,0)+IF(($GA$66+$FO42)>GF$66,$DE42*$FN42,0)+IF(($GB$66+$FO42)>GF$66,$DF42*$FN42,0)+IF(($GC$66+$FO42)>GF$66,$DG42*$FN42,0)+IF(($GD$66+$FO42)>GF$66,$DH42*$FN42,0)+IF(($GE$66+$FO42)>GF$66,$DI42*$FN42,0)+IF(($GF$66+$FO42)>GF$66,$DJ42*$FN42,0)) ->  | GH42: =IF($FM42="","",IF(($FP$66+$FO42)>GG$66,$CT42*$FN42,0)+IF(($FQ$66+$FO42)>GG$66,$CU42*$FN42,0)+IF(($FR$66+$FO42)>GG$66,$CV42*$FN42,0)+IF(($FS$66+$FO42)>GG$66,$CW42*$FN42,0)+IF(($FT$66+$FO42)>GG$66,$CX42*$FN42,0)+IF(($FU$66+$FO42)>GG$66,$CY42*$FN42,0)+IF(($FV$66+$FO42)>GG$66,$CZ42*$FN42,0)+IF(($FW$66+$FO42)>GG$66,$DA42*$FN42,0)+IF(($FX$66+$FO42)>GG$66,$DB42*$FN42,0)+IF(($FY$66+$FO42)>GG$66,$DC42*$FN42,0)+IF(($FZ$66+$FO42)>GG$66,$DD42*$FN42,0)+IF(($GA$66+$FO42)>GG$66,$DE42*$FN42,0)+IF(($GB$66+$FO42)>GG$66,$DF42*$FN42,0)+IF(($GC$66+$FO42)>GG$66,$DG42*$FN42,0)+IF(($GD$66+$FO42)>GG$66,$DH42*$FN42,0)+IF(($GE$66+$FO42)>GG$66,$DI42*$FN42,0)+IF(($GF$66+$FO42)>GG$66,$DJ42*$FN42,0)+IF(($GG$66+$FO42)>GG$66,$DK42*$FN42,0)) ->  | GI42: =IF($FM42="","",IF(($FP$66+$FO42)>GH$66,$CT42*$FN42,0)+IF(($FQ$66+$FO42)>GH$66,$CU42*$FN42,0)+IF(($FR$66+$FO42)>GH$66,$CV42*$FN42,0)+IF(($FS$66+$FO42)>GH$66,$CW42*$FN42,0)+IF(($FT$66+$FO42)>GH$66,$CX42*$FN42,0)+IF(($FU$66+$FO42)>GH$66,$CY42*$FN42,0)+IF(($FV$66+$FO42)>GH$66,$CZ42*$FN42,0)+IF(($FW$66+$FO42)>GH$66,$DA42*$FN42,0)+IF(($FX$66+$FO42)>GH$66,$DB42*$FN42,0)+IF(($FY$66+$FO42)>GH$66,$DC42*$FN42,0)+IF(($FZ$66+$FO42)>GH$66,$DD42*$FN42,0)+IF(($GA$66+$FO42)>GH$66,$DE42*$FN42,0)+IF(($GB$66+$FO42)>GH$66,$DF42*$FN42,0)+IF(($GC$66+$FO42)>GH$66,$DG42*$FN42,0)+IF(($GD$66+$FO42)>GH$66,$DH42*$FN42,0)+IF(($GE$66+$FO42)>GH$66,$DI42*$FN42,0)+IF(($GF$66+$FO42)>GH$66,$DJ42*$FN42,0)+IF(($GG$66+$FO42)>GH$66,$DK42*$FN42,0)+IF(($GH$66+$FO42)>GH$66,$DL42*$FN42,0)) ->  | GJ42: =IF($FM42="","",IF(($FP$66+$FO42)>GI$66,$CT42*$FN42,0)+IF(($FQ$66+$FO42)>GI$66,$CU42*$FN42,0)+IF(($FR$66+$FO42)>GI$66,$CV42*$FN42,0)+IF(($FS$66+$FO42)>GI$66,$CW42*$FN42,0)+IF(($FT$66+$FO42)>GI$66,$CX42*$FN42,0)+IF(($FU$66+$FO42)>GI$66,$CY42*$FN42,0)+IF(($FV$66+$FO42)>GI$66,$CZ42*$FN42,0)+IF(($FW$66+$FO42)>GI$66,$DA42*$FN42,0)+IF(($FX$66+$FO42)>GI$66,$DB42*$FN42,0)+IF(($FY$66+$FO42)>GI$66,$DC42*$FN42,0)+IF(($FZ$66+$FO42)>GI$66,$DD42*$FN42,0)+IF(($GA$66+$FO42)>GI$66,$DE42*$FN42,0)+IF(($GB$66+$FO42)>GI$66,$DF42*$FN42,0)+IF(($GC$66+$FO42)>GI$66,$DG42*$FN42,0)+IF(($GD$66+$FO42)>GI$66,$DH42*$FN42,0)+IF(($GE$66+$FO42)>GI$66,$DI42*$FN42,0)+IF(($GF$66+$FO42)>GI$66,$DJ42*$FN42,0)+IF(($GG$66+$FO42)>GI$66,$DK42*$FN42,0)+IF(($GH$66+$FO42)>GI$66,$DL42*$FN42,0)+IF(($GI$66+$FO42)>GI$66,$DM42*$FN42,0)) -> 
F43: Normal | G43: 0 | I43: Sim | J43: Sim | P43: 0 | Y43: =IF(V43="","",IF($Y$66<$G43,0,IF(SUM($X43:X43)>=$C43,0,$C43))) ->  | Z43: =IF(V43="","",IF($Z$66<$G43,0,IF(SUM($X43:Y43)>=$C43,0,$C43))) ->  | AA43: =IF(V43="","",IF($AA$66<$G43,0,IF(SUM($X43:Z43)>=$C43,0,$C43))) ->  | AB43: =IF(V43="","",IF($AB$66<$G43,0,IF(SUM($X43:AA43)>=$C43,0,$C43))) ->  | AC43: =IF(V43="","",IF($AC$66<$G43,0,IF(SUM($X43:AB43)>=$C43,0,$C43))) ->  | AD43: =IF(V43="","",IF($AD$66<$G43,0,IF(SUM($X43:AC43)>=$C43,0,$C43))) ->  | AE43: =IF(V43="","",IF($AE$66<$G43,0,IF(SUM($X43:AD43)>=$C43,0,$C43))) ->  | AF43: =IF(V43="","",IF($AF$66<$G43,0,IF(SUM($X43:AE43)>=$C43,0,$C43))) ->  | AG43: =IF(V43="","",IF($AG$66<$G43,0,IF(SUM($X43:AF43)>=$C43,0,$C43))) ->  | AH43: =IF(V43="","",IF($AH$66<$G43,0,IF(SUM($X43:AG43)>=$C43,0,$C43))) ->  | AI43: =IF(V43="","",IF($AI$66<$G43,0,IF(SUM($X43:AH43)>=$C43,0,$C43))) ->  | AJ43: =IF(V43="","",IF($AJ$66<$G43,0,IF(SUM($X43:AI43)>=$C43,0,$C43))) ->  | AK43: =IF(V43="","",IF($AK$66<$G43,0,IF(SUM($X43:AJ43)>=$C43,0,$C43))) ->  | AL43: =IF(V43="","",IF($AL$66<$G43,0,IF(SUM($X43:AK43)>=$C43,0,$C43))) ->  | AM43: =IF(V43="","",IF($AM$66<$G43,0,IF(SUM($X43:AL43)>=$C43,0,$C43))) ->  | AN43: =IF(V43="","",IF($AN$66<$G43,0,IF(SUM($X43:AM43)>=$C43,0,$C43))) ->  | AO43: =IF(V43="","",IF($AO$66<$G43,0,IF(SUM($X43:AN43)>=$C43,0,$C43))) ->  | AP43: =IF(V43="","",IF($AP$66<$G43,0,IF(SUM($X43:AO43)>=$C43,0,$C43))) ->  | AQ43: =IF(V43="","",IF($AQ$66<$G43,0,IF(SUM($X43:AP43)>=$C43,0,$C43))) ->  | AR43: =IF(V43="","",IF($AR$66<$G43,0,IF(SUM($X43:AQ43)>=$C43,0,$C43))) ->  | AS43: 35
F44: Normal | G44: 0 | I44: Sim | J44: Sim | P44: 0 | Y44: =IF(V44="","",IF($Y$66<$G44,0,IF(SUM($X44:X44)>=$C44,0,$C44))) ->  | Z44: =IF(V44="","",IF($Z$66<$G44,0,IF(SUM($X44:Y44)>=$C44,0,$C44))) ->  | AA44: =IF(V44="","",IF($AA$66<$G44,0,IF(SUM($X44:Z44)>=$C44,0,$C44))) ->  | AB44: =IF(V44="","",IF($AB$66<$G44,0,IF(SUM($X44:AA44)>=$C44,0,$C44))) ->  | AC44: =IF(V44="","",IF($AC$66<$G44,0,IF(SUM($X44:AB44)>=$C44,0,$C44))) ->  | AD44: =IF(V44="","",IF($AD$66<$G44,0,IF(SUM($X44:AC44)>=$C44,0,$C44))) ->  | AE44: =IF(V44="","",IF($AE$66<$G44,0,IF(SUM($X44:AD44)>=$C44,0,$C44))) ->  | AF44: =IF(V44="","",IF($AF$66<$G44,0,IF(SUM($X44:AE44)>=$C44,0,$C44))) ->  | AG44: =IF(V44="","",IF($AG$66<$G44,0,IF(SUM($X44:AF44)>=$C44,0,$C44))) ->  | AH44: =IF(V44="","",IF($AH$66<$G44,0,IF(SUM($X44:AG44)>=$C44,0,$C44))) ->  | AI44: =IF(V44="","",IF($AI$66<$G44,0,IF(SUM($X44:AH44)>=$C44,0,$C44))) ->  | AJ44: =IF(V44="","",IF($AJ$66<$G44,0,IF(SUM($X44:AI44)>=$C44,0,$C44))) ->  | AK44: =IF(V44="","",IF($AK$66<$G44,0,IF(SUM($X44:AJ44)>=$C44,0,$C44))) ->  | AL44: =IF(V44="","",IF($AL$66<$G44,0,IF(SUM($X44:AK44)>=$C44,0,$C44))) ->  | AM44: =IF(V44="","",IF($AM$66<$G44,0,IF(SUM($X44:AL44)>=$C44,0,$C44))) ->  | AN44: =IF(V44="","",IF($AN$66<$G44,0,IF(SUM($X44:AM44)>=$C44,0,$C44))) ->  | AO44: =IF(V44="","",IF($AO$66<$G44,0,IF(SUM($X44:AN44)>=$C44,0,$C44))) ->  | AP44: =IF(V44="","",IF($AP$66<$G44,0,IF(SUM($X44:AO44)>=$C44,0,$C44))) ->  | AQ44: =IF(V44="","",IF($AQ$66<$G44,0,IF(SUM($X44:AP44)>=$C44,0,$C44))) ->  | AR44: =IF(V44="","",IF($AR$66<$G44,0,IF(SUM($X44:AQ44)>=$C44,0,$C44))) ->  | AS44: 36
F45: Normal | G45: 0 | I45: Sim | J45: Sim | P45: 0 | Y45: =IF(V45="","",IF($Y$66<$G45,0,IF(SUM($X45:X45)>=$C45,0,$C45))) ->  | Z45: =IF(V45="","",IF($Z$66<$G45,0,IF(SUM($X45:Y45)>=$C45,0,$C45))) ->  | AA45: =IF(V45="","",IF($AA$66<$G45,0,IF(SUM($X45:Z45)>=$C45,0,$C45))) ->  | AB45: =IF(V45="","",IF($AB$66<$G45,0,IF(SUM($X45:AA45)>=$C45,0,$C45))) ->  | AC45: =IF(V45="","",IF($AC$66<$G45,0,IF(SUM($X45:AB45)>=$C45,0,$C45))) ->  | AD45: =IF(V45="","",IF($AD$66<$G45,0,IF(SUM($X45:AC45)>=$C45,0,$C45))) ->  | AE45: =IF(V45="","",IF($AE$66<$G45,0,IF(SUM($X45:AD45)>=$C45,0,$C45))) ->  | AF45: =IF(V45="","",IF($AF$66<$G45,0,IF(SUM($X45:AE45)>=$C45,0,$C45))) ->  | AG45: =IF(V45="","",IF($AG$66<$G45,0,IF(SUM($X45:AF45)>=$C45,0,$C45))) ->  | AH45: =IF(V45="","",IF($AH$66<$G45,0,IF(SUM($X45:AG45)>=$C45,0,$C45))) ->  | AI45: =IF(V45="","",IF($AI$66<$G45,0,IF(SUM($X45:AH45)>=$C45,0,$C45))) ->  | AJ45: =IF(V45="","",IF($AJ$66<$G45,0,IF(SUM($X45:AI45)>=$C45,0,$C45))) ->  | AK45: =IF(V45="","",IF($AK$66<$G45,0,IF(SUM($X45:AJ45)>=$C45,0,$C45))) ->  | AL45: =IF(V45="","",IF($AL$66<$G45,0,IF(SUM($X45:AK45)>=$C45,0,$C45))) ->  | AM45: =IF(V45="","",IF($AM$66<$G45,0,IF(SUM($X45:AL45)>=$C45,0,$C45))) ->  | AN45: =IF(V45="","",IF($AN$66<$G45,0,IF(SUM($X45:AM45)>=$C45,0,$C45))) ->  | AO45: =IF(V45="","",IF($AO$66<$G45,0,IF(SUM($X45:AN45)>=$C45,0,$C45))) ->  | AP45: =IF(V45="","",IF($AP$66<$G45,0,IF(SUM($X45:AO45)>=$C45,0,$C45))) ->  | AQ45: =IF(V45="","",IF($AQ$66<$G45,0,IF(SUM($X45:AP45)>=$C45,0,$C45))) ->  | AR45: =IF(V45="","",IF($AR$66<$G45,0,IF(SUM($X45:AQ45)>=$C45,0,$C45))) ->  | AS45: 37
F46: Normal | G46: 0 | I46: Sim | J46: Sim | P46: 0 | Y46: =IF(V46="","",IF($Y$66<$G46,0,IF(SUM($X46:X46)>=$C46,0,$C46))) ->  | Z46: =IF(V46="","",IF($Z$66<$G46,0,IF(SUM($X46:Y46)>=$C46,0,$C46))) ->  | AA46: =IF(V46="","",IF($AA$66<$G46,0,IF(SUM($X46:Z46)>=$C46,0,$C46))) ->  | AB46: =IF(V46="","",IF($AB$66<$G46,0,IF(SUM($X46:AA46)>=$C46,0,$C46))) ->  | AC46: =IF(V46="","",IF($AC$66<$G46,0,IF(SUM($X46:AB46)>=$C46,0,$C46))) ->  | AD46: =IF(V46="","",IF($AD$66<$G46,0,IF(SUM($X46:AC46)>=$C46,0,$C46))) ->  | AE46: =IF(V46="","",IF($AE$66<$G46,0,IF(SUM($X46:AD46)>=$C46,0,$C46))) ->  | AF46: =IF(V46="","",IF($AF$66<$G46,0,IF(SUM($X46:AE46)>=$C46,0,$C46))) ->  | AG46: =IF(V46="","",IF($AG$66<$G46,0,IF(SUM($X46:AF46)>=$C46,0,$C46))) ->  | AH46: =IF(V46="","",IF($AH$66<$G46,0,IF(SUM($X46:AG46)>=$C46,0,$C46))) ->  | AI46: =IF(V46="","",IF($AI$66<$G46,0,IF(SUM($X46:AH46)>=$C46,0,$C46))) ->  | AJ46: =IF(V46="","",IF($AJ$66<$G46,0,IF(SUM($X46:AI46)>=$C46,0,$C46))) ->  | AK46: =IF(V46="","",IF($AK$66<$G46,0,IF(SUM($X46:AJ46)>=$C46,0,$C46))) ->  | AL46: =IF(V46="","",IF($AL$66<$G46,0,IF(SUM($X46:AK46)>=$C46,0,$C46))) ->  | AM46: =IF(V46="","",IF($AM$66<$G46,0,IF(SUM($X46:AL46)>=$C46,0,$C46))) ->  | AN46: =IF(V46="","",IF($AN$66<$G46,0,IF(SUM($X46:AM46)>=$C46,0,$C46))) ->  | AO46: =IF(V46="","",IF($AO$66<$G46,0,IF(SUM($X46:AN46)>=$C46,0,$C46))) ->  | AP46: =IF(V46="","",IF($AP$66<$G46,0,IF(SUM($X46:AO46)>=$C46,0,$C46))) ->  | AQ46: =IF(V46="","",IF($AQ$66<$G46,0,IF(SUM($X46:AP46)>=$C46,0,$C46))) ->  | AR46: =IF(V46="","",IF($AR$66<$G46,0,IF(SUM($X46:AQ46)>=$C46,0,$C46))) ->  | AS46: 38
F47: Normal | G47: 0 | I47: Sim | J47: Sim | P47: 0 | Y47: =IF(V47="","",IF($Y$66<$G47,0,IF(SUM($X47:X47)>=$C47,0,$C47))) ->  | Z47: =IF(V47="","",IF($Z$66<$G47,0,IF(SUM($X47:Y47)>=$C47,0,$C47))) ->  | AA47: =IF(V47="","",IF($AA$66<$G47,0,IF(SUM($X47:Z47)>=$C47,0,$C47))) ->  | AB47: =IF(V47="","",IF($AB$66<$G47,0,IF(SUM($X47:AA47)>=$C47,0,$C47))) ->  | AC47: =IF(V47="","",IF($AC$66<$G47,0,IF(SUM($X47:AB47)>=$C47,0,$C47))) ->  | AD47: =IF(V47="","",IF($AD$66<$G47,0,IF(SUM($X47:AC47)>=$C47,0,$C47))) ->  | AE47: =IF(V47="","",IF($AE$66<$G47,0,IF(SUM($X47:AD47)>=$C47,0,$C47))) ->  | AF47: =IF(V47="","",IF($AF$66<$G47,0,IF(SUM($X47:AE47)>=$C47,0,$C47))) ->  | AG47: =IF(V47="","",IF($AG$66<$G47,0,IF(SUM($X47:AF47)>=$C47,0,$C47))) ->  | AH47: =IF(V47="","",IF($AH$66<$G47,0,IF(SUM($X47:AG47)>=$C47,0,$C47))) ->  | AI47: =IF(V47="","",IF($AI$66<$G47,0,IF(SUM($X47:AH47)>=$C47,0,$C47))) ->  | AJ47: =IF(V47="","",IF($AJ$66<$G47,0,IF(SUM($X47:AI47)>=$C47,0,$C47))) ->  | AK47: =IF(V47="","",IF($AK$66<$G47,0,IF(SUM($X47:AJ47)>=$C47,0,$C47))) ->  | AL47: =IF(V47="","",IF($AL$66<$G47,0,IF(SUM($X47:AK47)>=$C47,0,$C47))) ->  | AM47: =IF(V47="","",IF($AM$66<$G47,0,IF(SUM($X47:AL47)>=$C47,0,$C47))) ->  | AN47: =IF(V47="","",IF($AN$66<$G47,0,IF(SUM($X47:AM47)>=$C47,0,$C47))) ->  | AO47: =IF(V47="","",IF($AO$66<$G47,0,IF(SUM($X47:AN47)>=$C47,0,$C47))) ->  | AP47: =IF(V47="","",IF($AP$66<$G47,0,IF(SUM($X47:AO47)>=$C47,0,$C47))) ->  | AQ47: =IF(V47="","",IF($AQ$66<$G47,0,IF(SUM($X47:AP47)>=$C47,0,$C47))) ->  | AR47: =IF(V47="","",IF($AR$66<$G47,0,IF(SUM($X47:AQ47)>=$C47,0,$C47))) ->  | AS47: 39
F48: Normal | G48: 0 | I48: Sim | J48: Sim | P48: 0 | Y48: =IF(V48="","",IF($Y$66<$G48,0,IF(SUM($X48:X48)>=$C48,0,$C48))) ->  | Z48: =IF(V48="","",IF($Z$66<$G48,0,IF(SUM($X48:Y48)>=$C48,0,$C48))) ->  | AA48: =IF(V48="","",IF($AA$66<$G48,0,IF(SUM($X48:Z48)>=$C48,0,$C48))) ->  | AB48: =IF(V48="","",IF($AB$66<$G48,0,IF(SUM($X48:AA48)>=$C48,0,$C48))) ->  | AC48: =IF(V48="","",IF($AC$66<$G48,0,IF(SUM($X48:AB48)>=$C48,0,$C48))) ->  | AD48: =IF(V48="","",IF($AD$66<$G48,0,IF(SUM($X48:AC48)>=$C48,0,$C48))) ->  | AE48: =IF(V48="","",IF($AE$66<$G48,0,IF(SUM($X48:AD48)>=$C48,0,$C48))) ->  | AF48: =IF(V48="","",IF($AF$66<$G48,0,IF(SUM($X48:AE48)>=$C48,0,$C48))) ->  | AG48: =IF(V48="","",IF($AG$66<$G48,0,IF(SUM($X48:AF48)>=$C48,0,$C48))) ->  | AH48: =IF(V48="","",IF($AH$66<$G48,0,IF(SUM($X48:AG48)>=$C48,0,$C48))) ->  | AI48: =IF(V48="","",IF($AI$66<$G48,0,IF(SUM($X48:AH48)>=$C48,0,$C48))) ->  | AJ48: =IF(V48="","",IF($AJ$66<$G48,0,IF(SUM($X48:AI48)>=$C48,0,$C48))) ->  | AK48: =IF(V48="","",IF($AK$66<$G48,0,IF(SUM($X48:AJ48)>=$C48,0,$C48))) ->  | AL48: =IF(V48="","",IF($AL$66<$G48,0,IF(SUM($X48:AK48)>=$C48,0,$C48))) ->  | AM48: =IF(V48="","",IF($AM$66<$G48,0,IF(SUM($X48:AL48)>=$C48,0,$C48))) ->  | AN48: =IF(V48="","",IF($AN$66<$G48,0,IF(SUM($X48:AM48)>=$C48,0,$C48))) ->  | AO48: =IF(V48="","",IF($AO$66<$G48,0,IF(SUM($X48:AN48)>=$C48,0,$C48))) ->  | AP48: =IF(V48="","",IF($AP$66<$G48,0,IF(SUM($X48:AO48)>=$C48,0,$C48))) ->  | AQ48: =IF(V48="","",IF($AQ$66<$G48,0,IF(SUM($X48:AP48)>=$C48,0,$C48))) ->  | AR48: =IF(V48="","",IF($AR$66<$G48,0,IF(SUM($X48:AQ48)>=$C48,0,$C48))) ->  | AS48: 40
F49: Normal | G49: 0 | I49: Sim | J49: Sim | P49: 0 | Y49: =IF(V49="","",IF($Y$66<$G49,0,IF(SUM($X49:X49)>=$C49,0,$C49))) ->  | Z49: =IF(V49="","",IF($Z$66<$G49,0,IF(SUM($X49:Y49)>=$C49,0,$C49))) ->  | AA49: =IF(V49="","",IF($AA$66<$G49,0,IF(SUM($X49:Z49)>=$C49,0,$C49))) ->  | AB49: =IF(V49="","",IF($AB$66<$G49,0,IF(SUM($X49:AA49)>=$C49,0,$C49))) ->  | AC49: =IF(V49="","",IF($AC$66<$G49,0,IF(SUM($X49:AB49)>=$C49,0,$C49))) ->  | AD49: =IF(V49="","",IF($AD$66<$G49,0,IF(SUM($X49:AC49)>=$C49,0,$C49))) ->  | AE49: =IF(V49="","",IF($AE$66<$G49,0,IF(SUM($X49:AD49)>=$C49,0,$C49))) ->  | AF49: =IF(V49="","",IF($AF$66<$G49,0,IF(SUM($X49:AE49)>=$C49,0,$C49))) ->  | AG49: =IF(V49="","",IF($AG$66<$G49,0,IF(SUM($X49:AF49)>=$C49,0,$C49))) ->  | AH49: =IF(V49="","",IF($AH$66<$G49,0,IF(SUM($X49:AG49)>=$C49,0,$C49))) ->  | AI49: =IF(V49="","",IF($AI$66<$G49,0,IF(SUM($X49:AH49)>=$C49,0,$C49))) ->  | AJ49: =IF(V49="","",IF($AJ$66<$G49,0,IF(SUM($X49:AI49)>=$C49,0,$C49))) ->  | AK49: =IF(V49="","",IF($AK$66<$G49,0,IF(SUM($X49:AJ49)>=$C49,0,$C49))) ->  | AL49: =IF(V49="","",IF($AL$66<$G49,0,IF(SUM($X49:AK49)>=$C49,0,$C49))) ->  | AM49: =IF(V49="","",IF($AM$66<$G49,0,IF(SUM($X49:AL49)>=$C49,0,$C49))) ->  | AN49: =IF(V49="","",IF($AN$66<$G49,0,IF(SUM($X49:AM49)>=$C49,0,$C49))) ->  | AO49: =IF(V49="","",IF($AO$66<$G49,0,IF(SUM($X49:AN49)>=$C49,0,$C49))) ->  | AP49: =IF(V49="","",IF($AP$66<$G49,0,IF(SUM($X49:AO49)>=$C49,0,$C49))) ->  | AQ49: =IF(V49="","",IF($AQ$66<$G49,0,IF(SUM($X49:AP49)>=$C49,0,$C49))) ->  | AR49: =IF(V49="","",IF($AR$66<$G49,0,IF(SUM($X49:AQ49)>=$C49,0,$C49))) ->  | AS49: 41
F50: Normal | G50: 0 | I50: Sim | J50: Sim | P50: 0 | Y50: =IF(V50="","",IF($Y$66<$G50,0,IF(SUM($X50:X50)>=$C50,0,$C50))) ->  | Z50: =IF(V50="","",IF($Z$66<$G50,0,IF(SUM($X50:Y50)>=$C50,0,$C50))) ->  | AA50: =IF(V50="","",IF($AA$66<$G50,0,IF(SUM($X50:Z50)>=$C50,0,$C50))) ->  | AB50: =IF(V50="","",IF($AB$66<$G50,0,IF(SUM($X50:AA50)>=$C50,0,$C50))) ->  | AC50: =IF(V50="","",IF($AC$66<$G50,0,IF(SUM($X50:AB50)>=$C50,0,$C50))) ->  | AD50: =IF(V50="","",IF($AD$66<$G50,0,IF(SUM($X50:AC50)>=$C50,0,$C50))) ->  | AE50: =IF(V50="","",IF($AE$66<$G50,0,IF(SUM($X50:AD50)>=$C50,0,$C50))) ->  | AF50: =IF(V50="","",IF($AF$66<$G50,0,IF(SUM($X50:AE50)>=$C50,0,$C50))) ->  | AG50: =IF(V50="","",IF($AG$66<$G50,0,IF(SUM($X50:AF50)>=$C50,0,$C50))) ->  | AH50: =IF(V50="","",IF($AH$66<$G50,0,IF(SUM($X50:AG50)>=$C50,0,$C50))) ->  | AI50: =IF(V50="","",IF($AI$66<$G50,0,IF(SUM($X50:AH50)>=$C50,0,$C50))) ->  | AJ50: =IF(V50="","",IF($AJ$66<$G50,0,IF(SUM($X50:AI50)>=$C50,0,$C50))) ->  | AK50: =IF(V50="","",IF($AK$66<$G50,0,IF(SUM($X50:AJ50)>=$C50,0,$C50))) ->  | AL50: =IF(V50="","",IF($AL$66<$G50,0,IF(SUM($X50:AK50)>=$C50,0,$C50))) ->  | AM50: =IF(V50="","",IF($AM$66<$G50,0,IF(SUM($X50:AL50)>=$C50,0,$C50))) ->  | AN50: =IF(V50="","",IF($AN$66<$G50,0,IF(SUM($X50:AM50)>=$C50,0,$C50))) ->  | AO50: =IF(V50="","",IF($AO$66<$G50,0,IF(SUM($X50:AN50)>=$C50,0,$C50))) ->  | AP50: =IF(V50="","",IF($AP$66<$G50,0,IF(SUM($X50:AO50)>=$C50,0,$C50))) ->  | AQ50: =IF(V50="","",IF($AQ$66<$G50,0,IF(SUM($X50:AP50)>=$C50,0,$C50))) ->  | AR50: =IF(V50="","",IF($AR$66<$G50,0,IF(SUM($X50:AQ50)>=$C50,0,$C50))) ->  | AS50: 42 | AX50: =IF(OR($AU50="",$H50=""),"",IF($I50="Sim",IF(AX$9-$H50>=0,HLOOKUP(AX$9-$H50,$AW$9:$BQ$59,$AS50,FALSE)+HLOOKUP(AX$9-$H50,$X$9:$AR$59,$AS50,FALSE),0),0)) ->  | BH50: =IF(OR($AU50="",$H50=""),"",IF($I50="Sim",IF(BH$9-$H50>=0,HLOOKUP(BH$9-$H50,$AW$9:$BQ$59,$AS50,FALSE)+HLOOKUP(BH$9-$H50,$X$9:$AR$59,$AS50,FALSE),0),0)) -> 
F51: Normal | G51: 0 | I51: Sim | J51: Sim | P51: 0 | Y51: =IF(V51="","",IF($Y$66<$G51,0,IF(SUM($X51:X51)>=$C51,0,$C51))) ->  | Z51: =IF(V51="","",IF($Z$66<$G51,0,IF(SUM($X51:Y51)>=$C51,0,$C51))) ->  | AA51: =IF(V51="","",IF($AA$66<$G51,0,IF(SUM($X51:Z51)>=$C51,0,$C51))) ->  | AB51: =IF(V51="","",IF($AB$66<$G51,0,IF(SUM($X51:AA51)>=$C51,0,$C51))) ->  | AC51: =IF(V51="","",IF($AC$66<$G51,0,IF(SUM($X51:AB51)>=$C51,0,$C51))) ->  | AD51: =IF(V51="","",IF($AD$66<$G51,0,IF(SUM($X51:AC51)>=$C51,0,$C51))) ->  | AE51: =IF(V51="","",IF($AE$66<$G51,0,IF(SUM($X51:AD51)>=$C51,0,$C51))) ->  | AF51: =IF(V51="","",IF($AF$66<$G51,0,IF(SUM($X51:AE51)>=$C51,0,$C51))) ->  | AG51: =IF(V51="","",IF($AG$66<$G51,0,IF(SUM($X51:AF51)>=$C51,0,$C51))) ->  | AH51: =IF(V51="","",IF($AH$66<$G51,0,IF(SUM($X51:AG51)>=$C51,0,$C51))) ->  | AI51: =IF(V51="","",IF($AI$66<$G51,0,IF(SUM($X51:AH51)>=$C51,0,$C51))) ->  | AJ51: =IF(V51="","",IF($AJ$66<$G51,0,IF(SUM($X51:AI51)>=$C51,0,$C51))) ->  | AK51: =IF(V51="","",IF($AK$66<$G51,0,IF(SUM($X51:AJ51)>=$C51,0,$C51))) ->  | AL51: =IF(V51="","",IF($AL$66<$G51,0,IF(SUM($X51:AK51)>=$C51,0,$C51))) ->  | AM51: =IF(V51="","",IF($AM$66<$G51,0,IF(SUM($X51:AL51)>=$C51,0,$C51))) ->  | AN51: =IF(V51="","",IF($AN$66<$G51,0,IF(SUM($X51:AM51)>=$C51,0,$C51))) ->  | AO51: =IF(V51="","",IF($AO$66<$G51,0,IF(SUM($X51:AN51)>=$C51,0,$C51))) ->  | AP51: =IF(V51="","",IF($AP$66<$G51,0,IF(SUM($X51:AO51)>=$C51,0,$C51))) ->  | AQ51: =IF(V51="","",IF($AQ$66<$G51,0,IF(SUM($X51:AP51)>=$C51,0,$C51))) ->  | AR51: =IF(V51="","",IF($AR$66<$G51,0,IF(SUM($X51:AQ51)>=$C51,0,$C51))) ->  | AS51: 43
F52: Normal | G52: 0 | I52: Sim | J52: Sim | P52: 0 | Y52: =IF(V52="","",IF($Y$66<$G52,0,IF(SUM($X52:X52)>=$C52,0,$C52))) ->  | Z52: =IF(V52="","",IF($Z$66<$G52,0,IF(SUM($X52:Y52)>=$C52,0,$C52))) ->  | AA52: =IF(V52="","",IF($AA$66<$G52,0,IF(SUM($X52:Z52)>=$C52,0,$C52))) ->  | AB52: =IF(V52="","",IF($AB$66<$G52,0,IF(SUM($X52:AA52)>=$C52,0,$C52))) ->  | AC52: =IF(V52="","",IF($AC$66<$G52,0,IF(SUM($X52:AB52)>=$C52,0,$C52))) ->  | AD52: =IF(V52="","",IF($AD$66<$G52,0,IF(SUM($X52:AC52)>=$C52,0,$C52))) ->  | AE52: =IF(V52="","",IF($AE$66<$G52,0,IF(SUM($X52:AD52)>=$C52,0,$C52))) ->  | AF52: =IF(V52="","",IF($AF$66<$G52,0,IF(SUM($X52:AE52)>=$C52,0,$C52))) ->  | AG52: =IF(V52="","",IF($AG$66<$G52,0,IF(SUM($X52:AF52)>=$C52,0,$C52))) ->  | AH52: =IF(V52="","",IF($AH$66<$G52,0,IF(SUM($X52:AG52)>=$C52,0,$C52))) ->  | AI52: =IF(V52="","",IF($AI$66<$G52,0,IF(SUM($X52:AH52)>=$C52,0,$C52))) ->  | AJ52: =IF(V52="","",IF($AJ$66<$G52,0,IF(SUM($X52:AI52)>=$C52,0,$C52))) ->  | AK52: =IF(V52="","",IF($AK$66<$G52,0,IF(SUM($X52:AJ52)>=$C52,0,$C52))) ->  | AL52: =IF(V52="","",IF($AL$66<$G52,0,IF(SUM($X52:AK52)>=$C52,0,$C52))) ->  | AM52: =IF(V52="","",IF($AM$66<$G52,0,IF(SUM($X52:AL52)>=$C52,0,$C52))) ->  | AN52: =IF(V52="","",IF($AN$66<$G52,0,IF(SUM($X52:AM52)>=$C52,0,$C52))) ->  | AO52: =IF(V52="","",IF($AO$66<$G52,0,IF(SUM($X52:AN52)>=$C52,0,$C52))) ->  | AP52: =IF(V52="","",IF($AP$66<$G52,0,IF(SUM($X52:AO52)>=$C52,0,$C52))) ->  | AQ52: =IF(V52="","",IF($AQ$66<$G52,0,IF(SUM($X52:AP52)>=$C52,0,$C52))) ->  | AR52: =IF(V52="","",IF($AR$66<$G52,0,IF(SUM($X52:AQ52)>=$C52,0,$C52))) ->  | AS52: 44
F53: Normal | G53: 0 | I53: Sim | J53: Sim | P53: 0 | Y53: =IF(V53="","",IF($Y$66<$G53,0,IF(SUM($X53:X53)>=$C53,0,$C53))) ->  | Z53: =IF(V53="","",IF($Z$66<$G53,0,IF(SUM($X53:Y53)>=$C53,0,$C53))) ->  | AA53: =IF(V53="","",IF($AA$66<$G53,0,IF(SUM($X53:Z53)>=$C53,0,$C53))) ->  | AB53: =IF(V53="","",IF($AB$66<$G53,0,IF(SUM($X53:AA53)>=$C53,0,$C53))) ->  | AC53: =IF(V53="","",IF($AC$66<$G53,0,IF(SUM($X53:AB53)>=$C53,0,$C53))) ->  | AD53: =IF(V53="","",IF($AD$66<$G53,0,IF(SUM($X53:AC53)>=$C53,0,$C53))) ->  | AE53: =IF(V53="","",IF($AE$66<$G53,0,IF(SUM($X53:AD53)>=$C53,0,$C53))) ->  | AF53: =IF(V53="","",IF($AF$66<$G53,0,IF(SUM($X53:AE53)>=$C53,0,$C53))) ->  | AG53: =IF(V53="","",IF($AG$66<$G53,0,IF(SUM($X53:AF53)>=$C53,0,$C53))) ->  | AH53: =IF(V53="","",IF($AH$66<$G53,0,IF(SUM($X53:AG53)>=$C53,0,$C53))) ->  | AI53: =IF(V53="","",IF($AI$66<$G53,0,IF(SUM($X53:AH53)>=$C53,0,$C53))) ->  | AJ53: =IF(V53="","",IF($AJ$66<$G53,0,IF(SUM($X53:AI53)>=$C53,0,$C53))) ->  | AK53: =IF(V53="","",IF($AK$66<$G53,0,IF(SUM($X53:AJ53)>=$C53,0,$C53))) ->  | AL53: =IF(V53="","",IF($AL$66<$G53,0,IF(SUM($X53:AK53)>=$C53,0,$C53))) ->  | AM53: =IF(V53="","",IF($AM$66<$G53,0,IF(SUM($X53:AL53)>=$C53,0,$C53))) ->  | AN53: =IF(V53="","",IF($AN$66<$G53,0,IF(SUM($X53:AM53)>=$C53,0,$C53))) ->  | AO53: =IF(V53="","",IF($AO$66<$G53,0,IF(SUM($X53:AN53)>=$C53,0,$C53))) ->  | AP53: =IF(V53="","",IF($AP$66<$G53,0,IF(SUM($X53:AO53)>=$C53,0,$C53))) ->  | AQ53: =IF(V53="","",IF($AQ$66<$G53,0,IF(SUM($X53:AP53)>=$C53,0,$C53))) ->  | AR53: =IF(V53="","",IF($AR$66<$G53,0,IF(SUM($X53:AQ53)>=$C53,0,$C53))) ->  | AS53: 45
F54: Normal | G54: 0 | I54: Sim | J54: Sim | P54: 0 | Y54: =IF(V54="","",IF($Y$66<$G54,0,IF(SUM($X54:X54)>=$C54,0,$C54))) ->  | Z54: =IF(V54="","",IF($Z$66<$G54,0,IF(SUM($X54:Y54)>=$C54,0,$C54))) ->  | AA54: =IF(V54="","",IF($AA$66<$G54,0,IF(SUM($X54:Z54)>=$C54,0,$C54))) ->  | AB54: =IF(V54="","",IF($AB$66<$G54,0,IF(SUM($X54:AA54)>=$C54,0,$C54))) ->  | AC54: =IF(V54="","",IF($AC$66<$G54,0,IF(SUM($X54:AB54)>=$C54,0,$C54))) ->  | AD54: =IF(V54="","",IF($AD$66<$G54,0,IF(SUM($X54:AC54)>=$C54,0,$C54))) ->  | AE54: =IF(V54="","",IF($AE$66<$G54,0,IF(SUM($X54:AD54)>=$C54,0,$C54))) ->  | AF54: =IF(V54="","",IF($AF$66<$G54,0,IF(SUM($X54:AE54)>=$C54,0,$C54))) ->  | AG54: =IF(V54="","",IF($AG$66<$G54,0,IF(SUM($X54:AF54)>=$C54,0,$C54))) ->  | AH54: =IF(V54="","",IF($AH$66<$G54,0,IF(SUM($X54:AG54)>=$C54,0,$C54))) ->  | AI54: =IF(V54="","",IF($AI$66<$G54,0,IF(SUM($X54:AH54)>=$C54,0,$C54))) ->  | AJ54: =IF(V54="","",IF($AJ$66<$G54,0,IF(SUM($X54:AI54)>=$C54,0,$C54))) ->  | AK54: =IF(V54="","",IF($AK$66<$G54,0,IF(SUM($X54:AJ54)>=$C54,0,$C54))) ->  | AL54: =IF(V54="","",IF($AL$66<$G54,0,IF(SUM($X54:AK54)>=$C54,0,$C54))) ->  | AM54: =IF(V54="","",IF($AM$66<$G54,0,IF(SUM($X54:AL54)>=$C54,0,$C54))) ->  | AN54: =IF(V54="","",IF($AN$66<$G54,0,IF(SUM($X54:AM54)>=$C54,0,$C54))) ->  | AO54: =IF(V54="","",IF($AO$66<$G54,0,IF(SUM($X54:AN54)>=$C54,0,$C54))) ->  | AP54: =IF(V54="","",IF($AP$66<$G54,0,IF(SUM($X54:AO54)>=$C54,0,$C54))) ->  | AQ54: =IF(V54="","",IF($AQ$66<$G54,0,IF(SUM($X54:AP54)>=$C54,0,$C54))) ->  | AR54: =IF(V54="","",IF($AR$66<$G54,0,IF(SUM($X54:AQ54)>=$C54,0,$C54))) ->  | AS54: 46
F55: Normal | G55: 0 | I55: Sim | J55: Sim | P55: 0 | Y55: =IF(V55="","",IF($Y$66<$G55,0,IF(SUM($X55:X55)>=$C55,0,$C55))) ->  | Z55: =IF(V55="","",IF($Z$66<$G55,0,IF(SUM($X55:Y55)>=$C55,0,$C55))) ->  | AA55: =IF(V55="","",IF($AA$66<$G55,0,IF(SUM($X55:Z55)>=$C55,0,$C55))) ->  | AB55: =IF(V55="","",IF($AB$66<$G55,0,IF(SUM($X55:AA55)>=$C55,0,$C55))) ->  | AC55: =IF(V55="","",IF($AC$66<$G55,0,IF(SUM($X55:AB55)>=$C55,0,$C55))) ->  | AD55: =IF(V55="","",IF($AD$66<$G55,0,IF(SUM($X55:AC55)>=$C55,0,$C55))) ->  | AE55: =IF(V55="","",IF($AE$66<$G55,0,IF(SUM($X55:AD55)>=$C55,0,$C55))) ->  | AF55: =IF(V55="","",IF($AF$66<$G55,0,IF(SUM($X55:AE55)>=$C55,0,$C55))) ->  | AG55: =IF(V55="","",IF($AG$66<$G55,0,IF(SUM($X55:AF55)>=$C55,0,$C55))) ->  | AH55: =IF(V55="","",IF($AH$66<$G55,0,IF(SUM($X55:AG55)>=$C55,0,$C55))) ->  | AI55: =IF(V55="","",IF($AI$66<$G55,0,IF(SUM($X55:AH55)>=$C55,0,$C55))) ->  | AJ55: =IF(V55="","",IF($AJ$66<$G55,0,IF(SUM($X55:AI55)>=$C55,0,$C55))) ->  | AK55: =IF(V55="","",IF($AK$66<$G55,0,IF(SUM($X55:AJ55)>=$C55,0,$C55))) ->  | AL55: =IF(V55="","",IF($AL$66<$G55,0,IF(SUM($X55:AK55)>=$C55,0,$C55))) ->  | AM55: =IF(V55="","",IF($AM$66<$G55,0,IF(SUM($X55:AL55)>=$C55,0,$C55))) ->  | AN55: =IF(V55="","",IF($AN$66<$G55,0,IF(SUM($X55:AM55)>=$C55,0,$C55))) ->  | AO55: =IF(V55="","",IF($AO$66<$G55,0,IF(SUM($X55:AN55)>=$C55,0,$C55))) ->  | AP55: =IF(V55="","",IF($AP$66<$G55,0,IF(SUM($X55:AO55)>=$C55,0,$C55))) ->  | AQ55: =IF(V55="","",IF($AQ$66<$G55,0,IF(SUM($X55:AP55)>=$C55,0,$C55))) ->  | AR55: =IF(V55="","",IF($AR$66<$G55,0,IF(SUM($X55:AQ55)>=$C55,0,$C55))) ->  | AS55: 47
F56: Normal | G56: 0 | I56: Sim | J56: Sim | P56: 0 | Y56: =IF(V56="","",IF($Y$66<$G56,0,IF(SUM($X56:X56)>=$C56,0,$C56))) ->  | Z56: =IF(V56="","",IF($Z$66<$G56,0,IF(SUM($X56:Y56)>=$C56,0,$C56))) ->  | AA56: =IF(V56="","",IF($AA$66<$G56,0,IF(SUM($X56:Z56)>=$C56,0,$C56))) ->  | AB56: =IF(V56="","",IF($AB$66<$G56,0,IF(SUM($X56:AA56)>=$C56,0,$C56))) ->  | AC56: =IF(V56="","",IF($AC$66<$G56,0,IF(SUM($X56:AB56)>=$C56,0,$C56))) ->  | AD56: =IF(V56="","",IF($AD$66<$G56,0,IF(SUM($X56:AC56)>=$C56,0,$C56))) ->  | AE56: =IF(V56="","",IF($AE$66<$G56,0,IF(SUM($X56:AD56)>=$C56,0,$C56))) ->  | AF56: =IF(V56="","",IF($AF$66<$G56,0,IF(SUM($X56:AE56)>=$C56,0,$C56))) ->  | AG56: =IF(V56="","",IF($AG$66<$G56,0,IF(SUM($X56:AF56)>=$C56,0,$C56))) ->  | AH56: =IF(V56="","",IF($AH$66<$G56,0,IF(SUM($X56:AG56)>=$C56,0,$C56))) ->  | AI56: =IF(V56="","",IF($AI$66<$G56,0,IF(SUM($X56:AH56)>=$C56,0,$C56))) ->  | AJ56: =IF(V56="","",IF($AJ$66<$G56,0,IF(SUM($X56:AI56)>=$C56,0,$C56))) ->  | AK56: =IF(V56="","",IF($AK$66<$G56,0,IF(SUM($X56:AJ56)>=$C56,0,$C56))) ->  | AL56: =IF(V56="","",IF($AL$66<$G56,0,IF(SUM($X56:AK56)>=$C56,0,$C56))) ->  | AM56: =IF(V56="","",IF($AM$66<$G56,0,IF(SUM($X56:AL56)>=$C56,0,$C56))) ->  | AN56: =IF(V56="","",IF($AN$66<$G56,0,IF(SUM($X56:AM56)>=$C56,0,$C56))) ->  | AO56: =IF(V56="","",IF($AO$66<$G56,0,IF(SUM($X56:AN56)>=$C56,0,$C56))) ->  | AP56: =IF(V56="","",IF($AP$66<$G56,0,IF(SUM($X56:AO56)>=$C56,0,$C56))) ->  | AQ56: =IF(V56="","",IF($AQ$66<$G56,0,IF(SUM($X56:AP56)>=$C56,0,$C56))) ->  | AR56: =IF(V56="","",IF($AR$66<$G56,0,IF(SUM($X56:AQ56)>=$C56,0,$C56))) ->  | AS56: 48
F57: Normal | G57: 0 | I57: Sim | J57: Sim | P57: 0 | Y57: =IF(V57="","",IF($Y$66<$G57,0,IF(SUM($X57:X57)>=$C57,0,$C57))) ->  | Z57: =IF(V57="","",IF($Z$66<$G57,0,IF(SUM($X57:Y57)>=$C57,0,$C57))) ->  | AA57: =IF(V57="","",IF($AA$66<$G57,0,IF(SUM($X57:Z57)>=$C57,0,$C57))) ->  | AB57: =IF(V57="","",IF($AB$66<$G57,0,IF(SUM($X57:AA57)>=$C57,0,$C57))) ->  | AC57: =IF(V57="","",IF($AC$66<$G57,0,IF(SUM($X57:AB57)>=$C57,0,$C57))) ->  | AD57: =IF(V57="","",IF($AD$66<$G57,0,IF(SUM($X57:AC57)>=$C57,0,$C57))) ->  | AE57: =IF(V57="","",IF($AE$66<$G57,0,IF(SUM($X57:AD57)>=$C57,0,$C57))) ->  | AF57: =IF(V57="","",IF($AF$66<$G57,0,IF(SUM($X57:AE57)>=$C57,0,$C57))) ->  | AG57: =IF(V57="","",IF($AG$66<$G57,0,IF(SUM($X57:AF57)>=$C57,0,$C57))) ->  | AH57: =IF(V57="","",IF($AH$66<$G57,0,IF(SUM($X57:AG57)>=$C57,0,$C57))) ->  | AI57: =IF(V57="","",IF($AI$66<$G57,0,IF(SUM($X57:AH57)>=$C57,0,$C57))) ->  | AJ57: =IF(V57="","",IF($AJ$66<$G57,0,IF(SUM($X57:AI57)>=$C57,0,$C57))) ->  | AK57: =IF(V57="","",IF($AK$66<$G57,0,IF(SUM($X57:AJ57)>=$C57,0,$C57))) ->  | AL57: =IF(V57="","",IF($AL$66<$G57,0,IF(SUM($X57:AK57)>=$C57,0,$C57))) ->  | AM57: =IF(V57="","",IF($AM$66<$G57,0,IF(SUM($X57:AL57)>=$C57,0,$C57))) ->  | AN57: =IF(V57="","",IF($AN$66<$G57,0,IF(SUM($X57:AM57)>=$C57,0,$C57))) ->  | AO57: =IF(V57="","",IF($AO$66<$G57,0,IF(SUM($X57:AN57)>=$C57,0,$C57))) ->  | AP57: =IF(V57="","",IF($AP$66<$G57,0,IF(SUM($X57:AO57)>=$C57,0,$C57))) ->  | AQ57: =IF(V57="","",IF($AQ$66<$G57,0,IF(SUM($X57:AP57)>=$C57,0,$C57))) ->  | AR57: =IF(V57="","",IF($AR$66<$G57,0,IF(SUM($X57:AQ57)>=$C57,0,$C57))) ->  | AS57: 49
G58: 0 | I58: Sim | J58: Sim | P58: 0 | Y58: =IF(V58="","",IF($Y$66<$G58,0,IF(SUM($X58:X58)>=$C58,0,$C58))) ->  | Z58: =IF(V58="","",IF($Z$66<$G58,0,IF(SUM($X58:Y58)>=$C58,0,$C58))) ->  | AA58: =IF(V58="","",IF($AA$66<$G58,0,IF(SUM($X58:Z58)>=$C58,0,$C58))) ->  | AB58: =IF(V58="","",IF($AB$66<$G58,0,IF(SUM($X58:AA58)>=$C58,0,$C58))) ->  | AC58: =IF(V58="","",IF($AC$66<$G58,0,IF(SUM($X58:AB58)>=$C58,0,$C58))) ->  | AD58: =IF(V58="","",IF($AD$66<$G58,0,IF(SUM($X58:AC58)>=$C58,0,$C58))) ->  | AE58: =IF(V58="","",IF($AE$66<$G58,0,IF(SUM($X58:AD58)>=$C58,0,$C58))) ->  | AF58: =IF(V58="","",IF($AF$66<$G58,0,IF(SUM($X58:AE58)>=$C58,0,$C58))) ->  | AG58: =IF(V58="","",IF($AG$66<$G58,0,IF(SUM($X58:AF58)>=$C58,0,$C58))) ->  | AH58: =IF(V58="","",IF($AH$66<$G58,0,IF(SUM($X58:AG58)>=$C58,0,$C58))) ->  | AI58: =IF(V58="","",IF($AI$66<$G58,0,IF(SUM($X58:AH58)>=$C58,0,$C58))) ->  | AJ58: =IF(V58="","",IF($AJ$66<$G58,0,IF(SUM($X58:AI58)>=$C58,0,$C58))) ->  | AK58: =IF(V58="","",IF($AK$66<$G58,0,IF(SUM($X58:AJ58)>=$C58,0,$C58))) ->  | AL58: =IF(V58="","",IF($AL$66<$G58,0,IF(SUM($X58:AK58)>=$C58,0,$C58))) ->  | AM58: =IF(V58="","",IF($AM$66<$G58,0,IF(SUM($X58:AL58)>=$C58,0,$C58))) ->  | AN58: =IF(V58="","",IF($AN$66<$G58,0,IF(SUM($X58:AM58)>=$C58,0,$C58))) ->  | AO58: =IF(V58="","",IF($AO$66<$G58,0,IF(SUM($X58:AN58)>=$C58,0,$C58))) ->  | AP58: =IF(V58="","",IF($AP$66<$G58,0,IF(SUM($X58:AO58)>=$C58,0,$C58))) ->  | AQ58: =IF(V58="","",IF($AQ$66<$G58,0,IF(SUM($X58:AP58)>=$C58,0,$C58))) ->  | AR58: =IF(V58="","",IF($AR$66<$G58,0,IF(SUM($X58:AQ58)>=$C58,0,$C58))) ->  | AS58: 50
G59: 0 | I59: Sim | J59: Sim | N59: 10 | P59: 0 | Y59: =IF(V59="","",IF($Y$66<$G59,0,IF(SUM($X59:X59)>=$C59,0,$C59))) ->  | Z59: =IF(V59="","",IF($Z$66<$G59,0,IF(SUM($X59:Y59)>=$C59,0,$C59))) ->  | AA59: =IF(V59="","",IF($AA$66<$G59,0,IF(SUM($X59:Z59)>=$C59,0,$C59))) ->  | AB59: =IF(V59="","",IF($AB$66<$G59,0,IF(SUM($X59:AA59)>=$C59,0,$C59))) ->  | AC59: =IF(V59="","",IF($AC$66<$G59,0,IF(SUM($X59:AB59)>=$C59,0,$C59))) ->  | AD59: =IF(V59="","",IF($AD$66<$G59,0,IF(SUM($X59:AC59)>=$C59,0,$C59))) ->  | AE59: =IF(V59="","",IF($AE$66<$G59,0,IF(SUM($X59:AD59)>=$C59,0,$C59))) ->  | AF59: =IF(V59="","",IF($AF$66<$G59,0,IF(SUM($X59:AE59)>=$C59,0,$C59))) ->  | AG59: =IF(V59="","",IF($AG$66<$G59,0,IF(SUM($X59:AF59)>=$C59,0,$C59))) ->  | AH59: =IF(V59="","",IF($AH$66<$G59,0,IF(SUM($X59:AG59)>=$C59,0,$C59))) ->  | AI59: =IF(V59="","",IF($AI$66<$G59,0,IF(SUM($X59:AH59)>=$C59,0,$C59))) ->  | AJ59: =IF(V59="","",IF($AJ$66<$G59,0,IF(SUM($X59:AI59)>=$C59,0,$C59))) ->  | AK59: =IF(V59="","",IF($AK$66<$G59,0,IF(SUM($X59:AJ59)>=$C59,0,$C59))) ->  | AL59: =IF(V59="","",IF($AL$66<$G59,0,IF(SUM($X59:AK59)>=$C59,0,$C59))) ->  | AM59: =IF(V59="","",IF($AM$66<$G59,0,IF(SUM($X59:AL59)>=$C59,0,$C59))) ->  | AN59: =IF(V59="","",IF($AN$66<$G59,0,IF(SUM($X59:AM59)>=$C59,0,$C59))) ->  | AO59: =IF(V59="","",IF($AO$66<$G59,0,IF(SUM($X59:AN59)>=$C59,0,$C59))) ->  | AP59: =IF(V59="","",IF($AP$66<$G59,0,IF(SUM($X59:AO59)>=$C59,0,$C59))) ->  | AQ59: =IF(V59="","",IF($AQ$66<$G59,0,IF(SUM($X59:AP59)>=$C59,0,$C59))) ->  | AR59: =IF(V59="","",IF($AR$66<$G59,0,IF(SUM($X59:AQ59)>=$C59,0,$C59))) ->  | AS59: 51
V60: Total | X60: =SUM(X10:X59) -> 0 | Y60: =SUM(Y10:Y59) -> 0 | Z60: =SUM(Z10:Z59) -> 0 | AA60: =SUM(AA10:AA59) -> 0 | AB60: =SUM(AB10:AB59) -> 0 | AC60: =SUM(AC10:AC59) -> 0 | AD60: =SUM(AD10:AD59) -> 0 | AE60: =SUM(AE10:AE59) -> 0 | AF60: =SUM(AF10:AF59) -> 0 | AG60: =SUM(AG10:AG59) -> 0 | AH60: =SUM(AH10:AH59) -> 0 | AI60: =SUM(AI10:AI59) -> 0 | AJ60: =SUM(AJ10:AJ59) -> 0 | AK60: =SUM(AK10:AK59) -> 0 | AL60: =SUM(AL10:AL59) -> 0 | AM60: =SUM(AM10:AM59) -> 0 | AN60: =SUM(AN10:AN59) -> 0 | AO60: =SUM(AO10:AO59) -> 0 | AP60: =SUM(AP10:AP59) -> 0 | AQ60: =SUM(AQ10:AQ59) -> 0 | AR60: =SUM(AR10:AR59) -> 0 | AU60: Total | AW60: =SUM(AW10:AW59) -> 0 | AX60: =SUM(AX10:AX59) -> 0 | AY60: =SUM(AY10:AY59) -> 0 | AZ60: =SUM(AZ10:AZ59) -> 0 | BA60: =SUM(BA10:BA59) -> 0 | BB60: =SUM(BB10:BB59) -> 0 | BC60: =SUM(BC10:BC59) -> 0 | BD60: =SUM(BD10:BD59) -> 0 | BE60: =SUM(BE10:BE59) -> 0 | BF60: =SUM(BF10:BF59) -> 0 | BG60: =SUM(BG10:BG59) -> 0 | BH60: =SUM(BH10:BH59) -> 0 | BI60: =SUM(BI10:BI59) -> 0 | BJ60: =SUM(BJ10:BJ59) -> 0 | BK60: =SUM(BK10:BK59) -> 0 | BL60: =SUM(BL10:BL59) -> 0 | BM60: =SUM(BM10:BM59) -> 0 | BN60: =SUM(BN10:BN59) -> 0 | BO60: =SUM(BO10:BO59) -> 0 | BP60: =SUM(BP10:BP59) -> 0 | BQ60: =SUM(BQ10:BQ59) -> 0 | BS60: Total | BU60: =SUM(BU10:BU59) -> 0 | BV60: =SUM(BV10:BV59) -> 0 | BW60: =SUM(BW10:BW59) -> 0 | BX60: =SUM(BX10:BX59) -> 0 | BY60: =SUM(BY10:BY59) -> 0 | BZ60: =SUM(BZ10:BZ59) -> 0 | CA60: =SUM(CA10:CA59) -> 0 | CB60: =SUM(CB10:CB59) -> 0 | CC60: =SUM(CC10:CC59) -> 0 | CD60: =SUM(CD10:CD59) -> 0 | CE60: =SUM(CE10:CE59) -> 0 | CF60: =SUM(CF10:CF59) -> 0 | CG60: =SUM(CG10:CG59) -> 0 | CH60: =SUM(CH10:CH59) -> 0 | CI60: =SUM(CI10:CI59) -> 0 | CJ60: =SUM(CJ10:CJ59) -> 0 | CK60: =SUM(CK10:CK59) -> 0 | CL60: =SUM(CL10:CL59) -> 0 | CM60: =SUM(CM10:CM59) -> 0 | CN60: =SUM(CN10:CN59) -> 0 | CO60: =SUM(CO10:CO59) -> 0 | CQ60: total | CT60: =SUM(CT10:CT59) -> 0 | CU60: =SUM(CU10:CU59) -> 0 | CV60: =SUM(CV10:CV59) -> 0 | CW60: =SUM(CW10:CW59) -> 0 | CX60: =SUM(CX10:CX59) -> 0 | CY60: =SUM(CY10:CY59) -> 0 | CZ60: =SUM(CZ10:CZ59) -> 0 | DA60: =SUM(DA10:DA59) -> 0 | DB60: =SUM(DB10:DB59) -> 0 | DC60: =SUM(DC10:DC59) -> 0 | DD60: =SUM(DD10:DD59) -> 0 | DE60: =SUM(DE10:DE59) -> 0 | DF60: =SUM(DF10:DF59) -> 0 | DG60: =SUM(DG10:DG59) -> 0 | DH60: =SUM(DH10:DH59) -> 0 | DI60: =SUM(DI10:DI59) -> 0 | DJ60: =SUM(DJ10:DJ59) -> 0 | DK60: =SUM(DK10:DK59) -> 0 | DL60: =SUM(DL10:DL59) -> 0 | DM60: =SUM(DM10:DM59) -> 0 | DN60: =SUM(DN10:DN59) -> 0 | DP60: total | DS60: =SUM(DS10:DS59) -> 0 | DT60: =SUM(DT10:DT59) -> 0 | DU60: =SUM(DU10:DU59) -> 0 | DV60: =SUM(DV10:DV59) -> 0 | DW60: =SUM(DW10:DW59) -> 0 | DX60: =SUM(DX10:DX59) -> 0 | DY60: =SUM(DY10:DY59) -> 0 | DZ60: =SUM(DZ10:DZ59) -> 0 | EA60: =SUM(EA10:EA59) -> 0 | EB60: =SUM(EB10:EB59) -> 0 | EC60: =SUM(EC10:EC59) -> 0 | ED60: =SUM(ED10:ED59) -> 0 | EE60: =SUM(EE10:EE59) -> 0 | EF60: =SUM(EF10:EF59) -> 0 | EG60: =SUM(EG10:EG59) -> 0 | EH60: =SUM(EH10:EH59) -> 0 | EI60: =SUM(EI10:EI59) -> 0 | EJ60: =SUM(EJ10:EJ59) -> 0 | EK60: =SUM(EK10:EK59) -> 0 | EL60: =SUM(EL10:EL59) -> 0 | EM60: =SUM(EM10:EM59) -> 0 | EO60: Total | EQ60: =SUM(EQ10:EQ59) -> 0 | ER60: =SUM(ER10:ER59) -> 0 | ES60: =SUM(ES10:ES59) -> 0 | ET60: =SUM(ET10:ET59) -> 0 | EU60: =SUM(EU10:EU59) -> 0 | EV60: =SUM(EV10:EV59) -> 0 | EW60: =SUM(EW10:EW59) -> 0 | EX60: =SUM(EX10:EX59) -> 0 | EY60: =SUM(EY10:EY59) -> 0 | EZ60: =SUM(EZ10:EZ59) -> 0 | FA60: =SUM(FA10:FA59) -> 0 | FB60: =SUM(FB10:FB59) -> 0 | FC60: =SUM(FC10:FC59) -> 0 | FD60: =SUM(FD10:FD59) -> 0 | FE60: =SUM(FE10:FE59) -> 0 | FF60: =SUM(FF10:FF59) -> 0 | FG60: =SUM(FG10:FG59) -> 0 | FH60: =SUM(FH10:FH59) -> 0 | FI60: =SUM(FI10:FI59) -> 0 | FJ60: =SUM(FJ10:FJ59) -> 0 | FK60: =SUM(FK10:FK59) -> 0 | FM60: total | FP60: =SUM(FP10:FP59) -> 0 | FQ60: =SUM(FQ10:FQ59) -> 0 | FR60: =SUM(FR10:FR59) -> 0 | FS60: =SUM(FS10:FS59) -> 0 | FT60: =SUM(FT10:FT59) -> 0 | FU60: =SUM(FU10:FU59) -> 0 | FV60: =SUM(FV10:FV59) -> 0 | FW60: =SUM(FW10:FW59) -> 0 | FX60: =SUM(FX10:FX59) -> 0 | FY60: =SUM(FY10:FY59) -> 0 | FZ60: =SUM(FZ10:FZ59) -> 0 | GA60: =SUM(GA10:GA59) -> 0 | GB60: =SUM(GB10:GB59) -> 0 | GC60: =SUM(GC10:GC59) -> 0 | GD60: =SUM(GD10:GD59) -> 0 | GE60: =SUM(GE10:GE59) -> 0 | GF60: =SUM(GF10:GF59) -> 0 | GG60: =SUM(GG10:GG59) -> 0 | GH60: =SUM(GH10:GH59) -> 0 | GI60: =SUM(GI10:GI59) -> 0 | GJ60: =SUM(GJ10:GJ59) -> 0
B65: ='Dados propriedade'!$J$31 -> Leite | V65: Investimentos | X65: Fisico | AU65: Reinvestimento | AW65: Fisico | BS65: Total | BU65: Fisico | CQ65: Valor investimento e reinvestimento | CT65: R$ | DP65: Depreciação | DS65: R$ | EO65: Venda Ativos | EQ65: R$ | FM65: Valor de liquidacao | FP65: R$
B66: Item | C66: Quantidade Inicial | D66: Unidade | E66: Custo Real Unitário CIF1 (R$/Unidade) | F66: Velocidade de Depreciação | G66: Período Inicial do Investimento | H66: Tempo de Uso2 (Anos) | I66: Modelar Reinvestimentos3 ? | J66: Incluir Valor de Liquidação? | K66: Valor Residual4 (%) | L66: Taxa de Depreciação Contábil (%) | M66: Vida Útil Ajustada (Anos) | N66: Vida Útil Legal (Anos) | O66: Taxa de Depreciação Real (%) | P66: Cresc. Real Médio Anual no Custo (%) | Q66: Observações | X66: 0 | Y66: 1 | Z66: 2 | AA66: 3 | AB66: 4 | AC66: 5 | AD66: 6 | AE66: 7 | AF66: 8 | AG66: 9 | AH66: 10 | AI66: 11 | AJ66: 12 | AK66: 13 | AL66: 14 | AM66: 15 | AN66: 16 | AO66: 17 | AP66: 18 | AQ66: 19 | AR66: 20 | AS66: 1 | AW66: 0 | AX66: 1 | AY66: 2 | AZ66: 3 | BA66: 4 | BB66: 5 | BC66: 6 | BD66: 7 | BE66: 8 | BF66: 9 | BG66: 10 | BH66: 11 | BI66: 12 | BJ66: 13 | BK66: 14 | BL66: 15 | BM66: 16 | BN66: 17 | BO66: 18 | BP66: 19 | BQ66: 20 | BU66: 0 | BV66: 1 | BW66: 2 | BX66: 3 | BY66: 4 | BZ66: 5 | CA66: 6 | CB66: 7 | CC66: 8 | CD66: 9 | CE66: 10 | CF66: 11 | CG66: 12 | CH66: 13 | CI66: 14 | CJ66: 15 | CK66: 16 | CL66: 17 | CM66: 18 | CN66: 19 | CO66: 20 | CQ66: Item | CR66: Custo Real Unitário CIF (R$/Unidade) | CS66: Crescimento Real Médio Anual (%) | CT66: 0 | CU66: 1 | CV66: 2 | CW66: 3 | CX66: 4 | CY66: 5 | CZ66: 6 | DA66: 7 | DB66: 8 | DC66: 9 | DD66: 10 | DE66: 11 | DF66: 12 | DG66: 13 | DH66: 14 | DI66: 15 | DJ66: 16 | DK66: 17 | DL66: 18 | DM66: 19 | DN66: 20 | DP66: Item | DQ66: Depreciação contabil anual (%) | DR66: Vida Útil (anos) | DS66: 0 | DT66: 1 | DU66: 2 | DV66: 3 | DW66: 4 | DX66: 5 | DY66: 6 | DZ66: 7 | EA66: 8 | EB66: 9 | EC66: 10 | ED66: 11 | EE66: 12 | EF66: 13 | EG66: 14 | EH66: 15 | EI66: 16 | EJ66: 17 | EK66: 18 | EL66: 19 | EM66: 20 | EQ66: 0 | ER66: 1 | ES66: 2 | ET66: 3 | EU66: 4 | EV66: 5 | EW66: 6 | EX66: 7 | EY66: 8 | EZ66: 9 | FA66: 10 | FB66: 11 | FC66: 12 | FD66: 13 | FE66: 14 | FF66: 15 | FG66: 16 | FH66: 17 | FI66: 18 | FJ66: 19 | FK66: 20 | FM66: Item | FN66: Depreciação real anual (%) | FO66: Tempo de uso (anos) | FP66: 0 | FQ66: 1 | FR66: 2 | FS66: 3 | FT66: 4 | FU66: 5 | FV66: 6 | FW66: 7 | FX66: 8 | FY66: 9 | FZ66: 10 | GA66: 11 | GB66: 12 | GC66: 13 | GD66: 14 | GE66: 15 | GF66: 16 | GG66: 17 | GH66: 18 | GI66: 19 | GJ66: 20
F67: Normal | G67: 0 | I67: Sim | J67: Sim | L67: =IF(B67="","",IF(F67="Três turnos",2*(1/N67),IF(F67="Dois turnos",1.5*(1/N67),1/N67))) ->  | M67: =IF(B67="","",ROUNDUP(1/L67,0)) ->  | N67: =IF(H67="","",H67) ->  | O67: =IF(B67="","",(100%-K67)/H67) ->  | P67: 0 | V67: =IF($B67="","",$B67) ->  | X67: =IF(V67="","",IF($X$66<G67,0,C67)) ->  | Y67: =IF(V67="","",IF($Y$66<$G67,0,IF(SUM($X67:X67)>=$C67,0,$C67))) ->  | Z67: =IF(V67="","",IF($Z$66<$G67,0,IF(SUM($X67:Y67)>=$C67,0,$C67))) ->  | AA67: =IF(V67="","",IF($AA$66<$G67,0,IF(SUM($X67:Z67)>=$C67,0,$C67))) ->  | AB67: =IF(V67="","",IF($AB$66<$G67,0,IF(SUM($X67:AA67)>=$C67,0,$C67))) ->  | AC67: =IF(V67="","",IF($AC$66<$G67,0,IF(SUM($X67:AB67)>=$C67,0,$C67))) ->  | AD67: =IF(V67="","",IF($AD$66<$G67,0,IF(SUM($X67:AC67)>=$C67,0,$C67))) ->  | AE67: =IF(V67="","",IF($AE$66<$G67,0,IF(SUM($X67:AD67)>=$C67,0,$C67))) ->  | AF67: =IF(V67="","",IF($AF$66<$G67,0,IF(SUM($X67:AE67)>=$C67,0,$C67))) ->  | AG67: =IF(V67="","",IF($AG$66<$G67,0,IF(SUM($X67:AF67)>=$C67,0,$C67))) ->  | AH67: =IF(V67="","",IF($AH$66<$G67,0,IF(SUM($X67:AG67)>=$C67,0,$C67))) ->  | AI67: =IF(V67="","",IF($AI$66<$G67,0,IF(SUM($X67:AH67)>=$C67,0,$C67))) ->  | AJ67: =IF(V67="","",IF($AJ$66<$G67,0,IF(SUM($X67:AI67)>=$C67,0,$C67))) ->  | AK67: =IF(V67="","",IF($AK$66<$G67,0,IF(SUM($X67:AJ67)>=$C67,0,$C67))) ->  | AL67: =IF(V67="","",IF($AL$66<$G67,0,IF(SUM($X67:AK67)>=$C67,0,$C67))) ->  | AM67: =IF(V67="","",IF($AM$66<$G67,0,IF(SUM($X67:AL67)>=$C67,0,$C67))) ->  | AN67: =IF(V67="","",IF($AN$66<$G67,0,IF(SUM($X67:AM67)>=$C67,0,$C67))) ->  | AO67: =IF(V67="","",IF($AO$66<$G67,0,IF(SUM($X67:AN67)>=$C67,0,$C67))) ->  | AP67: =IF(V67="","",IF($AP$66<$G67,0,IF(SUM($X67:AO67)>=$C67,0,$C67))) ->  | AQ67: =IF(V67="","",IF($AQ$66<$G67,0,IF(SUM($X67:AP67)>=$C67,0,$C67))) ->  | AR67: =IF(V67="","",IF($AR$66<$G67,0,IF(SUM($X67:AQ67)>=$C67,0,$C67))) ->  | AS67: 2 | AU67: =IF($B67="","",$B67) ->  | AW67: =IF(AU67="","",0) ->  | AX67: =IF(OR($AU67="",$H67=""),"",IF($I67="Sim",IF(AX$66-$H67>=0,HLOOKUP(AX$66-$H67,$AW$66:$BQ$116,$AS67,FALSE)+HLOOKUP(AX$66-$H67,$X$66:$AR$116,$AS67,FALSE),0),0)) ->  | BH67: =IF(OR($AU67="",$H67=""),"",IF($I67="Sim",IF(BH$66-$H67>=0,HLOOKUP(BH$66-$H67,$AW$66:$BQ$116,$AS67,FALSE)+HLOOKUP(BH$66-$H67,$X$66:$AR$116,$AS67,FALSE),0),0)) ->  | BS67: =IF($B67="","",$B67) ->  | BU67: =IF($BS67="","",SUM(X67,AW67)) ->  | BV67: =IF($BS67="","",SUM(Y67,AX67)) ->  | CQ67: =""&$B67 ->  | CR67: =IF(CQ67="","",E67) ->  | CT67: =IF($CQ67="","",$CR67*BU67) ->  | CU67: =IF($CQ67="","",$CR67*BV67) ->  | DG67: =IF($CQ67="","",$CR67*CH67) ->  | DP67: =""&$B67 ->  | DQ67: =L67 ->  | DR67: =M67 ->  | DS67: =IF(DP67="","",0) ->  | DT67: =IF($DP67="","",IF(($DS$66+$DR67)>DS$66,$CT67*$DQ67,0)) ->  | DU67: =IF($DP67="","",IF($DP67="","",IF(($DS$66+$DR67)>DT$66,$CT67*$DQ67,0)+IF(($DT$66+$DR67)>DT$66,$CU67*$DQ67,0))) ->  | DV67: =IF($DP67="","",IF($DP67="","",IF(($DS$66+$DR67)>DU$66,$CT67*$DQ67,0)+IF(($DT$66+$DR67)>DU$66,$CU67*$DQ67,0)+IF(($DU$66+$DR67)>DU$66,$CV67*$DQ67,0))) ->  | DW67: =IF($DP67="","",IF($DP67="","",IF(($DS$66+$DR67)>DV$66,$CT67*$DQ67,0)+IF(($DT$66+$DR67)>DV$66,$CU67*$DQ67,0)+IF(($DU$66+$DR67)>DV$66,$CV67*$DQ67,0)+IF(($DV$66+$DR67)>DV$66,$CW67*$DQ67,0))) ->  | DX67: =IF($DP67="","",IF($DP67="","",IF(($DS$66+$DR67)>DW$66,$CT67*$DQ67,0)+IF(($DT$66+$DR67)>DW$66,$CU67*$DQ67,0)+IF(($DU$66+$DR67)>DW$66,$CV67*$DQ67,0)+IF(($DV$66+$DR67)>DW$66,$CW67*$DQ67,0)+IF(($DW$66+$DR67)>DW$66,$CX67*$DQ67,0))) ->  | DY67: =IF($DP67="","",IF(($DS$66+$DR67)>DX$66,$CT67*$DQ67,0)+IF(($DT$66+$DR67)>DX$66,$CU67*$DQ67,0)+IF(($DU$66+$DR67)>DX$66,$CV67*$DQ67,0)+IF(($DV$66+$DR67)>DX$66,$CW67*$DQ67,0)+IF(($DW$66+$DR67)>DX$66,$CX67*$DQ67,0)+IF(($DX$66+$DR67)>DX$66,$CY67*$DQ67,0)) ->  | DZ67: =IF($DP67="","",IF($DP67="","",IF(($DS$66+$DR67)>DY$66,$CT67*$DQ67,0)+IF(($DT$66+$DR67)>DY$66,$CU67*$DQ67,0)+IF(($DU$66+$DR67)>DY$66,$CV67*$DQ67,0)+IF(($DV$66+$DR67)>DY$66,$CW67*$DQ67,0)+IF(($DW$66+$DR67)>DY$66,$CX67*$DQ67,0)+IF(($DX$66+$DR67)>DY$66,$CY67*$DQ67,0)+IF(($DY$66+$DR67)>DY$66,$CZ67*$DQ67,0))) ->  | EA67: =IF($DP67="","",IF($DP67="","",IF(($DS$66+$DR67)>DZ$66,$CT67*$DQ67,0)+IF(($DT$66+$DR67)>DZ$66,$CU67*$DQ67,0)+IF(($DU$66+$DR67)>DZ$66,$CV67*$DQ67,0)+IF(($DV$66+$DR67)>DZ$66,$CW67*$DQ67,0)+IF(($DW$66+$DR67)>DZ$66,$CX67*$DQ67,0)+IF(($DX$66+$DR67)>DZ$66,$CY67*$DQ67,0)+IF(($DY$66+$DR67)>DZ$66,$CZ67*$DQ67,0)+IF(($DZ$66+$DR67)>DZ$66,$DA67*$DQ67,0))) ->  | EB67: =IF($DP67="","",IF($DP67="","",IF(($DS$66+$DR67)>EA$66,$CT67*$DQ67,0)+IF(($DT$66+$DR67)>EA$66,$CU67*$DQ67,0)+IF(($DU$66+$DR67)>EA$66,$CV67*$DQ67,0)+IF(($DV$66+$DR67)>EA$66,$CW67*$DQ67,0)+IF(($DW$66+$DR67)>EA$66,$CX67*$DQ67,0)+IF(($DX$66+$DR67)>EA$66,$CY67*$DQ67,0)+IF(($DY$66+$DR67)>EA$66,$CZ67*$DQ67,0)+IF(($DZ$66+$DR67)>EA$66,$DA67*$DQ67,0)+IF(($EA$66+$DR67)>EA$66,$DB67*$DQ67,0))) ->  | EC67: =IF($DP67="","",IF($DP67="","",IF(($DS$66+$DR67)>EB$66,$CT67*$DQ67,0)+IF(($DT$66+$DR67)>EB$66,$CU67*$DQ67,0)+IF(($DU$66+$DR67)>EB$66,$CV67*$DQ67,0)+IF(($DV$66+$DR67)>EB$66,$CW67*$DQ67,0)+IF(($DW$66+$DR67)>EB$66,$CX67*$DQ67,0)+IF(($DX$66+$DR67)>EB$66,$CY67*$DQ67,0)+IF(($DY$66+$DR67)>EB$66,$CZ67*$DQ67,0)+IF(($DZ$66+$DR67)>EB$66,$DA67*$DQ67,0)+IF(($EA$66+$DR67)>EB$66,$DB67*$DQ67,0)+IF(($EB$66+$DR67)>EB$66,$DC67*$DQ67,0))) ->  | ED67: =IF($DP67="","",IF($DP67="","",IF(($DS$66+$DR67)>EC$66,$CT67*$DQ67,0)+IF(($DT$66+$DR67)>EC$66,$CU67*$DQ67,0)+IF(($DU$66+$DR67)>EC$66,$CV67*$DQ67,0)+IF(($DV$66+$DR67)>EC$66,$CW67*$DQ67,0)+IF(($DW$66+$DR67)>EC$66,$CX67*$DQ67,0)+IF(($DX$66+$DR67)>EC$66,$CY67*$DQ67,0)+IF(($DY$66+$DR67)>EC$66,$CZ67*$DQ67,0)+IF(($DZ$66+$DR67)>EC$66,$DA67*$DQ67,0)+IF(($EA$66+$DR67)>EC$66,$DB67*$DQ67,0)+IF(($EB$66+$DR67)>EC$66,$DC67*$DQ67,0)+IF(($EC$66+$DR67)>EC$66,$DD67*$DQ67,0))) ->  | EE67: =IF($DP67="","",IF($DP67="","",IF(($DS$66+$DR67)>ED$66,$CT67*$DQ67,0)+IF(($DT$66+$DR67)>ED$66,$CU67*$DQ67,0)+IF(($DU$66+$DR67)>ED$66,$CV67*$DQ67,0)+IF(($DV$66+$DR67)>ED$66,$CW67*$DQ67,0)+IF(($DW$66+$DR67)>ED$66,$CX67*$DQ67,0)+IF(($DX$66+$DR67)>ED$66,$CY67*$DQ67,0)+IF(($DY$66+$DR67)>ED$66,$CZ67*$DQ67,0)+IF(($DZ$66+$DR67)>ED$66,$DA67*$DQ67,0)+IF(($EA$66+$DR67)>ED$66,$DB67*$DQ67,0)+IF(($EB$66+$DR67)>ED$66,$DC67*$DQ67,0)+IF(($EC$66+$DR67)>ED$66,$DD67*$DQ67,0)+IF(($ED$66+$DR67)>ED$66,$DE67*$DQ67,0))) ->  | EF67: =IF($DP67="","",IF($DP67="","",IF(($DS$66+$DR67)>EE$66,$CT67*$DQ67,0)+IF(($DT$66+$DR67)>EE$66,$CU67*$DQ67,0)+IF(($DU$66+$DR67)>EE$66,$CV67*$DQ67,0)+IF(($DV$66+$DR67)>EE$66,$CW67*$DQ67,0)+IF(($DW$66+$DR67)>EE$66,$CX67*$DQ67,0)+IF(($DX$66+$DR67)>EE$66,$CY67*$DQ67,0)+IF(($DY$66+$DR67)>EE$66,$CZ67*$DQ67,0)+IF(($DZ$66+$DR67)>EE$66,$DA67*$DQ67,0)+IF(($EA$66+$DR67)>EE$66,$DB67*$DQ67,0)+IF(($EB$66+$DR67)>EE$66,$DC67*$DQ67,0)+IF(($EC$66+$DR67)>EE$66,$DD67*$DQ67,0)+IF(($ED$66+$DR67)>EE$66,$DE67*$DQ67,0)+IF(($EE$66+$DR67)>EE$66,$DF67*$DQ67,0))) ->  | EG67: =IF($DP67="","",IF($DP67="","",IF(($DS$66+$DR67)>EF$66,$CT67*$DQ67,0)+IF(($DT$66+$DR67)>EF$66,$CU67*$DQ67,0)+IF(($DU$66+$DR67)>EF$66,$CV67*$DQ67,0)+IF(($DV$66+$DR67)>EF$66,$CW67*$DQ67,0)+IF(($DW$66+$DR67)>EF$66,$CX67*$DQ67,0)+IF(($DX$66+$DR67)>EF$66,$CY67*$DQ67,0)+IF(($DY$66+$DR67)>EF$66,$CZ67*$DQ67,0)+IF(($DZ$66+$DR67)>EF$66,$DA67*$DQ67,0)+IF(($EA$66+$DR67)>EF$66,$DB67*$DQ67,0)+IF(($EB$66+$DR67)>EF$66,$DC67*$DQ67,0)+IF(($EC$66+$DR67)>EF$66,$DD67*$DQ67,0)+IF(($ED$66+$DR67)>EF$66,$DE67*$DQ67,0)+IF(($EE$66+$DR67)>EF$66,$DF67*$DQ67,0)+IF(($EF$66+$DR67)>EF$66,$DG67*$DQ67,0))) ->  | EH67: =IF($DP67="","",IF($DP67="","",IF(($DS$66+$DR67)>EG$66,$CT67*$DQ67,0)+IF(($DT$66+$DR67)>EG$66,$CU67*$DQ67,0)+IF(($DU$66+$DR67)>EG$66,$CV67*$DQ67,0)+IF(($DV$66+$DR67)>EG$66,$CW67*$DQ67,0)+IF(($DW$66+$DR67)>EG$66,$CX67*$DQ67,0)+IF(($DX$66+$DR67)>EG$66,$CY67*$DQ67,0)+IF(($DY$66+$DR67)>EG$66,$CZ67*$DQ67,0)+IF(($DZ$66+$DR67)>EG$66,$DA67*$DQ67,0)+IF(($EA$66+$DR67)>EG$66,$DB67*$DQ67,0)+IF(($EB$66+$DR67)>EG$66,$DC67*$DQ67,0)+IF(($EC$66+$DR67)>EG$66,$DD67*$DQ67,0)+IF(($ED$66+$DR67)>EG$66,$DE67*$DQ67,0)+IF(($EE$66+$DR67)>EG$66,$DF67*$DQ67,0)+IF(($EF$66+$DR67)>EG$66,$DG67*$DQ67,0)+IF(($EG$66+$DR67)>EG$66,$DH67*$DQ67,0))) ->  | EI67: =IF($DP67="","",IF($DP67="","",IF(($DS$66+$DR67)>EH$66,$CT67*$DQ67,0)+IF(($DT$66+$DR67)>EH$66,$CU67*$DQ67,0)+IF(($DU$66+$DR67)>EH$66,$CV67*$DQ67,0)+IF(($DV$66+$DR67)>EH$66,$CW67*$DQ67,0)+IF(($DW$66+$DR67)>EH$66,$CX67*$DQ67,0)+IF(($DX$66+$DR67)>EH$66,$CY67*$DQ67,0)+IF(($DY$66+$DR67)>EH$66,$CZ67*$DQ67,0)+IF(($DZ$66+$DR67)>EH$66,$DA67*$DQ67,0)+IF(($EA$66+$DR67)>EH$66,$DB67*$DQ67,0)+IF(($EB$66+$DR67)>EH$66,$DC67*$DQ67,0)+IF(($EC$66+$DR67)>EH$66,$DD67*$DQ67,0)+IF(($ED$66+$DR67)>EH$66,$DE67*$DQ67,0)+IF(($EE$66+$DR67)>EH$66,$DF67*$DQ67,0)+IF(($EF$66+$DR67)>EH$66,$DG67*$DQ67,0)+IF(($EG$66+$DR67)>EH$66,$DH67*$DQ67,0)+IF(($EH$66+$DR67)>EH$66,$DI67*$DQ67,0))) ->  | EJ67: =IF($DP67="","",IF($DP67="","",IF(($DS$66+$DR67)>EI$66,$CT67*$DQ67,0)+IF(($DT$66+$DR67)>EI$66,$CU67*$DQ67,0)+IF(($DU$66+$DR67)>EI$66,$CV67*$DQ67,0)+IF(($DV$66+$DR67)>EI$66,$CW67*$DQ67,0)+IF(($DW$66+$DR67)>EI$66,$CX67*$DQ67,0)+IF(($DX$66+$DR67)>EI$66,$CY67*$DQ67,0)+IF(($DY$66+$DR67)>EI$66,$CZ67*$DQ67,0)+IF(($DZ$66+$DR67)>EI$66,$DA67*$DQ67,0)+IF(($EA$66+$DR67)>EI$66,$DB67*$DQ67,0)+IF(($EB$66+$DR67)>EI$66,$DC67*$DQ67,0)+IF(($EC$66+$DR67)>EI$66,$DD67*$DQ67,0)+IF(($ED$66+$DR67)>EI$66,$DE67*$DQ67,0)+IF(($EE$66+$DR67)>EI$66,$DF67*$DQ67,0)+IF(($EF$66+$DR67)>EI$66,$DG67*$DQ67,0)+IF(($EG$66+$DR67)>EI$66,$DH67*$DQ67,0)+IF(($EH$66+$DR67)>EI$66,$DI67*$DQ67,0)+IF(($EI$66+$DR67)>EI$66,$DJ67*$DQ67,0))) ->  | EK67: =IF($DP67="","",IF($DP67="","",IF(($DS$66+$DR67)>EJ$66,$CT67*$DQ67,0)+IF(($DT$66+$DR67)>EJ$66,$CU67*$DQ67,0)+IF(($DU$66+$DR67)>EJ$66,$CV67*$DQ67,0)+IF(($DV$66+$DR67)>EJ$66,$CW67*$DQ67,0)+IF(($DW$66+$DR67)>EJ$66,$CX67*$DQ67,0)+IF(($DX$66+$DR67)>EJ$66,$CY67*$DQ67,0)+IF(($DY$66+$DR67)>EJ$66,$CZ67*$DQ67,0)+IF(($DZ$66+$DR67)>EJ$66,$DA67*$DQ67,0)+IF(($EA$66+$DR67)>EJ$66,$DB67*$DQ67,0)+IF(($EB$66+$DR67)>EJ$66,$DC67*$DQ67,0)+IF(($EC$66+$DR67)>EJ$66,$DD67*$DQ67,0)+IF(($ED$66+$DR67)>EJ$66,$DE67*$DQ67,0)+IF(($EE$66+$DR67)>EJ$66,$DF67*$DQ67,0)+IF(($EF$66+$DR67)>EJ$66,$DG67*$DQ67,0)+IF(($EG$66+$DR67)>EJ$66,$DH67*$DQ67,0)+IF(($EH$66+$DR67)>EJ$66,$DI67*$DQ67,0)+IF(($EI$66+$DR67)>EJ$66,$DJ67*$DQ67,0)+IF(($EJ$66+$DR67)>EJ$66,$DK67*$DQ67,0))) ->  | EL67: =IF($DP67="","",IF($DP67="","",IF(($DS$66+$DR67)>EK$66,$CT67*$DQ67,0)+IF(($DT$66+$DR67)>EK$66,$CU67*$DQ67,0)+IF(($DU$66+$DR67)>EK$66,$CV67*$DQ67,0)+IF(($DV$66+$DR67)>EK$66,$CW67*$DQ67,0)+IF(($DW$66+$DR67)>EK$66,$CX67*$DQ67,0)+IF(($DX$66+$DR67)>EK$66,$CY67*$DQ67,0)+IF(($DY$66+$DR67)>EK$66,$CZ67*$DQ67,0)+IF(($DZ$66+$DR67)>EK$66,$DA67*$DQ67,0)+IF(($EA$66+$DR67)>EK$66,$DB67*$DQ67,0)+IF(($EB$66+$DR67)>EK$66,$DC67*$DQ67,0)+IF(($EC$66+$DR67)>EK$66,$DD67*$DQ67,0)+IF(($ED$66+$DR67)>EK$66,$DE67*$DQ67,0)+IF(($EE$66+$DR67)>EK$66,$DF67*$DQ67,0)+IF(($EF$66+$DR67)>EK$66,$DG67*$DQ67,0)+IF(($EG$66+$DR67)>EK$66,$DH67*$DQ67,0)+IF(($EH$66+$DR67)>EK$66,$DI67*$DQ67,0)+IF(($EI$66+$DR67)>EK$66,$DJ67*$DQ67,0)+IF(($EJ$66+$DR67)>EK$66,$DK67*$DQ67,0)+IF(($EK$66+$DR67)>EK$66,$DL67*$DQ67,0))) ->  | EM67: =IF($DP67="","",IF($DP67="","",IF(($DS$66+$DR67)>EL$66,$CT67*$DQ67,0)+IF(($DT$66+$DR67)>EL$66,$CU67*$DQ67,0)+IF(($DU$66+$DR67)>EL$66,$CV67*$DQ67,0)+IF(($DV$66+$DR67)>EL$66,$CW67*$DQ67,0)+IF(($DW$66+$DR67)>EL$66,$CX67*$DQ67,0)+IF(($DX$66+$DR67)>EL$66,$CY67*$DQ67,0)+IF(($DY$66+$DR67)>EL$66,$CZ67*$DQ67,0)+IF(($DZ$66+$DR67)>EL$66,$DA67*$DQ67,0)+IF(($EA$66+$DR67)>EL$66,$DB67*$DQ67,0)+IF(($EB$66+$DR67)>EL$66,$DC67*$DQ67,0)+IF(($EC$66+$DR67)>EL$66,$DD67*$DQ67,0)+IF(($ED$66+$DR67)>EL$66,$DE67*$DQ67,0)+IF(($EE$66+$DR67)>EL$66,$DF67*$DQ67,0)+IF(($EF$66+$DR67)>EL$66,$DG67*$DQ67,0)+IF(($EG$66+$DR67)>EL$66,$DH67*$DQ67,0)+IF(($EH$66+$DR67)>EL$66,$DI67*$DQ67,0)+IF(($EI$66+$DR67)>EL$66,$DJ67*$DQ67,0)+IF(($EJ$66+$DR67)>EL$66,$DK67*$DQ67,0)+IF(($EK$66+$DR67)>EL$66,$DL67*$DQ67,0)+IF(($EM$66+$DR67)>EL$66,$DM67*$DQ67,0))) ->  | EO67: =IF($B67="","",$B67) ->  | EQ67: =IF(EO67="","",0) ->  | ER67: =IF($EO67="","",AX67*$E67*$K67) ->  | ES67: =IF($EO67="","",AY67*$E67*$K67) ->  | ET67: =IF($EO67="","",AZ67*$E67*$K67) ->  | EU67: =IF($EO67="","",BA67*$E67*$K67) ->  | EV67: =IF($EO67="","",BB67*$E67*$K67) ->  | EW67: =IF($EO67="","",BC67*$E67*$K67) ->  | EX67: =IF($EO67="","",BD67*$E67*$K67) ->  | EY67: =IF($EO67="","",BE67*$E67*$K67) ->  | EZ67: =IF($EO67="","",BF67*$E67*$K67) ->  | FA67: =IF($EO67="","",BG67*$E67*$K67) ->  | FB67: =IF($EO67="","",BH67*$E67*$K67) ->  | FC67: =IF($EO67="","",BI67*$E67*$K67) ->  | FD67: =IF($EO67="","",BJ67*$E67*$K67) ->  | FE67: =IF($EO67="","",BK67*$E67*$K67) ->  | FF67: =IF($EO67="","",BL67*$E67*$K67) ->  | FG67: =IF($EO67="","",BM67*$E67*$K67) ->  | FH67: =IF($EO67="","",BN67*$E67*$K67) ->  | FI67: =IF($EO67="","",BO67*$E67*$K67) ->  | FJ67: =IF($EO67="","",BP67*$E67*$K67) ->  | FK67: =IF($EO67="","",BQ67*$E67*$K67) ->  | FM67: =""&$B67 ->  | FN67: =IF($FM67="","",IF($J67="Sim",$O67,0)) ->  | FO67: =IF(H67="","",H67) ->  | FP67: =IF(FM67="","",0) ->  | FQ67: =IF($FM67="","",IF(($FP$66+$FO67)>FP$66,$CT67*$FN67,0)) ->  | FR67: =IF($FM67="","",IF(($FP$66+$FO67)>FQ$66,$CT67*$FN67,0)+IF(($FQ$66+$FO67)>FQ$66,$CU67*$FN67,0)) ->  | FS67: =IF($FM67="","",IF(($FP$66+$FO67)>FR$66,$CT67*$FN67,0)+IF(($FQ$66+$FO67)>FR$66,$CU67*$FN67,0)+IF(($FR$66+$FO67)>FR$66,$CV67*$FN67,0)) ->  | FT67: =IF($FM67="","",IF(($FP$66+$FO67)>FS$66,$CT67*$FN67,0)+IF(($FQ$66+$FO67)>FS$66,$CU67*$FN67,0)+IF(($FR$66+$FO67)>FS$66,$CV67*$FN67,0)+IF(($FS$66+$FO67)>FS$66,$CW67*$FN67,0)) ->  | FU67: =IF($FM67="","",IF(($FP$66+$FO67)>FT$66,$CT67*$FN67,0)+IF(($FQ$66+$FO67)>FT$66,$CU67*$FN67,0)+IF(($FR$66+$FO67)>FT$66,$CV67*$FN67,0)+IF(($FS$66+$FO67)>FT$66,$CW67*$FN67,0)+IF(($FT$66+$FO67)>FT$66,$CX67*$FN67,0)) ->  | FV67: =IF($FM67="","",IF(($FP$66+$FO67)>FU$66,$CT67*$FN67,0)+IF(($FQ$66+$FO67)>FU$66,$CU67*$FN67,0)+IF(($FR$66+$FO67)>FU$66,$CV67*$FN67,0)+IF(($FS$66+$FO67)>FU$66,$CW67*$FN67,0)+IF(($FT$66+$FO67)>FU$66,$CX67*$FN67,0)+IF(($FU$66+$FO67)>FU$66,$CY67*$FN67,0)) ->  | FW67: =IF($FM67="","",IF(($FP$66+$FO67)>FV$66,$CT67*$FN67,0)+IF(($FQ$66+$FO67)>FV$66,$CU67*$FN67,0)+IF(($FR$66+$FO67)>FV$66,$CV67*$FN67,0)+IF(($FS$66+$FO67)>FV$66,$CW67*$FN67,0)+IF(($FT$66+$FO67)>FV$66,$CX67*$FN67,0)+IF(($FU$66+$FO67)>FV$66,$CY67*$FN67,0)+IF(($FV$66+$FO67)>FV$66,$CZ67*$FN67,0)) ->  | FX67: =IF($FM67="","",IF(($FP$66+$FO67)>FW$66,$CT67*$FN67,0)+IF(($FQ$66+$FO67)>FW$66,$CU67*$FN67,0)+IF(($FR$66+$FO67)>FW$66,$CV67*$FN67,0)+IF(($FS$66+$FO67)>FW$66,$CW67*$FN67,0)+IF(($FT$66+$FO67)>FW$66,$CX67*$FN67,0)+IF(($FU$66+$FO67)>FW$66,$CY67*$FN67,0)+IF(($FV$66+$FO67)>FW$66,$CZ67*$FN67,0)+IF(($FW$66+$FO67)>FW$66,$DA67*$FN67,0)) ->  | FY67: =IF($FM67="","",IF(($FP$66+$FO67)>FX$66,$CT67*$FN67,0)+IF(($FQ$66+$FO67)>FX$66,$CU67*$FN67,0)+IF(($FR$66+$FO67)>FX$66,$CV67*$FN67,0)+IF(($FS$66+$FO67)>FX$66,$CW67*$FN67,0)+IF(($FT$66+$FO67)>FX$66,$CX67*$FN67,0)+IF(($FU$66+$FO67)>FX$66,$CY67*$FN67,0)+IF(($FV$66+$FO67)>FX$66,$CZ67*$FN67,0)+IF(($FW$66+$FO67)>FX$66,$DA67*$FN67,0)+IF(($FX$66+$FO67)>FX$66,$DB67*$FN67,0)) ->  | FZ67: =IF($FM67="","",IF(($FP$66+$FO67)>FY$66,$CT67*$FN67,0)+IF(($FQ$66+$FO67)>FY$66,$CU67*$FN67,0)+IF(($FR$66+$FO67)>FY$66,$CV67*$FN67,0)+IF(($FS$66+$FO67)>FY$66,$CW67*$FN67,0)+IF(($FT$66+$FO67)>FY$66,$CX67*$FN67,0)+IF(($FU$66+$FO67)>FY$66,$CY67*$FN67,0)+IF(($FV$66+$FO67)>FY$66,$CZ67*$FN67,0)+IF(($FW$66+$FO67)>FY$66,$DA67*$FN67,0)+IF(($FX$66+$FO67)>FY$66,$DB67*$FN67,0)+IF(($FY$66+$FO67)>FY$66,$DC67*$FN67,0)) ->  | GA67: =IF($FM67="","",IF(($FP$66+$FO67)>FZ$66,$CT67*$FN67,0)+IF(($FQ$66+$FO67)>FZ$66,$CU67*$FN67,0)+IF(($FR$66+$FO67)>FZ$66,$CV67*$FN67,0)+IF(($FS$66+$FO67)>FZ$66,$CW67*$FN67,0)+IF(($FT$66+$FO67)>FZ$66,$CX67*$FN67,0)+IF(($FU$66+$FO67)>FZ$66,$CY67*$FN67,0)+IF(($FV$66+$FO67)>FZ$66,$CZ67*$FN67,0)+IF(($FW$66+$FO67)>FZ$66,$DA67*$FN67,0)+IF(($FX$66+$FO67)>FZ$66,$DB67*$FN67,0)+IF(($FY$66+$FO67)>FZ$66,$DC67*$FN67,0)+IF(($FZ$66+$FO67)>FZ$66,$DD67*$FN67,0)) ->  | GB67: =IF($FM67="","",IF(($FP$66+$FO67)>GA$66,$CT67*$FN67,0)+IF(($FQ$66+$FO67)>GA$66,$CU67*$FN67,0)+IF(($FR$66+$FO67)>GA$66,$CV67*$FN67,0)+IF(($FS$66+$FO67)>GA$66,$CW67*$FN67,0)+IF(($FT$66+$FO67)>GA$66,$CX67*$FN67,0)+IF(($FU$66+$FO67)>GA$66,$CY67*$FN67,0)+IF(($FV$66+$FO67)>GA$66,$CZ67*$FN67,0)+IF(($FW$66+$FO67)>GA$66,$DA67*$FN67,0)+IF(($FX$66+$FO67)>GA$66,$DB67*$FN67,0)+IF(($FY$66+$FO67)>GA$66,$DC67*$FN67,0)+IF(($FZ$66+$FO67)>GA$66,$DD67*$FN67,0)+IF(($GA$66+$FO67)>GA$66,$DE67*$FN67,0)) ->  | GC67: =IF($FM67="","",IF(($FP$66+$FO67)>GB$66,$CT67*$FN67,0)+IF(($FQ$66+$FO67)>GB$66,$CU67*$FN67,0)+IF(($FR$66+$FO67)>GB$66,$CV67*$FN67,0)+IF(($FS$66+$FO67)>GB$66,$CW67*$FN67,0)+IF(($FT$66+$FO67)>GB$66,$CX67*$FN67,0)+IF(($FU$66+$FO67)>GB$66,$CY67*$FN67,0)+IF(($FV$66+$FO67)>GB$66,$CZ67*$FN67,0)+IF(($FW$66+$FO67)>GB$66,$DA67*$FN67,0)+IF(($FX$66+$FO67)>GB$66,$DB67*$FN67,0)+IF(($FY$66+$FO67)>GB$66,$DC67*$FN67,0)+IF(($FZ$66+$FO67)>GB$66,$DD67*$FN67,0)+IF(($GA$66+$FO67)>GB$66,$DE67*$FN67,0)+IF(($GB$66+$FO67)>GB$66,$DF67*$FN67,0)) ->  | GD67: =IF($FM67="","",IF(($FP$66+$FO67)>GC$66,$CT67*$FN67,0)+IF(($FQ$66+$FO67)>GC$66,$CU67*$FN67,0)+IF(($FR$66+$FO67)>GC$66,$CV67*$FN67,0)+IF(($FS$66+$FO67)>GC$66,$CW67*$FN67,0)+IF(($FT$66+$FO67)>GC$66,$CX67*$FN67,0)+IF(($FU$66+$FO67)>GC$66,$CY67*$FN67,0)+IF(($FV$66+$FO67)>GC$66,$CZ67*$FN67,0)+IF(($FW$66+$FO67)>GC$66,$DA67*$FN67,0)+IF(($FX$66+$FO67)>GC$66,$DB67*$FN67,0)+IF(($FY$66+$FO67)>GC$66,$DC67*$FN67,0)+IF(($FZ$66+$FO67)>GC$66,$DD67*$FN67,0)+IF(($GA$66+$FO67)>GC$66,$DE67*$FN67,0)+IF(($GB$66+$FO67)>GC$66,$DF67*$FN67,0)+IF(($GC$66+$FO67)>GC$66,$DG67*$FN67,0)) ->  | GE67: =IF($FM67="","",IF(($FP$66+$FO67)>GD$66,$CT67*$FN67,0)+IF(($FQ$66+$FO67)>GD$66,$CU67*$FN67,0)+IF(($FR$66+$FO67)>GD$66,$CV67*$FN67,0)+IF(($FS$66+$FO67)>GD$66,$CW67*$FN67,0)+IF(($FT$66+$FO67)>GD$66,$CX67*$FN67,0)+IF(($FU$66+$FO67)>GD$66,$CY67*$FN67,0)+IF(($FV$66+$FO67)>GD$66,$CZ67*$FN67,0)+IF(($FW$66+$FO67)>GD$66,$DA67*$FN67,0)+IF(($FX$66+$FO67)>GD$66,$DB67*$FN67,0)+IF(($FY$66+$FO67)>GD$66,$DC67*$FN67,0)+IF(($FZ$66+$FO67)>GD$66,$DD67*$FN67,0)+IF(($GA$66+$FO67)>GD$66,$DE67*$FN67,0)+IF(($GB$66+$FO67)>GD$66,$DF67*$FN67,0)+IF(($GC$66+$FO67)>GD$66,$DG67*$FN67,0)+IF(($GD$66+$FO67)>GD$66,$DH67*$FN67,0)) ->  | GF67: =IF($FM67="","",IF(($FP$66+$FO67)>GE$66,$CT67*$FN67,0)+IF(($FQ$66+$FO67)>GE$66,$CU67*$FN67,0)+IF(($FR$66+$FO67)>GE$66,$CV67*$FN67,0)+IF(($FS$66+$FO67)>GE$66,$CW67*$FN67,0)+IF(($FT$66+$FO67)>GE$66,$CX67*$FN67,0)+IF(($FU$66+$FO67)>GE$66,$CY67*$FN67,0)+IF(($FV$66+$FO67)>GE$66,$CZ67*$FN67,0)+IF(($FW$66+$FO67)>GE$66,$DA67*$FN67,0)+IF(($FX$66+$FO67)>GE$66,$DB67*$FN67,0)+IF(($FY$66+$FO67)>GE$66,$DC67*$FN67,0)+IF(($FZ$66+$FO67)>GE$66,$DD67*$FN67,0)+IF(($GA$66+$FO67)>GE$66,$DE67*$FN67,0)+IF(($GB$66+$FO67)>GE$66,$DF67*$FN67,0)+IF(($GC$66+$FO67)>GE$66,$DG67*$FN67,0)+IF(($GD$66+$FO67)>GE$66,$DH67*$FN67,0)+IF(($GE$66+$FO67)>GE$66,$DI67*$FN67,0)) ->  | GG67: =IF($FM67="","",IF(($FP$66+$FO67)>GF$66,$CT67*$FN67,0)+IF(($FQ$66+$FO67)>GF$66,$CU67*$FN67,0)+IF(($FR$66+$FO67)>GF$66,$CV67*$FN67,0)+IF(($FS$66+$FO67)>GF$66,$CW67*$FN67,0)+IF(($FT$66+$FO67)>GF$66,$CX67*$FN67,0)+IF(($FU$66+$FO67)>GF$66,$CY67*$FN67,0)+IF(($FV$66+$FO67)>GF$66,$CZ67*$FN67,0)+IF(($FW$66+$FO67)>GF$66,$DA67*$FN67,0)+IF(($FX$66+$FO67)>GF$66,$DB67*$FN67,0)+IF(($FY$66+$FO67)>GF$66,$DC67*$FN67,0)+IF(($FZ$66+$FO67)>GF$66,$DD67*$FN67,0)+IF(($GA$66+$FO67)>GF$66,$DE67*$FN67,0)+IF(($GB$66+$FO67)>GF$66,$DF67*$FN67,0)+IF(($GC$66+$FO67)>GF$66,$DG67*$FN67,0)+IF(($GD$66+$FO67)>GF$66,$DH67*$FN67,0)+IF(($GE$66+$FO67)>GF$66,$DI67*$FN67,0)+IF(($GF$66+$FO67)>GF$66,$DJ67*$FN67,0)) ->  | GH67: =IF($FM67="","",IF(($FP$66+$FO67)>GG$66,$CT67*$FN67,0)+IF(($FQ$66+$FO67)>GG$66,$CU67*$FN67,0)+IF(($FR$66+$FO67)>GG$66,$CV67*$FN67,0)+IF(($FS$66+$FO67)>GG$66,$CW67*$FN67,0)+IF(($FT$66+$FO67)>GG$66,$CX67*$FN67,0)+IF(($FU$66+$FO67)>GG$66,$CY67*$FN67,0)+IF(($FV$66+$FO67)>GG$66,$CZ67*$FN67,0)+IF(($FW$66+$FO67)>GG$66,$DA67*$FN67,0)+IF(($FX$66+$FO67)>GG$66,$DB67*$FN67,0)+IF(($FY$66+$FO67)>GG$66,$DC67*$FN67,0)+IF(($FZ$66+$FO67)>GG$66,$DD67*$FN67,0)+IF(($GA$66+$FO67)>GG$66,$DE67*$FN67,0)+IF(($GB$66+$FO67)>GG$66,$DF67*$FN67,0)+IF(($GC$66+$FO67)>GG$66,$DG67*$FN67,0)+IF(($GD$66+$FO67)>GG$66,$DH67*$FN67,0)+IF(($GE$66+$FO67)>GG$66,$DI67*$FN67,0)+IF(($GF$66+$FO67)>GG$66,$DJ67*$FN67,0)+IF(($GG$66+$FO67)>GG$66,$DK67*$FN67,0)) ->  | GI67: =IF($FM67="","",IF(($FP$66+$FO67)>GH$66,$CT67*$FN67,0)+IF(($FQ$66+$FO67)>GH$66,$CU67*$FN67,0)+IF(($FR$66+$FO67)>GH$66,$CV67*$FN67,0)+IF(($FS$66+$FO67)>GH$66,$CW67*$FN67,0)+IF(($FT$66+$FO67)>GH$66,$CX67*$FN67,0)+IF(($FU$66+$FO67)>GH$66,$CY67*$FN67,0)+IF(($FV$66+$FO67)>GH$66,$CZ67*$FN67,0)+IF(($FW$66+$FO67)>GH$66,$DA67*$FN67,0)+IF(($FX$66+$FO67)>GH$66,$DB67*$FN67,0)+IF(($FY$66+$FO67)>GH$66,$DC67*$FN67,0)+IF(($FZ$66+$FO67)>GH$66,$DD67*$FN67,0)+IF(($GA$66+$FO67)>GH$66,$DE67*$FN67,0)+IF(($GB$66+$FO67)>GH$66,$DF67*$FN67,0)+IF(($GC$66+$FO67)>GH$66,$DG67*$FN67,0)+IF(($GD$66+$FO67)>GH$66,$DH67*$FN67,0)+IF(($GE$66+$FO67)>GH$66,$DI67*$FN67,0)+IF(($GF$66+$FO67)>GH$66,$DJ67*$FN67,0)+IF(($GG$66+$FO67)>GH$66,$DK67*$FN67,0)+IF(($GH$66+$FO67)>GH$66,$DL67*$FN67,0)) ->  | GJ67: =IF($FM67="","",IF(($FP$66+$FO67)>GI$66,$CT67*$FN67,0)+IF(($FQ$66+$FO67)>GI$66,$CU67*$FN67,0)+IF(($FR$66+$FO67)>GI$66,$CV67*$FN67,0)+IF(($FS$66+$FO67)>GI$66,$CW67*$FN67,0)+IF(($FT$66+$FO67)>GI$66,$CX67*$FN67,0)+IF(($FU$66+$FO67)>GI$66,$CY67*$FN67,0)+IF(($FV$66+$FO67)>GI$66,$CZ67*$FN67,0)+IF(($FW$66+$FO67)>GI$66,$DA67*$FN67,0)+IF(($FX$66+$FO67)>GI$66,$DB67*$FN67,0)+IF(($FY$66+$FO67)>GI$66,$DC67*$FN67,0)+IF(($FZ$66+$FO67)>GI$66,$DD67*$FN67,0)+IF(($GA$66+$FO67)>GI$66,$DE67*$FN67,0)+IF(($GB$66+$FO67)>GI$66,$DF67*$FN67,0)+IF(($GC$66+$FO67)>GI$66,$DG67*$FN67,0)+IF(($GD$66+$FO67)>GI$66,$DH67*$FN67,0)+IF(($GE$66+$FO67)>GI$66,$DI67*$FN67,0)+IF(($GF$66+$FO67)>GI$66,$DJ67*$FN67,0)+IF(($GG$66+$FO67)>GI$66,$DK67*$FN67,0)+IF(($GH$66+$FO67)>GI$66,$DL67*$FN67,0)+IF(($GI$66+$FO67)>GI$66,$DM67*$FN67,0)) ->  | GK67: Sim
F68: Normal | G68: 0 | I68: Sim | J68: Sim | P68: 0 | V68: =IF($B68="","",$B68) ->  | Y68: =IF(V68="","",IF($Y$66<$G68,0,IF(SUM($X68:X68)>=$C68,0,$C68))) ->  | Z68: =IF(V68="","",IF($Z$66<$G68,0,IF(SUM($X68:Y68)>=$C68,0,$C68))) ->  | AA68: =IF(V68="","",IF($AA$66<$G68,0,IF(SUM($X68:Z68)>=$C68,0,$C68))) ->  | AB68: =IF(V68="","",IF($AB$66<$G68,0,IF(SUM($X68:AA68)>=$C68,0,$C68))) ->  | AC68: =IF(V68="","",IF($AC$66<$G68,0,IF(SUM($X68:AB68)>=$C68,0,$C68))) ->  | AD68: =IF(V68="","",IF($AD$66<$G68,0,IF(SUM($X68:AC68)>=$C68,0,$C68))) ->  | AE68: =IF(V68="","",IF($AE$66<$G68,0,IF(SUM($X68:AD68)>=$C68,0,$C68))) ->  | AF68: =IF(V68="","",IF($AF$66<$G68,0,IF(SUM($X68:AE68)>=$C68,0,$C68))) ->  | AG68: =IF(V68="","",IF($AG$66<$G68,0,IF(SUM($X68:AF68)>=$C68,0,$C68))) ->  | AH68: =IF(V68="","",IF($AH$66<$G68,0,IF(SUM($X68:AG68)>=$C68,0,$C68))) ->  | AI68: =IF(V68="","",IF($AI$66<$G68,0,IF(SUM($X68:AH68)>=$C68,0,$C68))) ->  | AJ68: =IF(V68="","",IF($AJ$66<$G68,0,IF(SUM($X68:AI68)>=$C68,0,$C68))) ->  | AK68: =IF(V68="","",IF($AK$66<$G68,0,IF(SUM($X68:AJ68)>=$C68,0,$C68))) ->  | AL68: =IF(V68="","",IF($AL$66<$G68,0,IF(SUM($X68:AK68)>=$C68,0,$C68))) ->  | AM68: =IF(V68="","",IF($AM$66<$G68,0,IF(SUM($X68:AL68)>=$C68,0,$C68))) ->  | AN68: =IF(V68="","",IF($AN$66<$G68,0,IF(SUM($X68:AM68)>=$C68,0,$C68))) ->  | AO68: =IF(V68="","",IF($AO$66<$G68,0,IF(SUM($X68:AN68)>=$C68,0,$C68))) ->  | AP68: =IF(V68="","",IF($AP$66<$G68,0,IF(SUM($X68:AO68)>=$C68,0,$C68))) ->  | AQ68: =IF(V68="","",IF($AQ$66<$G68,0,IF(SUM($X68:AP68)>=$C68,0,$C68))) ->  | AR68: =IF(V68="","",IF($AR$66<$G68,0,IF(SUM($X68:AQ68)>=$C68,0,$C68))) ->  | AS68: 3 | AU68: =IF($B68="","",$B68) ->  | AW68: =IF(AU68="","",0) ->  | BS68: =IF($B68="","",$B68) ->  | BU68: =IF($BS68="","",SUM(X68,AW68)) ->  | BV68: =IF($BS68="","",SUM(Y68,AX68)) ->  | BW68: =IF($BS68="","",SUM(Z68,AY68)) ->  | BX68: =IF($BS68="","",SUM(AA68,AZ68)) ->  | BY68: =IF($BS68="","",SUM(AB68,BA68)) ->  | BZ68: =IF($BS68="","",SUM(AC68,BB68)) ->  | CA68: =IF($BS68="","",SUM(AD68,BC68)) ->  | CB68: =IF($BS68="","",SUM(AE68,BD68)) ->  | CC68: =IF($BS68="","",SUM(AF68,BE68)) ->  | CD68: =IF($BS68="","",SUM(AG68,BF68)) ->  | CE68: =IF($BS68="","",SUM(AH68,BG68)) ->  | CF68: =IF($BS68="","",SUM(AI68,BH68)) ->  | CG68: =IF($BS68="","",SUM(AJ68,BI68)) ->  | CH68: =IF($BS68="","",SUM(AK68,BJ68)) ->  | CI68: =IF($BS68="","",SUM(AL68,BK68)) ->  | CJ68: =IF($BS68="","",SUM(AM68,BL68)) ->  | CK68: =IF($BS68="","",SUM(AN68,BM68)) ->  | CL68: =IF($BS68="","",SUM(AO68,BN68)) ->  | CM68: =IF($BS68="","",SUM(AP68,BO68)) ->  | CN68: =IF($BS68="","",SUM(AQ68,BP68)) ->  | CO68: =IF($BS68="","",SUM(AR68,BQ68)) ->  | CQ68: =""&$B68 ->  | CT68: =IF($CQ68="","",$CR68*BU68) ->  | CU68: =IF($CQ68="","",$CR68*BV68) ->  | CV68: =IF($CQ68="","",$CR68*BW68) ->  | CW68: =IF($CQ68="","",$CR68*BX68) ->  | CX68: =IF($CQ68="","",$CR68*BY68) ->  | CY68: =IF($CQ68="","",$CR68*BZ68) ->  | CZ68: =IF($CQ68="","",$CR68*CA68) ->  | DA68: =IF($CQ68="","",$CR68*CB68) ->  | DB68: =IF($CQ68="","",$CR68*CC68) ->  | DC68: =IF($CQ68="","",$CR68*CD68) ->  | DD68: =IF($CQ68="","",$CR68*CE68) ->  | DE68: =IF($CQ68="","",$CR68*CF68) ->  | DF68: =IF($CQ68="","",$CR68*CG68) ->  | DG68: =IF($CQ68="","",$CR68*CH68) ->  | DH68: =IF($CQ68="","",$CR68*CI68) ->  | DI68: =IF($CQ68="","",$CR68*CJ68) ->  | DJ68: =IF($CQ68="","",$CR68*CK68) ->  | DK68: =IF($CQ68="","",$CR68*CL68) ->  | DL68: =IF($CQ68="","",$CR68*CM68) ->  | DM68: =IF($CQ68="","",$CR68*CN68) ->  | DN68: =IF($CQ68="","",$CR68*CO68) ->  | DP68: =""&$B68 ->  | DQ68: =L68 ->  | DR68: =M68 ->  | DS68: =IF(DP68="","",0) ->  | DT68: =IF($DP68="","",IF(($DS$66+$DR68)>DS$66,$CT68*$DQ68,0)) ->  | DU68: =IF($DP68="","",IF($DP68="","",IF(($DS$66+$DR68)>DT$66,$CT68*$DQ68,0)+IF(($DT$66+$DR68)>DT$66,$CU68*$DQ68,0))) ->  | DV68: =IF($DP68="","",IF($DP68="","",IF(($DS$66+$DR68)>DU$66,$CT68*$DQ68,0)+IF(($DT$66+$DR68)>DU$66,$CU68*$DQ68,0)+IF(($DU$66+$DR68)>DU$66,$CV68*$DQ68,0))) ->  | DW68: =IF($DP68="","",IF($DP68="","",IF(($DS$66+$DR68)>DV$66,$CT68*$DQ68,0)+IF(($DT$66+$DR68)>DV$66,$CU68*$DQ68,0)+IF(($DU$66+$DR68)>DV$66,$CV68*$DQ68,0)+IF(($DV$66+$DR68)>DV$66,$CW68*$DQ68,0))) ->  | DX68: =IF($DP68="","",IF($DP68="","",IF(($DS$66+$DR68)>DW$66,$CT68*$DQ68,0)+IF(($DT$66+$DR68)>DW$66,$CU68*$DQ68,0)+IF(($DU$66+$DR68)>DW$66,$CV68*$DQ68,0)+IF(($DV$66+$DR68)>DW$66,$CW68*$DQ68,0)+IF(($DW$66+$DR68)>DW$66,$CX68*$DQ68,0))) ->  | DY68: =IF($DP68="","",IF(($DS$66+$DR68)>DX$66,$CT68*$DQ68,0)+IF(($DT$66+$DR68)>DX$66,$CU68*$DQ68,0)+IF(($DU$66+$DR68)>DX$66,$CV68*$DQ68,0)+IF(($DV$66+$DR68)>DX$66,$CW68*$DQ68,0)+IF(($DW$66+$DR68)>DX$66,$CX68*$DQ68,0)+IF(($DX$66+$DR68)>DX$66,$CY68*$DQ68,0)) ->  | DZ68: =IF($DP68="","",IF($DP68="","",IF(($DS$66+$DR68)>DY$66,$CT68*$DQ68,0)+IF(($DT$66+$DR68)>DY$66,$CU68*$DQ68,0)+IF(($DU$66+$DR68)>DY$66,$CV68*$DQ68,0)+IF(($DV$66+$DR68)>DY$66,$CW68*$DQ68,0)+IF(($DW$66+$DR68)>DY$66,$CX68*$DQ68,0)+IF(($DX$66+$DR68)>DY$66,$CY68*$DQ68,0)+IF(($DY$66+$DR68)>DY$66,$CZ68*$DQ68,0))) ->  | EA68: =IF($DP68="","",IF($DP68="","",IF(($DS$66+$DR68)>DZ$66,$CT68*$DQ68,0)+IF(($DT$66+$DR68)>DZ$66,$CU68*$DQ68,0)+IF(($DU$66+$DR68)>DZ$66,$CV68*$DQ68,0)+IF(($DV$66+$DR68)>DZ$66,$CW68*$DQ68,0)+IF(($DW$66+$DR68)>DZ$66,$CX68*$DQ68,0)+IF(($DX$66+$DR68)>DZ$66,$CY68*$DQ68,0)+IF(($DY$66+$DR68)>DZ$66,$CZ68*$DQ68,0)+IF(($DZ$66+$DR68)>DZ$66,$DA68*$DQ68,0))) ->  | EB68: =IF($DP68="","",IF($DP68="","",IF(($DS$66+$DR68)>EA$66,$CT68*$DQ68,0)+IF(($DT$66+$DR68)>EA$66,$CU68*$DQ68,0)+IF(($DU$66+$DR68)>EA$66,$CV68*$DQ68,0)+IF(($DV$66+$DR68)>EA$66,$CW68*$DQ68,0)+IF(($DW$66+$DR68)>EA$66,$CX68*$DQ68,0)+IF(($DX$66+$DR68)>EA$66,$CY68*$DQ68,0)+IF(($DY$66+$DR68)>EA$66,$CZ68*$DQ68,0)+IF(($DZ$66+$DR68)>EA$66,$DA68*$DQ68,0)+IF(($EA$66+$DR68)>EA$66,$DB68*$DQ68,0))) ->  | EC68: =IF($DP68="","",IF($DP68="","",IF(($DS$66+$DR68)>EB$66,$CT68*$DQ68,0)+IF(($DT$66+$DR68)>EB$66,$CU68*$DQ68,0)+IF(($DU$66+$DR68)>EB$66,$CV68*$DQ68,0)+IF(($DV$66+$DR68)>EB$66,$CW68*$DQ68,0)+IF(($DW$66+$DR68)>EB$66,$CX68*$DQ68,0)+IF(($DX$66+$DR68)>EB$66,$CY68*$DQ68,0)+IF(($DY$66+$DR68)>EB$66,$CZ68*$DQ68,0)+IF(($DZ$66+$DR68)>EB$66,$DA68*$DQ68,0)+IF(($EA$66+$DR68)>EB$66,$DB68*$DQ68,0)+IF(($EB$66+$DR68)>EB$66,$DC68*$DQ68,0))) ->  | ED68: =IF($DP68="","",IF($DP68="","",IF(($DS$66+$DR68)>EC$66,$CT68*$DQ68,0)+IF(($DT$66+$DR68)>EC$66,$CU68*$DQ68,0)+IF(($DU$66+$DR68)>EC$66,$CV68*$DQ68,0)+IF(($DV$66+$DR68)>EC$66,$CW68*$DQ68,0)+IF(($DW$66+$DR68)>EC$66,$CX68*$DQ68,0)+IF(($DX$66+$DR68)>EC$66,$CY68*$DQ68,0)+IF(($DY$66+$DR68)>EC$66,$CZ68*$DQ68,0)+IF(($DZ$66+$DR68)>EC$66,$DA68*$DQ68,0)+IF(($EA$66+$DR68)>EC$66,$DB68*$DQ68,0)+IF(($EB$66+$DR68)>EC$66,$DC68*$DQ68,0)+IF(($EC$66+$DR68)>EC$66,$DD68*$DQ68,0))) ->  | EE68: =IF($DP68="","",IF($DP68="","",IF(($DS$66+$DR68)>ED$66,$CT68*$DQ68,0)+IF(($DT$66+$DR68)>ED$66,$CU68*$DQ68,0)+IF(($DU$66+$DR68)>ED$66,$CV68*$DQ68,0)+IF(($DV$66+$DR68)>ED$66,$CW68*$DQ68,0)+IF(($DW$66+$DR68)>ED$66,$CX68*$DQ68,0)+IF(($DX$66+$DR68)>ED$66,$CY68*$DQ68,0)+IF(($DY$66+$DR68)>ED$66,$CZ68*$DQ68,0)+IF(($DZ$66+$DR68)>ED$66,$DA68*$DQ68,0)+IF(($EA$66+$DR68)>ED$66,$DB68*$DQ68,0)+IF(($EB$66+$DR68)>ED$66,$DC68*$DQ68,0)+IF(($EC$66+$DR68)>ED$66,$DD68*$DQ68,0)+IF(($ED$66+$DR68)>ED$66,$DE68*$DQ68,0))) ->  | EF68: =IF($DP68="","",IF($DP68="","",IF(($DS$66+$DR68)>EE$66,$CT68*$DQ68,0)+IF(($DT$66+$DR68)>EE$66,$CU68*$DQ68,0)+IF(($DU$66+$DR68)>EE$66,$CV68*$DQ68,0)+IF(($DV$66+$DR68)>EE$66,$CW68*$DQ68,0)+IF(($DW$66+$DR68)>EE$66,$CX68*$DQ68,0)+IF(($DX$66+$DR68)>EE$66,$CY68*$DQ68,0)+IF(($DY$66+$DR68)>EE$66,$CZ68*$DQ68,0)+IF(($DZ$66+$DR68)>EE$66,$DA68*$DQ68,0)+IF(($EA$66+$DR68)>EE$66,$DB68*$DQ68,0)+IF(($EB$66+$DR68)>EE$66,$DC68*$DQ68,0)+IF(($EC$66+$DR68)>EE$66,$DD68*$DQ68,0)+IF(($ED$66+$DR68)>EE$66,$DE68*$DQ68,0)+IF(($EE$66+$DR68)>EE$66,$DF68*$DQ68,0))) ->  | EG68: =IF($DP68="","",IF($DP68="","",IF(($DS$66+$DR68)>EF$66,$CT68*$DQ68,0)+IF(($DT$66+$DR68)>EF$66,$CU68*$DQ68,0)+IF(($DU$66+$DR68)>EF$66,$CV68*$DQ68,0)+IF(($DV$66+$DR68)>EF$66,$CW68*$DQ68,0)+IF(($DW$66+$DR68)>EF$66,$CX68*$DQ68,0)+IF(($DX$66+$DR68)>EF$66,$CY68*$DQ68,0)+IF(($DY$66+$DR68)>EF$66,$CZ68*$DQ68,0)+IF(($DZ$66+$DR68)>EF$66,$DA68*$DQ68,0)+IF(($EA$66+$DR68)>EF$66,$DB68*$DQ68,0)+IF(($EB$66+$DR68)>EF$66,$DC68*$DQ68,0)+IF(($EC$66+$DR68)>EF$66,$DD68*$DQ68,0)+IF(($ED$66+$DR68)>EF$66,$DE68*$DQ68,0)+IF(($EE$66+$DR68)>EF$66,$DF68*$DQ68,0)+IF(($EF$66+$DR68)>EF$66,$DG68*$DQ68,0))) ->  | EH68: =IF($DP68="","",IF($DP68="","",IF(($DS$66+$DR68)>EG$66,$CT68*$DQ68,0)+IF(($DT$66+$DR68)>EG$66,$CU68*$DQ68,0)+IF(($DU$66+$DR68)>EG$66,$CV68*$DQ68,0)+IF(($DV$66+$DR68)>EG$66,$CW68*$DQ68,0)+IF(($DW$66+$DR68)>EG$66,$CX68*$DQ68,0)+IF(($DX$66+$DR68)>EG$66,$CY68*$DQ68,0)+IF(($DY$66+$DR68)>EG$66,$CZ68*$DQ68,0)+IF(($DZ$66+$DR68)>EG$66,$DA68*$DQ68,0)+IF(($EA$66+$DR68)>EG$66,$DB68*$DQ68,0)+IF(($EB$66+$DR68)>EG$66,$DC68*$DQ68,0)+IF(($EC$66+$DR68)>EG$66,$DD68*$DQ68,0)+IF(($ED$66+$DR68)>EG$66,$DE68*$DQ68,0)+IF(($EE$66+$DR68)>EG$66,$DF68*$DQ68,0)+IF(($EF$66+$DR68)>EG$66,$DG68*$DQ68,0)+IF(($EG$66+$DR68)>EG$66,$DH68*$DQ68,0))) ->  | EI68: =IF($DP68="","",IF($DP68="","",IF(($DS$66+$DR68)>EH$66,$CT68*$DQ68,0)+IF(($DT$66+$DR68)>EH$66,$CU68*$DQ68,0)+IF(($DU$66+$DR68)>EH$66,$CV68*$DQ68,0)+IF(($DV$66+$DR68)>EH$66,$CW68*$DQ68,0)+IF(($DW$66+$DR68)>EH$66,$CX68*$DQ68,0)+IF(($DX$66+$DR68)>EH$66,$CY68*$DQ68,0)+IF(($DY$66+$DR68)>EH$66,$CZ68*$DQ68,0)+IF(($DZ$66+$DR68)>EH$66,$DA68*$DQ68,0)+IF(($EA$66+$DR68)>EH$66,$DB68*$DQ68,0)+IF(($EB$66+$DR68)>EH$66,$DC68*$DQ68,0)+IF(($EC$66+$DR68)>EH$66,$DD68*$DQ68,0)+IF(($ED$66+$DR68)>EH$66,$DE68*$DQ68,0)+IF(($EE$66+$DR68)>EH$66,$DF68*$DQ68,0)+IF(($EF$66+$DR68)>EH$66,$DG68*$DQ68,0)+IF(($EG$66+$DR68)>EH$66,$DH68*$DQ68,0)+IF(($EH$66+$DR68)>EH$66,$DI68*$DQ68,0))) ->  | EJ68: =IF($DP68="","",IF($DP68="","",IF(($DS$66+$DR68)>EI$66,$CT68*$DQ68,0)+IF(($DT$66+$DR68)>EI$66,$CU68*$DQ68,0)+IF(($DU$66+$DR68)>EI$66,$CV68*$DQ68,0)+IF(($DV$66+$DR68)>EI$66,$CW68*$DQ68,0)+IF(($DW$66+$DR68)>EI$66,$CX68*$DQ68,0)+IF(($DX$66+$DR68)>EI$66,$CY68*$DQ68,0)+IF(($DY$66+$DR68)>EI$66,$CZ68*$DQ68,0)+IF(($DZ$66+$DR68)>EI$66,$DA68*$DQ68,0)+IF(($EA$66+$DR68)>EI$66,$DB68*$DQ68,0)+IF(($EB$66+$DR68)>EI$66,$DC68*$DQ68,0)+IF(($EC$66+$DR68)>EI$66,$DD68*$DQ68,0)+IF(($ED$66+$DR68)>EI$66,$DE68*$DQ68,0)+IF(($EE$66+$DR68)>EI$66,$DF68*$DQ68,0)+IF(($EF$66+$DR68)>EI$66,$DG68*$DQ68,0)+IF(($EG$66+$DR68)>EI$66,$DH68*$DQ68,0)+IF(($EH$66+$DR68)>EI$66,$DI68*$DQ68,0)+IF(($EI$66+$DR68)>EI$66,$DJ68*$DQ68,0))) ->  | EK68: =IF($DP68="","",IF($DP68="","",IF(($DS$66+$DR68)>EJ$66,$CT68*$DQ68,0)+IF(($DT$66+$DR68)>EJ$66,$CU68*$DQ68,0)+IF(($DU$66+$DR68)>EJ$66,$CV68*$DQ68,0)+IF(($DV$66+$DR68)>EJ$66,$CW68*$DQ68,0)+IF(($DW$66+$DR68)>EJ$66,$CX68*$DQ68,0)+IF(($DX$66+$DR68)>EJ$66,$CY68*$DQ68,0)+IF(($DY$66+$DR68)>EJ$66,$CZ68*$DQ68,0)+IF(($DZ$66+$DR68)>EJ$66,$DA68*$DQ68,0)+IF(($EA$66+$DR68)>EJ$66,$DB68*$DQ68,0)+IF(($EB$66+$DR68)>EJ$66,$DC68*$DQ68,0)+IF(($EC$66+$DR68)>EJ$66,$DD68*$DQ68,0)+IF(($ED$66+$DR68)>EJ$66,$DE68*$DQ68,0)+IF(($EE$66+$DR68)>EJ$66,$DF68*$DQ68,0)+IF(($EF$66+$DR68)>EJ$66,$DG68*$DQ68,0)+IF(($EG$66+$DR68)>EJ$66,$DH68*$DQ68,0)+IF(($EH$66+$DR68)>EJ$66,$DI68*$DQ68,0)+IF(($EI$66+$DR68)>EJ$66,$DJ68*$DQ68,0)+IF(($EJ$66+$DR68)>EJ$66,$DK68*$DQ68,0))) ->  | EL68: =IF($DP68="","",IF($DP68="","",IF(($DS$66+$DR68)>EK$66,$CT68*$DQ68,0)+IF(($DT$66+$DR68)>EK$66,$CU68*$DQ68,0)+IF(($DU$66+$DR68)>EK$66,$CV68*$DQ68,0)+IF(($DV$66+$DR68)>EK$66,$CW68*$DQ68,0)+IF(($DW$66+$DR68)>EK$66,$CX68*$DQ68,0)+IF(($DX$66+$DR68)>EK$66,$CY68*$DQ68,0)+IF(($DY$66+$DR68)>EK$66,$CZ68*$DQ68,0)+IF(($DZ$66+$DR68)>EK$66,$DA68*$DQ68,0)+IF(($EA$66+$DR68)>EK$66,$DB68*$DQ68,0)+IF(($EB$66+$DR68)>EK$66,$DC68*$DQ68,0)+IF(($EC$66+$DR68)>EK$66,$DD68*$DQ68,0)+IF(($ED$66+$DR68)>EK$66,$DE68*$DQ68,0)+IF(($EE$66+$DR68)>EK$66,$DF68*$DQ68,0)+IF(($EF$66+$DR68)>EK$66,$DG68*$DQ68,0)+IF(($EG$66+$DR68)>EK$66,$DH68*$DQ68,0)+IF(($EH$66+$DR68)>EK$66,$DI68*$DQ68,0)+IF(($EI$66+$DR68)>EK$66,$DJ68*$DQ68,0)+IF(($EJ$66+$DR68)>EK$66,$DK68*$DQ68,0)+IF(($EK$66+$DR68)>EK$66,$DL68*$DQ68,0))) ->  | EM68: =IF($DP68="","",IF($DP68="","",IF(($DS$66+$DR68)>EL$66,$CT68*$DQ68,0)+IF(($DT$66+$DR68)>EL$66,$CU68*$DQ68,0)+IF(($DU$66+$DR68)>EL$66,$CV68*$DQ68,0)+IF(($DV$66+$DR68)>EL$66,$CW68*$DQ68,0)+IF(($DW$66+$DR68)>EL$66,$CX68*$DQ68,0)+IF(($DX$66+$DR68)>EL$66,$CY68*$DQ68,0)+IF(($DY$66+$DR68)>EL$66,$CZ68*$DQ68,0)+IF(($DZ$66+$DR68)>EL$66,$DA68*$DQ68,0)+IF(($EA$66+$DR68)>EL$66,$DB68*$DQ68,0)+IF(($EB$66+$DR68)>EL$66,$DC68*$DQ68,0)+IF(($EC$66+$DR68)>EL$66,$DD68*$DQ68,0)+IF(($ED$66+$DR68)>EL$66,$DE68*$DQ68,0)+IF(($EE$66+$DR68)>EL$66,$DF68*$DQ68,0)+IF(($EF$66+$DR68)>EL$66,$DG68*$DQ68,0)+IF(($EG$66+$DR68)>EL$66,$DH68*$DQ68,0)+IF(($EH$66+$DR68)>EL$66,$DI68*$DQ68,0)+IF(($EI$66+$DR68)>EL$66,$DJ68*$DQ68,0)+IF(($EJ$66+$DR68)>EL$66,$DK68*$DQ68,0)+IF(($EK$66+$DR68)>EL$66,$DL68*$DQ68,0)+IF(($EM$66+$DR68)>EL$66,$DM68*$DQ68,0))) ->  | EO68: =IF($B68="","",$B68) ->  | EQ68: =IF(EO68="","",0) ->  | FM68: =""&$B68 ->  | FP68: =IF(FM68="","",0) ->  | FQ68: =IF($FM68="","",IF(($FP$66+$FO68)>FP$66,$CT68*$FN68,0)) ->  | FR68: =IF($FM68="","",IF(($FP$66+$FO68)>FQ$66,$CT68*$FN68,0)+IF(($FQ$66+$FO68)>FQ$66,$CU68*$FN68,0)) ->  | FS68: =IF($FM68="","",IF(($FP$66+$FO68)>FR$66,$CT68*$FN68,0)+IF(($FQ$66+$FO68)>FR$66,$CU68*$FN68,0)+IF(($FR$66+$FO68)>FR$66,$CV68*$FN68,0)) ->  | FT68: =IF($FM68="","",IF(($FP$66+$FO68)>FS$66,$CT68*$FN68,0)+IF(($FQ$66+$FO68)>FS$66,$CU68*$FN68,0)+IF(($FR$66+$FO68)>FS$66,$CV68*$FN68,0)+IF(($FS$66+$FO68)>FS$66,$CW68*$FN68,0)) ->  | FU68: =IF($FM68="","",IF(($FP$66+$FO68)>FT$66,$CT68*$FN68,0)+IF(($FQ$66+$FO68)>FT$66,$CU68*$FN68,0)+IF(($FR$66+$FO68)>FT$66,$CV68*$FN68,0)+IF(($FS$66+$FO68)>FT$66,$CW68*$FN68,0)+IF(($FT$66+$FO68)>FT$66,$CX68*$FN68,0)) ->  | FV68: =IF($FM68="","",IF(($FP$66+$FO68)>FU$66,$CT68*$FN68,0)+IF(($FQ$66+$FO68)>FU$66,$CU68*$FN68,0)+IF(($FR$66+$FO68)>FU$66,$CV68*$FN68,0)+IF(($FS$66+$FO68)>FU$66,$CW68*$FN68,0)+IF(($FT$66+$FO68)>FU$66,$CX68*$FN68,0)+IF(($FU$66+$FO68)>FU$66,$CY68*$FN68,0)) ->  | FW68: =IF($FM68="","",IF(($FP$66+$FO68)>FV$66,$CT68*$FN68,0)+IF(($FQ$66+$FO68)>FV$66,$CU68*$FN68,0)+IF(($FR$66+$FO68)>FV$66,$CV68*$FN68,0)+IF(($FS$66+$FO68)>FV$66,$CW68*$FN68,0)+IF(($FT$66+$FO68)>FV$66,$CX68*$FN68,0)+IF(($FU$66+$FO68)>FV$66,$CY68*$FN68,0)+IF(($FV$66+$FO68)>FV$66,$CZ68*$FN68,0)) ->  | FX68: =IF($FM68="","",IF(($FP$66+$FO68)>FW$66,$CT68*$FN68,0)+IF(($FQ$66+$FO68)>FW$66,$CU68*$FN68,0)+IF(($FR$66+$FO68)>FW$66,$CV68*$FN68,0)+IF(($FS$66+$FO68)>FW$66,$CW68*$FN68,0)+IF(($FT$66+$FO68)>FW$66,$CX68*$FN68,0)+IF(($FU$66+$FO68)>FW$66,$CY68*$FN68,0)+IF(($FV$66+$FO68)>FW$66,$CZ68*$FN68,0)+IF(($FW$66+$FO68)>FW$66,$DA68*$FN68,0)) ->  | FY68: =IF($FM68="","",IF(($FP$66+$FO68)>FX$66,$CT68*$FN68,0)+IF(($FQ$66+$FO68)>FX$66,$CU68*$FN68,0)+IF(($FR$66+$FO68)>FX$66,$CV68*$FN68,0)+IF(($FS$66+$FO68)>FX$66,$CW68*$FN68,0)+IF(($FT$66+$FO68)>FX$66,$CX68*$FN68,0)+IF(($FU$66+$FO68)>FX$66,$CY68*$FN68,0)+IF(($FV$66+$FO68)>FX$66,$CZ68*$FN68,0)+IF(($FW$66+$FO68)>FX$66,$DA68*$FN68,0)+IF(($FX$66+$FO68)>FX$66,$DB68*$FN68,0)) ->  | FZ68: =IF($FM68="","",IF(($FP$66+$FO68)>FY$66,$CT68*$FN68,0)+IF(($FQ$66+$FO68)>FY$66,$CU68*$FN68,0)+IF(($FR$66+$FO68)>FY$66,$CV68*$FN68,0)+IF(($FS$66+$FO68)>FY$66,$CW68*$FN68,0)+IF(($FT$66+$FO68)>FY$66,$CX68*$FN68,0)+IF(($FU$66+$FO68)>FY$66,$CY68*$FN68,0)+IF(($FV$66+$FO68)>FY$66,$CZ68*$FN68,0)+IF(($FW$66+$FO68)>FY$66,$DA68*$FN68,0)+IF(($FX$66+$FO68)>FY$66,$DB68*$FN68,0)+IF(($FY$66+$FO68)>FY$66,$DC68*$FN68,0)) ->  | GA68: =IF($FM68="","",IF(($FP$66+$FO68)>FZ$66,$CT68*$FN68,0)+IF(($FQ$66+$FO68)>FZ$66,$CU68*$FN68,0)+IF(($FR$66+$FO68)>FZ$66,$CV68*$FN68,0)+IF(($FS$66+$FO68)>FZ$66,$CW68*$FN68,0)+IF(($FT$66+$FO68)>FZ$66,$CX68*$FN68,0)+IF(($FU$66+$FO68)>FZ$66,$CY68*$FN68,0)+IF(($FV$66+$FO68)>FZ$66,$CZ68*$FN68,0)+IF(($FW$66+$FO68)>FZ$66,$DA68*$FN68,0)+IF(($FX$66+$FO68)>FZ$66,$DB68*$FN68,0)+IF(($FY$66+$FO68)>FZ$66,$DC68*$FN68,0)+IF(($FZ$66+$FO68)>FZ$66,$DD68*$FN68,0)) ->  | GB68: =IF($FM68="","",IF(($FP$66+$FO68)>GA$66,$CT68*$FN68,0)+IF(($FQ$66+$FO68)>GA$66,$CU68*$FN68,0)+IF(($FR$66+$FO68)>GA$66,$CV68*$FN68,0)+IF(($FS$66+$FO68)>GA$66,$CW68*$FN68,0)+IF(($FT$66+$FO68)>GA$66,$CX68*$FN68,0)+IF(($FU$66+$FO68)>GA$66,$CY68*$FN68,0)+IF(($FV$66+$FO68)>GA$66,$CZ68*$FN68,0)+IF(($FW$66+$FO68)>GA$66,$DA68*$FN68,0)+IF(($FX$66+$FO68)>GA$66,$DB68*$FN68,0)+IF(($FY$66+$FO68)>GA$66,$DC68*$FN68,0)+IF(($FZ$66+$FO68)>GA$66,$DD68*$FN68,0)+IF(($GA$66+$FO68)>GA$66,$DE68*$FN68,0)) ->  | GC68: =IF($FM68="","",IF(($FP$66+$FO68)>GB$66,$CT68*$FN68,0)+IF(($FQ$66+$FO68)>GB$66,$CU68*$FN68,0)+IF(($FR$66+$FO68)>GB$66,$CV68*$FN68,0)+IF(($FS$66+$FO68)>GB$66,$CW68*$FN68,0)+IF(($FT$66+$FO68)>GB$66,$CX68*$FN68,0)+IF(($FU$66+$FO68)>GB$66,$CY68*$FN68,0)+IF(($FV$66+$FO68)>GB$66,$CZ68*$FN68,0)+IF(($FW$66+$FO68)>GB$66,$DA68*$FN68,0)+IF(($FX$66+$FO68)>GB$66,$DB68*$FN68,0)+IF(($FY$66+$FO68)>GB$66,$DC68*$FN68,0)+IF(($FZ$66+$FO68)>GB$66,$DD68*$FN68,0)+IF(($GA$66+$FO68)>GB$66,$DE68*$FN68,0)+IF(($GB$66+$FO68)>GB$66,$DF68*$FN68,0)) ->  | GD68: =IF($FM68="","",IF(($FP$66+$FO68)>GC$66,$CT68*$FN68,0)+IF(($FQ$66+$FO68)>GC$66,$CU68*$FN68,0)+IF(($FR$66+$FO68)>GC$66,$CV68*$FN68,0)+IF(($FS$66+$FO68)>GC$66,$CW68*$FN68,0)+IF(($FT$66+$FO68)>GC$66,$CX68*$FN68,0)+IF(($FU$66+$FO68)>GC$66,$CY68*$FN68,0)+IF(($FV$66+$FO68)>GC$66,$CZ68*$FN68,0)+IF(($FW$66+$FO68)>GC$66,$DA68*$FN68,0)+IF(($FX$66+$FO68)>GC$66,$DB68*$FN68,0)+IF(($FY$66+$FO68)>GC$66,$DC68*$FN68,0)+IF(($FZ$66+$FO68)>GC$66,$DD68*$FN68,0)+IF(($GA$66+$FO68)>GC$66,$DE68*$FN68,0)+IF(($GB$66+$FO68)>GC$66,$DF68*$FN68,0)+IF(($GC$66+$FO68)>GC$66,$DG68*$FN68,0)) ->  | GE68: =IF($FM68="","",IF(($FP$66+$FO68)>GD$66,$CT68*$FN68,0)+IF(($FQ$66+$FO68)>GD$66,$CU68*$FN68,0)+IF(($FR$66+$FO68)>GD$66,$CV68*$FN68,0)+IF(($FS$66+$FO68)>GD$66,$CW68*$FN68,0)+IF(($FT$66+$FO68)>GD$66,$CX68*$FN68,0)+IF(($FU$66+$FO68)>GD$66,$CY68*$FN68,0)+IF(($FV$66+$FO68)>GD$66,$CZ68*$FN68,0)+IF(($FW$66+$FO68)>GD$66,$DA68*$FN68,0)+IF(($FX$66+$FO68)>GD$66,$DB68*$FN68,0)+IF(($FY$66+$FO68)>GD$66,$DC68*$FN68,0)+IF(($FZ$66+$FO68)>GD$66,$DD68*$FN68,0)+IF(($GA$66+$FO68)>GD$66,$DE68*$FN68,0)+IF(($GB$66+$FO68)>GD$66,$DF68*$FN68,0)+IF(($GC$66+$FO68)>GD$66,$DG68*$FN68,0)+IF(($GD$66+$FO68)>GD$66,$DH68*$FN68,0)) ->  | GF68: =IF($FM68="","",IF(($FP$66+$FO68)>GE$66,$CT68*$FN68,0)+IF(($FQ$66+$FO68)>GE$66,$CU68*$FN68,0)+IF(($FR$66+$FO68)>GE$66,$CV68*$FN68,0)+IF(($FS$66+$FO68)>GE$66,$CW68*$FN68,0)+IF(($FT$66+$FO68)>GE$66,$CX68*$FN68,0)+IF(($FU$66+$FO68)>GE$66,$CY68*$FN68,0)+IF(($FV$66+$FO68)>GE$66,$CZ68*$FN68,0)+IF(($FW$66+$FO68)>GE$66,$DA68*$FN68,0)+IF(($FX$66+$FO68)>GE$66,$DB68*$FN68,0)+IF(($FY$66+$FO68)>GE$66,$DC68*$FN68,0)+IF(($FZ$66+$FO68)>GE$66,$DD68*$FN68,0)+IF(($GA$66+$FO68)>GE$66,$DE68*$FN68,0)+IF(($GB$66+$FO68)>GE$66,$DF68*$FN68,0)+IF(($GC$66+$FO68)>GE$66,$DG68*$FN68,0)+IF(($GD$66+$FO68)>GE$66,$DH68*$FN68,0)+IF(($GE$66+$FO68)>GE$66,$DI68*$FN68,0)) ->  | GG68: =IF($FM68="","",IF(($FP$66+$FO68)>GF$66,$CT68*$FN68,0)+IF(($FQ$66+$FO68)>GF$66,$CU68*$FN68,0)+IF(($FR$66+$FO68)>GF$66,$CV68*$FN68,0)+IF(($FS$66+$FO68)>GF$66,$CW68*$FN68,0)+IF(($FT$66+$FO68)>GF$66,$CX68*$FN68,0)+IF(($FU$66+$FO68)>GF$66,$CY68*$FN68,0)+IF(($FV$66+$FO68)>GF$66,$CZ68*$FN68,0)+IF(($FW$66+$FO68)>GF$66,$DA68*$FN68,0)+IF(($FX$66+$FO68)>GF$66,$DB68*$FN68,0)+IF(($FY$66+$FO68)>GF$66,$DC68*$FN68,0)+IF(($FZ$66+$FO68)>GF$66,$DD68*$FN68,0)+IF(($GA$66+$FO68)>GF$66,$DE68*$FN68,0)+IF(($GB$66+$FO68)>GF$66,$DF68*$FN68,0)+IF(($GC$66+$FO68)>GF$66,$DG68*$FN68,0)+IF(($GD$66+$FO68)>GF$66,$DH68*$FN68,0)+IF(($GE$66+$FO68)>GF$66,$DI68*$FN68,0)+IF(($GF$66+$FO68)>GF$66,$DJ68*$FN68,0)) ->  | GH68: =IF($FM68="","",IF(($FP$66+$FO68)>GG$66,$CT68*$FN68,0)+IF(($FQ$66+$FO68)>GG$66,$CU68*$FN68,0)+IF(($FR$66+$FO68)>GG$66,$CV68*$FN68,0)+IF(($FS$66+$FO68)>GG$66,$CW68*$FN68,0)+IF(($FT$66+$FO68)>GG$66,$CX68*$FN68,0)+IF(($FU$66+$FO68)>GG$66,$CY68*$FN68,0)+IF(($FV$66+$FO68)>GG$66,$CZ68*$FN68,0)+IF(($FW$66+$FO68)>GG$66,$DA68*$FN68,0)+IF(($FX$66+$FO68)>GG$66,$DB68*$FN68,0)+IF(($FY$66+$FO68)>GG$66,$DC68*$FN68,0)+IF(($FZ$66+$FO68)>GG$66,$DD68*$FN68,0)+IF(($GA$66+$FO68)>GG$66,$DE68*$FN68,0)+IF(($GB$66+$FO68)>GG$66,$DF68*$FN68,0)+IF(($GC$66+$FO68)>GG$66,$DG68*$FN68,0)+IF(($GD$66+$FO68)>GG$66,$DH68*$FN68,0)+IF(($GE$66+$FO68)>GG$66,$DI68*$FN68,0)+IF(($GF$66+$FO68)>GG$66,$DJ68*$FN68,0)+IF(($GG$66+$FO68)>GG$66,$DK68*$FN68,0)) ->  | GI68: =IF($FM68="","",IF(($FP$66+$FO68)>GH$66,$CT68*$FN68,0)+IF(($FQ$66+$FO68)>GH$66,$CU68*$FN68,0)+IF(($FR$66+$FO68)>GH$66,$CV68*$FN68,0)+IF(($FS$66+$FO68)>GH$66,$CW68*$FN68,0)+IF(($FT$66+$FO68)>GH$66,$CX68*$FN68,0)+IF(($FU$66+$FO68)>GH$66,$CY68*$FN68,0)+IF(($FV$66+$FO68)>GH$66,$CZ68*$FN68,0)+IF(($FW$66+$FO68)>GH$66,$DA68*$FN68,0)+IF(($FX$66+$FO68)>GH$66,$DB68*$FN68,0)+IF(($FY$66+$FO68)>GH$66,$DC68*$FN68,0)+IF(($FZ$66+$FO68)>GH$66,$DD68*$FN68,0)+IF(($GA$66+$FO68)>GH$66,$DE68*$FN68,0)+IF(($GB$66+$FO68)>GH$66,$DF68*$FN68,0)+IF(($GC$66+$FO68)>GH$66,$DG68*$FN68,0)+IF(($GD$66+$FO68)>GH$66,$DH68*$FN68,0)+IF(($GE$66+$FO68)>GH$66,$DI68*$FN68,0)+IF(($GF$66+$FO68)>GH$66,$DJ68*$FN68,0)+IF(($GG$66+$FO68)>GH$66,$DK68*$FN68,0)+IF(($GH$66+$FO68)>GH$66,$DL68*$FN68,0)) ->  | GJ68: =IF($FM68="","",IF(($FP$66+$FO68)>GI$66,$CT68*$FN68,0)+IF(($FQ$66+$FO68)>GI$66,$CU68*$FN68,0)+IF(($FR$66+$FO68)>GI$66,$CV68*$FN68,0)+IF(($FS$66+$FO68)>GI$66,$CW68*$FN68,0)+IF(($FT$66+$FO68)>GI$66,$CX68*$FN68,0)+IF(($FU$66+$FO68)>GI$66,$CY68*$FN68,0)+IF(($FV$66+$FO68)>GI$66,$CZ68*$FN68,0)+IF(($FW$66+$FO68)>GI$66,$DA68*$FN68,0)+IF(($FX$66+$FO68)>GI$66,$DB68*$FN68,0)+IF(($FY$66+$FO68)>GI$66,$DC68*$FN68,0)+IF(($FZ$66+$FO68)>GI$66,$DD68*$FN68,0)+IF(($GA$66+$FO68)>GI$66,$DE68*$FN68,0)+IF(($GB$66+$FO68)>GI$66,$DF68*$FN68,0)+IF(($GC$66+$FO68)>GI$66,$DG68*$FN68,0)+IF(($GD$66+$FO68)>GI$66,$DH68*$FN68,0)+IF(($GE$66+$FO68)>GI$66,$DI68*$FN68,0)+IF(($GF$66+$FO68)>GI$66,$DJ68*$FN68,0)+IF(($GG$66+$FO68)>GI$66,$DK68*$FN68,0)+IF(($GH$66+$FO68)>GI$66,$DL68*$FN68,0)+IF(($GI$66+$FO68)>GI$66,$DM68*$FN68,0)) ->  | GK68: Não
F69: Normal | G69: 0 | I69: Sim | J69: Sim | P69: 0 | Y69: =IF(V69="","",IF($Y$66<$G69,0,IF(SUM($X69:X69)>=$C69,0,$C69))) ->  | Z69: =IF(V69="","",IF($Z$66<$G69,0,IF(SUM($X69:Y69)>=$C69,0,$C69))) ->  | AA69: =IF(V69="","",IF($AA$66<$G69,0,IF(SUM($X69:Z69)>=$C69,0,$C69))) ->  | AB69: =IF(V69="","",IF($AB$66<$G69,0,IF(SUM($X69:AA69)>=$C69,0,$C69))) ->  | AC69: =IF(V69="","",IF($AC$66<$G69,0,IF(SUM($X69:AB69)>=$C69,0,$C69))) ->  | AD69: =IF(V69="","",IF($AD$66<$G69,0,IF(SUM($X69:AC69)>=$C69,0,$C69))) ->  | AE69: =IF(V69="","",IF($AE$66<$G69,0,IF(SUM($X69:AD69)>=$C69,0,$C69))) ->  | AF69: =IF(V69="","",IF($AF$66<$G69,0,IF(SUM($X69:AE69)>=$C69,0,$C69))) ->  | AG69: =IF(V69="","",IF($AG$66<$G69,0,IF(SUM($X69:AF69)>=$C69,0,$C69))) ->  | AH69: =IF(V69="","",IF($AH$66<$G69,0,IF(SUM($X69:AG69)>=$C69,0,$C69))) ->  | AI69: =IF(V69="","",IF($AI$66<$G69,0,IF(SUM($X69:AH69)>=$C69,0,$C69))) ->  | AJ69: =IF(V69="","",IF($AJ$66<$G69,0,IF(SUM($X69:AI69)>=$C69,0,$C69))) ->  | AK69: =IF(V69="","",IF($AK$66<$G69,0,IF(SUM($X69:AJ69)>=$C69,0,$C69))) ->  | AL69: =IF(V69="","",IF($AL$66<$G69,0,IF(SUM($X69:AK69)>=$C69,0,$C69))) ->  | AM69: =IF(V69="","",IF($AM$66<$G69,0,IF(SUM($X69:AL69)>=$C69,0,$C69))) ->  | AN69: =IF(V69="","",IF($AN$66<$G69,0,IF(SUM($X69:AM69)>=$C69,0,$C69))) ->  | AO69: =IF(V69="","",IF($AO$66<$G69,0,IF(SUM($X69:AN69)>=$C69,0,$C69))) ->  | AP69: =IF(V69="","",IF($AP$66<$G69,0,IF(SUM($X69:AO69)>=$C69,0,$C69))) ->  | AQ69: =IF(V69="","",IF($AQ$66<$G69,0,IF(SUM($X69:AP69)>=$C69,0,$C69))) ->  | AR69: =IF(V69="","",IF($AR$66<$G69,0,IF(SUM($X69:AQ69)>=$C69,0,$C69))) ->  | AS69: 4
F70: Normal | G70: 0 | I70: Sim | J70: Sim | P70: 0 | Y70: =IF(V70="","",IF($Y$66<$G70,0,IF(SUM($X70:X70)>=$C70,0,$C70))) ->  | Z70: =IF(V70="","",IF($Z$66<$G70,0,IF(SUM($X70:Y70)>=$C70,0,$C70))) ->  | AA70: =IF(V70="","",IF($AA$66<$G70,0,IF(SUM($X70:Z70)>=$C70,0,$C70))) ->  | AB70: =IF(V70="","",IF($AB$66<$G70,0,IF(SUM($X70:AA70)>=$C70,0,$C70))) ->  | AC70: =IF(V70="","",IF($AC$66<$G70,0,IF(SUM($X70:AB70)>=$C70,0,$C70))) ->  | AD70: =IF(V70="","",IF($AD$66<$G70,0,IF(SUM($X70:AC70)>=$C70,0,$C70))) ->  | AE70: =IF(V70="","",IF($AE$66<$G70,0,IF(SUM($X70:AD70)>=$C70,0,$C70))) ->  | AF70: =IF(V70="","",IF($AF$66<$G70,0,IF(SUM($X70:AE70)>=$C70,0,$C70))) ->  | AG70: =IF(V70="","",IF($AG$66<$G70,0,IF(SUM($X70:AF70)>=$C70,0,$C70))) ->  | AH70: =IF(V70="","",IF($AH$66<$G70,0,IF(SUM($X70:AG70)>=$C70,0,$C70))) ->  | AI70: =IF(V70="","",IF($AI$66<$G70,0,IF(SUM($X70:AH70)>=$C70,0,$C70))) ->  | AJ70: =IF(V70="","",IF($AJ$66<$G70,0,IF(SUM($X70:AI70)>=$C70,0,$C70))) ->  | AK70: =IF(V70="","",IF($AK$66<$G70,0,IF(SUM($X70:AJ70)>=$C70,0,$C70))) ->  | AL70: =IF(V70="","",IF($AL$66<$G70,0,IF(SUM($X70:AK70)>=$C70,0,$C70))) ->  | AM70: =IF(V70="","",IF($AM$66<$G70,0,IF(SUM($X70:AL70)>=$C70,0,$C70))) ->  | AN70: =IF(V70="","",IF($AN$66<$G70,0,IF(SUM($X70:AM70)>=$C70,0,$C70))) ->  | AO70: =IF(V70="","",IF($AO$66<$G70,0,IF(SUM($X70:AN70)>=$C70,0,$C70))) ->  | AP70: =IF(V70="","",IF($AP$66<$G70,0,IF(SUM($X70:AO70)>=$C70,0,$C70))) ->  | AQ70: =IF(V70="","",IF($AQ$66<$G70,0,IF(SUM($X70:AP70)>=$C70,0,$C70))) ->  | AR70: =IF(V70="","",IF($AR$66<$G70,0,IF(SUM($X70:AQ70)>=$C70,0,$C70))) ->  | AS70: 5
F71: Normal | G71: 0 | I71: Sim | J71: Sim | P71: 0 | Y71: =IF(V71="","",IF($Y$66<$G71,0,IF(SUM($X71:X71)>=$C71,0,$C71))) ->  | Z71: =IF(V71="","",IF($Z$66<$G71,0,IF(SUM($X71:Y71)>=$C71,0,$C71))) ->  | AA71: =IF(V71="","",IF($AA$66<$G71,0,IF(SUM($X71:Z71)>=$C71,0,$C71))) ->  | AB71: =IF(V71="","",IF($AB$66<$G71,0,IF(SUM($X71:AA71)>=$C71,0,$C71))) ->  | AC71: =IF(V71="","",IF($AC$66<$G71,0,IF(SUM($X71:AB71)>=$C71,0,$C71))) ->  | AD71: =IF(V71="","",IF($AD$66<$G71,0,IF(SUM($X71:AC71)>=$C71,0,$C71))) ->  | AE71: =IF(V71="","",IF($AE$66<$G71,0,IF(SUM($X71:AD71)>=$C71,0,$C71))) ->  | AF71: =IF(V71="","",IF($AF$66<$G71,0,IF(SUM($X71:AE71)>=$C71,0,$C71))) ->  | AG71: =IF(V71="","",IF($AG$66<$G71,0,IF(SUM($X71:AF71)>=$C71,0,$C71))) ->  | AH71: =IF(V71="","",IF($AH$66<$G71,0,IF(SUM($X71:AG71)>=$C71,0,$C71))) ->  | AI71: =IF(V71="","",IF($AI$66<$G71,0,IF(SUM($X71:AH71)>=$C71,0,$C71))) ->  | AJ71: =IF(V71="","",IF($AJ$66<$G71,0,IF(SUM($X71:AI71)>=$C71,0,$C71))) ->  | AK71: =IF(V71="","",IF($AK$66<$G71,0,IF(SUM($X71:AJ71)>=$C71,0,$C71))) ->  | AL71: =IF(V71="","",IF($AL$66<$G71,0,IF(SUM($X71:AK71)>=$C71,0,$C71))) ->  | AM71: =IF(V71="","",IF($AM$66<$G71,0,IF(SUM($X71:AL71)>=$C71,0,$C71))) ->  | AN71: =IF(V71="","",IF($AN$66<$G71,0,IF(SUM($X71:AM71)>=$C71,0,$C71))) ->  | AO71: =IF(V71="","",IF($AO$66<$G71,0,IF(SUM($X71:AN71)>=$C71,0,$C71))) ->  | AP71: =IF(V71="","",IF($AP$66<$G71,0,IF(SUM($X71:AO71)>=$C71,0,$C71))) ->  | AQ71: =IF(V71="","",IF($AQ$66<$G71,0,IF(SUM($X71:AP71)>=$C71,0,$C71))) ->  | AR71: =IF(V71="","",IF($AR$66<$G71,0,IF(SUM($X71:AQ71)>=$C71,0,$C71))) ->  | AS71: 6
F72: Normal | G72: 0 | I72: Sim | J72: Sim | P72: 0 | Y72: =IF(V72="","",IF($Y$66<$G72,0,IF(SUM($X72:X72)>=$C72,0,$C72))) ->  | Z72: =IF(V72="","",IF($Z$66<$G72,0,IF(SUM($X72:Y72)>=$C72,0,$C72))) ->  | AA72: =IF(V72="","",IF($AA$66<$G72,0,IF(SUM($X72:Z72)>=$C72,0,$C72))) ->  | AB72: =IF(V72="","",IF($AB$66<$G72,0,IF(SUM($X72:AA72)>=$C72,0,$C72))) ->  | AC72: =IF(V72="","",IF($AC$66<$G72,0,IF(SUM($X72:AB72)>=$C72,0,$C72))) ->  | AD72: =IF(V72="","",IF($AD$66<$G72,0,IF(SUM($X72:AC72)>=$C72,0,$C72))) ->  | AE72: =IF(V72="","",IF($AE$66<$G72,0,IF(SUM($X72:AD72)>=$C72,0,$C72))) ->  | AF72: =IF(V72="","",IF($AF$66<$G72,0,IF(SUM($X72:AE72)>=$C72,0,$C72))) ->  | AG72: =IF(V72="","",IF($AG$66<$G72,0,IF(SUM($X72:AF72)>=$C72,0,$C72))) ->  | AH72: =IF(V72="","",IF($AH$66<$G72,0,IF(SUM($X72:AG72)>=$C72,0,$C72))) ->  | AI72: =IF(V72="","",IF($AI$66<$G72,0,IF(SUM($X72:AH72)>=$C72,0,$C72))) ->  | AJ72: =IF(V72="","",IF($AJ$66<$G72,0,IF(SUM($X72:AI72)>=$C72,0,$C72))) ->  | AK72: =IF(V72="","",IF($AK$66<$G72,0,IF(SUM($X72:AJ72)>=$C72,0,$C72))) ->  | AL72: =IF(V72="","",IF($AL$66<$G72,0,IF(SUM($X72:AK72)>=$C72,0,$C72))) ->  | AM72: =IF(V72="","",IF($AM$66<$G72,0,IF(SUM($X72:AL72)>=$C72,0,$C72))) ->  | AN72: =IF(V72="","",IF($AN$66<$G72,0,IF(SUM($X72:AM72)>=$C72,0,$C72))) ->  | AO72: =IF(V72="","",IF($AO$66<$G72,0,IF(SUM($X72:AN72)>=$C72,0,$C72))) ->  | AP72: =IF(V72="","",IF($AP$66<$G72,0,IF(SUM($X72:AO72)>=$C72,0,$C72))) ->  | AQ72: =IF(V72="","",IF($AQ$66<$G72,0,IF(SUM($X72:AP72)>=$C72,0,$C72))) ->  | AR72: =IF(V72="","",IF($AR$66<$G72,0,IF(SUM($X72:AQ72)>=$C72,0,$C72))) ->  | AS72: 7
F73: Normal | G73: 0 | I73: Sim | J73: Sim | P73: 0 | Y73: =IF(V73="","",IF($Y$66<$G73,0,IF(SUM($X73:X73)>=$C73,0,$C73))) ->  | Z73: =IF(V73="","",IF($Z$66<$G73,0,IF(SUM($X73:Y73)>=$C73,0,$C73))) ->  | AA73: =IF(V73="","",IF($AA$66<$G73,0,IF(SUM($X73:Z73)>=$C73,0,$C73))) ->  | AB73: =IF(V73="","",IF($AB$66<$G73,0,IF(SUM($X73:AA73)>=$C73,0,$C73))) ->  | AC73: =IF(V73="","",IF($AC$66<$G73,0,IF(SUM($X73:AB73)>=$C73,0,$C73))) ->  | AD73: =IF(V73="","",IF($AD$66<$G73,0,IF(SUM($X73:AC73)>=$C73,0,$C73))) ->  | AE73: =IF(V73="","",IF($AE$66<$G73,0,IF(SUM($X73:AD73)>=$C73,0,$C73))) ->  | AF73: =IF(V73="","",IF($AF$66<$G73,0,IF(SUM($X73:AE73)>=$C73,0,$C73))) ->  | AG73: =IF(V73="","",IF($AG$66<$G73,0,IF(SUM($X73:AF73)>=$C73,0,$C73))) ->  | AH73: =IF(V73="","",IF($AH$66<$G73,0,IF(SUM($X73:AG73)>=$C73,0,$C73))) ->  | AI73: =IF(V73="","",IF($AI$66<$G73,0,IF(SUM($X73:AH73)>=$C73,0,$C73))) ->  | AJ73: =IF(V73="","",IF($AJ$66<$G73,0,IF(SUM($X73:AI73)>=$C73,0,$C73))) ->  | AK73: =IF(V73="","",IF($AK$66<$G73,0,IF(SUM($X73:AJ73)>=$C73,0,$C73))) ->  | AL73: =IF(V73="","",IF($AL$66<$G73,0,IF(SUM($X73:AK73)>=$C73,0,$C73))) ->  | AM73: =IF(V73="","",IF($AM$66<$G73,0,IF(SUM($X73:AL73)>=$C73,0,$C73))) ->  | AN73: =IF(V73="","",IF($AN$66<$G73,0,IF(SUM($X73:AM73)>=$C73,0,$C73))) ->  | AO73: =IF(V73="","",IF($AO$66<$G73,0,IF(SUM($X73:AN73)>=$C73,0,$C73))) ->  | AP73: =IF(V73="","",IF($AP$66<$G73,0,IF(SUM($X73:AO73)>=$C73,0,$C73))) ->  | AQ73: =IF(V73="","",IF($AQ$66<$G73,0,IF(SUM($X73:AP73)>=$C73,0,$C73))) ->  | AR73: =IF(V73="","",IF($AR$66<$G73,0,IF(SUM($X73:AQ73)>=$C73,0,$C73))) ->  | AS73: 8
F74: Normal | G74: 0 | I74: Sim | J74: Sim | P74: 0 | Y74: =IF(V74="","",IF($Y$66<$G74,0,IF(SUM($X74:X74)>=$C74,0,$C74))) ->  | Z74: =IF(V74="","",IF($Z$66<$G74,0,IF(SUM($X74:Y74)>=$C74,0,$C74))) ->  | AA74: =IF(V74="","",IF($AA$66<$G74,0,IF(SUM($X74:Z74)>=$C74,0,$C74))) ->  | AB74: =IF(V74="","",IF($AB$66<$G74,0,IF(SUM($X74:AA74)>=$C74,0,$C74))) ->  | AC74: =IF(V74="","",IF($AC$66<$G74,0,IF(SUM($X74:AB74)>=$C74,0,$C74))) ->  | AD74: =IF(V74="","",IF($AD$66<$G74,0,IF(SUM($X74:AC74)>=$C74,0,$C74))) ->  | AE74: =IF(V74="","",IF($AE$66<$G74,0,IF(SUM($X74:AD74)>=$C74,0,$C74))) ->  | AF74: =IF(V74="","",IF($AF$66<$G74,0,IF(SUM($X74:AE74)>=$C74,0,$C74))) ->  | AG74: =IF(V74="","",IF($AG$66<$G74,0,IF(SUM($X74:AF74)>=$C74,0,$C74))) ->  | AH74: =IF(V74="","",IF($AH$66<$G74,0,IF(SUM($X74:AG74)>=$C74,0,$C74))) ->  | AI74: =IF(V74="","",IF($AI$66<$G74,0,IF(SUM($X74:AH74)>=$C74,0,$C74))) ->  | AJ74: =IF(V74="","",IF($AJ$66<$G74,0,IF(SUM($X74:AI74)>=$C74,0,$C74))) ->  | AK74: =IF(V74="","",IF($AK$66<$G74,0,IF(SUM($X74:AJ74)>=$C74,0,$C74))) ->  | AL74: =IF(V74="","",IF($AL$66<$G74,0,IF(SUM($X74:AK74)>=$C74,0,$C74))) ->  | AM74: =IF(V74="","",IF($AM$66<$G74,0,IF(SUM($X74:AL74)>=$C74,0,$C74))) ->  | AN74: =IF(V74="","",IF($AN$66<$G74,0,IF(SUM($X74:AM74)>=$C74,0,$C74))) ->  | AO74: =IF(V74="","",IF($AO$66<$G74,0,IF(SUM($X74:AN74)>=$C74,0,$C74))) ->  | AP74: =IF(V74="","",IF($AP$66<$G74,0,IF(SUM($X74:AO74)>=$C74,0,$C74))) ->  | AQ74: =IF(V74="","",IF($AQ$66<$G74,0,IF(SUM($X74:AP74)>=$C74,0,$C74))) ->  | AR74: =IF(V74="","",IF($AR$66<$G74,0,IF(SUM($X74:AQ74)>=$C74,0,$C74))) ->  | AS74: 9
F75: Normal | G75: 0 | I75: Sim | J75: Sim | P75: 0 | Y75: =IF(V75="","",IF($Y$66<$G75,0,IF(SUM($X75:X75)>=$C75,0,$C75))) ->  | Z75: =IF(V75="","",IF($Z$66<$G75,0,IF(SUM($X75:Y75)>=$C75,0,$C75))) ->  | AA75: =IF(V75="","",IF($AA$66<$G75,0,IF(SUM($X75:Z75)>=$C75,0,$C75))) ->  | AB75: =IF(V75="","",IF($AB$66<$G75,0,IF(SUM($X75:AA75)>=$C75,0,$C75))) ->  | AC75: =IF(V75="","",IF($AC$66<$G75,0,IF(SUM($X75:AB75)>=$C75,0,$C75))) ->  | AD75: =IF(V75="","",IF($AD$66<$G75,0,IF(SUM($X75:AC75)>=$C75,0,$C75))) ->  | AE75: =IF(V75="","",IF($AE$66<$G75,0,IF(SUM($X75:AD75)>=$C75,0,$C75))) ->  | AF75: =IF(V75="","",IF($AF$66<$G75,0,IF(SUM($X75:AE75)>=$C75,0,$C75))) ->  | AG75: =IF(V75="","",IF($AG$66<$G75,0,IF(SUM($X75:AF75)>=$C75,0,$C75))) ->  | AH75: =IF(V75="","",IF($AH$66<$G75,0,IF(SUM($X75:AG75)>=$C75,0,$C75))) ->  | AI75: =IF(V75="","",IF($AI$66<$G75,0,IF(SUM($X75:AH75)>=$C75,0,$C75))) ->  | AJ75: =IF(V75="","",IF($AJ$66<$G75,0,IF(SUM($X75:AI75)>=$C75,0,$C75))) ->  | AK75: =IF(V75="","",IF($AK$66<$G75,0,IF(SUM($X75:AJ75)>=$C75,0,$C75))) ->  | AL75: =IF(V75="","",IF($AL$66<$G75,0,IF(SUM($X75:AK75)>=$C75,0,$C75))) ->  | AM75: =IF(V75="","",IF($AM$66<$G75,0,IF(SUM($X75:AL75)>=$C75,0,$C75))) ->  | AN75: =IF(V75="","",IF($AN$66<$G75,0,IF(SUM($X75:AM75)>=$C75,0,$C75))) ->  | AO75: =IF(V75="","",IF($AO$66<$G75,0,IF(SUM($X75:AN75)>=$C75,0,$C75))) ->  | AP75: =IF(V75="","",IF($AP$66<$G75,0,IF(SUM($X75:AO75)>=$C75,0,$C75))) ->  | AQ75: =IF(V75="","",IF($AQ$66<$G75,0,IF(SUM($X75:AP75)>=$C75,0,$C75))) ->  | AR75: =IF(V75="","",IF($AR$66<$G75,0,IF(SUM($X75:AQ75)>=$C75,0,$C75))) ->  | AS75: 10 | BY75: =IF($BS75="","",SUM(AB75,BA75)) -> 
F76: Normal | G76: 0 | I76: Sim | J76: Sim | P76: 0 | Y76: =IF(V76="","",IF($Y$66<$G76,0,IF(SUM($X76:X76)>=$C76,0,$C76))) ->  | Z76: =IF(V76="","",IF($Z$66<$G76,0,IF(SUM($X76:Y76)>=$C76,0,$C76))) ->  | AA76: =IF(V76="","",IF($AA$66<$G76,0,IF(SUM($X76:Z76)>=$C76,0,$C76))) ->  | AB76: =IF(V76="","",IF($AB$66<$G76,0,IF(SUM($X76:AA76)>=$C76,0,$C76))) ->  | AC76: =IF(V76="","",IF($AC$66<$G76,0,IF(SUM($X76:AB76)>=$C76,0,$C76))) ->  | AD76: =IF(V76="","",IF($AD$66<$G76,0,IF(SUM($X76:AC76)>=$C76,0,$C76))) ->  | AE76: =IF(V76="","",IF($AE$66<$G76,0,IF(SUM($X76:AD76)>=$C76,0,$C76))) ->  | AF76: =IF(V76="","",IF($AF$66<$G76,0,IF(SUM($X76:AE76)>=$C76,0,$C76))) ->  | AG76: =IF(V76="","",IF($AG$66<$G76,0,IF(SUM($X76:AF76)>=$C76,0,$C76))) ->  | AH76: =IF(V76="","",IF($AH$66<$G76,0,IF(SUM($X76:AG76)>=$C76,0,$C76))) ->  | AI76: =IF(V76="","",IF($AI$66<$G76,0,IF(SUM($X76:AH76)>=$C76,0,$C76))) ->  | AJ76: =IF(V76="","",IF($AJ$66<$G76,0,IF(SUM($X76:AI76)>=$C76,0,$C76))) ->  | AK76: =IF(V76="","",IF($AK$66<$G76,0,IF(SUM($X76:AJ76)>=$C76,0,$C76))) ->  | AL76: =IF(V76="","",IF($AL$66<$G76,0,IF(SUM($X76:AK76)>=$C76,0,$C76))) ->  | AM76: =IF(V76="","",IF($AM$66<$G76,0,IF(SUM($X76:AL76)>=$C76,0,$C76))) ->  | AN76: =IF(V76="","",IF($AN$66<$G76,0,IF(SUM($X76:AM76)>=$C76,0,$C76))) ->  | AO76: =IF(V76="","",IF($AO$66<$G76,0,IF(SUM($X76:AN76)>=$C76,0,$C76))) ->  | AP76: =IF(V76="","",IF($AP$66<$G76,0,IF(SUM($X76:AO76)>=$C76,0,$C76))) ->  | AQ76: =IF(V76="","",IF($AQ$66<$G76,0,IF(SUM($X76:AP76)>=$C76,0,$C76))) ->  | AR76: =IF(V76="","",IF($AR$66<$G76,0,IF(SUM($X76:AQ76)>=$C76,0,$C76))) ->  | AS76: 11
F77: Normal | G77: 0 | I77: Sim | J77: Sim | P77: 0 | Y77: =IF(V77="","",IF($Y$66<$G77,0,IF(SUM($X77:X77)>=$C77,0,$C77))) ->  | Z77: =IF(V77="","",IF($Z$66<$G77,0,IF(SUM($X77:Y77)>=$C77,0,$C77))) ->  | AA77: =IF(V77="","",IF($AA$66<$G77,0,IF(SUM($X77:Z77)>=$C77,0,$C77))) ->  | AB77: =IF(V77="","",IF($AB$66<$G77,0,IF(SUM($X77:AA77)>=$C77,0,$C77))) ->  | AC77: =IF(V77="","",IF($AC$66<$G77,0,IF(SUM($X77:AB77)>=$C77,0,$C77))) ->  | AD77: =IF(V77="","",IF($AD$66<$G77,0,IF(SUM($X77:AC77)>=$C77,0,$C77))) ->  | AE77: =IF(V77="","",IF($AE$66<$G77,0,IF(SUM($X77:AD77)>=$C77,0,$C77))) ->  | AF77: =IF(V77="","",IF($AF$66<$G77,0,IF(SUM($X77:AE77)>=$C77,0,$C77))) ->  | AG77: =IF(V77="","",IF($AG$66<$G77,0,IF(SUM($X77:AF77)>=$C77,0,$C77))) ->  | AH77: =IF(V77="","",IF($AH$66<$G77,0,IF(SUM($X77:AG77)>=$C77,0,$C77))) ->  | AI77: =IF(V77="","",IF($AI$66<$G77,0,IF(SUM($X77:AH77)>=$C77,0,$C77))) ->  | AJ77: =IF(V77="","",IF($AJ$66<$G77,0,IF(SUM($X77:AI77)>=$C77,0,$C77))) ->  | AK77: =IF(V77="","",IF($AK$66<$G77,0,IF(SUM($X77:AJ77)>=$C77,0,$C77))) ->  | AL77: =IF(V77="","",IF($AL$66<$G77,0,IF(SUM($X77:AK77)>=$C77,0,$C77))) ->  | AM77: =IF(V77="","",IF($AM$66<$G77,0,IF(SUM($X77:AL77)>=$C77,0,$C77))) ->  | AN77: =IF(V77="","",IF($AN$66<$G77,0,IF(SUM($X77:AM77)>=$C77,0,$C77))) ->  | AO77: =IF(V77="","",IF($AO$66<$G77,0,IF(SUM($X77:AN77)>=$C77,0,$C77))) ->  | AP77: =IF(V77="","",IF($AP$66<$G77,0,IF(SUM($X77:AO77)>=$C77,0,$C77))) ->  | AQ77: =IF(V77="","",IF($AQ$66<$G77,0,IF(SUM($X77:AP77)>=$C77,0,$C77))) ->  | AR77: =IF(V77="","",IF($AR$66<$G77,0,IF(SUM($X77:AQ77)>=$C77,0,$C77))) ->  | AS77: 12 | CV77: =IF($CQ77="","",$CR77*BW77) -> 
F78: Normal | G78: 0 | I78: Sim | J78: Sim | P78: 0 | Y78: =IF(V78="","",IF($Y$66<$G78,0,IF(SUM($X78:X78)>=$C78,0,$C78))) ->  | Z78: =IF(V78="","",IF($Z$66<$G78,0,IF(SUM($X78:Y78)>=$C78,0,$C78))) ->  | AA78: =IF(V78="","",IF($AA$66<$G78,0,IF(SUM($X78:Z78)>=$C78,0,$C78))) ->  | AB78: =IF(V78="","",IF($AB$66<$G78,0,IF(SUM($X78:AA78)>=$C78,0,$C78))) ->  | AC78: =IF(V78="","",IF($AC$66<$G78,0,IF(SUM($X78:AB78)>=$C78,0,$C78))) ->  | AD78: =IF(V78="","",IF($AD$66<$G78,0,IF(SUM($X78:AC78)>=$C78,0,$C78))) ->  | AE78: =IF(V78="","",IF($AE$66<$G78,0,IF(SUM($X78:AD78)>=$C78,0,$C78))) ->  | AF78: =IF(V78="","",IF($AF$66<$G78,0,IF(SUM($X78:AE78)>=$C78,0,$C78))) ->  | AG78: =IF(V78="","",IF($AG$66<$G78,0,IF(SUM($X78:AF78)>=$C78,0,$C78))) ->  | AH78: =IF(V78="","",IF($AH$66<$G78,0,IF(SUM($X78:AG78)>=$C78,0,$C78))) ->  | AI78: =IF(V78="","",IF($AI$66<$G78,0,IF(SUM($X78:AH78)>=$C78,0,$C78))) ->  | AJ78: =IF(V78="","",IF($AJ$66<$G78,0,IF(SUM($X78:AI78)>=$C78,0,$C78))) ->  | AK78: =IF(V78="","",IF($AK$66<$G78,0,IF(SUM($X78:AJ78)>=$C78,0,$C78))) ->  | AL78: =IF(V78="","",IF($AL$66<$G78,0,IF(SUM($X78:AK78)>=$C78,0,$C78))) ->  | AM78: =IF(V78="","",IF($AM$66<$G78,0,IF(SUM($X78:AL78)>=$C78,0,$C78))) ->  | AN78: =IF(V78="","",IF($AN$66<$G78,0,IF(SUM($X78:AM78)>=$C78,0,$C78))) ->  | AO78: =IF(V78="","",IF($AO$66<$G78,0,IF(SUM($X78:AN78)>=$C78,0,$C78))) ->  | AP78: =IF(V78="","",IF($AP$66<$G78,0,IF(SUM($X78:AO78)>=$C78,0,$C78))) ->  | AQ78: =IF(V78="","",IF($AQ$66<$G78,0,IF(SUM($X78:AP78)>=$C78,0,$C78))) ->  | AR78: =IF(V78="","",IF($AR$66<$G78,0,IF(SUM($X78:AQ78)>=$C78,0,$C78))) ->  | AS78: 13 | EU78: =IF($EO78="","",BA78*$E78*$K78) -> 
F79: Normal | G79: 0 | I79: Sim | J79: Sim | P79: 0 | Y79: =IF(V79="","",IF($Y$66<$G79,0,IF(SUM($X79:X79)>=$C79,0,$C79))) ->  | Z79: =IF(V79="","",IF($Z$66<$G79,0,IF(SUM($X79:Y79)>=$C79,0,$C79))) ->  | AA79: =IF(V79="","",IF($AA$66<$G79,0,IF(SUM($X79:Z79)>=$C79,0,$C79))) ->  | AB79: =IF(V79="","",IF($AB$66<$G79,0,IF(SUM($X79:AA79)>=$C79,0,$C79))) ->  | AC79: =IF(V79="","",IF($AC$66<$G79,0,IF(SUM($X79:AB79)>=$C79,0,$C79))) ->  | AD79: =IF(V79="","",IF($AD$66<$G79,0,IF(SUM($X79:AC79)>=$C79,0,$C79))) ->  | AE79: =IF(V79="","",IF($AE$66<$G79,0,IF(SUM($X79:AD79)>=$C79,0,$C79))) ->  | AF79: =IF(V79="","",IF($AF$66<$G79,0,IF(SUM($X79:AE79)>=$C79,0,$C79))) ->  | AG79: =IF(V79="","",IF($AG$66<$G79,0,IF(SUM($X79:AF79)>=$C79,0,$C79))) ->  | AH79: =IF(V79="","",IF($AH$66<$G79,0,IF(SUM($X79:AG79)>=$C79,0,$C79))) ->  | AI79: =IF(V79="","",IF($AI$66<$G79,0,IF(SUM($X79:AH79)>=$C79,0,$C79))) ->  | AJ79: =IF(V79="","",IF($AJ$66<$G79,0,IF(SUM($X79:AI79)>=$C79,0,$C79))) ->  | AK79: =IF(V79="","",IF($AK$66<$G79,0,IF(SUM($X79:AJ79)>=$C79,0,$C79))) ->  | AL79: =IF(V79="","",IF($AL$66<$G79,0,IF(SUM($X79:AK79)>=$C79,0,$C79))) ->  | AM79: =IF(V79="","",IF($AM$66<$G79,0,IF(SUM($X79:AL79)>=$C79,0,$C79))) ->  | AN79: =IF(V79="","",IF($AN$66<$G79,0,IF(SUM($X79:AM79)>=$C79,0,$C79))) ->  | AO79: =IF(V79="","",IF($AO$66<$G79,0,IF(SUM($X79:AN79)>=$C79,0,$C79))) ->  | AP79: =IF(V79="","",IF($AP$66<$G79,0,IF(SUM($X79:AO79)>=$C79,0,$C79))) ->  | AQ79: =IF(V79="","",IF($AQ$66<$G79,0,IF(SUM($X79:AP79)>=$C79,0,$C79))) ->  | AR79: =IF(V79="","",IF($AR$66<$G79,0,IF(SUM($X79:AQ79)>=$C79,0,$C79))) ->  | AS79: 14 | DU79: =IF($DP79="","",IF($DP79="","",IF(($DS$66+$DR79)>DT$66,$CT79*$DQ79,0)+IF(($DT$66+$DR79)>DT$66,$CU79*$DQ79,0))) -> 
F80: Normal | G80: 0 | I80: Sim | J80: Sim | P80: 0 | Y80: =IF(V80="","",IF($Y$66<$G80,0,IF(SUM($X80:X80)>=$C80,0,$C80))) ->  | Z80: =IF(V80="","",IF($Z$66<$G80,0,IF(SUM($X80:Y80)>=$C80,0,$C80))) ->  | AA80: =IF(V80="","",IF($AA$66<$G80,0,IF(SUM($X80:Z80)>=$C80,0,$C80))) ->  | AB80: =IF(V80="","",IF($AB$66<$G80,0,IF(SUM($X80:AA80)>=$C80,0,$C80))) ->  | AC80: =IF(V80="","",IF($AC$66<$G80,0,IF(SUM($X80:AB80)>=$C80,0,$C80))) ->  | AD80: =IF(V80="","",IF($AD$66<$G80,0,IF(SUM($X80:AC80)>=$C80,0,$C80))) ->  | AE80: =IF(V80="","",IF($AE$66<$G80,0,IF(SUM($X80:AD80)>=$C80,0,$C80))) ->  | AF80: =IF(V80="","",IF($AF$66<$G80,0,IF(SUM($X80:AE80)>=$C80,0,$C80))) ->  | AG80: =IF(V80="","",IF($AG$66<$G80,0,IF(SUM($X80:AF80)>=$C80,0,$C80))) ->  | AH80: =IF(V80="","",IF($AH$66<$G80,0,IF(SUM($X80:AG80)>=$C80,0,$C80))) ->  | AI80: =IF(V80="","",IF($AI$66<$G80,0,IF(SUM($X80:AH80)>=$C80,0,$C80))) ->  | AJ80: =IF(V80="","",IF($AJ$66<$G80,0,IF(SUM($X80:AI80)>=$C80,0,$C80))) ->  | AK80: =IF(V80="","",IF($AK$66<$G80,0,IF(SUM($X80:AJ80)>=$C80,0,$C80))) ->  | AL80: =IF(V80="","",IF($AL$66<$G80,0,IF(SUM($X80:AK80)>=$C80,0,$C80))) ->  | AM80: =IF(V80="","",IF($AM$66<$G80,0,IF(SUM($X80:AL80)>=$C80,0,$C80))) ->  | AN80: =IF(V80="","",IF($AN$66<$G80,0,IF(SUM($X80:AM80)>=$C80,0,$C80))) ->  | AO80: =IF(V80="","",IF($AO$66<$G80,0,IF(SUM($X80:AN80)>=$C80,0,$C80))) ->  | AP80: =IF(V80="","",IF($AP$66<$G80,0,IF(SUM($X80:AO80)>=$C80,0,$C80))) ->  | AQ80: =IF(V80="","",IF($AQ$66<$G80,0,IF(SUM($X80:AP80)>=$C80,0,$C80))) ->  | AR80: =IF(V80="","",IF($AR$66<$G80,0,IF(SUM($X80:AQ80)>=$C80,0,$C80))) ->  | AS80: 15 | FT80: =IF($FM80="","",IF(($FP$66+$FO80)>FS$66,$CT80*$FN80,0)+IF(($FQ$66+$FO80)>FS$66,$CU80*$FN80,0)+IF(($FR$66+$FO80)>FS$66,$CV80*$FN80,0)+IF(($FS$66+$FO80)>FS$66,$CW80*$FN80,0)) -> 
F81: Normal | G81: 0 | I81: Sim | J81: Sim | P81: 0 | Y81: =IF(V81="","",IF($Y$66<$G81,0,IF(SUM($X81:X81)>=$C81,0,$C81))) ->  | Z81: =IF(V81="","",IF($Z$66<$G81,0,IF(SUM($X81:Y81)>=$C81,0,$C81))) ->  | AA81: =IF(V81="","",IF($AA$66<$G81,0,IF(SUM($X81:Z81)>=$C81,0,$C81))) ->  | AB81: =IF(V81="","",IF($AB$66<$G81,0,IF(SUM($X81:AA81)>=$C81,0,$C81))) ->  | AC81: =IF(V81="","",IF($AC$66<$G81,0,IF(SUM($X81:AB81)>=$C81,0,$C81))) ->  | AD81: =IF(V81="","",IF($AD$66<$G81,0,IF(SUM($X81:AC81)>=$C81,0,$C81))) ->  | AE81: =IF(V81="","",IF($AE$66<$G81,0,IF(SUM($X81:AD81)>=$C81,0,$C81))) ->  | AF81: =IF(V81="","",IF($AF$66<$G81,0,IF(SUM($X81:AE81)>=$C81,0,$C81))) ->  | AG81: =IF(V81="","",IF($AG$66<$G81,0,IF(SUM($X81:AF81)>=$C81,0,$C81))) ->  | AH81: =IF(V81="","",IF($AH$66<$G81,0,IF(SUM($X81:AG81)>=$C81,0,$C81))) ->  | AI81: =IF(V81="","",IF($AI$66<$G81,0,IF(SUM($X81:AH81)>=$C81,0,$C81))) ->  | AJ81: =IF(V81="","",IF($AJ$66<$G81,0,IF(SUM($X81:AI81)>=$C81,0,$C81))) ->  | AK81: =IF(V81="","",IF($AK$66<$G81,0,IF(SUM($X81:AJ81)>=$C81,0,$C81))) ->  | AL81: =IF(V81="","",IF($AL$66<$G81,0,IF(SUM($X81:AK81)>=$C81,0,$C81))) ->  | AM81: =IF(V81="","",IF($AM$66<$G81,0,IF(SUM($X81:AL81)>=$C81,0,$C81))) ->  | AN81: =IF(V81="","",IF($AN$66<$G81,0,IF(SUM($X81:AM81)>=$C81,0,$C81))) ->  | AO81: =IF(V81="","",IF($AO$66<$G81,0,IF(SUM($X81:AN81)>=$C81,0,$C81))) ->  | AP81: =IF(V81="","",IF($AP$66<$G81,0,IF(SUM($X81:AO81)>=$C81,0,$C81))) ->  | AQ81: =IF(V81="","",IF($AQ$66<$G81,0,IF(SUM($X81:AP81)>=$C81,0,$C81))) ->  | AR81: =IF(V81="","",IF($AR$66<$G81,0,IF(SUM($X81:AQ81)>=$C81,0,$C81))) ->  | AS81: 16
F82: Normal | G82: 0 | I82: Sim | J82: Sim | P82: 0 | Y82: =IF(V82="","",IF($Y$66<$G82,0,IF(SUM($X82:X82)>=$C82,0,$C82))) ->  | Z82: =IF(V82="","",IF($Z$66<$G82,0,IF(SUM($X82:Y82)>=$C82,0,$C82))) ->  | AA82: =IF(V82="","",IF($AA$66<$G82,0,IF(SUM($X82:Z82)>=$C82,0,$C82))) ->  | AB82: =IF(V82="","",IF($AB$66<$G82,0,IF(SUM($X82:AA82)>=$C82,0,$C82))) ->  | AC82: =IF(V82="","",IF($AC$66<$G82,0,IF(SUM($X82:AB82)>=$C82,0,$C82))) ->  | AD82: =IF(V82="","",IF($AD$66<$G82,0,IF(SUM($X82:AC82)>=$C82,0,$C82))) ->  | AE82: =IF(V82="","",IF($AE$66<$G82,0,IF(SUM($X82:AD82)>=$C82,0,$C82))) ->  | AF82: =IF(V82="","",IF($AF$66<$G82,0,IF(SUM($X82:AE82)>=$C82,0,$C82))) ->  | AG82: =IF(V82="","",IF($AG$66<$G82,0,IF(SUM($X82:AF82)>=$C82,0,$C82))) ->  | AH82: =IF(V82="","",IF($AH$66<$G82,0,IF(SUM($X82:AG82)>=$C82,0,$C82))) ->  | AI82: =IF(V82="","",IF($AI$66<$G82,0,IF(SUM($X82:AH82)>=$C82,0,$C82))) ->  | AJ82: =IF(V82="","",IF($AJ$66<$G82,0,IF(SUM($X82:AI82)>=$C82,0,$C82))) ->  | AK82: =IF(V82="","",IF($AK$66<$G82,0,IF(SUM($X82:AJ82)>=$C82,0,$C82))) ->  | AL82: =IF(V82="","",IF($AL$66<$G82,0,IF(SUM($X82:AK82)>=$C82,0,$C82))) ->  | AM82: =IF(V82="","",IF($AM$66<$G82,0,IF(SUM($X82:AL82)>=$C82,0,$C82))) ->  | AN82: =IF(V82="","",IF($AN$66<$G82,0,IF(SUM($X82:AM82)>=$C82,0,$C82))) ->  | AO82: =IF(V82="","",IF($AO$66<$G82,0,IF(SUM($X82:AN82)>=$C82,0,$C82))) ->  | AP82: =IF(V82="","",IF($AP$66<$G82,0,IF(SUM($X82:AO82)>=$C82,0,$C82))) ->  | AQ82: =IF(V82="","",IF($AQ$66<$G82,0,IF(SUM($X82:AP82)>=$C82,0,$C82))) ->  | AR82: =IF(V82="","",IF($AR$66<$G82,0,IF(SUM($X82:AQ82)>=$C82,0,$C82))) ->  | AS82: 17 | AX82: =IF(OR($AU82="",$H82=""),"",IF($I82="Sim",IF(AX$66-$H82>=0,HLOOKUP(AX$66-$H82,$AW$66:$BQ$116,$AS82,FALSE)+HLOOKUP(AX$66-$H82,$X$66:$AR$116,$AS82,FALSE),0),0)) ->  | AY82: =IF(OR($AU82="",$H82=""),"",IF($I82="Sim",IF(AY$66-$H82>=0,HLOOKUP(AY$66-$H82,$AW$66:$BQ$116,$AS82,FALSE)+HLOOKUP(AY$66-$H82,$X$66:$AR$116,$AS82,FALSE),0),0)) ->  | BN82: =IF(OR($AU82="",$H82=""),"",IF($I82="Sim",IF(BN$66-$H82>=0,HLOOKUP(BN$66-$H82,$AW$66:$BQ$116,$AS82,FALSE)+HLOOKUP(BN$66-$H82,$X$66:$AR$116,$AS82,FALSE),0),0)) -> 
F83: Normal | G83: 0 | I83: Sim | J83: Sim | P83: 0 | Y83: =IF(V83="","",IF($Y$66<$G83,0,IF(SUM($X83:X83)>=$C83,0,$C83))) ->  | Z83: =IF(V83="","",IF($Z$66<$G83,0,IF(SUM($X83:Y83)>=$C83,0,$C83))) ->  | AA83: =IF(V83="","",IF($AA$66<$G83,0,IF(SUM($X83:Z83)>=$C83,0,$C83))) ->  | AB83: =IF(V83="","",IF($AB$66<$G83,0,IF(SUM($X83:AA83)>=$C83,0,$C83))) ->  | AC83: =IF(V83="","",IF($AC$66<$G83,0,IF(SUM($X83:AB83)>=$C83,0,$C83))) ->  | AD83: =IF(V83="","",IF($AD$66<$G83,0,IF(SUM($X83:AC83)>=$C83,0,$C83))) ->  | AE83: =IF(V83="","",IF($AE$66<$G83,0,IF(SUM($X83:AD83)>=$C83,0,$C83))) ->  | AF83: =IF(V83="","",IF($AF$66<$G83,0,IF(SUM($X83:AE83)>=$C83,0,$C83))) ->  | AG83: =IF(V83="","",IF($AG$66<$G83,0,IF(SUM($X83:AF83)>=$C83,0,$C83))) ->  | AH83: =IF(V83="","",IF($AH$66<$G83,0,IF(SUM($X83:AG83)>=$C83,0,$C83))) ->  | AI83: =IF(V83="","",IF($AI$66<$G83,0,IF(SUM($X83:AH83)>=$C83,0,$C83))) ->  | AJ83: =IF(V83="","",IF($AJ$66<$G83,0,IF(SUM($X83:AI83)>=$C83,0,$C83))) ->  | AK83: =IF(V83="","",IF($AK$66<$G83,0,IF(SUM($X83:AJ83)>=$C83,0,$C83))) ->  | AL83: =IF(V83="","",IF($AL$66<$G83,0,IF(SUM($X83:AK83)>=$C83,0,$C83))) ->  | AM83: =IF(V83="","",IF($AM$66<$G83,0,IF(SUM($X83:AL83)>=$C83,0,$C83))) ->  | AN83: =IF(V83="","",IF($AN$66<$G83,0,IF(SUM($X83:AM83)>=$C83,0,$C83))) ->  | AO83: =IF(V83="","",IF($AO$66<$G83,0,IF(SUM($X83:AN83)>=$C83,0,$C83))) ->  | AP83: =IF(V83="","",IF($AP$66<$G83,0,IF(SUM($X83:AO83)>=$C83,0,$C83))) ->  | AQ83: =IF(V83="","",IF($AQ$66<$G83,0,IF(SUM($X83:AP83)>=$C83,0,$C83))) ->  | AR83: =IF(V83="","",IF($AR$66<$G83,0,IF(SUM($X83:AQ83)>=$C83,0,$C83))) ->  | AS83: 18
F84: Normal | G84: 0 | I84: Sim | J84: Sim | P84: 0 | Y84: =IF(V84="","",IF($Y$66<$G84,0,IF(SUM($X84:X84)>=$C84,0,$C84))) ->  | Z84: =IF(V84="","",IF($Z$66<$G84,0,IF(SUM($X84:Y84)>=$C84,0,$C84))) ->  | AA84: =IF(V84="","",IF($AA$66<$G84,0,IF(SUM($X84:Z84)>=$C84,0,$C84))) ->  | AB84: =IF(V84="","",IF($AB$66<$G84,0,IF(SUM($X84:AA84)>=$C84,0,$C84))) ->  | AC84: =IF(V84="","",IF($AC$66<$G84,0,IF(SUM($X84:AB84)>=$C84,0,$C84))) ->  | AD84: =IF(V84="","",IF($AD$66<$G84,0,IF(SUM($X84:AC84)>=$C84,0,$C84))) ->  | AE84: =IF(V84="","",IF($AE$66<$G84,0,IF(SUM($X84:AD84)>=$C84,0,$C84))) ->  | AF84: =IF(V84="","",IF($AF$66<$G84,0,IF(SUM($X84:AE84)>=$C84,0,$C84))) ->  | AG84: =IF(V84="","",IF($AG$66<$G84,0,IF(SUM($X84:AF84)>=$C84,0,$C84))) ->  | AH84: =IF(V84="","",IF($AH$66<$G84,0,IF(SUM($X84:AG84)>=$C84,0,$C84))) ->  | AI84: =IF(V84="","",IF($AI$66<$G84,0,IF(SUM($X84:AH84)>=$C84,0,$C84))) ->  | AJ84: =IF(V84="","",IF($AJ$66<$G84,0,IF(SUM($X84:AI84)>=$C84,0,$C84))) ->  | AK84: =IF(V84="","",IF($AK$66<$G84,0,IF(SUM($X84:AJ84)>=$C84,0,$C84))) ->  | AL84: =IF(V84="","",IF($AL$66<$G84,0,IF(SUM($X84:AK84)>=$C84,0,$C84))) ->  | AM84: =IF(V84="","",IF($AM$66<$G84,0,IF(SUM($X84:AL84)>=$C84,0,$C84))) ->  | AN84: =IF(V84="","",IF($AN$66<$G84,0,IF(SUM($X84:AM84)>=$C84,0,$C84))) ->  | AO84: =IF(V84="","",IF($AO$66<$G84,0,IF(SUM($X84:AN84)>=$C84,0,$C84))) ->  | AP84: =IF(V84="","",IF($AP$66<$G84,0,IF(SUM($X84:AO84)>=$C84,0,$C84))) ->  | AQ84: =IF(V84="","",IF($AQ$66<$G84,0,IF(SUM($X84:AP84)>=$C84,0,$C84))) ->  | AR84: =IF(V84="","",IF($AR$66<$G84,0,IF(SUM($X84:AQ84)>=$C84,0,$C84))) ->  | AS84: 19
F85: Normal | G85: 0 | I85: Sim | J85: Sim | P85: 0 | Y85: =IF(V85="","",IF($Y$66<$G85,0,IF(SUM($X85:X85)>=$C85,0,$C85))) ->  | Z85: =IF(V85="","",IF($Z$66<$G85,0,IF(SUM($X85:Y85)>=$C85,0,$C85))) ->  | AA85: =IF(V85="","",IF($AA$66<$G85,0,IF(SUM($X85:Z85)>=$C85,0,$C85))) ->  | AB85: =IF(V85="","",IF($AB$66<$G85,0,IF(SUM($X85:AA85)>=$C85,0,$C85))) ->  | AC85: =IF(V85="","",IF($AC$66<$G85,0,IF(SUM($X85:AB85)>=$C85,0,$C85))) ->  | AD85: =IF(V85="","",IF($AD$66<$G85,0,IF(SUM($X85:AC85)>=$C85,0,$C85))) ->  | AE85: =IF(V85="","",IF($AE$66<$G85,0,IF(SUM($X85:AD85)>=$C85,0,$C85))) ->  | AF85: =IF(V85="","",IF($AF$66<$G85,0,IF(SUM($X85:AE85)>=$C85,0,$C85))) ->  | AG85: =IF(V85="","",IF($AG$66<$G85,0,IF(SUM($X85:AF85)>=$C85,0,$C85))) ->  | AH85: =IF(V85="","",IF($AH$66<$G85,0,IF(SUM($X85:AG85)>=$C85,0,$C85))) ->  | AI85: =IF(V85="","",IF($AI$66<$G85,0,IF(SUM($X85:AH85)>=$C85,0,$C85))) ->  | AJ85: =IF(V85="","",IF($AJ$66<$G85,0,IF(SUM($X85:AI85)>=$C85,0,$C85))) ->  | AK85: =IF(V85="","",IF($AK$66<$G85,0,IF(SUM($X85:AJ85)>=$C85,0,$C85))) ->  | AL85: =IF(V85="","",IF($AL$66<$G85,0,IF(SUM($X85:AK85)>=$C85,0,$C85))) ->  | AM85: =IF(V85="","",IF($AM$66<$G85,0,IF(SUM($X85:AL85)>=$C85,0,$C85))) ->  | AN85: =IF(V85="","",IF($AN$66<$G85,0,IF(SUM($X85:AM85)>=$C85,0,$C85))) ->  | AO85: =IF(V85="","",IF($AO$66<$G85,0,IF(SUM($X85:AN85)>=$C85,0,$C85))) ->  | AP85: =IF(V85="","",IF($AP$66<$G85,0,IF(SUM($X85:AO85)>=$C85,0,$C85))) ->  | AQ85: =IF(V85="","",IF($AQ$66<$G85,0,IF(SUM($X85:AP85)>=$C85,0,$C85))) ->  | AR85: =IF(V85="","",IF($AR$66<$G85,0,IF(SUM($X85:AQ85)>=$C85,0,$C85))) ->  | AS85: 20
F86: Normal | G86: 0 | I86: Sim | J86: Sim | P86: 0 | Y86: =IF(V86="","",IF($Y$66<$G86,0,IF(SUM($X86:X86)>=$C86,0,$C86))) ->  | Z86: =IF(V86="","",IF($Z$66<$G86,0,IF(SUM($X86:Y86)>=$C86,0,$C86))) ->  | AA86: =IF(V86="","",IF($AA$66<$G86,0,IF(SUM($X86:Z86)>=$C86,0,$C86))) ->  | AB86: =IF(V86="","",IF($AB$66<$G86,0,IF(SUM($X86:AA86)>=$C86,0,$C86))) ->  | AC86: =IF(V86="","",IF($AC$66<$G86,0,IF(SUM($X86:AB86)>=$C86,0,$C86))) ->  | AD86: =IF(V86="","",IF($AD$66<$G86,0,IF(SUM($X86:AC86)>=$C86,0,$C86))) ->  | AE86: =IF(V86="","",IF($AE$66<$G86,0,IF(SUM($X86:AD86)>=$C86,0,$C86))) ->  | AF86: =IF(V86="","",IF($AF$66<$G86,0,IF(SUM($X86:AE86)>=$C86,0,$C86))) ->  | AG86: =IF(V86="","",IF($AG$66<$G86,0,IF(SUM($X86:AF86)>=$C86,0,$C86))) ->  | AH86: =IF(V86="","",IF($AH$66<$G86,0,IF(SUM($X86:AG86)>=$C86,0,$C86))) ->  | AI86: =IF(V86="","",IF($AI$66<$G86,0,IF(SUM($X86:AH86)>=$C86,0,$C86))) ->  | AJ86: =IF(V86="","",IF($AJ$66<$G86,0,IF(SUM($X86:AI86)>=$C86,0,$C86))) ->  | AK86: =IF(V86="","",IF($AK$66<$G86,0,IF(SUM($X86:AJ86)>=$C86,0,$C86))) ->  | AL86: =IF(V86="","",IF($AL$66<$G86,0,IF(SUM($X86:AK86)>=$C86,0,$C86))) ->  | AM86: =IF(V86="","",IF($AM$66<$G86,0,IF(SUM($X86:AL86)>=$C86,0,$C86))) ->  | AN86: =IF(V86="","",IF($AN$66<$G86,0,IF(SUM($X86:AM86)>=$C86,0,$C86))) ->  | AO86: =IF(V86="","",IF($AO$66<$G86,0,IF(SUM($X86:AN86)>=$C86,0,$C86))) ->  | AP86: =IF(V86="","",IF($AP$66<$G86,0,IF(SUM($X86:AO86)>=$C86,0,$C86))) ->  | AQ86: =IF(V86="","",IF($AQ$66<$G86,0,IF(SUM($X86:AP86)>=$C86,0,$C86))) ->  | AR86: =IF(V86="","",IF($AR$66<$G86,0,IF(SUM($X86:AQ86)>=$C86,0,$C86))) ->  | AS86: 21
F87: Normal | G87: 0 | I87: Sim | J87: Sim | P87: 0 | Y87: =IF(V87="","",IF($Y$66<$G87,0,IF(SUM($X87:X87)>=$C87,0,$C87))) ->  | Z87: =IF(V87="","",IF($Z$66<$G87,0,IF(SUM($X87:Y87)>=$C87,0,$C87))) ->  | AA87: =IF(V87="","",IF($AA$66<$G87,0,IF(SUM($X87:Z87)>=$C87,0,$C87))) ->  | AB87: =IF(V87="","",IF($AB$66<$G87,0,IF(SUM($X87:AA87)>=$C87,0,$C87))) ->  | AC87: =IF(V87="","",IF($AC$66<$G87,0,IF(SUM($X87:AB87)>=$C87,0,$C87))) ->  | AD87: =IF(V87="","",IF($AD$66<$G87,0,IF(SUM($X87:AC87)>=$C87,0,$C87))) ->  | AE87: =IF(V87="","",IF($AE$66<$G87,0,IF(SUM($X87:AD87)>=$C87,0,$C87))) ->  | AF87: =IF(V87="","",IF($AF$66<$G87,0,IF(SUM($X87:AE87)>=$C87,0,$C87))) ->  | AG87: =IF(V87="","",IF($AG$66<$G87,0,IF(SUM($X87:AF87)>=$C87,0,$C87))) ->  | AH87: =IF(V87="","",IF($AH$66<$G87,0,IF(SUM($X87:AG87)>=$C87,0,$C87))) ->  | AI87: =IF(V87="","",IF($AI$66<$G87,0,IF(SUM($X87:AH87)>=$C87,0,$C87))) ->  | AJ87: =IF(V87="","",IF($AJ$66<$G87,0,IF(SUM($X87:AI87)>=$C87,0,$C87))) ->  | AK87: =IF(V87="","",IF($AK$66<$G87,0,IF(SUM($X87:AJ87)>=$C87,0,$C87))) ->  | AL87: =IF(V87="","",IF($AL$66<$G87,0,IF(SUM($X87:AK87)>=$C87,0,$C87))) ->  | AM87: =IF(V87="","",IF($AM$66<$G87,0,IF(SUM($X87:AL87)>=$C87,0,$C87))) ->  | AN87: =IF(V87="","",IF($AN$66<$G87,0,IF(SUM($X87:AM87)>=$C87,0,$C87))) ->  | AO87: =IF(V87="","",IF($AO$66<$G87,0,IF(SUM($X87:AN87)>=$C87,0,$C87))) ->  | AP87: =IF(V87="","",IF($AP$66<$G87,0,IF(SUM($X87:AO87)>=$C87,0,$C87))) ->  | AQ87: =IF(V87="","",IF($AQ$66<$G87,0,IF(SUM($X87:AP87)>=$C87,0,$C87))) ->  | AR87: =IF(V87="","",IF($AR$66<$G87,0,IF(SUM($X87:AQ87)>=$C87,0,$C87))) ->  | AS87: 22
F88: Normal | G88: 0 | I88: Sim | J88: Sim | P88: 0 | Y88: =IF(V88="","",IF($Y$66<$G88,0,IF(SUM($X88:X88)>=$C88,0,$C88))) ->  | Z88: =IF(V88="","",IF($Z$66<$G88,0,IF(SUM($X88:Y88)>=$C88,0,$C88))) ->  | AA88: =IF(V88="","",IF($AA$66<$G88,0,IF(SUM($X88:Z88)>=$C88,0,$C88))) ->  | AB88: =IF(V88="","",IF($AB$66<$G88,0,IF(SUM($X88:AA88)>=$C88,0,$C88))) ->  | AC88: =IF(V88="","",IF($AC$66<$G88,0,IF(SUM($X88:AB88)>=$C88,0,$C88))) ->  | AD88: =IF(V88="","",IF($AD$66<$G88,0,IF(SUM($X88:AC88)>=$C88,0,$C88))) ->  | AE88: =IF(V88="","",IF($AE$66<$G88,0,IF(SUM($X88:AD88)>=$C88,0,$C88))) ->  | AF88: =IF(V88="","",IF($AF$66<$G88,0,IF(SUM($X88:AE88)>=$C88,0,$C88))) ->  | AG88: =IF(V88="","",IF($AG$66<$G88,0,IF(SUM($X88:AF88)>=$C88,0,$C88))) ->  | AH88: =IF(V88="","",IF($AH$66<$G88,0,IF(SUM($X88:AG88)>=$C88,0,$C88))) ->  | AI88: =IF(V88="","",IF($AI$66<$G88,0,IF(SUM($X88:AH88)>=$C88,0,$C88))) ->  | AJ88: =IF(V88="","",IF($AJ$66<$G88,0,IF(SUM($X88:AI88)>=$C88,0,$C88))) ->  | AK88: =IF(V88="","",IF($AK$66<$G88,0,IF(SUM($X88:AJ88)>=$C88,0,$C88))) ->  | AL88: =IF(V88="","",IF($AL$66<$G88,0,IF(SUM($X88:AK88)>=$C88,0,$C88))) ->  | AM88: =IF(V88="","",IF($AM$66<$G88,0,IF(SUM($X88:AL88)>=$C88,0,$C88))) ->  | AN88: =IF(V88="","",IF($AN$66<$G88,0,IF(SUM($X88:AM88)>=$C88,0,$C88))) ->  | AO88: =IF(V88="","",IF($AO$66<$G88,0,IF(SUM($X88:AN88)>=$C88,0,$C88))) ->  | AP88: =IF(V88="","",IF($AP$66<$G88,0,IF(SUM($X88:AO88)>=$C88,0,$C88))) ->  | AQ88: =IF(V88="","",IF($AQ$66<$G88,0,IF(SUM($X88:AP88)>=$C88,0,$C88))) ->  | AR88: =IF(V88="","",IF($AR$66<$G88,0,IF(SUM($X88:AQ88)>=$C88,0,$C88))) ->  | AS88: 23
F89: Normal | G89: 0 | I89: Sim | J89: Sim | P89: 0 | Y89: =IF(V89="","",IF($Y$66<$G89,0,IF(SUM($X89:X89)>=$C89,0,$C89))) ->  | Z89: =IF(V89="","",IF($Z$66<$G89,0,IF(SUM($X89:Y89)>=$C89,0,$C89))) ->  | AA89: =IF(V89="","",IF($AA$66<$G89,0,IF(SUM($X89:Z89)>=$C89,0,$C89))) ->  | AB89: =IF(V89="","",IF($AB$66<$G89,0,IF(SUM($X89:AA89)>=$C89,0,$C89))) ->  | AC89: =IF(V89="","",IF($AC$66<$G89,0,IF(SUM($X89:AB89)>=$C89,0,$C89))) ->  | AD89: =IF(V89="","",IF($AD$66<$G89,0,IF(SUM($X89:AC89)>=$C89,0,$C89))) ->  | AE89: =IF(V89="","",IF($AE$66<$G89,0,IF(SUM($X89:AD89)>=$C89,0,$C89))) ->  | AF89: =IF(V89="","",IF($AF$66<$G89,0,IF(SUM($X89:AE89)>=$C89,0,$C89))) ->  | AG89: =IF(V89="","",IF($AG$66<$G89,0,IF(SUM($X89:AF89)>=$C89,0,$C89))) ->  | AH89: =IF(V89="","",IF($AH$66<$G89,0,IF(SUM($X89:AG89)>=$C89,0,$C89))) ->  | AI89: =IF(V89="","",IF($AI$66<$G89,0,IF(SUM($X89:AH89)>=$C89,0,$C89))) ->  | AJ89: =IF(V89="","",IF($AJ$66<$G89,0,IF(SUM($X89:AI89)>=$C89,0,$C89))) ->  | AK89: =IF(V89="","",IF($AK$66<$G89,0,IF(SUM($X89:AJ89)>=$C89,0,$C89))) ->  | AL89: =IF(V89="","",IF($AL$66<$G89,0,IF(SUM($X89:AK89)>=$C89,0,$C89))) ->  | AM89: =IF(V89="","",IF($AM$66<$G89,0,IF(SUM($X89:AL89)>=$C89,0,$C89))) ->  | AN89: =IF(V89="","",IF($AN$66<$G89,0,IF(SUM($X89:AM89)>=$C89,0,$C89))) ->  | AO89: =IF(V89="","",IF($AO$66<$G89,0,IF(SUM($X89:AN89)>=$C89,0,$C89))) ->  | AP89: =IF(V89="","",IF($AP$66<$G89,0,IF(SUM($X89:AO89)>=$C89,0,$C89))) ->  | AQ89: =IF(V89="","",IF($AQ$66<$G89,0,IF(SUM($X89:AP89)>=$C89,0,$C89))) ->  | AR89: =IF(V89="","",IF($AR$66<$G89,0,IF(SUM($X89:AQ89)>=$C89,0,$C89))) ->  | AS89: 24
F90: Normal | G90: 0 | I90: Sim | J90: Sim | P90: 0 | Y90: =IF(V90="","",IF($Y$66<$G90,0,IF(SUM($X90:X90)>=$C90,0,$C90))) ->  | Z90: =IF(V90="","",IF($Z$66<$G90,0,IF(SUM($X90:Y90)>=$C90,0,$C90))) ->  | AA90: =IF(V90="","",IF($AA$66<$G90,0,IF(SUM($X90:Z90)>=$C90,0,$C90))) ->  | AB90: =IF(V90="","",IF($AB$66<$G90,0,IF(SUM($X90:AA90)>=$C90,0,$C90))) ->  | AC90: =IF(V90="","",IF($AC$66<$G90,0,IF(SUM($X90:AB90)>=$C90,0,$C90))) ->  | AD90: =IF(V90="","",IF($AD$66<$G90,0,IF(SUM($X90:AC90)>=$C90,0,$C90))) ->  | AE90: =IF(V90="","",IF($AE$66<$G90,0,IF(SUM($X90:AD90)>=$C90,0,$C90))) ->  | AF90: =IF(V90="","",IF($AF$66<$G90,0,IF(SUM($X90:AE90)>=$C90,0,$C90))) ->  | AG90: =IF(V90="","",IF($AG$66<$G90,0,IF(SUM($X90:AF90)>=$C90,0,$C90))) ->  | AH90: =IF(V90="","",IF($AH$66<$G90,0,IF(SUM($X90:AG90)>=$C90,0,$C90))) ->  | AI90: =IF(V90="","",IF($AI$66<$G90,0,IF(SUM($X90:AH90)>=$C90,0,$C90))) ->  | AJ90: =IF(V90="","",IF($AJ$66<$G90,0,IF(SUM($X90:AI90)>=$C90,0,$C90))) ->  | AK90: =IF(V90="","",IF($AK$66<$G90,0,IF(SUM($X90:AJ90)>=$C90,0,$C90))) ->  | AL90: =IF(V90="","",IF($AL$66<$G90,0,IF(SUM($X90:AK90)>=$C90,0,$C90))) ->  | AM90: =IF(V90="","",IF($AM$66<$G90,0,IF(SUM($X90:AL90)>=$C90,0,$C90))) ->  | AN90: =IF(V90="","",IF($AN$66<$G90,0,IF(SUM($X90:AM90)>=$C90,0,$C90))) ->  | AO90: =IF(V90="","",IF($AO$66<$G90,0,IF(SUM($X90:AN90)>=$C90,0,$C90))) ->  | AP90: =IF(V90="","",IF($AP$66<$G90,0,IF(SUM($X90:AO90)>=$C90,0,$C90))) ->  | AQ90: =IF(V90="","",IF($AQ$66<$G90,0,IF(SUM($X90:AP90)>=$C90,0,$C90))) ->  | AR90: =IF(V90="","",IF($AR$66<$G90,0,IF(SUM($X90:AQ90)>=$C90,0,$C90))) ->  | AS90: 25
F91: Normal | G91: 0 | I91: Sim | J91: Sim | P91: 0 | Y91: =IF(V91="","",IF($Y$66<$G91,0,IF(SUM($X91:X91)>=$C91,0,$C91))) ->  | Z91: =IF(V91="","",IF($Z$66<$G91,0,IF(SUM($X91:Y91)>=$C91,0,$C91))) ->  | AA91: =IF(V91="","",IF($AA$66<$G91,0,IF(SUM($X91:Z91)>=$C91,0,$C91))) ->  | AB91: =IF(V91="","",IF($AB$66<$G91,0,IF(SUM($X91:AA91)>=$C91,0,$C91))) ->  | AC91: =IF(V91="","",IF($AC$66<$G91,0,IF(SUM($X91:AB91)>=$C91,0,$C91))) ->  | AD91: =IF(V91="","",IF($AD$66<$G91,0,IF(SUM($X91:AC91)>=$C91,0,$C91))) ->  | AE91: =IF(V91="","",IF($AE$66<$G91,0,IF(SUM($X91:AD91)>=$C91,0,$C91))) ->  | AF91: =IF(V91="","",IF($AF$66<$G91,0,IF(SUM($X91:AE91)>=$C91,0,$C91))) ->  | AG91: =IF(V91="","",IF($AG$66<$G91,0,IF(SUM($X91:AF91)>=$C91,0,$C91))) ->  | AH91: =IF(V91="","",IF($AH$66<$G91,0,IF(SUM($X91:AG91)>=$C91,0,$C91))) ->  | AI91: =IF(V91="","",IF($AI$66<$G91,0,IF(SUM($X91:AH91)>=$C91,0,$C91))) ->  | AJ91: =IF(V91="","",IF($AJ$66<$G91,0,IF(SUM($X91:AI91)>=$C91,0,$C91))) ->  | AK91: =IF(V91="","",IF($AK$66<$G91,0,IF(SUM($X91:AJ91)>=$C91,0,$C91))) ->  | AL91: =IF(V91="","",IF($AL$66<$G91,0,IF(SUM($X91:AK91)>=$C91,0,$C91))) ->  | AM91: =IF(V91="","",IF($AM$66<$G91,0,IF(SUM($X91:AL91)>=$C91,0,$C91))) ->  | AN91: =IF(V91="","",IF($AN$66<$G91,0,IF(SUM($X91:AM91)>=$C91,0,$C91))) ->  | AO91: =IF(V91="","",IF($AO$66<$G91,0,IF(SUM($X91:AN91)>=$C91,0,$C91))) ->  | AP91: =IF(V91="","",IF($AP$66<$G91,0,IF(SUM($X91:AO91)>=$C91,0,$C91))) ->  | AQ91: =IF(V91="","",IF($AQ$66<$G91,0,IF(SUM($X91:AP91)>=$C91,0,$C91))) ->  | AR91: =IF(V91="","",IF($AR$66<$G91,0,IF(SUM($X91:AQ91)>=$C91,0,$C91))) ->  | AS91: 26
F92: Normal | G92: 0 | I92: Sim | J92: Sim | P92: 0 | Y92: =IF(V92="","",IF($Y$66<$G92,0,IF(SUM($X92:X92)>=$C92,0,$C92))) ->  | Z92: =IF(V92="","",IF($Z$66<$G92,0,IF(SUM($X92:Y92)>=$C92,0,$C92))) ->  | AA92: =IF(V92="","",IF($AA$66<$G92,0,IF(SUM($X92:Z92)>=$C92,0,$C92))) ->  | AB92: =IF(V92="","",IF($AB$66<$G92,0,IF(SUM($X92:AA92)>=$C92,0,$C92))) ->  | AC92: =IF(V92="","",IF($AC$66<$G92,0,IF(SUM($X92:AB92)>=$C92,0,$C92))) ->  | AD92: =IF(V92="","",IF($AD$66<$G92,0,IF(SUM($X92:AC92)>=$C92,0,$C92))) ->  | AE92: =IF(V92="","",IF($AE$66<$G92,0,IF(SUM($X92:AD92)>=$C92,0,$C92))) ->  | AF92: =IF(V92="","",IF($AF$66<$G92,0,IF(SUM($X92:AE92)>=$C92,0,$C92))) ->  | AG92: =IF(V92="","",IF($AG$66<$G92,0,IF(SUM($X92:AF92)>=$C92,0,$C92))) ->  | AH92: =IF(V92="","",IF($AH$66<$G92,0,IF(SUM($X92:AG92)>=$C92,0,$C92))) ->  | AI92: =IF(V92="","",IF($AI$66<$G92,0,IF(SUM($X92:AH92)>=$C92,0,$C92))) ->  | AJ92: =IF(V92="","",IF($AJ$66<$G92,0,IF(SUM($X92:AI92)>=$C92,0,$C92))) ->  | AK92: =IF(V92="","",IF($AK$66<$G92,0,IF(SUM($X92:AJ92)>=$C92,0,$C92))) ->  | AL92: =IF(V92="","",IF($AL$66<$G92,0,IF(SUM($X92:AK92)>=$C92,0,$C92))) ->  | AM92: =IF(V92="","",IF($AM$66<$G92,0,IF(SUM($X92:AL92)>=$C92,0,$C92))) ->  | AN92: =IF(V92="","",IF($AN$66<$G92,0,IF(SUM($X92:AM92)>=$C92,0,$C92))) ->  | AO92: =IF(V92="","",IF($AO$66<$G92,0,IF(SUM($X92:AN92)>=$C92,0,$C92))) ->  | AP92: =IF(V92="","",IF($AP$66<$G92,0,IF(SUM($X92:AO92)>=$C92,0,$C92))) ->  | AQ92: =IF(V92="","",IF($AQ$66<$G92,0,IF(SUM($X92:AP92)>=$C92,0,$C92))) ->  | AR92: =IF(V92="","",IF($AR$66<$G92,0,IF(SUM($X92:AQ92)>=$C92,0,$C92))) ->  | AS92: 27
F93: Normal | G93: 0 | I93: Sim | J93: Sim | P93: 0 | Y93: =IF(V93="","",IF($Y$66<$G93,0,IF(SUM($X93:X93)>=$C93,0,$C93))) ->  | Z93: =IF(V93="","",IF($Z$66<$G93,0,IF(SUM($X93:Y93)>=$C93,0,$C93))) ->  | AA93: =IF(V93="","",IF($AA$66<$G93,0,IF(SUM($X93:Z93)>=$C93,0,$C93))) ->  | AB93: =IF(V93="","",IF($AB$66<$G93,0,IF(SUM($X93:AA93)>=$C93,0,$C93))) ->  | AC93: =IF(V93="","",IF($AC$66<$G93,0,IF(SUM($X93:AB93)>=$C93,0,$C93))) ->  | AD93: =IF(V93="","",IF($AD$66<$G93,0,IF(SUM($X93:AC93)>=$C93,0,$C93))) ->  | AE93: =IF(V93="","",IF($AE$66<$G93,0,IF(SUM($X93:AD93)>=$C93,0,$C93))) ->  | AF93: =IF(V93="","",IF($AF$66<$G93,0,IF(SUM($X93:AE93)>=$C93,0,$C93))) ->  | AG93: =IF(V93="","",IF($AG$66<$G93,0,IF(SUM($X93:AF93)>=$C93,0,$C93))) ->  | AH93: =IF(V93="","",IF($AH$66<$G93,0,IF(SUM($X93:AG93)>=$C93,0,$C93))) ->  | AI93: =IF(V93="","",IF($AI$66<$G93,0,IF(SUM($X93:AH93)>=$C93,0,$C93))) ->  | AJ93: =IF(V93="","",IF($AJ$66<$G93,0,IF(SUM($X93:AI93)>=$C93,0,$C93))) ->  | AK93: =IF(V93="","",IF($AK$66<$G93,0,IF(SUM($X93:AJ93)>=$C93,0,$C93))) ->  | AL93: =IF(V93="","",IF($AL$66<$G93,0,IF(SUM($X93:AK93)>=$C93,0,$C93))) ->  | AM93: =IF(V93="","",IF($AM$66<$G93,0,IF(SUM($X93:AL93)>=$C93,0,$C93))) ->  | AN93: =IF(V93="","",IF($AN$66<$G93,0,IF(SUM($X93:AM93)>=$C93,0,$C93))) ->  | AO93: =IF(V93="","",IF($AO$66<$G93,0,IF(SUM($X93:AN93)>=$C93,0,$C93))) ->  | AP93: =IF(V93="","",IF($AP$66<$G93,0,IF(SUM($X93:AO93)>=$C93,0,$C93))) ->  | AQ93: =IF(V93="","",IF($AQ$66<$G93,0,IF(SUM($X93:AP93)>=$C93,0,$C93))) ->  | AR93: =IF(V93="","",IF($AR$66<$G93,0,IF(SUM($X93:AQ93)>=$C93,0,$C93))) ->  | AS93: 28
F94: Normal | G94: 0 | I94: Sim | J94: Sim | P94: 0 | Y94: =IF(V94="","",IF($Y$66<$G94,0,IF(SUM($X94:X94)>=$C94,0,$C94))) ->  | Z94: =IF(V94="","",IF($Z$66<$G94,0,IF(SUM($X94:Y94)>=$C94,0,$C94))) ->  | AA94: =IF(V94="","",IF($AA$66<$G94,0,IF(SUM($X94:Z94)>=$C94,0,$C94))) ->  | AB94: =IF(V94="","",IF($AB$66<$G94,0,IF(SUM($X94:AA94)>=$C94,0,$C94))) ->  | AC94: =IF(V94="","",IF($AC$66<$G94,0,IF(SUM($X94:AB94)>=$C94,0,$C94))) ->  | AD94: =IF(V94="","",IF($AD$66<$G94,0,IF(SUM($X94:AC94)>=$C94,0,$C94))) ->  | AE94: =IF(V94="","",IF($AE$66<$G94,0,IF(SUM($X94:AD94)>=$C94,0,$C94))) ->  | AF94: =IF(V94="","",IF($AF$66<$G94,0,IF(SUM($X94:AE94)>=$C94,0,$C94))) ->  | AG94: =IF(V94="","",IF($AG$66<$G94,0,IF(SUM($X94:AF94)>=$C94,0,$C94))) ->  | AH94: =IF(V94="","",IF($AH$66<$G94,0,IF(SUM($X94:AG94)>=$C94,0,$C94))) ->  | AI94: =IF(V94="","",IF($AI$66<$G94,0,IF(SUM($X94:AH94)>=$C94,0,$C94))) ->  | AJ94: =IF(V94="","",IF($AJ$66<$G94,0,IF(SUM($X94:AI94)>=$C94,0,$C94))) ->  | AK94: =IF(V94="","",IF($AK$66<$G94,0,IF(SUM($X94:AJ94)>=$C94,0,$C94))) ->  | AL94: =IF(V94="","",IF($AL$66<$G94,0,IF(SUM($X94:AK94)>=$C94,0,$C94))) ->  | AM94: =IF(V94="","",IF($AM$66<$G94,0,IF(SUM($X94:AL94)>=$C94,0,$C94))) ->  | AN94: =IF(V94="","",IF($AN$66<$G94,0,IF(SUM($X94:AM94)>=$C94,0,$C94))) ->  | AO94: =IF(V94="","",IF($AO$66<$G94,0,IF(SUM($X94:AN94)>=$C94,0,$C94))) ->  | AP94: =IF(V94="","",IF($AP$66<$G94,0,IF(SUM($X94:AO94)>=$C94,0,$C94))) ->  | AQ94: =IF(V94="","",IF($AQ$66<$G94,0,IF(SUM($X94:AP94)>=$C94,0,$C94))) ->  | AR94: =IF(V94="","",IF($AR$66<$G94,0,IF(SUM($X94:AQ94)>=$C94,0,$C94))) ->  | AS94: 29
F95: Normal | G95: 0 | I95: Sim | J95: Sim | P95: 0 | Y95: =IF(V95="","",IF($Y$66<$G95,0,IF(SUM($X95:X95)>=$C95,0,$C95))) ->  | Z95: =IF(V95="","",IF($Z$66<$G95,0,IF(SUM($X95:Y95)>=$C95,0,$C95))) ->  | AA95: =IF(V95="","",IF($AA$66<$G95,0,IF(SUM($X95:Z95)>=$C95,0,$C95))) ->  | AB95: =IF(V95="","",IF($AB$66<$G95,0,IF(SUM($X95:AA95)>=$C95,0,$C95))) ->  | AC95: =IF(V95="","",IF($AC$66<$G95,0,IF(SUM($X95:AB95)>=$C95,0,$C95))) ->  | AD95: =IF(V95="","",IF($AD$66<$G95,0,IF(SUM($X95:AC95)>=$C95,0,$C95))) ->  | AE95: =IF(V95="","",IF($AE$66<$G95,0,IF(SUM($X95:AD95)>=$C95,0,$C95))) ->  | AF95: =IF(V95="","",IF($AF$66<$G95,0,IF(SUM($X95:AE95)>=$C95,0,$C95))) ->  | AG95: =IF(V95="","",IF($AG$66<$G95,0,IF(SUM($X95:AF95)>=$C95,0,$C95))) ->  | AH95: =IF(V95="","",IF($AH$66<$G95,0,IF(SUM($X95:AG95)>=$C95,0,$C95))) ->  | AI95: =IF(V95="","",IF($AI$66<$G95,0,IF(SUM($X95:AH95)>=$C95,0,$C95))) ->  | AJ95: =IF(V95="","",IF($AJ$66<$G95,0,IF(SUM($X95:AI95)>=$C95,0,$C95))) ->  | AK95: =IF(V95="","",IF($AK$66<$G95,0,IF(SUM($X95:AJ95)>=$C95,0,$C95))) ->  | AL95: =IF(V95="","",IF($AL$66<$G95,0,IF(SUM($X95:AK95)>=$C95,0,$C95))) ->  | AM95: =IF(V95="","",IF($AM$66<$G95,0,IF(SUM($X95:AL95)>=$C95,0,$C95))) ->  | AN95: =IF(V95="","",IF($AN$66<$G95,0,IF(SUM($X95:AM95)>=$C95,0,$C95))) ->  | AO95: =IF(V95="","",IF($AO$66<$G95,0,IF(SUM($X95:AN95)>=$C95,0,$C95))) ->  | AP95: =IF(V95="","",IF($AP$66<$G95,0,IF(SUM($X95:AO95)>=$C95,0,$C95))) ->  | AQ95: =IF(V95="","",IF($AQ$66<$G95,0,IF(SUM($X95:AP95)>=$C95,0,$C95))) ->  | AR95: =IF(V95="","",IF($AR$66<$G95,0,IF(SUM($X95:AQ95)>=$C95,0,$C95))) ->  | AS95: 30 | AX95: =IF(OR($AU95="",$H95=""),"",IF($I95="Sim",IF(AX$66-$H95>=0,HLOOKUP(AX$66-$H95,$AW$66:$BQ$116,$AS95,FALSE)+HLOOKUP(AX$66-$H95,$X$66:$AR$116,$AS95,FALSE),0),0)) -> 
F96: Normal | G96: 0 | I96: Sim | J96: Sim | P96: 0 | Y96: =IF(V96="","",IF($Y$66<$G96,0,IF(SUM($X96:X96)>=$C96,0,$C96))) ->  | Z96: =IF(V96="","",IF($Z$66<$G96,0,IF(SUM($X96:Y96)>=$C96,0,$C96))) ->  | AA96: =IF(V96="","",IF($AA$66<$G96,0,IF(SUM($X96:Z96)>=$C96,0,$C96))) ->  | AB96: =IF(V96="","",IF($AB$66<$G96,0,IF(SUM($X96:AA96)>=$C96,0,$C96))) ->  | AC96: =IF(V96="","",IF($AC$66<$G96,0,IF(SUM($X96:AB96)>=$C96,0,$C96))) ->  | AD96: =IF(V96="","",IF($AD$66<$G96,0,IF(SUM($X96:AC96)>=$C96,0,$C96))) ->  | AE96: =IF(V96="","",IF($AE$66<$G96,0,IF(SUM($X96:AD96)>=$C96,0,$C96))) ->  | AF96: =IF(V96="","",IF($AF$66<$G96,0,IF(SUM($X96:AE96)>=$C96,0,$C96))) ->  | AG96: =IF(V96="","",IF($AG$66<$G96,0,IF(SUM($X96:AF96)>=$C96,0,$C96))) ->  | AH96: =IF(V96="","",IF($AH$66<$G96,0,IF(SUM($X96:AG96)>=$C96,0,$C96))) ->  | AI96: =IF(V96="","",IF($AI$66<$G96,0,IF(SUM($X96:AH96)>=$C96,0,$C96))) ->  | AJ96: =IF(V96="","",IF($AJ$66<$G96,0,IF(SUM($X96:AI96)>=$C96,0,$C96))) ->  | AK96: =IF(V96="","",IF($AK$66<$G96,0,IF(SUM($X96:AJ96)>=$C96,0,$C96))) ->  | AL96: =IF(V96="","",IF($AL$66<$G96,0,IF(SUM($X96:AK96)>=$C96,0,$C96))) ->  | AM96: =IF(V96="","",IF($AM$66<$G96,0,IF(SUM($X96:AL96)>=$C96,0,$C96))) ->  | AN96: =IF(V96="","",IF($AN$66<$G96,0,IF(SUM($X96:AM96)>=$C96,0,$C96))) ->  | AO96: =IF(V96="","",IF($AO$66<$G96,0,IF(SUM($X96:AN96)>=$C96,0,$C96))) ->  | AP96: =IF(V96="","",IF($AP$66<$G96,0,IF(SUM($X96:AO96)>=$C96,0,$C96))) ->  | AQ96: =IF(V96="","",IF($AQ$66<$G96,0,IF(SUM($X96:AP96)>=$C96,0,$C96))) ->  | AR96: =IF(V96="","",IF($AR$66<$G96,0,IF(SUM($X96:AQ96)>=$C96,0,$C96))) ->  | AS96: 31 | AX96: =IF(OR($AU96="",$H96=""),"",IF($I96="Sim",IF(AX$66-$H96>=0,HLOOKUP(AX$66-$H96,$AW$66:$BQ$116,$AS96,FALSE)+HLOOKUP(AX$66-$H96,$X$66:$AR$116,$AS96,FALSE),0),0)) -> 
F97: Normal | G97: 0 | I97: Sim | J97: Sim | P97: 0 | Y97: =IF(V97="","",IF($Y$66<$G97,0,IF(SUM($X97:X97)>=$C97,0,$C97))) ->  | Z97: =IF(V97="","",IF($Z$66<$G97,0,IF(SUM($X97:Y97)>=$C97,0,$C97))) ->  | AA97: =IF(V97="","",IF($AA$66<$G97,0,IF(SUM($X97:Z97)>=$C97,0,$C97))) ->  | AB97: =IF(V97="","",IF($AB$66<$G97,0,IF(SUM($X97:AA97)>=$C97,0,$C97))) ->  | AC97: =IF(V97="","",IF($AC$66<$G97,0,IF(SUM($X97:AB97)>=$C97,0,$C97))) ->  | AD97: =IF(V97="","",IF($AD$66<$G97,0,IF(SUM($X97:AC97)>=$C97,0,$C97))) ->  | AE97: =IF(V97="","",IF($AE$66<$G97,0,IF(SUM($X97:AD97)>=$C97,0,$C97))) ->  | AF97: =IF(V97="","",IF($AF$66<$G97,0,IF(SUM($X97:AE97)>=$C97,0,$C97))) ->  | AG97: =IF(V97="","",IF($AG$66<$G97,0,IF(SUM($X97:AF97)>=$C97,0,$C97))) ->  | AH97: =IF(V97="","",IF($AH$66<$G97,0,IF(SUM($X97:AG97)>=$C97,0,$C97))) ->  | AI97: =IF(V97="","",IF($AI$66<$G97,0,IF(SUM($X97:AH97)>=$C97,0,$C97))) ->  | AJ97: =IF(V97="","",IF($AJ$66<$G97,0,IF(SUM($X97:AI97)>=$C97,0,$C97))) ->  | AK97: =IF(V97="","",IF($AK$66<$G97,0,IF(SUM($X97:AJ97)>=$C97,0,$C97))) ->  | AL97: =IF(V97="","",IF($AL$66<$G97,0,IF(SUM($X97:AK97)>=$C97,0,$C97))) ->  | AM97: =IF(V97="","",IF($AM$66<$G97,0,IF(SUM($X97:AL97)>=$C97,0,$C97))) ->  | AN97: =IF(V97="","",IF($AN$66<$G97,0,IF(SUM($X97:AM97)>=$C97,0,$C97))) ->  | AO97: =IF(V97="","",IF($AO$66<$G97,0,IF(SUM($X97:AN97)>=$C97,0,$C97))) ->  | AP97: =IF(V97="","",IF($AP$66<$G97,0,IF(SUM($X97:AO97)>=$C97,0,$C97))) ->  | AQ97: =IF(V97="","",IF($AQ$66<$G97,0,IF(SUM($X97:AP97)>=$C97,0,$C97))) ->  | AR97: =IF(V97="","",IF($AR$66<$G97,0,IF(SUM($X97:AQ97)>=$C97,0,$C97))) ->  | AS97: 32 | AX97: =IF(OR($AU97="",$H97=""),"",IF($I97="Sim",IF(AX$66-$H97>=0,HLOOKUP(AX$66-$H97,$AW$66:$BQ$116,$AS97,FALSE)+HLOOKUP(AX$66-$H97,$X$66:$AR$116,$AS97,FALSE),0),0)) ->  | BM97: =IF(OR($AU97="",$H97=""),"",IF($I97="Sim",IF(BM$66-$H97>=0,HLOOKUP(BM$66-$H97,$AW$66:$BQ$116,$AS97,FALSE)+HLOOKUP(BM$66-$H97,$X$66:$AR$116,$AS97,FALSE),0),0)) -> 
F98: Normal | G98: 0 | I98: Sim | J98: Sim | P98: 0 | Y98: =IF(V98="","",IF($Y$66<$G98,0,IF(SUM($X98:X98)>=$C98,0,$C98))) ->  | Z98: =IF(V98="","",IF($Z$66<$G98,0,IF(SUM($X98:Y98)>=$C98,0,$C98))) ->  | AA98: =IF(V98="","",IF($AA$66<$G98,0,IF(SUM($X98:Z98)>=$C98,0,$C98))) ->  | AB98: =IF(V98="","",IF($AB$66<$G98,0,IF(SUM($X98:AA98)>=$C98,0,$C98))) ->  | AC98: =IF(V98="","",IF($AC$66<$G98,0,IF(SUM($X98:AB98)>=$C98,0,$C98))) ->  | AD98: =IF(V98="","",IF($AD$66<$G98,0,IF(SUM($X98:AC98)>=$C98,0,$C98))) ->  | AE98: =IF(V98="","",IF($AE$66<$G98,0,IF(SUM($X98:AD98)>=$C98,0,$C98))) ->  | AF98: =IF(V98="","",IF($AF$66<$G98,0,IF(SUM($X98:AE98)>=$C98,0,$C98))) ->  | AG98: =IF(V98="","",IF($AG$66<$G98,0,IF(SUM($X98:AF98)>=$C98,0,$C98))) ->  | AH98: =IF(V98="","",IF($AH$66<$G98,0,IF(SUM($X98:AG98)>=$C98,0,$C98))) ->  | AI98: =IF(V98="","",IF($AI$66<$G98,0,IF(SUM($X98:AH98)>=$C98,0,$C98))) ->  | AJ98: =IF(V98="","",IF($AJ$66<$G98,0,IF(SUM($X98:AI98)>=$C98,0,$C98))) ->  | AK98: =IF(V98="","",IF($AK$66<$G98,0,IF(SUM($X98:AJ98)>=$C98,0,$C98))) ->  | AL98: =IF(V98="","",IF($AL$66<$G98,0,IF(SUM($X98:AK98)>=$C98,0,$C98))) ->  | AM98: =IF(V98="","",IF($AM$66<$G98,0,IF(SUM($X98:AL98)>=$C98,0,$C98))) ->  | AN98: =IF(V98="","",IF($AN$66<$G98,0,IF(SUM($X98:AM98)>=$C98,0,$C98))) ->  | AO98: =IF(V98="","",IF($AO$66<$G98,0,IF(SUM($X98:AN98)>=$C98,0,$C98))) ->  | AP98: =IF(V98="","",IF($AP$66<$G98,0,IF(SUM($X98:AO98)>=$C98,0,$C98))) ->  | AQ98: =IF(V98="","",IF($AQ$66<$G98,0,IF(SUM($X98:AP98)>=$C98,0,$C98))) ->  | AR98: =IF(V98="","",IF($AR$66<$G98,0,IF(SUM($X98:AQ98)>=$C98,0,$C98))) ->  | AS98: 33 | AX98: =IF(OR($AU98="",$H98=""),"",IF($I98="Sim",IF(AX$66-$H98>=0,HLOOKUP(AX$66-$H98,$AW$66:$BQ$116,$AS98,FALSE)+HLOOKUP(AX$66-$H98,$X$66:$AR$116,$AS98,FALSE),0),0)) ->  | AY98: =IF(OR($AU98="",$H98=""),"",IF($I98="Sim",IF(AY$66-$H98>=0,HLOOKUP(AY$66-$H98,$AW$66:$BQ$116,$AS98,FALSE)+HLOOKUP(AY$66-$H98,$X$66:$AR$116,$AS98,FALSE),0),0)) -> 
F99: Normal | G99: 0 | I99: Sim | J99: Sim | L99: =IF(B99="","",IF(F99="Três turnos",2*(1/N99),IF(F99="Dois turnos",1.5*(1/N99),1/N99))) ->  | M99: =IF(B99="","",ROUNDUP(1/L99,0)) ->  | N99: =IF(H99="","",H99) ->  | O99: =IF(B99="","",(100%-K99)/H99) ->  | P99: 0 | X99: =IF(V99="","",IF($X$66<G99,0,C99)) ->  | Y99: =IF(V99="","",IF($Y$66<$G99,0,IF(SUM($X99:X99)>=$C99,0,$C99))) ->  | Z99: =IF(V99="","",IF($Z$66<$G99,0,IF(SUM($X99:Y99)>=$C99,0,$C99))) ->  | AA99: =IF(V99="","",IF($AA$66<$G99,0,IF(SUM($X99:Z99)>=$C99,0,$C99))) ->  | AB99: =IF(V99="","",IF($AB$66<$G99,0,IF(SUM($X99:AA99)>=$C99,0,$C99))) ->  | AC99: =IF(V99="","",IF($AC$66<$G99,0,IF(SUM($X99:AB99)>=$C99,0,$C99))) ->  | AD99: =IF(V99="","",IF($AD$66<$G99,0,IF(SUM($X99:AC99)>=$C99,0,$C99))) ->  | AE99: =IF(V99="","",IF($AE$66<$G99,0,IF(SUM($X99:AD99)>=$C99,0,$C99))) ->  | AF99: =IF(V99="","",IF($AF$66<$G99,0,IF(SUM($X99:AE99)>=$C99,0,$C99))) ->  | AG99: =IF(V99="","",IF($AG$66<$G99,0,IF(SUM($X99:AF99)>=$C99,0,$C99))) ->  | AH99: =IF(V99="","",IF($AH$66<$G99,0,IF(SUM($X99:AG99)>=$C99,0,$C99))) ->  | AI99: =IF(V99="","",IF($AI$66<$G99,0,IF(SUM($X99:AH99)>=$C99,0,$C99))) ->  | AJ99: =IF(V99="","",IF($AJ$66<$G99,0,IF(SUM($X99:AI99)>=$C99,0,$C99))) ->  | AK99: =IF(V99="","",IF($AK$66<$G99,0,IF(SUM($X99:AJ99)>=$C99,0,$C99))) ->  | AL99: =IF(V99="","",IF($AL$66<$G99,0,IF(SUM($X99:AK99)>=$C99,0,$C99))) ->  | AM99: =IF(V99="","",IF($AM$66<$G99,0,IF(SUM($X99:AL99)>=$C99,0,$C99))) ->  | AN99: =IF(V99="","",IF($AN$66<$G99,0,IF(SUM($X99:AM99)>=$C99,0,$C99))) ->  | AO99: =IF(V99="","",IF($AO$66<$G99,0,IF(SUM($X99:AN99)>=$C99,0,$C99))) ->  | AP99: =IF(V99="","",IF($AP$66<$G99,0,IF(SUM($X99:AO99)>=$C99,0,$C99))) ->  | AQ99: =IF(V99="","",IF($AQ$66<$G99,0,IF(SUM($X99:AP99)>=$C99,0,$C99))) ->  | AR99: =IF(V99="","",IF($AR$66<$G99,0,IF(SUM($X99:AQ99)>=$C99,0,$C99))) ->  | AS99: 34 | AX99: =IF(OR($AU99="",$H99=""),"",IF($I99="Sim",IF(AX$66-$H99>=0,HLOOKUP(AX$66-$H99,$AW$66:$BQ$116,$AS99,FALSE)+HLOOKUP(AX$66-$H99,$X$66:$AR$116,$AS99,FALSE),0),0)) ->  | CR99: =IF(CQ99="","",E99) ->  | ER99: =IF($EO99="","",AX99*$E99*$K99) ->  | ES99: =IF($EO99="","",AY99*$E99*$K99) ->  | ET99: =IF($EO99="","",AZ99*$E99*$K99) ->  | EU99: =IF($EO99="","",BA99*$E99*$K99) ->  | EV99: =IF($EO99="","",BB99*$E99*$K99) ->  | EW99: =IF($EO99="","",BC99*$E99*$K99) ->  | EX99: =IF($EO99="","",BD99*$E99*$K99) ->  | EY99: =IF($EO99="","",BE99*$E99*$K99) ->  | EZ99: =IF($EO99="","",BF99*$E99*$K99) ->  | FA99: =IF($EO99="","",BG99*$E99*$K99) ->  | FB99: =IF($EO99="","",BH99*$E99*$K99) ->  | FC99: =IF($EO99="","",BI99*$E99*$K99) ->  | FD99: =IF($EO99="","",BJ99*$E99*$K99) ->  | FE99: =IF($EO99="","",BK99*$E99*$K99) ->  | FF99: =IF($EO99="","",BL99*$E99*$K99) ->  | FG99: =IF($EO99="","",BM99*$E99*$K99) ->  | FH99: =IF($EO99="","",BN99*$E99*$K99) ->  | FI99: =IF($EO99="","",BO99*$E99*$K99) ->  | FJ99: =IF($EO99="","",BP99*$E99*$K99) ->  | FK99: =IF($EO99="","",BQ99*$E99*$K99) ->  | FN99: =IF($FM99="","",IF($J99="Sim",$O99,0)) ->  | FO99: =IF(H99="","",H99) -> 
F100: Normal | G100: 0 | I100: Sim | J100: Sim | P100: 0 | Y100: =IF(V100="","",IF($Y$66<$G100,0,IF(SUM($X100:X100)>=$C100,0,$C100))) ->  | Z100: =IF(V100="","",IF($Z$66<$G100,0,IF(SUM($X100:Y100)>=$C100,0,$C100))) ->  | AA100: =IF(V100="","",IF($AA$66<$G100,0,IF(SUM($X100:Z100)>=$C100,0,$C100))) ->  | AB100: =IF(V100="","",IF($AB$66<$G100,0,IF(SUM($X100:AA100)>=$C100,0,$C100))) ->  | AC100: =IF(V100="","",IF($AC$66<$G100,0,IF(SUM($X100:AB100)>=$C100,0,$C100))) ->  | AD100: =IF(V100="","",IF($AD$66<$G100,0,IF(SUM($X100:AC100)>=$C100,0,$C100))) ->  | AE100: =IF(V100="","",IF($AE$66<$G100,0,IF(SUM($X100:AD100)>=$C100,0,$C100))) ->  | AF100: =IF(V100="","",IF($AF$66<$G100,0,IF(SUM($X100:AE100)>=$C100,0,$C100))) ->  | AG100: =IF(V100="","",IF($AG$66<$G100,0,IF(SUM($X100:AF100)>=$C100,0,$C100))) ->  | AH100: =IF(V100="","",IF($AH$66<$G100,0,IF(SUM($X100:AG100)>=$C100,0,$C100))) ->  | AI100: =IF(V100="","",IF($AI$66<$G100,0,IF(SUM($X100:AH100)>=$C100,0,$C100))) ->  | AJ100: =IF(V100="","",IF($AJ$66<$G100,0,IF(SUM($X100:AI100)>=$C100,0,$C100))) ->  | AK100: =IF(V100="","",IF($AK$66<$G100,0,IF(SUM($X100:AJ100)>=$C100,0,$C100))) ->  | AL100: =IF(V100="","",IF($AL$66<$G100,0,IF(SUM($X100:AK100)>=$C100,0,$C100))) ->  | AM100: =IF(V100="","",IF($AM$66<$G100,0,IF(SUM($X100:AL100)>=$C100,0,$C100))) ->  | AN100: =IF(V100="","",IF($AN$66<$G100,0,IF(SUM($X100:AM100)>=$C100,0,$C100))) ->  | AO100: =IF(V100="","",IF($AO$66<$G100,0,IF(SUM($X100:AN100)>=$C100,0,$C100))) ->  | AP100: =IF(V100="","",IF($AP$66<$G100,0,IF(SUM($X100:AO100)>=$C100,0,$C100))) ->  | AQ100: =IF(V100="","",IF($AQ$66<$G100,0,IF(SUM($X100:AP100)>=$C100,0,$C100))) ->  | AR100: =IF(V100="","",IF($AR$66<$G100,0,IF(SUM($X100:AQ100)>=$C100,0,$C100))) ->  | AS100: 35
F101: Normal | G101: 0 | I101: Sim | J101: Sim | P101: 0 | Y101: =IF(V101="","",IF($Y$66<$G101,0,IF(SUM($X101:X101)>=$C101,0,$C101))) ->  | Z101: =IF(V101="","",IF($Z$66<$G101,0,IF(SUM($X101:Y101)>=$C101,0,$C101))) ->  | AA101: =IF(V101="","",IF($AA$66<$G101,0,IF(SUM($X101:Z101)>=$C101,0,$C101))) ->  | AB101: =IF(V101="","",IF($AB$66<$G101,0,IF(SUM($X101:AA101)>=$C101,0,$C101))) ->  | AC101: =IF(V101="","",IF($AC$66<$G101,0,IF(SUM($X101:AB101)>=$C101,0,$C101))) ->  | AD101: =IF(V101="","",IF($AD$66<$G101,0,IF(SUM($X101:AC101)>=$C101,0,$C101))) ->  | AE101: =IF(V101="","",IF($AE$66<$G101,0,IF(SUM($X101:AD101)>=$C101,0,$C101))) ->  | AF101: =IF(V101="","",IF($AF$66<$G101,0,IF(SUM($X101:AE101)>=$C101,0,$C101))) ->  | AG101: =IF(V101="","",IF($AG$66<$G101,0,IF(SUM($X101:AF101)>=$C101,0,$C101))) ->  | AH101: =IF(V101="","",IF($AH$66<$G101,0,IF(SUM($X101:AG101)>=$C101,0,$C101))) ->  | AI101: =IF(V101="","",IF($AI$66<$G101,0,IF(SUM($X101:AH101)>=$C101,0,$C101))) ->  | AJ101: =IF(V101="","",IF($AJ$66<$G101,0,IF(SUM($X101:AI101)>=$C101,0,$C101))) ->  | AK101: =IF(V101="","",IF($AK$66<$G101,0,IF(SUM($X101:AJ101)>=$C101,0,$C101))) ->  | AL101: =IF(V101="","",IF($AL$66<$G101,0,IF(SUM($X101:AK101)>=$C101,0,$C101))) ->  | AM101: =IF(V101="","",IF($AM$66<$G101,0,IF(SUM($X101:AL101)>=$C101,0,$C101))) ->  | AN101: =IF(V101="","",IF($AN$66<$G101,0,IF(SUM($X101:AM101)>=$C101,0,$C101))) ->  | AO101: =IF(V101="","",IF($AO$66<$G101,0,IF(SUM($X101:AN101)>=$C101,0,$C101))) ->  | AP101: =IF(V101="","",IF($AP$66<$G101,0,IF(SUM($X101:AO101)>=$C101,0,$C101))) ->  | AQ101: =IF(V101="","",IF($AQ$66<$G101,0,IF(SUM($X101:AP101)>=$C101,0,$C101))) ->  | AR101: =IF(V101="","",IF($AR$66<$G101,0,IF(SUM($X101:AQ101)>=$C101,0,$C101))) ->  | AS101: 36 | AX101: =IF(OR($AU101="",$H101=""),"",IF($I101="Sim",IF(AX$66-$H101>=0,HLOOKUP(AX$66-$H101,$AW$66:$BQ$116,$AS101,FALSE)+HLOOKUP(AX$66-$H101,$X$66:$AR$116,$AS101,FALSE),0),0)) -> 
F102: Normal | G102: 0 | I102: Sim | J102: Sim | P102: 0 | Y102: =IF(V102="","",IF($Y$66<$G102,0,IF(SUM($X102:X102)>=$C102,0,$C102))) ->  | Z102: =IF(V102="","",IF($Z$66<$G102,0,IF(SUM($X102:Y102)>=$C102,0,$C102))) ->  | AA102: =IF(V102="","",IF($AA$66<$G102,0,IF(SUM($X102:Z102)>=$C102,0,$C102))) ->  | AB102: =IF(V102="","",IF($AB$66<$G102,0,IF(SUM($X102:AA102)>=$C102,0,$C102))) ->  | AC102: =IF(V102="","",IF($AC$66<$G102,0,IF(SUM($X102:AB102)>=$C102,0,$C102))) ->  | AD102: =IF(V102="","",IF($AD$66<$G102,0,IF(SUM($X102:AC102)>=$C102,0,$C102))) ->  | AE102: =IF(V102="","",IF($AE$66<$G102,0,IF(SUM($X102:AD102)>=$C102,0,$C102))) ->  | AF102: =IF(V102="","",IF($AF$66<$G102,0,IF(SUM($X102:AE102)>=$C102,0,$C102))) ->  | AG102: =IF(V102="","",IF($AG$66<$G102,0,IF(SUM($X102:AF102)>=$C102,0,$C102))) ->  | AH102: =IF(V102="","",IF($AH$66<$G102,0,IF(SUM($X102:AG102)>=$C102,0,$C102))) ->  | AI102: =IF(V102="","",IF($AI$66<$G102,0,IF(SUM($X102:AH102)>=$C102,0,$C102))) ->  | AJ102: =IF(V102="","",IF($AJ$66<$G102,0,IF(SUM($X102:AI102)>=$C102,0,$C102))) ->  | AK102: =IF(V102="","",IF($AK$66<$G102,0,IF(SUM($X102:AJ102)>=$C102,0,$C102))) ->  | AL102: =IF(V102="","",IF($AL$66<$G102,0,IF(SUM($X102:AK102)>=$C102,0,$C102))) ->  | AM102: =IF(V102="","",IF($AM$66<$G102,0,IF(SUM($X102:AL102)>=$C102,0,$C102))) ->  | AN102: =IF(V102="","",IF($AN$66<$G102,0,IF(SUM($X102:AM102)>=$C102,0,$C102))) ->  | AO102: =IF(V102="","",IF($AO$66<$G102,0,IF(SUM($X102:AN102)>=$C102,0,$C102))) ->  | AP102: =IF(V102="","",IF($AP$66<$G102,0,IF(SUM($X102:AO102)>=$C102,0,$C102))) ->  | AQ102: =IF(V102="","",IF($AQ$66<$G102,0,IF(SUM($X102:AP102)>=$C102,0,$C102))) ->  | AR102: =IF(V102="","",IF($AR$66<$G102,0,IF(SUM($X102:AQ102)>=$C102,0,$C102))) ->  | AS102: 37
F103: Normal | G103: 0 | I103: Sim | J103: Sim | P103: 0 | Y103: =IF(V103="","",IF($Y$66<$G103,0,IF(SUM($X103:X103)>=$C103,0,$C103))) ->  | Z103: =IF(V103="","",IF($Z$66<$G103,0,IF(SUM($X103:Y103)>=$C103,0,$C103))) ->  | AA103: =IF(V103="","",IF($AA$66<$G103,0,IF(SUM($X103:Z103)>=$C103,0,$C103))) ->  | AB103: =IF(V103="","",IF($AB$66<$G103,0,IF(SUM($X103:AA103)>=$C103,0,$C103))) ->  | AC103: =IF(V103="","",IF($AC$66<$G103,0,IF(SUM($X103:AB103)>=$C103,0,$C103))) ->  | AD103: =IF(V103="","",IF($AD$66<$G103,0,IF(SUM($X103:AC103)>=$C103,0,$C103))) ->  | AE103: =IF(V103="","",IF($AE$66<$G103,0,IF(SUM($X103:AD103)>=$C103,0,$C103))) ->  | AF103: =IF(V103="","",IF($AF$66<$G103,0,IF(SUM($X103:AE103)>=$C103,0,$C103))) ->  | AG103: =IF(V103="","",IF($AG$66<$G103,0,IF(SUM($X103:AF103)>=$C103,0,$C103))) ->  | AH103: =IF(V103="","",IF($AH$66<$G103,0,IF(SUM($X103:AG103)>=$C103,0,$C103))) ->  | AI103: =IF(V103="","",IF($AI$66<$G103,0,IF(SUM($X103:AH103)>=$C103,0,$C103))) ->  | AJ103: =IF(V103="","",IF($AJ$66<$G103,0,IF(SUM($X103:AI103)>=$C103,0,$C103))) ->  | AK103: =IF(V103="","",IF($AK$66<$G103,0,IF(SUM($X103:AJ103)>=$C103,0,$C103))) ->  | AL103: =IF(V103="","",IF($AL$66<$G103,0,IF(SUM($X103:AK103)>=$C103,0,$C103))) ->  | AM103: =IF(V103="","",IF($AM$66<$G103,0,IF(SUM($X103:AL103)>=$C103,0,$C103))) ->  | AN103: =IF(V103="","",IF($AN$66<$G103,0,IF(SUM($X103:AM103)>=$C103,0,$C103))) ->  | AO103: =IF(V103="","",IF($AO$66<$G103,0,IF(SUM($X103:AN103)>=$C103,0,$C103))) ->  | AP103: =IF(V103="","",IF($AP$66<$G103,0,IF(SUM($X103:AO103)>=$C103,0,$C103))) ->  | AQ103: =IF(V103="","",IF($AQ$66<$G103,0,IF(SUM($X103:AP103)>=$C103,0,$C103))) ->  | AR103: =IF(V103="","",IF($AR$66<$G103,0,IF(SUM($X103:AQ103)>=$C103,0,$C103))) ->  | AS103: 38
F104: Normal | G104: 0 | I104: Sim | J104: Sim | P104: 0 | Y104: =IF(V104="","",IF($Y$66<$G104,0,IF(SUM($X104:X104)>=$C104,0,$C104))) ->  | Z104: =IF(V104="","",IF($Z$66<$G104,0,IF(SUM($X104:Y104)>=$C104,0,$C104))) ->  | AA104: =IF(V104="","",IF($AA$66<$G104,0,IF(SUM($X104:Z104)>=$C104,0,$C104))) ->  | AB104: =IF(V104="","",IF($AB$66<$G104,0,IF(SUM($X104:AA104)>=$C104,0,$C104))) ->  | AC104: =IF(V104="","",IF($AC$66<$G104,0,IF(SUM($X104:AB104)>=$C104,0,$C104))) ->  | AD104: =IF(V104="","",IF($AD$66<$G104,0,IF(SUM($X104:AC104)>=$C104,0,$C104))) ->  | AE104: =IF(V104="","",IF($AE$66<$G104,0,IF(SUM($X104:AD104)>=$C104,0,$C104))) ->  | AF104: =IF(V104="","",IF($AF$66<$G104,0,IF(SUM($X104:AE104)>=$C104,0,$C104))) ->  | AG104: =IF(V104="","",IF($AG$66<$G104,0,IF(SUM($X104:AF104)>=$C104,0,$C104))) ->  | AH104: =IF(V104="","",IF($AH$66<$G104,0,IF(SUM($X104:AG104)>=$C104,0,$C104))) ->  | AI104: =IF(V104="","",IF($AI$66<$G104,0,IF(SUM($X104:AH104)>=$C104,0,$C104))) ->  | AJ104: =IF(V104="","",IF($AJ$66<$G104,0,IF(SUM($X104:AI104)>=$C104,0,$C104))) ->  | AK104: =IF(V104="","",IF($AK$66<$G104,0,IF(SUM($X104:AJ104)>=$C104,0,$C104))) ->  | AL104: =IF(V104="","",IF($AL$66<$G104,0,IF(SUM($X104:AK104)>=$C104,0,$C104))) ->  | AM104: =IF(V104="","",IF($AM$66<$G104,0,IF(SUM($X104:AL104)>=$C104,0,$C104))) ->  | AN104: =IF(V104="","",IF($AN$66<$G104,0,IF(SUM($X104:AM104)>=$C104,0,$C104))) ->  | AO104: =IF(V104="","",IF($AO$66<$G104,0,IF(SUM($X104:AN104)>=$C104,0,$C104))) ->  | AP104: =IF(V104="","",IF($AP$66<$G104,0,IF(SUM($X104:AO104)>=$C104,0,$C104))) ->  | AQ104: =IF(V104="","",IF($AQ$66<$G104,0,IF(SUM($X104:AP104)>=$C104,0,$C104))) ->  | AR104: =IF(V104="","",IF($AR$66<$G104,0,IF(SUM($X104:AQ104)>=$C104,0,$C104))) ->  | AS104: 39
F105: Normal | G105: 0 | I105: Sim | J105: Sim | P105: 0 | Y105: =IF(V105="","",IF($Y$66<$G105,0,IF(SUM($X105:X105)>=$C105,0,$C105))) ->  | Z105: =IF(V105="","",IF($Z$66<$G105,0,IF(SUM($X105:Y105)>=$C105,0,$C105))) ->  | AA105: =IF(V105="","",IF($AA$66<$G105,0,IF(SUM($X105:Z105)>=$C105,0,$C105))) ->  | AB105: =IF(V105="","",IF($AB$66<$G105,0,IF(SUM($X105:AA105)>=$C105,0,$C105))) ->  | AC105: =IF(V105="","",IF($AC$66<$G105,0,IF(SUM($X105:AB105)>=$C105,0,$C105))) ->  | AD105: =IF(V105="","",IF($AD$66<$G105,0,IF(SUM($X105:AC105)>=$C105,0,$C105))) ->  | AE105: =IF(V105="","",IF($AE$66<$G105,0,IF(SUM($X105:AD105)>=$C105,0,$C105))) ->  | AF105: =IF(V105="","",IF($AF$66<$G105,0,IF(SUM($X105:AE105)>=$C105,0,$C105))) ->  | AG105: =IF(V105="","",IF($AG$66<$G105,0,IF(SUM($X105:AF105)>=$C105,0,$C105))) ->  | AH105: =IF(V105="","",IF($AH$66<$G105,0,IF(SUM($X105:AG105)>=$C105,0,$C105))) ->  | AI105: =IF(V105="","",IF($AI$66<$G105,0,IF(SUM($X105:AH105)>=$C105,0,$C105))) ->  | AJ105: =IF(V105="","",IF($AJ$66<$G105,0,IF(SUM($X105:AI105)>=$C105,0,$C105))) ->  | AK105: =IF(V105="","",IF($AK$66<$G105,0,IF(SUM($X105:AJ105)>=$C105,0,$C105))) ->  | AL105: =IF(V105="","",IF($AL$66<$G105,0,IF(SUM($X105:AK105)>=$C105,0,$C105))) ->  | AM105: =IF(V105="","",IF($AM$66<$G105,0,IF(SUM($X105:AL105)>=$C105,0,$C105))) ->  | AN105: =IF(V105="","",IF($AN$66<$G105,0,IF(SUM($X105:AM105)>=$C105,0,$C105))) ->  | AO105: =IF(V105="","",IF($AO$66<$G105,0,IF(SUM($X105:AN105)>=$C105,0,$C105))) ->  | AP105: =IF(V105="","",IF($AP$66<$G105,0,IF(SUM($X105:AO105)>=$C105,0,$C105))) ->  | AQ105: =IF(V105="","",IF($AQ$66<$G105,0,IF(SUM($X105:AP105)>=$C105,0,$C105))) ->  | AR105: =IF(V105="","",IF($AR$66<$G105,0,IF(SUM($X105:AQ105)>=$C105,0,$C105))) ->  | AS105: 40
F106: Normal | G106: 0 | I106: Sim | J106: Sim | P106: 0 | Y106: =IF(V106="","",IF($Y$66<$G106,0,IF(SUM($X106:X106)>=$C106,0,$C106))) ->  | Z106: =IF(V106="","",IF($Z$66<$G106,0,IF(SUM($X106:Y106)>=$C106,0,$C106))) ->  | AA106: =IF(V106="","",IF($AA$66<$G106,0,IF(SUM($X106:Z106)>=$C106,0,$C106))) ->  | AB106: =IF(V106="","",IF($AB$66<$G106,0,IF(SUM($X106:AA106)>=$C106,0,$C106))) ->  | AC106: =IF(V106="","",IF($AC$66<$G106,0,IF(SUM($X106:AB106)>=$C106,0,$C106))) ->  | AD106: =IF(V106="","",IF($AD$66<$G106,0,IF(SUM($X106:AC106)>=$C106,0,$C106))) ->  | AE106: =IF(V106="","",IF($AE$66<$G106,0,IF(SUM($X106:AD106)>=$C106,0,$C106))) ->  | AF106: =IF(V106="","",IF($AF$66<$G106,0,IF(SUM($X106:AE106)>=$C106,0,$C106))) ->  | AG106: =IF(V106="","",IF($AG$66<$G106,0,IF(SUM($X106:AF106)>=$C106,0,$C106))) ->  | AH106: =IF(V106="","",IF($AH$66<$G106,0,IF(SUM($X106:AG106)>=$C106,0,$C106))) ->  | AI106: =IF(V106="","",IF($AI$66<$G106,0,IF(SUM($X106:AH106)>=$C106,0,$C106))) ->  | AJ106: =IF(V106="","",IF($AJ$66<$G106,0,IF(SUM($X106:AI106)>=$C106,0,$C106))) ->  | AK106: =IF(V106="","",IF($AK$66<$G106,0,IF(SUM($X106:AJ106)>=$C106,0,$C106))) ->  | AL106: =IF(V106="","",IF($AL$66<$G106,0,IF(SUM($X106:AK106)>=$C106,0,$C106))) ->  | AM106: =IF(V106="","",IF($AM$66<$G106,0,IF(SUM($X106:AL106)>=$C106,0,$C106))) ->  | AN106: =IF(V106="","",IF($AN$66<$G106,0,IF(SUM($X106:AM106)>=$C106,0,$C106))) ->  | AO106: =IF(V106="","",IF($AO$66<$G106,0,IF(SUM($X106:AN106)>=$C106,0,$C106))) ->  | AP106: =IF(V106="","",IF($AP$66<$G106,0,IF(SUM($X106:AO106)>=$C106,0,$C106))) ->  | AQ106: =IF(V106="","",IF($AQ$66<$G106,0,IF(SUM($X106:AP106)>=$C106,0,$C106))) ->  | AR106: =IF(V106="","",IF($AR$66<$G106,0,IF(SUM($X106:AQ106)>=$C106,0,$C106))) ->  | AS106: 41
F107: Normal | G107: 0 | I107: Sim | J107: Sim | P107: 0 | Y107: =IF(V107="","",IF($Y$66<$G107,0,IF(SUM($X107:X107)>=$C107,0,$C107))) ->  | Z107: =IF(V107="","",IF($Z$66<$G107,0,IF(SUM($X107:Y107)>=$C107,0,$C107))) ->  | AA107: =IF(V107="","",IF($AA$66<$G107,0,IF(SUM($X107:Z107)>=$C107,0,$C107))) ->  | AB107: =IF(V107="","",IF($AB$66<$G107,0,IF(SUM($X107:AA107)>=$C107,0,$C107))) ->  | AC107: =IF(V107="","",IF($AC$66<$G107,0,IF(SUM($X107:AB107)>=$C107,0,$C107))) ->  | AD107: =IF(V107="","",IF($AD$66<$G107,0,IF(SUM($X107:AC107)>=$C107,0,$C107))) ->  | AE107: =IF(V107="","",IF($AE$66<$G107,0,IF(SUM($X107:AD107)>=$C107,0,$C107))) ->  | AF107: =IF(V107="","",IF($AF$66<$G107,0,IF(SUM($X107:AE107)>=$C107,0,$C107))) ->  | AG107: =IF(V107="","",IF($AG$66<$G107,0,IF(SUM($X107:AF107)>=$C107,0,$C107))) ->  | AH107: =IF(V107="","",IF($AH$66<$G107,0,IF(SUM($X107:AG107)>=$C107,0,$C107))) ->  | AI107: =IF(V107="","",IF($AI$66<$G107,0,IF(SUM($X107:AH107)>=$C107,0,$C107))) ->  | AJ107: =IF(V107="","",IF($AJ$66<$G107,0,IF(SUM($X107:AI107)>=$C107,0,$C107))) ->  | AK107: =IF(V107="","",IF($AK$66<$G107,0,IF(SUM($X107:AJ107)>=$C107,0,$C107))) ->  | AL107: =IF(V107="","",IF($AL$66<$G107,0,IF(SUM($X107:AK107)>=$C107,0,$C107))) ->  | AM107: =IF(V107="","",IF($AM$66<$G107,0,IF(SUM($X107:AL107)>=$C107,0,$C107))) ->  | AN107: =IF(V107="","",IF($AN$66<$G107,0,IF(SUM($X107:AM107)>=$C107,0,$C107))) ->  | AO107: =IF(V107="","",IF($AO$66<$G107,0,IF(SUM($X107:AN107)>=$C107,0,$C107))) ->  | AP107: =IF(V107="","",IF($AP$66<$G107,0,IF(SUM($X107:AO107)>=$C107,0,$C107))) ->  | AQ107: =IF(V107="","",IF($AQ$66<$G107,0,IF(SUM($X107:AP107)>=$C107,0,$C107))) ->  | AR107: =IF(V107="","",IF($AR$66<$G107,0,IF(SUM($X107:AQ107)>=$C107,0,$C107))) ->  | AS107: 42
F108: Normal | G108: 0 | I108: Sim | J108: Sim | P108: 0 | Y108: =IF(V108="","",IF($Y$66<$G108,0,IF(SUM($X108:X108)>=$C108,0,$C108))) ->  | Z108: =IF(V108="","",IF($Z$66<$G108,0,IF(SUM($X108:Y108)>=$C108,0,$C108))) ->  | AA108: =IF(V108="","",IF($AA$66<$G108,0,IF(SUM($X108:Z108)>=$C108,0,$C108))) ->  | AB108: =IF(V108="","",IF($AB$66<$G108,0,IF(SUM($X108:AA108)>=$C108,0,$C108))) ->  | AC108: =IF(V108="","",IF($AC$66<$G108,0,IF(SUM($X108:AB108)>=$C108,0,$C108))) ->  | AD108: =IF(V108="","",IF($AD$66<$G108,0,IF(SUM($X108:AC108)>=$C108,0,$C108))) ->  | AE108: =IF(V108="","",IF($AE$66<$G108,0,IF(SUM($X108:AD108)>=$C108,0,$C108))) ->  | AF108: =IF(V108="","",IF($AF$66<$G108,0,IF(SUM($X108:AE108)>=$C108,0,$C108))) ->  | AG108: =IF(V108="","",IF($AG$66<$G108,0,IF(SUM($X108:AF108)>=$C108,0,$C108))) ->  | AH108: =IF(V108="","",IF($AH$66<$G108,0,IF(SUM($X108:AG108)>=$C108,0,$C108))) ->  | AI108: =IF(V108="","",IF($AI$66<$G108,0,IF(SUM($X108:AH108)>=$C108,0,$C108))) ->  | AJ108: =IF(V108="","",IF($AJ$66<$G108,0,IF(SUM($X108:AI108)>=$C108,0,$C108))) ->  | AK108: =IF(V108="","",IF($AK$66<$G108,0,IF(SUM($X108:AJ108)>=$C108,0,$C108))) ->  | AL108: =IF(V108="","",IF($AL$66<$G108,0,IF(SUM($X108:AK108)>=$C108,0,$C108))) ->  | AM108: =IF(V108="","",IF($AM$66<$G108,0,IF(SUM($X108:AL108)>=$C108,0,$C108))) ->  | AN108: =IF(V108="","",IF($AN$66<$G108,0,IF(SUM($X108:AM108)>=$C108,0,$C108))) ->  | AO108: =IF(V108="","",IF($AO$66<$G108,0,IF(SUM($X108:AN108)>=$C108,0,$C108))) ->  | AP108: =IF(V108="","",IF($AP$66<$G108,0,IF(SUM($X108:AO108)>=$C108,0,$C108))) ->  | AQ108: =IF(V108="","",IF($AQ$66<$G108,0,IF(SUM($X108:AP108)>=$C108,0,$C108))) ->  | AR108: =IF(V108="","",IF($AR$66<$G108,0,IF(SUM($X108:AQ108)>=$C108,0,$C108))) ->  | AS108: 43
F109: Normal | G109: 0 | I109: Sim | J109: Sim | P109: 0 | Y109: =IF(V109="","",IF($Y$66<$G109,0,IF(SUM($X109:X109)>=$C109,0,$C109))) ->  | Z109: =IF(V109="","",IF($Z$66<$G109,0,IF(SUM($X109:Y109)>=$C109,0,$C109))) ->  | AA109: =IF(V109="","",IF($AA$66<$G109,0,IF(SUM($X109:Z109)>=$C109,0,$C109))) ->  | AB109: =IF(V109="","",IF($AB$66<$G109,0,IF(SUM($X109:AA109)>=$C109,0,$C109))) ->  | AC109: =IF(V109="","",IF($AC$66<$G109,0,IF(SUM($X109:AB109)>=$C109,0,$C109))) ->  | AD109: =IF(V109="","",IF($AD$66<$G109,0,IF(SUM($X109:AC109)>=$C109,0,$C109))) ->  | AE109: =IF(V109="","",IF($AE$66<$G109,0,IF(SUM($X109:AD109)>=$C109,0,$C109))) ->  | AF109: =IF(V109="","",IF($AF$66<$G109,0,IF(SUM($X109:AE109)>=$C109,0,$C109))) ->  | AG109: =IF(V109="","",IF($AG$66<$G109,0,IF(SUM($X109:AF109)>=$C109,0,$C109))) ->  | AH109: =IF(V109="","",IF($AH$66<$G109,0,IF(SUM($X109:AG109)>=$C109,0,$C109))) ->  | AI109: =IF(V109="","",IF($AI$66<$G109,0,IF(SUM($X109:AH109)>=$C109,0,$C109))) ->  | AJ109: =IF(V109="","",IF($AJ$66<$G109,0,IF(SUM($X109:AI109)>=$C109,0,$C109))) ->  | AK109: =IF(V109="","",IF($AK$66<$G109,0,IF(SUM($X109:AJ109)>=$C109,0,$C109))) ->  | AL109: =IF(V109="","",IF($AL$66<$G109,0,IF(SUM($X109:AK109)>=$C109,0,$C109))) ->  | AM109: =IF(V109="","",IF($AM$66<$G109,0,IF(SUM($X109:AL109)>=$C109,0,$C109))) ->  | AN109: =IF(V109="","",IF($AN$66<$G109,0,IF(SUM($X109:AM109)>=$C109,0,$C109))) ->  | AO109: =IF(V109="","",IF($AO$66<$G109,0,IF(SUM($X109:AN109)>=$C109,0,$C109))) ->  | AP109: =IF(V109="","",IF($AP$66<$G109,0,IF(SUM($X109:AO109)>=$C109,0,$C109))) ->  | AQ109: =IF(V109="","",IF($AQ$66<$G109,0,IF(SUM($X109:AP109)>=$C109,0,$C109))) ->  | AR109: =IF(V109="","",IF($AR$66<$G109,0,IF(SUM($X109:AQ109)>=$C109,0,$C109))) ->  | AS109: 44
F110: Normal | G110: 0 | I110: Sim | J110: Sim | P110: 0 | Y110: =IF(V110="","",IF($Y$66<$G110,0,IF(SUM($X110:X110)>=$C110,0,$C110))) ->  | Z110: =IF(V110="","",IF($Z$66<$G110,0,IF(SUM($X110:Y110)>=$C110,0,$C110))) ->  | AA110: =IF(V110="","",IF($AA$66<$G110,0,IF(SUM($X110:Z110)>=$C110,0,$C110))) ->  | AB110: =IF(V110="","",IF($AB$66<$G110,0,IF(SUM($X110:AA110)>=$C110,0,$C110))) ->  | AC110: =IF(V110="","",IF($AC$66<$G110,0,IF(SUM($X110:AB110)>=$C110,0,$C110))) ->  | AD110: =IF(V110="","",IF($AD$66<$G110,0,IF(SUM($X110:AC110)>=$C110,0,$C110))) ->  | AE110: =IF(V110="","",IF($AE$66<$G110,0,IF(SUM($X110:AD110)>=$C110,0,$C110))) ->  | AF110: =IF(V110="","",IF($AF$66<$G110,0,IF(SUM($X110:AE110)>=$C110,0,$C110))) ->  | AG110: =IF(V110="","",IF($AG$66<$G110,0,IF(SUM($X110:AF110)>=$C110,0,$C110))) ->  | AH110: =IF(V110="","",IF($AH$66<$G110,0,IF(SUM($X110:AG110)>=$C110,0,$C110))) ->  | AI110: =IF(V110="","",IF($AI$66<$G110,0,IF(SUM($X110:AH110)>=$C110,0,$C110))) ->  | AJ110: =IF(V110="","",IF($AJ$66<$G110,0,IF(SUM($X110:AI110)>=$C110,0,$C110))) ->  | AK110: =IF(V110="","",IF($AK$66<$G110,0,IF(SUM($X110:AJ110)>=$C110,0,$C110))) ->  | AL110: =IF(V110="","",IF($AL$66<$G110,0,IF(SUM($X110:AK110)>=$C110,0,$C110))) ->  | AM110: =IF(V110="","",IF($AM$66<$G110,0,IF(SUM($X110:AL110)>=$C110,0,$C110))) ->  | AN110: =IF(V110="","",IF($AN$66<$G110,0,IF(SUM($X110:AM110)>=$C110,0,$C110))) ->  | AO110: =IF(V110="","",IF($AO$66<$G110,0,IF(SUM($X110:AN110)>=$C110,0,$C110))) ->  | AP110: =IF(V110="","",IF($AP$66<$G110,0,IF(SUM($X110:AO110)>=$C110,0,$C110))) ->  | AQ110: =IF(V110="","",IF($AQ$66<$G110,0,IF(SUM($X110:AP110)>=$C110,0,$C110))) ->  | AR110: =IF(V110="","",IF($AR$66<$G110,0,IF(SUM($X110:AQ110)>=$C110,0,$C110))) ->  | AS110: 45
F111: Normal | G111: 0 | I111: Sim | J111: Sim | P111: 0 | Y111: =IF(V111="","",IF($Y$66<$G111,0,IF(SUM($X111:X111)>=$C111,0,$C111))) ->  | Z111: =IF(V111="","",IF($Z$66<$G111,0,IF(SUM($X111:Y111)>=$C111,0,$C111))) ->  | AA111: =IF(V111="","",IF($AA$66<$G111,0,IF(SUM($X111:Z111)>=$C111,0,$C111))) ->  | AB111: =IF(V111="","",IF($AB$66<$G111,0,IF(SUM($X111:AA111)>=$C111,0,$C111))) ->  | AC111: =IF(V111="","",IF($AC$66<$G111,0,IF(SUM($X111:AB111)>=$C111,0,$C111))) ->  | AD111: =IF(V111="","",IF($AD$66<$G111,0,IF(SUM($X111:AC111)>=$C111,0,$C111))) ->  | AE111: =IF(V111="","",IF($AE$66<$G111,0,IF(SUM($X111:AD111)>=$C111,0,$C111))) ->  | AF111: =IF(V111="","",IF($AF$66<$G111,0,IF(SUM($X111:AE111)>=$C111,0,$C111))) ->  | AG111: =IF(V111="","",IF($AG$66<$G111,0,IF(SUM($X111:AF111)>=$C111,0,$C111))) ->  | AH111: =IF(V111="","",IF($AH$66<$G111,0,IF(SUM($X111:AG111)>=$C111,0,$C111))) ->  | AI111: =IF(V111="","",IF($AI$66<$G111,0,IF(SUM($X111:AH111)>=$C111,0,$C111))) ->  | AJ111: =IF(V111="","",IF($AJ$66<$G111,0,IF(SUM($X111:AI111)>=$C111,0,$C111))) ->  | AK111: =IF(V111="","",IF($AK$66<$G111,0,IF(SUM($X111:AJ111)>=$C111,0,$C111))) ->  | AL111: =IF(V111="","",IF($AL$66<$G111,0,IF(SUM($X111:AK111)>=$C111,0,$C111))) ->  | AM111: =IF(V111="","",IF($AM$66<$G111,0,IF(SUM($X111:AL111)>=$C111,0,$C111))) ->  | AN111: =IF(V111="","",IF($AN$66<$G111,0,IF(SUM($X111:AM111)>=$C111,0,$C111))) ->  | AO111: =IF(V111="","",IF($AO$66<$G111,0,IF(SUM($X111:AN111)>=$C111,0,$C111))) ->  | AP111: =IF(V111="","",IF($AP$66<$G111,0,IF(SUM($X111:AO111)>=$C111,0,$C111))) ->  | AQ111: =IF(V111="","",IF($AQ$66<$G111,0,IF(SUM($X111:AP111)>=$C111,0,$C111))) ->  | AR111: =IF(V111="","",IF($AR$66<$G111,0,IF(SUM($X111:AQ111)>=$C111,0,$C111))) ->  | AS111: 46
F112: Normal | G112: 0 | I112: Sim | J112: Sim | P112: 0 | Y112: =IF(V112="","",IF($Y$66<$G112,0,IF(SUM($X112:X112)>=$C112,0,$C112))) ->  | Z112: =IF(V112="","",IF($Z$66<$G112,0,IF(SUM($X112:Y112)>=$C112,0,$C112))) ->  | AA112: =IF(V112="","",IF($AA$66<$G112,0,IF(SUM($X112:Z112)>=$C112,0,$C112))) ->  | AB112: =IF(V112="","",IF($AB$66<$G112,0,IF(SUM($X112:AA112)>=$C112,0,$C112))) ->  | AC112: =IF(V112="","",IF($AC$66<$G112,0,IF(SUM($X112:AB112)>=$C112,0,$C112))) ->  | AD112: =IF(V112="","",IF($AD$66<$G112,0,IF(SUM($X112:AC112)>=$C112,0,$C112))) ->  | AE112: =IF(V112="","",IF($AE$66<$G112,0,IF(SUM($X112:AD112)>=$C112,0,$C112))) ->  | AF112: =IF(V112="","",IF($AF$66<$G112,0,IF(SUM($X112:AE112)>=$C112,0,$C112))) ->  | AG112: =IF(V112="","",IF($AG$66<$G112,0,IF(SUM($X112:AF112)>=$C112,0,$C112))) ->  | AH112: =IF(V112="","",IF($AH$66<$G112,0,IF(SUM($X112:AG112)>=$C112,0,$C112))) ->  | AI112: =IF(V112="","",IF($AI$66<$G112,0,IF(SUM($X112:AH112)>=$C112,0,$C112))) ->  | AJ112: =IF(V112="","",IF($AJ$66<$G112,0,IF(SUM($X112:AI112)>=$C112,0,$C112))) ->  | AK112: =IF(V112="","",IF($AK$66<$G112,0,IF(SUM($X112:AJ112)>=$C112,0,$C112))) ->  | AL112: =IF(V112="","",IF($AL$66<$G112,0,IF(SUM($X112:AK112)>=$C112,0,$C112))) ->  | AM112: =IF(V112="","",IF($AM$66<$G112,0,IF(SUM($X112:AL112)>=$C112,0,$C112))) ->  | AN112: =IF(V112="","",IF($AN$66<$G112,0,IF(SUM($X112:AM112)>=$C112,0,$C112))) ->  | AO112: =IF(V112="","",IF($AO$66<$G112,0,IF(SUM($X112:AN112)>=$C112,0,$C112))) ->  | AP112: =IF(V112="","",IF($AP$66<$G112,0,IF(SUM($X112:AO112)>=$C112,0,$C112))) ->  | AQ112: =IF(V112="","",IF($AQ$66<$G112,0,IF(SUM($X112:AP112)>=$C112,0,$C112))) ->  | AR112: =IF(V112="","",IF($AR$66<$G112,0,IF(SUM($X112:AQ112)>=$C112,0,$C112))) ->  | AS112: 47
F113: Normal | G113: 0 | I113: Sim | J113: Sim | P113: 0 | Y113: =IF(V113="","",IF($Y$66<$G113,0,IF(SUM($X113:X113)>=$C113,0,$C113))) ->  | Z113: =IF(V113="","",IF($Z$66<$G113,0,IF(SUM($X113:Y113)>=$C113,0,$C113))) ->  | AA113: =IF(V113="","",IF($AA$66<$G113,0,IF(SUM($X113:Z113)>=$C113,0,$C113))) ->  | AB113: =IF(V113="","",IF($AB$66<$G113,0,IF(SUM($X113:AA113)>=$C113,0,$C113))) ->  | AC113: =IF(V113="","",IF($AC$66<$G113,0,IF(SUM($X113:AB113)>=$C113,0,$C113))) ->  | AD113: =IF(V113="","",IF($AD$66<$G113,0,IF(SUM($X113:AC113)>=$C113,0,$C113))) ->  | AE113: =IF(V113="","",IF($AE$66<$G113,0,IF(SUM($X113:AD113)>=$C113,0,$C113))) ->  | AF113: =IF(V113="","",IF($AF$66<$G113,0,IF(SUM($X113:AE113)>=$C113,0,$C113))) ->  | AG113: =IF(V113="","",IF($AG$66<$G113,0,IF(SUM($X113:AF113)>=$C113,0,$C113))) ->  | AH113: =IF(V113="","",IF($AH$66<$G113,0,IF(SUM($X113:AG113)>=$C113,0,$C113))) ->  | AI113: =IF(V113="","",IF($AI$66<$G113,0,IF(SUM($X113:AH113)>=$C113,0,$C113))) ->  | AJ113: =IF(V113="","",IF($AJ$66<$G113,0,IF(SUM($X113:AI113)>=$C113,0,$C113))) ->  | AK113: =IF(V113="","",IF($AK$66<$G113,0,IF(SUM($X113:AJ113)>=$C113,0,$C113))) ->  | AL113: =IF(V113="","",IF($AL$66<$G113,0,IF(SUM($X113:AK113)>=$C113,0,$C113))) ->  | AM113: =IF(V113="","",IF($AM$66<$G113,0,IF(SUM($X113:AL113)>=$C113,0,$C113))) ->  | AN113: =IF(V113="","",IF($AN$66<$G113,0,IF(SUM($X113:AM113)>=$C113,0,$C113))) ->  | AO113: =IF(V113="","",IF($AO$66<$G113,0,IF(SUM($X113:AN113)>=$C113,0,$C113))) ->  | AP113: =IF(V113="","",IF($AP$66<$G113,0,IF(SUM($X113:AO113)>=$C113,0,$C113))) ->  | AQ113: =IF(V113="","",IF($AQ$66<$G113,0,IF(SUM($X113:AP113)>=$C113,0,$C113))) ->  | AR113: =IF(V113="","",IF($AR$66<$G113,0,IF(SUM($X113:AQ113)>=$C113,0,$C113))) ->  | AS113: 48
F114: Normal | G114: 0 | I114: Sim | J114: Sim | P114: 0 | Y114: =IF(V114="","",IF($Y$66<$G114,0,IF(SUM($X114:X114)>=$C114,0,$C114))) ->  | Z114: =IF(V114="","",IF($Z$66<$G114,0,IF(SUM($X114:Y114)>=$C114,0,$C114))) ->  | AA114: =IF(V114="","",IF($AA$66<$G114,0,IF(SUM($X114:Z114)>=$C114,0,$C114))) ->  | AB114: =IF(V114="","",IF($AB$66<$G114,0,IF(SUM($X114:AA114)>=$C114,0,$C114))) ->  | AC114: =IF(V114="","",IF($AC$66<$G114,0,IF(SUM($X114:AB114)>=$C114,0,$C114))) ->  | AD114: =IF(V114="","",IF($AD$66<$G114,0,IF(SUM($X114:AC114)>=$C114,0,$C114))) ->  | AE114: =IF(V114="","",IF($AE$66<$G114,0,IF(SUM($X114:AD114)>=$C114,0,$C114))) ->  | AF114: =IF(V114="","",IF($AF$66<$G114,0,IF(SUM($X114:AE114)>=$C114,0,$C114))) ->  | AG114: =IF(V114="","",IF($AG$66<$G114,0,IF(SUM($X114:AF114)>=$C114,0,$C114))) ->  | AH114: =IF(V114="","",IF($AH$66<$G114,0,IF(SUM($X114:AG114)>=$C114,0,$C114))) ->  | AI114: =IF(V114="","",IF($AI$66<$G114,0,IF(SUM($X114:AH114)>=$C114,0,$C114))) ->  | AJ114: =IF(V114="","",IF($AJ$66<$G114,0,IF(SUM($X114:AI114)>=$C114,0,$C114))) ->  | AK114: =IF(V114="","",IF($AK$66<$G114,0,IF(SUM($X114:AJ114)>=$C114,0,$C114))) ->  | AL114: =IF(V114="","",IF($AL$66<$G114,0,IF(SUM($X114:AK114)>=$C114,0,$C114))) ->  | AM114: =IF(V114="","",IF($AM$66<$G114,0,IF(SUM($X114:AL114)>=$C114,0,$C114))) ->  | AN114: =IF(V114="","",IF($AN$66<$G114,0,IF(SUM($X114:AM114)>=$C114,0,$C114))) ->  | AO114: =IF(V114="","",IF($AO$66<$G114,0,IF(SUM($X114:AN114)>=$C114,0,$C114))) ->  | AP114: =IF(V114="","",IF($AP$66<$G114,0,IF(SUM($X114:AO114)>=$C114,0,$C114))) ->  | AQ114: =IF(V114="","",IF($AQ$66<$G114,0,IF(SUM($X114:AP114)>=$C114,0,$C114))) ->  | AR114: =IF(V114="","",IF($AR$66<$G114,0,IF(SUM($X114:AQ114)>=$C114,0,$C114))) ->  | AS114: 49
F115: Normal | G115: 0 | I115: Sim | J115: Sim | P115: 0 | Y115: =IF(V115="","",IF($Y$66<$G115,0,IF(SUM($X115:X115)>=$C115,0,$C115))) ->  | Z115: =IF(V115="","",IF($Z$66<$G115,0,IF(SUM($X115:Y115)>=$C115,0,$C115))) ->  | AA115: =IF(V115="","",IF($AA$66<$G115,0,IF(SUM($X115:Z115)>=$C115,0,$C115))) ->  | AB115: =IF(V115="","",IF($AB$66<$G115,0,IF(SUM($X115:AA115)>=$C115,0,$C115))) ->  | AC115: =IF(V115="","",IF($AC$66<$G115,0,IF(SUM($X115:AB115)>=$C115,0,$C115))) ->  | AD115: =IF(V115="","",IF($AD$66<$G115,0,IF(SUM($X115:AC115)>=$C115,0,$C115))) ->  | AE115: =IF(V115="","",IF($AE$66<$G115,0,IF(SUM($X115:AD115)>=$C115,0,$C115))) ->  | AF115: =IF(V115="","",IF($AF$66<$G115,0,IF(SUM($X115:AE115)>=$C115,0,$C115))) ->  | AG115: =IF(V115="","",IF($AG$66<$G115,0,IF(SUM($X115:AF115)>=$C115,0,$C115))) ->  | AH115: =IF(V115="","",IF($AH$66<$G115,0,IF(SUM($X115:AG115)>=$C115,0,$C115))) ->  | AI115: =IF(V115="","",IF($AI$66<$G115,0,IF(SUM($X115:AH115)>=$C115,0,$C115))) ->  | AJ115: =IF(V115="","",IF($AJ$66<$G115,0,IF(SUM($X115:AI115)>=$C115,0,$C115))) ->  | AK115: =IF(V115="","",IF($AK$66<$G115,0,IF(SUM($X115:AJ115)>=$C115,0,$C115))) ->  | AL115: =IF(V115="","",IF($AL$66<$G115,0,IF(SUM($X115:AK115)>=$C115,0,$C115))) ->  | AM115: =IF(V115="","",IF($AM$66<$G115,0,IF(SUM($X115:AL115)>=$C115,0,$C115))) ->  | AN115: =IF(V115="","",IF($AN$66<$G115,0,IF(SUM($X115:AM115)>=$C115,0,$C115))) ->  | AO115: =IF(V115="","",IF($AO$66<$G115,0,IF(SUM($X115:AN115)>=$C115,0,$C115))) ->  | AP115: =IF(V115="","",IF($AP$66<$G115,0,IF(SUM($X115:AO115)>=$C115,0,$C115))) ->  | AQ115: =IF(V115="","",IF($AQ$66<$G115,0,IF(SUM($X115:AP115)>=$C115,0,$C115))) ->  | AR115: =IF(V115="","",IF($AR$66<$G115,0,IF(SUM($X115:AQ115)>=$C115,0,$C115))) ->  | AS115: 50 | AY115: =IF(OR($AU115="",$H115=""),"",IF($I115="Sim",IF(AY$66-$H115>=0,HLOOKUP(AY$66-$H115,$AW$66:$BQ$116,$AS115,FALSE)+HLOOKUP(AY$66-$H115,$X$66:$AR$116,$AS115,FALSE),0),0)) -> 
F116: Normal | G116: 0 | I116: Sim | J116: Sim | P116: 0 | Y116: =IF(V116="","",IF($Y$66<$G116,0,IF(SUM($X116:X116)>=$C116,0,$C116))) ->  | Z116: =IF(V116="","",IF($Z$66<$G116,0,IF(SUM($X116:Y116)>=$C116,0,$C116))) ->  | AA116: =IF(V116="","",IF($AA$66<$G116,0,IF(SUM($X116:Z116)>=$C116,0,$C116))) ->  | AB116: =IF(V116="","",IF($AB$66<$G116,0,IF(SUM($X116:AA116)>=$C116,0,$C116))) ->  | AC116: =IF(V116="","",IF($AC$66<$G116,0,IF(SUM($X116:AB116)>=$C116,0,$C116))) ->  | AD116: =IF(V116="","",IF($AD$66<$G116,0,IF(SUM($X116:AC116)>=$C116,0,$C116))) ->  | AE116: =IF(V116="","",IF($AE$66<$G116,0,IF(SUM($X116:AD116)>=$C116,0,$C116))) ->  | AF116: =IF(V116="","",IF($AF$66<$G116,0,IF(SUM($X116:AE116)>=$C116,0,$C116))) ->  | AG116: =IF(V116="","",IF($AG$66<$G116,0,IF(SUM($X116:AF116)>=$C116,0,$C116))) ->  | AH116: =IF(V116="","",IF($AH$66<$G116,0,IF(SUM($X116:AG116)>=$C116,0,$C116))) ->  | AI116: =IF(V116="","",IF($AI$66<$G116,0,IF(SUM($X116:AH116)>=$C116,0,$C116))) ->  | AJ116: =IF(V116="","",IF($AJ$66<$G116,0,IF(SUM($X116:AI116)>=$C116,0,$C116))) ->  | AK116: =IF(V116="","",IF($AK$66<$G116,0,IF(SUM($X116:AJ116)>=$C116,0,$C116))) ->  | AL116: =IF(V116="","",IF($AL$66<$G116,0,IF(SUM($X116:AK116)>=$C116,0,$C116))) ->  | AM116: =IF(V116="","",IF($AM$66<$G116,0,IF(SUM($X116:AL116)>=$C116,0,$C116))) ->  | AN116: =IF(V116="","",IF($AN$66<$G116,0,IF(SUM($X116:AM116)>=$C116,0,$C116))) ->  | AO116: =IF(V116="","",IF($AO$66<$G116,0,IF(SUM($X116:AN116)>=$C116,0,$C116))) ->  | AP116: =IF(V116="","",IF($AP$66<$G116,0,IF(SUM($X116:AO116)>=$C116,0,$C116))) ->  | AQ116: =IF(V116="","",IF($AQ$66<$G116,0,IF(SUM($X116:AP116)>=$C116,0,$C116))) ->  | AR116: =IF(V116="","",IF($AR$66<$G116,0,IF(SUM($X116:AQ116)>=$C116,0,$C116))) ->  | AS116: 51 | BA116: =IF(OR($AU116="",$H116=""),"",IF($I116="Sim",IF(BA$66-$H116>=0,HLOOKUP(BA$66-$H116,$AW$66:$BQ$116,$AS116,FALSE)+HLOOKUP(BA$66-$H116,$X$66:$AR$116,$AS116,FALSE),0),0)) -> 
V117: Total | X117: =SUM(X67:X116) -> 0 | Y117: =SUM(Y67:Y116) -> 0 | Z117: 0 | AA117: 0 | AB117: 0 | AC117: 0 | AD117: 0 | AE117: 0 | AF117: 0 | AG117: 0 | AH117: 0 | AI117: 0 | AJ117: 0 | AK117: 0 | AL117: 0 | AM117: 0 | AN117: 0 | AO117: 0 | AP117: 0 | AQ117: 0 | AR117: 0 | AU117: Total | AW117: =SUM(AW67:AW116) -> 0 | AX117: =SUM(AX67:AX116) -> 0 | AY117: 0 | AZ117: 0 | BA117: 0 | BB117: 0 | BC117: 0 | BD117: 0 | BE117: 0 | BF117: 0 | BG117: 0 | BH117: 0 | BI117: 0 | BJ117: 0 | BK117: 0 | BL117: 0 | BM117: 0 | BN117: 0 | BO117: 0 | BP117: 0 | BQ117: 0 | BS117: Total | BU117: =SUM(BU67:BU116) -> 0 | BV117: =SUM(BV67:BV116) -> 0 | BW117: 0 | BX117: 0 | BY117: 0 | BZ117: 0 | CA117: 0 | CB117: 0 | CC117: 0 | CD117: 0 | CE117: 0 | CF117: 0 | CG117: 0 | CH117: 0 | CI117: 0 | CJ117: 0 | CK117: 0 | CL117: 0 | CM117: 0 | CN117: 0 | CO117: 0 | CQ117: total | CT117: =SUM(CT67:CT116) -> 0 | CU117: =SUM(CU67:CU116) -> 0 | CV117: 0 | CW117: 0 | CX117: 0 | CY117: 0 | CZ117: 0 | DA117: 0 | DB117: 0 | DC117: 0 | DD117: 0 | DE117: 0 | DF117: 0 | DG117: 0 | DH117: 0 | DI117: 0 | DJ117: 0 | DK117: 0 | DL117: 0 | DM117: 0 | DN117: 0 | DP117: total | DS117: =SUM(DS67:DS116) -> 0 | DT117: =SUM(DT67:DT116) -> 0 | DU117: =SUM(DU67:DU116) -> 0 | DV117: =SUM(DV67:DV116) -> 0 | DW117: =SUM(DW67:DW116) -> 0 | DX117: =SUM(DX67:DX116) -> 0 | DY117: =SUM(DY67:DY116) -> 0 | DZ117: =SUM(DZ67:DZ116) -> 0 | EA117: =SUM(EA67:EA116) -> 0 | EB117: =SUM(EB67:EB116) -> 0 | EC117: =SUM(EC67:EC116) -> 0 | ED117: =SUM(ED67:ED116) -> 0 | EE117: =SUM(EE67:EE116) -> 0 | EF117: =SUM(EF67:EF116) -> 0 | EG117: =SUM(EG67:EG116) -> 0 | EH117: =SUM(EH67:EH116) -> 0 | EI117: =SUM(EI67:EI116) -> 0 | EJ117: =SUM(EJ67:EJ116) -> 0 | EK117: =SUM(EK67:EK116) -> 0 | EL117: =SUM(EL67:EL116) -> 0 | EM117: =SUM(EM67:EM116) -> 0 | EO117: Total | EQ117: =SUM(EQ67:EQ116) -> 0 | ER117: =SUM(ER67:ER116) -> 0 | ES117: =SUM(ES67:ES116) -> 0 | ET117: =SUM(ET67:ET116) -> 0 | EU117: =SUM(EU67:EU116) -> 0 | EV117: =SUM(EV67:EV116) -> 0 | EW117: =SUM(EW67:EW116) -> 0 | EX117: =SUM(EX67:EX116) -> 0 | EY117: =SUM(EY67:EY116) -> 0 | EZ117: =SUM(EZ67:EZ116) -> 0 | FA117: =SUM(FA67:FA116) -> 0 | FB117: =SUM(FB67:FB116) -> 0 | FC117: =SUM(FC67:FC116) -> 0 | FD117: =SUM(FD67:FD116) -> 0 | FE117: =SUM(FE67:FE116) -> 0 | FF117: =SUM(FF67:FF116) -> 0 | FG117: =SUM(FG67:FG116) -> 0 | FH117: =SUM(FH67:FH116) -> 0 | FI117: =SUM(FI67:FI116) -> 0 | FJ117: =SUM(FJ67:FJ116) -> 0 | FK117: =SUM(FK67:FK116) -> 0 | FM117: total | FP117: =SUM(FP67:FP116) -> 0 | FQ117: =SUM(FQ67:FQ116) -> 0 | FR117: =SUM(FR67:FR116) -> 0 | FS117: =SUM(FS67:FS116) -> 0 | FT117: =SUM(FT67:FT116) -> 0 | FU117: =SUM(FU67:FU116) -> 0 | FV117: =SUM(FV67:FV116) -> 0 | FW117: =SUM(FW67:FW116) -> 0 | FX117: =SUM(FX67:FX116) -> 0 | FY117: =SUM(FY67:FY116) -> 0 | FZ117: =SUM(FZ67:FZ116) -> 0 | GA117: =SUM(GA67:GA116) -> 0 | GB117: =SUM(GB67:GB116) -> 0 | GC117: =SUM(GC67:GC116) -> 0 | GD117: =SUM(GD67:GD116) -> 0 | GE117: =SUM(GE67:GE116) -> 0 | GF117: =SUM(GF67:GF116) -> 0 | GG117: =SUM(GG67:GG116) -> 0 | GH117: =SUM(GH67:GH116) -> 0 | GI117: =SUM(GI67:GI116) -> 0 | GJ117: =SUM(GJ67:GJ116) -> 0
B122: ='Dados propriedade'!$J$32 -> Carne | V122: Investimentos | X122: Fisico | AU122: Reinvestimento | AW122: Fisico | BS122: Total | BU122: Fisico | CQ122: Valor investimento e reinvestimento | CT122: R$ | DP122: Depreciação | DS122: R$ | EO122: Venda Ativos | EQ122: R$ | FM122: Valor de liquidacao | FP122: R$
B123: Item | C123: Quantidade Inicial | D123: Unidade | E123: Custo Real Unitário CIF1 (R$/Unidade) | F123: Velocidade de Depreciação | G123: Período Inicial do Investimento | H123: Tempo de Uso2 (Anos) | I123: Modelar Reinvestimentos3 ? | J123: Incluir Valor de Liquidação? | K123: Valor Residual4 (%) | L123: Taxa de Depreciação Contábil (%) | M123: Vida Útil Ajustada (Anos) | N123: Vida Útil Legal (Anos) | O123: Taxa de Depreciação Real (%) | P123: Cresc. Real Médio Anual no Custo (%) | Q123: Observações | X123: 0 | Y123: 1 | Z123: 2 | AA123: 3 | AB123: 4 | AC123: 5 | AD123: 6 | AE123: 7 | AF123: 8 | AG123: 9 | AH123: 10 | AI123: 11 | AJ123: 12 | AK123: 13 | AL123: 14 | AM123: 15 | AN123: 16 | AO123: 17 | AP123: 18 | AQ123: 19 | AR123: 20 | AS123: 1 | AW123: 0 | AX123: 1 | AY123: 2 | AZ123: 3 | BA123: 4 | BB123: 5 | BC123: 6 | BD123: 7 | BE123: 8 | BF123: 9 | BG123: 10 | BH123: 11 | BI123: 12 | BJ123: 13 | BK123: 14 | BL123: 15 | BM123: 16 | BN123: 17 | BO123: 18 | BP123: 19 | BQ123: 20 | BU123: 0 | BV123: 1 | BW123: 2 | BX123: 3 | BY123: 4 | BZ123: 5 | CA123: 6 | CB123: 7 | CC123: 8 | CD123: 9 | CE123: 10 | CF123: 11 | CG123: 12 | CH123: 13 | CI123: 14 | CJ123: 15 | CK123: 16 | CL123: 17 | CM123: 18 | CN123: 19 | CO123: 20 | CQ123: Item | CR123: Custo Real Unitário CIF (R$/Unidade) | CS123: Crescimento Real Médio Anual (%) | CT123: 0 | CU123: 1 | CV123: 2 | CW123: 3 | CX123: 4 | CY123: 5 | CZ123: 6 | DA123: 7 | DB123: 8 | DC123: 9 | DD123: 10 | DE123: 11 | DF123: 12 | DG123: 13 | DH123: 14 | DI123: 15 | DJ123: 16 | DK123: 17 | DL123: 18 | DM123: 19 | DN123: 20 | DP123: Item | DQ123: Depreciação contabil anual (%) | DR123: Vida Útil (anos) | DS123: 0 | DT123: 1 | DU123: 2 | DV123: 3 | DW123: 4 | DX123: 5 | DY123: 6 | DZ123: 7 | EA123: 8 | EB123: 9 | EC123: 10 | ED123: 11 | EE123: 12 | EF123: 13 | EG123: 14 | EH123: 15 | EI123: 16 | EJ123: 17 | EK123: 18 | EL123: 19 | EM123: 20 | EQ123: 0 | ER123: 1 | ES123: 2 | ET123: 3 | EU123: 4 | EV123: 5 | EW123: 6 | EX123: 7 | EY123: 8 | EZ123: 9 | FA123: 10 | FB123: 11 | FC123: 12 | FD123: 13 | FE123: 14 | FF123: 15 | FG123: 16 | FH123: 17 | FI123: 18 | FJ123: 19 | FK123: 20 | FM123: Item | FN123: Depreciação real anual (%) | FO123: Tempo de uso (anos) | FP123: 0 | FQ123: 1 | FR123: 2 | FS123: 3 | FT123: 4 | FU123: 5 | FV123: 6 | FW123: 7 | FX123: 8 | FY123: 9 | FZ123: 10 | GA123: 11 | GB123: 12 | GC123: 13 | GD123: 14 | GE123: 15 | GF123: 16 | GG123: 17 | GH123: 18 | GI123: 19 | GJ123: 20
